Workbook

Sheet Inicio
N2: Fonte: GPP a partir de dados
A4: Caracterização dos Apoios e Agricultores Portugueses no âmbito do Pedido Único da PAC - 2019
A10: 1. | B10: Seleccione a variável, o tipo de classes de dimensão e o grupo de produtores a representar:
A15: 2. | B15: Visualize os gráficos respetivos:
B20: Visualize a base de dados:
B25: Copie os dados obtidos para um novo ficheiro:

Sheet Base (hidden)
D4: Tipo de Beneficiário: | G4: =INDEX(Sheet6!$P$1:$P$6,Sheet3!$A$2) -> Todos os Produtores do PU | N4: Valor total: | P4: =+Base!$DM$34 -> 1262.49724 | R4: =+"(" & (INDEX(Sheet6!$G$2:$G$117,Sheet3!$C$1)) & ")" -> (1000 €)
D5: =+INDEX(Sheet6!$D$2:$D$117,Sheet3!$C$1)&" segundo Orientação Técnico Económica e "&INDEX(Sheet6!$M$3:$M$6,Sheet3!$B$1)&" e por NUTSIII em " &Sheet6!$B$1 -> (50) - Maa - Pastoreio Extensivo Iii (Mapa) segundo Orientação Técnico Económica e Classes de Superfície Agrícola e por NUTSIII em 2019 | AH5: =+D5& " (cont.)" -> (50) - Maa - Pastoreio Extensivo Iii (Mapa) segundo Orientação Técnico Económica e Classes de Superfície Agrícola e por NUTSIII em 2019 (cont.) | BL5: =+AH5 -> (50) - Maa - Pastoreio Extensivo Iii (Mapa) segundo Orientação Técnico Económica e Classes de Superfície Agrícola e por NUTSIII em 2019 (cont.) | CP5: =+INDEX(Sheet6!$D$2:$D$117,Sheet3!$C$1)&" segundo Orientação Técnico Económica por NUTSIII em " &Sheet6!B1 -> (50) - Maa - Pastoreio Extensivo Iii (Mapa) segundo Orientação Técnico Económica por NUTSIII em 2019 | DH5: =+INDEX(Sheet6!$D$2:$D$117,Sheet3!$C$1)&CHAR(10)& "segundo "&INDEX(Sheet6!$M$3:$M$6,Sheet3!$B$1)& " por NUTSIII em " &Sheet6!$B$1 -> (50) - Maa - Pastoreio Extensivo Iii (Mapa) segundo Classes de Superfície Agrícola por NUTSIII em 2019
C7: =+"Unidade: "&INDEX(Sheet6!$G$2:$G$117,Sheet3!$C$1) -> Unidade: 1000 €
C8: OTE | D8: Não classificadas | I8: Arvenses e Outras Cult pred. Regadio | N8: Arvenses e Outras Cult pred. Sequeiro | S8: Arroz | X8: Horticultura e Industriais | AC8: Horticultura e Floricultura | AH8: Vinhos | AM8: Fruticultura | AR8: Olival | AW8: Policultura | BB8: Bovinos Leite | BG8: Bovinos Carne pred. Intensivos | BL8: Bovinos Carne pred. Extensivos | BQ8: Outros Ruminantes | BV8: Mistas | CA8: Pousio e Pastagem | CF8: Tomate Indústria | CK8: Plantas tuberosas | CP8: Não classificadas | CQ8: Arvenses e Outras Cult pred. Regadio | CR8: Arvenses e Outras Cult pred. Sequeiro | CS8: Arroz | CT8: Horticultura e Industriais | CU8: Horticultura e Floricultura | CV8: Vinhos | CW8: Fruticultura | CX8: Olival | CY8: Policultura | CZ8: Bovinos Leite | DA8: Bovinos Carne pred. Intensivos | DB8: Bovinos Carne pred. Extensivos | DC8: Outros Ruminantes | DD8: Mistas | DE8: Pousio e Pastagem | DF8: Tomate Indústria | DG8: Plantas tuberosas | DH8: MP | DI8: P | DJ8: M | DK8: G | DL8: MG | DM8: Total
C9: =+INDEX(Sheet6!M3:M6,Sheet3!B1) -> Classes de Superfície Agrícola | D9: MP | E9: P | F9: M | G9: G | H9: MG | I9: MP | J9: P | K9: M | L9: G | M9: MG | N9: MP | O9: P | P9: M | Q9: G | R9: MG | S9: MP | T9: P | U9: M | V9: G | W9: MG | X9: MP | Y9: P | Z9: M | AA9: G | AB9: MG | AC9: MP | AD9: P | AE9: M | AF9: G | AG9: MG | AH9: MP | AI9: P | AJ9: M | AK9: G | AL9: MG | AM9: MP | AN9: P | AO9: M | AP9: G | AQ9: MG | AR9: MP | AS9: P | AT9: M | AU9: G | AV9: MG | AW9: MP | AX9: P | AY9: M | AZ9: G | BA9: MG | BB9: MP | BC9: P | BD9: M | BE9: G | BF9: MG | BG9: MP | BH9: P | BI9: M | BJ9: G | BK9: MG | BL9: MP | BM9: P | BN9: M | BO9: G | BP9: MG | BQ9: MP | BR9: P | BS9: M | BT9: G | BU9: MG | BV9: MP | BW9: P | BX9: M | BY9: G | BZ9: MG | CA9: MP | CB9: P | CC9: M | CD9: G | CE9: MG | CF9: MP | CG9: P | CH9: M | CI9: G | CJ9: MG | CK9: MP | CL9: P | CM9: M | CN9: G | CO9: MG | CQ9: Arvenses e Outras Cult pred. Regadio
A10: NUTS II | B10: Cód. | C10: NUTS III | AG10: =+"Unidade: "&INDEX(Sheet6!$G$2:$G$117,Sheet3!$C$1) -> Unidade: 1000 € | BK10: =+"Unidade: "&INDEX(Sheet6!$G$2:$G$117,Sheet3!$C$1) -> Unidade: 1000 € | CO10: =+"Unidade: "&INDEX(Sheet6!$G$2:$G$117,Sheet3!$C$1) -> Unidade: 1000 € | DM10: =+"Unidade: "&INDEX(Sheet6!$G$2:$G$117,Sheet3!$C$1) -> Unidade: 1000 €
A11: Norte | B11: 111 | C11: Alto Minho | D11: =+Sheet3!D8/Sheet3!$F$1 -> 0 | E11: =+Sheet3!E8/Sheet3!$F$1 -> 0 | F11: =+Sheet3!F8/Sheet3!$F$1 -> 0 | G11: =+Sheet3!G8/Sheet3!$F$1 -> 0 | H11: =+Sheet3!H8/Sheet3!$F$1 -> 0 | I11: =+Sheet3!I8/Sheet3!$F$1 -> 0 | J11: =+Sheet3!J8/Sheet3!$F$1 -> 0.35 | K11: =+Sheet3!K8/Sheet3!$F$1 -> 0 | L11: =+Sheet3!L8/Sheet3!$F$1 -> 0 | M11: =+Sheet3!M8/Sheet3!$F$1 -> 0 | N11: =+Sheet3!N8/Sheet3!$F$1 -> 0 | O11: =+Sheet3!O8/Sheet3!$F$1 -> 0 | P11: =+Sheet3!P8/Sheet3!$F$1 -> 0 | Q11: =+Sheet3!Q8/Sheet3!$F$1 -> 0 | R11: =+Sheet3!R8/Sheet3!$F$1 -> 0 | S11: =+Sheet3!S8/Sheet3!$F$1 -> 0 | T11: =+Sheet3!T8/Sheet3!$F$1 -> 0 | U11: =+Sheet3!U8/Sheet3!$F$1 -> 0 | V11: =+Sheet3!V8/Sheet3!$F$1 -> 0 | W11: =+Sheet3!W8/Sheet3!$F$1 -> 0 | X11: =+Sheet3!X8/Sheet3!$F$1 -> 0 | Y11: =+Sheet3!Y8/Sheet3!$F$1 -> 0 | Z11: =+Sheet3!Z8/Sheet3!$F$1 -> 0 | AA11: =+Sheet3!AA8/Sheet3!$F$1 -> 0 | AB11: =+Sheet3!AB8/Sheet3!$F$1 -> 0 | AC11: =+Sheet3!AC8/Sheet3!$F$1 -> 0 | AD11: =+Sheet3!AD8/Sheet3!$F$1 -> 0 | AE11: =+Sheet3!AE8/Sheet3!$F$1 -> 0 | AF11: =+Sheet3!AF8/Sheet3!$F$1 -> 0 | AG11: =+Sheet3!AG8/Sheet3!$F$1 -> 0 | AH11: =+Sheet3!AH8/Sheet3!$F$1 -> 0 | AI11: =+Sheet3!AI8/Sheet3!$F$1 -> 0 | AJ11: =+Sheet3!AJ8/Sheet3!$F$1 -> 0 | AK11: =+Sheet3!AK8/Sheet3!$F$1 -> 0 | AL11: =+Sheet3!AL8/Sheet3!$F$1 -> 0 | AM11: =+Sheet3!AM8/Sheet3!$F$1 -> 0 | AN11: =+Sheet3!AN8/Sheet3!$F$1 -> 0 | AO11: =+Sheet3!AO8/Sheet3!$F$1 -> 0 | AP11: =+Sheet3!AP8/Sheet3!$F$1 -> 0 | AQ11: =+Sheet3!AQ8/Sheet3!$F$1 -> 0 | AR11: =+Sheet3!AR8/Sheet3!$F$1 -> 0 | AS11: =+Sheet3!AS8/Sheet3!$F$1 -> 0 | AT11: =+Sheet3!AT8/Sheet3!$F$1 -> 0 | AU11: =+Sheet3!AU8/Sheet3!$F$1 -> 0 | AV11: =+Sheet3!AV8/Sheet3!$F$1 -> 0 | AW11: =+Sheet3!AW8/Sheet3!$F$1 -> 0 | AX11: =+Sheet3!AX8/Sheet3!$F$1 -> 0 | AY11: =+Sheet3!AY8/Sheet3!$F$1 -> 0 | AZ11: =+Sheet3!AZ8/Sheet3!$F$1 -> 0 | BA11: =+Sheet3!BA8/Sheet3!$F$1 -> 0 | BB11: =+Sheet3!BB8/Sheet3!$F$1 -> 0 | BC11: =+Sheet3!BC8/Sheet3!$F$1 -> 0 | BD11: =+Sheet3!BD8/Sheet3!$F$1 -> 0 | BE11: =+Sheet3!BE8/Sheet3!$F$1 -> 0 | BF11: =+Sheet3!BF8/Sheet3!$F$1 -> 0 | BG11: =+Sheet3!BG8/Sheet3!$F$1 -> 0 | BH11: =+Sheet3!BH8/Sheet3!$F$1 -> 4.48088 | BI11: =+Sheet3!BI8/Sheet3!$F$1 -> 4.55 | BJ11: =+Sheet3!BJ8/Sheet3!$F$1 -> 0 | BK11: =+Sheet3!BK8/Sheet3!$F$1 -> 0 | BL11: =+Sheet3!BL8/Sheet3!$F$1 -> 0 | BM11: =+Sheet3!BM8/Sheet3!$F$1 -> 4.8832 | BN11: =+Sheet3!BN8/Sheet3!$F$1 -> 23.61555 | BO11: =+Sheet3!BO8/Sheet3!$F$1 -> 1.05 | BP11: =+Sheet3!BP8/Sheet3!$F$1 -> 0 | BQ11: =+Sheet3!BQ8/Sheet3!$F$1 -> 0 | BR11: =+Sheet3!BR8/Sheet3!$F$1 -> 1.3965 | BS11: =+Sheet3!BS8/Sheet3!$F$1 -> 6.6759 | BT11: =+Sheet3!BT8/Sheet3!$F$1 -> 0.7 | BU11: =+Sheet3!BU8/Sheet3!$F$1 -> 0 | BV11: =+Sheet3!BV8/Sheet3!$F$1 -> 0 | BW11: =+Sheet3!BW8/Sheet3!$F$1 -> 0.4305 | BX11: =+Sheet3!BX8/Sheet3!$F$1 -> 0 | BY11: =+Sheet3!BY8/Sheet3!$F$1 -> 0 | BZ11: =+Sheet3!BZ8/Sheet3!$F$1 -> 0 | CA11: =+Sheet3!CA8/Sheet3!$F$1 -> 0 | CB11: =+Sheet3!CB8/Sheet3!$F$1 -> 0 | CC11: =+Sheet3!CC8/Sheet3!$F$1 -> 0 | CD11: =+Sheet3!CD8/Sheet3!$F$1 -> 0 | CE11: =+Sheet3!CE8/Sheet3!$F$1 -> 0 | CF11: =+Sheet3!CF8/Sheet3!$F$1 -> 0 | CG11: =+Sheet3!CG8/Sheet3!$F$1 -> 0 | CH11: =+Sheet3!CH8/Sheet3!$F$1 -> 0 | CI11: =+Sheet3!CI8/Sheet3!$F$1 -> 0 | CJ11: =+Sheet3!CJ8/Sheet3!$F$1 -> 0 | CK11: =+Sheet3!CK8/Sheet3!$F$1 -> 0 | CL11: =+Sheet3!CL8/Sheet3!$F$1 -> 0 | CM11: =+Sheet3!CM8/Sheet3!$F$1 -> 0 | CN11: =+Sheet3!CN8/Sheet3!$F$1 -> 0 | CO11: =+Sheet3!CO8/Sheet3!$F$1 -> 0 | CP11: =+Sheet3!CP8/Sheet3!$F$1 -> 0 | CQ11: =+Sheet3!CQ8/Sheet3!$F$1 -> 0.35 | CR11: =+Sheet3!CR8/Sheet3!$F$1 -> 0 | CS11: =+Sheet3!CS8/Sheet3!$F$1 -> 0 | CT11: =+Sheet3!CT8/Sheet3!$F$1 -> 0 | CU11: =+Sheet3!CU8/Sheet3!$F$1 -> 0 | CV11: =+Sheet3!CV8/Sheet3!$F$1 -> 0 | CW11: =+Sheet3!CW8/Sheet3!$F$1 -> 0 | CX11: =+Sheet3!CX8/Sheet3!$F$1 -> 0 | CY11: =+Sheet3!CY8/Sheet3!$F$1 -> 0 | CZ11: =+Sheet3!CZ8/Sheet3!$F$1 -> 0 | DA11: =+Sheet3!DA8/Sheet3!$F$1 -> 9.03088 | DB11: =+Sheet3!DB8/Sheet3!$F$1 -> 29.54875 | DC11: =+Sheet3!DC8/Sheet3!$F$1 -> 8.7724 | DD11: =+Sheet3!DD8/Sheet3!$F$1 -> 0.4305 | DE11: =+Sheet3!DE8/Sheet3!$F$1 -> 0 | DF11: =+Sheet3!DF8/Sheet3!$F$1 -> 0 | DG11: =+Sheet3!DG8/Sheet3!$F$1 -> 0 | DH11: =+Sheet3!DH8/Sheet3!$F$1 -> 0 | DI11: =+Sheet3!DI8/Sheet3!$F$1 -> 11.54108 | DJ11: =+Sheet3!DJ8/Sheet3!$F$1 -> 34.84145 | DK11: =+Sheet3!DK8/Sheet3!$F$1 -> 1.75 | DL11: =+Sheet3!DL8/Sheet3!$F$1 -> 0 | DM11: =SUM(DH11:DL11) -> 48.13253
B12: 112 | C12: Cávado | D12: =+Sheet3!D9/Sheet3!$F$1 -> 0 | E12: =+Sheet3!E9/Sheet3!$F$1 -> 0 | F12: =+Sheet3!F9/Sheet3!$F$1 -> 0 | G12: =+Sheet3!G9/Sheet3!$F$1 -> 0 | H12: =+Sheet3!H9/Sheet3!$F$1 -> 0 | I12: =+Sheet3!I9/Sheet3!$F$1 -> 0 | J12: =+Sheet3!J9/Sheet3!$F$1 -> 0 | K12: =+Sheet3!K9/Sheet3!$F$1 -> 0 | L12: =+Sheet3!L9/Sheet3!$F$1 -> 0 | M12: =+Sheet3!M9/Sheet3!$F$1 -> 0 | N12: =+Sheet3!N9/Sheet3!$F$1 -> 0 | O12: =+Sheet3!O9/Sheet3!$F$1 -> 0 | P12: =+Sheet3!P9/Sheet3!$F$1 -> 0 | Q12: =+Sheet3!Q9/Sheet3!$F$1 -> 0 | R12: =+Sheet3!R9/Sheet3!$F$1 -> 0 | S12: =+Sheet3!S9/Sheet3!$F$1 -> 0 | T12: =+Sheet3!T9/Sheet3!$F$1 -> 0 | U12: =+Sheet3!U9/Sheet3!$F$1 -> 0 | V12: =+Sheet3!V9/Sheet3!$F$1 -> 0 | W12: =+Sheet3!W9/Sheet3!$F$1 -> 0 | X12: =+Sheet3!X9/Sheet3!$F$1 -> 0 | Y12: =+Sheet3!Y9/Sheet3!$F$1 -> 0 | Z12: =+Sheet3!Z9/Sheet3!$F$1 -> 0 | AA12: =+Sheet3!AA9/Sheet3!$F$1 -> 0 | AB12: =+Sheet3!AB9/Sheet3!$F$1 -> 0 | AC12: =+Sheet3!AC9/Sheet3!$F$1 -> 0 | AD12: =+Sheet3!AD9/Sheet3!$F$1 -> 0 | AE12: =+Sheet3!AE9/Sheet3!$F$1 -> 0 | AF12: =+Sheet3!AF9/Sheet3!$F$1 -> 0 | AG12: =+Sheet3!AG9/Sheet3!$F$1 -> 0 | AH12: =+Sheet3!AH9/Sheet3!$F$1 -> 0 | AI12: =+Sheet3!AI9/Sheet3!$F$1 -> 0 | AJ12: =+Sheet3!AJ9/Sheet3!$F$1 -> 0 | AK12: =+Sheet3!AK9/Sheet3!$F$1 -> 0 | AL12: =+Sheet3!AL9/Sheet3!$F$1 -> 0 | AM12: =+Sheet3!AM9/Sheet3!$F$1 -> 0 | AN12: =+Sheet3!AN9/Sheet3!$F$1 -> 0 | AO12: =+Sheet3!AO9/Sheet3!$F$1 -> 0 | AP12: =+Sheet3!AP9/Sheet3!$F$1 -> 0 | AQ12: =+Sheet3!AQ9/Sheet3!$F$1 -> 0 | AR12: =+Sheet3!AR9/Sheet3!$F$1 -> 0 | AS12: =+Sheet3!AS9/Sheet3!$F$1 -> 0 | AT12: =+Sheet3!AT9/Sheet3!$F$1 -> 0 | AU12: =+Sheet3!AU9/Sheet3!$F$1 -> 0 | AV12: =+Sheet3!AV9/Sheet3!$F$1 -> 0 | AW12: =+Sheet3!AW9/Sheet3!$F$1 -> 0 | AX12: =+Sheet3!AX9/Sheet3!$F$1 -> 0 | AY12: =+Sheet3!AY9/Sheet3!$F$1 -> 0 | AZ12: =+Sheet3!AZ9/Sheet3!$F$1 -> 0 | BA12: =+Sheet3!BA9/Sheet3!$F$1 -> 0 | BB12: =+Sheet3!BB9/Sheet3!$F$1 -> 0 | BC12: =+Sheet3!BC9/Sheet3!$F$1 -> 0 | BD12: =+Sheet3!BD9/Sheet3!$F$1 -> 0 | BE12: =+Sheet3!BE9/Sheet3!$F$1 -> 0 | BF12: =+Sheet3!BF9/Sheet3!$F$1 -> 0 | BG12: =+Sheet3!BG9/Sheet3!$F$1 -> 0 | BH12: =+Sheet3!BH9/Sheet3!$F$1 -> 1.05 | BI12: =+Sheet3!BI9/Sheet3!$F$1 -> 0.3395 | BJ12: =+Sheet3!BJ9/Sheet3!$F$1 -> 0 | BK12: =+Sheet3!BK9/Sheet3!$F$1 -> 0 | BL12: =+Sheet3!BL9/Sheet3!$F$1 -> 0 | BM12: =+Sheet3!BM9/Sheet3!$F$1 -> 0.7 | BN12: =+Sheet3!BN9/Sheet3!$F$1 -> 2.8 | BO12: =+Sheet3!BO9/Sheet3!$F$1 -> 0 | BP12: =+Sheet3!BP9/Sheet3!$F$1 -> 0 | BQ12: =+Sheet3!BQ9/Sheet3!$F$1 -> 0 | BR12: =+Sheet3!BR9/Sheet3!$F$1 -> 0 | BS12: =+Sheet3!BS9/Sheet3!$F$1 -> 7.287 | BT12: =+Sheet3!BT9/Sheet3!$F$1 -> 0 | BU12: =+Sheet3!BU9/Sheet3!$F$1 -> 0 | BV12: =+Sheet3!BV9/Sheet3!$F$1 -> 0 | BW12: =+Sheet3!BW9/Sheet3!$F$1 -> 0.35 | BX12: =+Sheet3!BX9/Sheet3!$F$1 -> 0 | BY12: =+Sheet3!BY9/Sheet3!$F$1 -> 0 | BZ12: =+Sheet3!BZ9/Sheet3!$F$1 -> 0 | CA12: =+Sheet3!CA9/Sheet3!$F$1 -> 0 | CB12: =+Sheet3!CB9/Sheet3!$F$1 -> 0 | CC12: =+Sheet3!CC9/Sheet3!$F$1 -> 0 | CD12: =+Sheet3!CD9/Sheet3!$F$1 -> 0 | CE12: =+Sheet3!CE9/Sheet3!$F$1 -> 0 | CF12: =+Sheet3!CF9/Sheet3!$F$1 -> 0 | CG12: =+Sheet3!CG9/Sheet3!$F$1 -> 0 | CH12: =+Sheet3!CH9/Sheet3!$F$1 -> 0 | CI12: =+Sheet3!CI9/Sheet3!$F$1 -> 0 | CJ12: =+Sheet3!CJ9/Sheet3!$F$1 -> 0 | CK12: =+Sheet3!CK9/Sheet3!$F$1 -> 0 | CL12: =+Sheet3!CL9/Sheet3!$F$1 -> 0 | CM12: =+Sheet3!CM9/Sheet3!$F$1 -> 0 | CN12: =+Sheet3!CN9/Sheet3!$F$1 -> 0 | CO12: =+Sheet3!CO9/Sheet3!$F$1 -> 0 | CP12: =+Sheet3!CP9/Sheet3!$F$1 -> 0 | CQ12: =+Sheet3!CQ9/Sheet3!$F$1 -> 0 | CR12: =+Sheet3!CR9/Sheet3!$F$1 -> 0 | CS12: =+Sheet3!CS9/Sheet3!$F$1 -> 0 | CT12: =+Sheet3!CT9/Sheet3!$F$1 -> 0 | CU12: =+Sheet3!CU9/Sheet3!$F$1 -> 0 | CV12: =+Sheet3!CV9/Sheet3!$F$1 -> 0 | CW12: =+Sheet3!CW9/Sheet3!$F$1 -> 0 | CX12: =+Sheet3!CX9/Sheet3!$F$1 -> 0 | CY12: =+Sheet3!CY9/Sheet3!$F$1 -> 0 | CZ12: =+Sheet3!CZ9/Sheet3!$F$1 -> 0 | DA12: =+Sheet3!DA9/Sheet3!$F$1 -> 1.3895 | DB12: =+Sheet3!DB9/Sheet3!$F$1 -> 3.5 | DC12: =+Sheet3!DC9/Sheet3!$F$1 -> 7.287 | DD12: =+Sheet3!DD9/Sheet3!$F$1 -> 0.35 | DE12: =+Sheet3!DE9/Sheet3!$F$1 -> 0 | DF12: =+Sheet3!DF9/Sheet3!$F$1 -> 0 | DG12: =+Sheet3!DG9/Sheet3!$F$1 -> 0 | DH12: =+Sheet3!DH9/Sheet3!$F$1 -> 0 | DI12: =+Sheet3!DI9/Sheet3!$F$1 -> 2.1 | DJ12: =+Sheet3!DJ9/Sheet3!$F$1 -> 10.4265 | DK12: =+Sheet3!DK9/Sheet3!$F$1 -> 0 | DL12: =+Sheet3!DL9/Sheet3!$F$1 -> 0 | DM12: =SUM(DH12:DL12) -> 12.5265
B13: 119 | C13: Ave | D13: =+Sheet3!D10/Sheet3!$F$1 -> 0 | E13: =+Sheet3!E10/Sheet3!$F$1 -> 0 | F13: =+Sheet3!F10/Sheet3!$F$1 -> 0 | G13: =+Sheet3!G10/Sheet3!$F$1 -> 0 | H13: =+Sheet3!H10/Sheet3!$F$1 -> 0 | I13: =+Sheet3!I10/Sheet3!$F$1 -> 0 | J13: =+Sheet3!J10/Sheet3!$F$1 -> 0 | K13: =+Sheet3!K10/Sheet3!$F$1 -> 0 | L13: =+Sheet3!L10/Sheet3!$F$1 -> 0 | M13: =+Sheet3!M10/Sheet3!$F$1 -> 0 | N13: =+Sheet3!N10/Sheet3!$F$1 -> 0 | O13: =+Sheet3!O10/Sheet3!$F$1 -> 0 | P13: =+Sheet3!P10/Sheet3!$F$1 -> 0 | Q13: =+Sheet3!Q10/Sheet3!$F$1 -> 0 | R13: =+Sheet3!R10/Sheet3!$F$1 -> 0 | S13: =+Sheet3!S10/Sheet3!$F$1 -> 0 | T13: =+Sheet3!T10/Sheet3!$F$1 -> 0 | U13: =+Sheet3!U10/Sheet3!$F$1 -> 0 | V13: =+Sheet3!V10/Sheet3!$F$1 -> 0 | W13: =+Sheet3!W10/Sheet3!$F$1 -> 0 | X13: =+Sheet3!X10/Sheet3!$F$1 -> 0 | Y13: =+Sheet3!Y10/Sheet3!$F$1 -> 0 | Z13: =+Sheet3!Z10/Sheet3!$F$1 -> 0 | AA13: =+Sheet3!AA10/Sheet3!$F$1 -> 0 | AB13: =+Sheet3!AB10/Sheet3!$F$1 -> 0 | AC13: =+Sheet3!AC10/Sheet3!$F$1 -> 0 | AD13: =+Sheet3!AD10/Sheet3!$F$1 -> 0 | AE13: =+Sheet3!AE10/Sheet3!$F$1 -> 0 | AF13: =+Sheet3!AF10/Sheet3!$F$1 -> 0 | AG13: =+Sheet3!AG10/Sheet3!$F$1 -> 0 | AH13: =+Sheet3!AH10/Sheet3!$F$1 -> 0 | AI13: =+Sheet3!AI10/Sheet3!$F$1 -> 0 | AJ13: =+Sheet3!AJ10/Sheet3!$F$1 -> 0 | AK13: =+Sheet3!AK10/Sheet3!$F$1 -> 0 | AL13: =+Sheet3!AL10/Sheet3!$F$1 -> 0 | AM13: =+Sheet3!AM10/Sheet3!$F$1 -> 0 | AN13: =+Sheet3!AN10/Sheet3!$F$1 -> 0.4732 | AO13: =+Sheet3!AO10/Sheet3!$F$1 -> 0 | AP13: =+Sheet3!AP10/Sheet3!$F$1 -> 0 | AQ13: =+Sheet3!AQ10/Sheet3!$F$1 -> 0 | AR13: =+Sheet3!AR10/Sheet3!$F$1 -> 0 | AS13: =+Sheet3!AS10/Sheet3!$F$1 -> 0 | AT13: =+Sheet3!AT10/Sheet3!$F$1 -> 0 | AU13: =+Sheet3!AU10/Sheet3!$F$1 -> 0 | AV13: =+Sheet3!AV10/Sheet3!$F$1 -> 0 | AW13: =+Sheet3!AW10/Sheet3!$F$1 -> 0 | AX13: =+Sheet3!AX10/Sheet3!$F$1 -> 0 | AY13: =+Sheet3!AY10/Sheet3!$F$1 -> 0 | AZ13: =+Sheet3!AZ10/Sheet3!$F$1 -> 0 | BA13: =+Sheet3!BA10/Sheet3!$F$1 -> 0 | BB13: =+Sheet3!BB10/Sheet3!$F$1 -> 0 | BC13: =+Sheet3!BC10/Sheet3!$F$1 -> 0 | BD13: =+Sheet3!BD10/Sheet3!$F$1 -> 0 | BE13: =+Sheet3!BE10/Sheet3!$F$1 -> 0 | BF13: =+Sheet3!BF10/Sheet3!$F$1 -> 0 | BG13: =+Sheet3!BG10/Sheet3!$F$1 -> 0 | BH13: =+Sheet3!BH10/Sheet3!$F$1 -> 12.33225 | BI13: =+Sheet3!BI10/Sheet3!$F$1 -> 1.407 | BJ13: =+Sheet3!BJ10/Sheet3!$F$1 -> 0 | BK13: =+Sheet3!BK10/Sheet3!$F$1 -> 0 | BL13: =+Sheet3!BL10/Sheet3!$F$1 -> 0 | BM13: =+Sheet3!BM10/Sheet3!$F$1 -> 11.6648 | BN13: =+Sheet3!BN10/Sheet3!$F$1 -> 14.80255 | BO13: =+Sheet3!BO10/Sheet3!$F$1 -> 0 | BP13: =+Sheet3!BP10/Sheet3!$F$1 -> 0 | BQ13: =+Sheet3!BQ10/Sheet3!$F$1 -> 0 | BR13: =+Sheet3!BR10/Sheet3!$F$1 -> 6.59928 | BS13: =+Sheet3!BS10/Sheet3!$F$1 -> 19.77535 | BT13: =+Sheet3!BT10/Sheet3!$F$1 -> 0 | BU13: =+Sheet3!BU10/Sheet3!$F$1 -> 0 | BV13: =+Sheet3!BV10/Sheet3!$F$1 -> 0 | BW13: =+Sheet3!BW10/Sheet3!$F$1 -> 0 | BX13: =+Sheet3!BX10/Sheet3!$F$1 -> 0 | BY13: =+Sheet3!BY10/Sheet3!$F$1 -> 0 | BZ13: =+Sheet3!BZ10/Sheet3!$F$1 -> 0 | CA13: =+Sheet3!CA10/Sheet3!$F$1 -> 0 | CB13: =+Sheet3!CB10/Sheet3!$F$1 -> 0.4704 | CC13: =+Sheet3!CC10/Sheet3!$F$1 -> 0 | CD13: =+Sheet3!CD10/Sheet3!$F$1 -> 0 | CE13: =+Sheet3!CE10/Sheet3!$F$1 -> 0 | CF13: =+Sheet3!CF10/Sheet3!$F$1 -> 0 | CG13: =+Sheet3!CG10/Sheet3!$F$1 -> 0 | CH13: =+Sheet3!CH10/Sheet3!$F$1 -> 0 | CI13: =+Sheet3!CI10/Sheet3!$F$1 -> 0 | CJ13: =+Sheet3!CJ10/Sheet3!$F$1 -> 0 | CK13: =+Sheet3!CK10/Sheet3!$F$1 -> 0 | CL13: =+Sheet3!CL10/Sheet3!$F$1 -> 0 | CM13: =+Sheet3!CM10/Sheet3!$F$1 -> 0 | CN13: =+Sheet3!CN10/Sheet3!$F$1 -> 0 | CO13: =+Sheet3!CO10/Sheet3!$F$1 -> 0 | CP13: =+Sheet3!CP10/Sheet3!$F$1 -> 0 | CQ13: =+Sheet3!CQ10/Sheet3!$F$1 -> 0 | CR13: =+Sheet3!CR10/Sheet3!$F$1 -> 0 | CS13: =+Sheet3!CS10/Sheet3!$F$1 -> 0 | CT13: =+Sheet3!CT10/Sheet3!$F$1 -> 0 | CU13: =+Sheet3!CU10/Sheet3!$F$1 -> 0 | CV13: =+Sheet3!CV10/Sheet3!$F$1 -> 0 | CW13: =+Sheet3!CW10/Sheet3!$F$1 -> 0.4732 | CX13: =+Sheet3!CX10/Sheet3!$F$1 -> 0 | CY13: =+Sheet3!CY10/Sheet3!$F$1 -> 0 | CZ13: =+Sheet3!CZ10/Sheet3!$F$1 -> 0 | DA13: =+Sheet3!DA10/Sheet3!$F$1 -> 13.73925 | DB13: =+Sheet3!DB10/Sheet3!$F$1 -> 26.46735 | DC13: =+Sheet3!DC10/Sheet3!$F$1 -> 26.37463 | DD13: =+Sheet3!DD10/Sheet3!$F$1 -> 0 | DE13: =+Sheet3!DE10/Sheet3!$F$1 -> 0.4704 | DF13: =+Sheet3!DF10/Sheet3!$F$1 -> 0 | DG13: =+Sheet3!DG10/Sheet3!$F$1 -> 0 | DH13: =+Sheet3!DH10/Sheet3!$F$1 -> 0 | DI13: =+Sheet3!DI10/Sheet3!$F$1 -> 31.53993 | DJ13: =+Sheet3!DJ10/Sheet3!$F$1 -> 35.9849 | DK13: =+Sheet3!DK10/Sheet3!$F$1 -> 0 | DL13: =+Sheet3!DL10/Sheet3!$F$1 -> 0 | DM13: 67.52483
B14: 11A | C14: Área Metropolitana do Porto | D14: =+Sheet3!D11/Sheet3!$F$1 -> 0 | E14: =+Sheet3!E11/Sheet3!$F$1 -> 0 | F14: =+Sheet3!F11/Sheet3!$F$1 -> 0 | G14: =+Sheet3!G11/Sheet3!$F$1 -> 0 | H14: =+Sheet3!H11/Sheet3!$F$1 -> 0 | I14: =+Sheet3!I11/Sheet3!$F$1 -> 0 | J14: =+Sheet3!J11/Sheet3!$F$1 -> 0 | K14: =+Sheet3!K11/Sheet3!$F$1 -> 0 | L14: =+Sheet3!L11/Sheet3!$F$1 -> 0 | M14: =+Sheet3!M11/Sheet3!$F$1 -> 0 | N14: =+Sheet3!N11/Sheet3!$F$1 -> 0 | O14: =+Sheet3!O11/Sheet3!$F$1 -> 0 | P14: =+Sheet3!P11/Sheet3!$F$1 -> 0 | Q14: =+Sheet3!Q11/Sheet3!$F$1 -> 0 | R14: =+Sheet3!R11/Sheet3!$F$1 -> 0 | S14: =+Sheet3!S11/Sheet3!$F$1 -> 0 | T14: =+Sheet3!T11/Sheet3!$F$1 -> 0 | U14: =+Sheet3!U11/Sheet3!$F$1 -> 0 | V14: =+Sheet3!V11/Sheet3!$F$1 -> 0 | W14: =+Sheet3!W11/Sheet3!$F$1 -> 0 | X14: =+Sheet3!X11/Sheet3!$F$1 -> 0 | Y14: =+Sheet3!Y11/Sheet3!$F$1 -> 0 | Z14: =+Sheet3!Z11/Sheet3!$F$1 -> 0 | AA14: =+Sheet3!AA11/Sheet3!$F$1 -> 0 | AB14: =+Sheet3!AB11/Sheet3!$F$1 -> 0 | AC14: =+Sheet3!AC11/Sheet3!$F$1 -> 0 | AD14: =+Sheet3!AD11/Sheet3!$F$1 -> 0 | AE14: =+Sheet3!AE11/Sheet3!$F$1 -> 0 | AF14: =+Sheet3!AF11/Sheet3!$F$1 -> 0 | AG14: =+Sheet3!AG11/Sheet3!$F$1 -> 0 | AH14: =+Sheet3!AH11/Sheet3!$F$1 -> 0 | AI14: =+Sheet3!AI11/Sheet3!$F$1 -> 0 | AJ14: =+Sheet3!AJ11/Sheet3!$F$1 -> 0 | AK14: =+Sheet3!AK11/Sheet3!$F$1 -> 0 | AL14: =+Sheet3!AL11/Sheet3!$F$1 -> 0 | AM14: =+Sheet3!AM11/Sheet3!$F$1 -> 0 | AN14: =+Sheet3!AN11/Sheet3!$F$1 -> 0 | AO14: =+Sheet3!AO11/Sheet3!$F$1 -> 0 | AP14: =+Sheet3!AP11/Sheet3!$F$1 -> 0 | AQ14: =+Sheet3!AQ11/Sheet3!$F$1 -> 0 | AR14: =+Sheet3!AR11/Sheet3!$F$1 -> 0 | AS14: =+Sheet3!AS11/Sheet3!$F$1 -> 0 | AT14: =+Sheet3!AT11/Sheet3!$F$1 -> 0 | AU14: =+Sheet3!AU11/Sheet3!$F$1 -> 0 | AV14: =+Sheet3!AV11/Sheet3!$F$1 -> 0 | AW14: =+Sheet3!AW11/Sheet3!$F$1 -> 0 | AX14: =+Sheet3!AX11/Sheet3!$F$1 -> 0 | AY14: =+Sheet3!AY11/Sheet3!$F$1 -> 0 | AZ14: =+Sheet3!AZ11/Sheet3!$F$1 -> 0 | BA14: =+Sheet3!BA11/Sheet3!$F$1 -> 0 | BB14: =+Sheet3!BB11/Sheet3!$F$1 -> 0 | BC14: =+Sheet3!BC11/Sheet3!$F$1 -> 0 | BD14: =+Sheet3!BD11/Sheet3!$F$1 -> 0 | BE14: =+Sheet3!BE11/Sheet3!$F$1 -> 0 | BF14: =+Sheet3!BF11/Sheet3!$F$1 -> 0 | BG14: =+Sheet3!BG11/Sheet3!$F$1 -> 0.35 | BH14: =+Sheet3!BH11/Sheet3!$F$1 -> 0 | BI14: =+Sheet3!BI11/Sheet3!$F$1 -> 0 | BJ14: =+Sheet3!BJ11/Sheet3!$F$1 -> 0 | BK14: =+Sheet3!BK11/Sheet3!$F$1 -> 0 | BL14: =+Sheet3!BL11/Sheet3!$F$1 -> 0 | BM14: =+Sheet3!BM11/Sheet3!$F$1 -> 0 | BN14: =+Sheet3!BN11/Sheet3!$F$1 -> 0.7 | BO14: =+Sheet3!BO11/Sheet3!$F$1 -> 0 | BP14: =+Sheet3!BP11/Sheet3!$F$1 -> 0 | BQ14: =+Sheet3!BQ11/Sheet3!$F$1 -> 0 | BR14: =+Sheet3!BR11/Sheet3!$F$1 -> 0 | BS14: =+Sheet3!BS11/Sheet3!$F$1 -> 0 | BT14: =+Sheet3!BT11/Sheet3!$F$1 -> 0 | BU14: =+Sheet3!BU11/Sheet3!$F$1 -> 0 | BV14: =+Sheet3!BV11/Sheet3!$F$1 -> 0 | BW14: =+Sheet3!BW11/Sheet3!$F$1 -> 0 | BX14: =+Sheet3!BX11/Sheet3!$F$1 -> 0 | BY14: =+Sheet3!BY11/Sheet3!$F$1 -> 0 | BZ14: =+Sheet3!BZ11/Sheet3!$F$1 -> 0 | CA14: =+Sheet3!CA11/Sheet3!$F$1 -> 0 | CB14: =+Sheet3!CB11/Sheet3!$F$1 -> 0 | CC14: =+Sheet3!CC11/Sheet3!$F$1 -> 0 | CD14: =+Sheet3!CD11/Sheet3!$F$1 -> 0 | CE14: =+Sheet3!CE11/Sheet3!$F$1 -> 0 | CF14: =+Sheet3!CF11/Sheet3!$F$1 -> 0 | CG14: =+Sheet3!CG11/Sheet3!$F$1 -> 0 | CH14: =+Sheet3!CH11/Sheet3!$F$1 -> 0 | CI14: =+Sheet3!CI11/Sheet3!$F$1 -> 0 | CJ14: =+Sheet3!CJ11/Sheet3!$F$1 -> 0 | CK14: =+Sheet3!CK11/Sheet3!$F$1 -> 0 | CL14: =+Sheet3!CL11/Sheet3!$F$1 -> 0 | CM14: =+Sheet3!CM11/Sheet3!$F$1 -> 0 | CN14: =+Sheet3!CN11/Sheet3!$F$1 -> 0 | CO14: =+Sheet3!CO11/Sheet3!$F$1 -> 0 | CP14: =+Sheet3!CP11/Sheet3!$F$1 -> 0 | CQ14: =+Sheet3!CQ11/Sheet3!$F$1 -> 0 | CR14: =+Sheet3!CR11/Sheet3!$F$1 -> 0 | CS14: =+Sheet3!CS11/Sheet3!$F$1 -> 0 | CT14: =+Sheet3!CT11/Sheet3!$F$1 -> 0 | CU14: =+Sheet3!CU11/Sheet3!$F$1 -> 0 | CV14: =+Sheet3!CV11/Sheet3!$F$1 -> 0 | CW14: =+Sheet3!CW11/Sheet3!$F$1 -> 0 | CX14: =+Sheet3!CX11/Sheet3!$F$1 -> 0 | CY14: =+Sheet3!CY11/Sheet3!$F$1 -> 0 | CZ14: =+Sheet3!CZ11/Sheet3!$F$1 -> 0 | DA14: =+Sheet3!DA11/Sheet3!$F$1 -> 0.35 | DB14: =+Sheet3!DB11/Sheet3!$F$1 -> 0.7 | DC14: =+Sheet3!DC11/Sheet3!$F$1 -> 0 | DD14: =+Sheet3!DD11/Sheet3!$F$1 -> 0 | DE14: =+Sheet3!DE11/Sheet3!$F$1 -> 0 | DF14: =+Sheet3!DF11/Sheet3!$F$1 -> 0 | DG14: =+Sheet3!DG11/Sheet3!$F$1 -> 0 | DH14: =+Sheet3!DH11/Sheet3!$F$1 -> 0.35 | DI14: =+Sheet3!DI11/Sheet3!$F$1 -> 0 | DJ14: =+Sheet3!DJ11/Sheet3!$F$1 -> 0.7 | DK14: =+Sheet3!DK11/Sheet3!$F$1 -> 0 | DL14: =+Sheet3!DL11/Sheet3!$F$1 -> 0 | DM14: 1.05
B15: 11B | C15: Alto Tâmega | D15: =+Sheet3!D12/Sheet3!$F$1 -> 0 | E15: =+Sheet3!E12/Sheet3!$F$1 -> -0.518 | F15: =+Sheet3!F12/Sheet3!$F$1 -> 0 | G15: =+Sheet3!G12/Sheet3!$F$1 -> 0 | H15: =+Sheet3!H12/Sheet3!$F$1 -> 0 | I15: =+Sheet3!I12/Sheet3!$F$1 -> 0 | J15: =+Sheet3!J12/Sheet3!$F$1 -> 0 | K15: =+Sheet3!K12/Sheet3!$F$1 -> 0 | L15: =+Sheet3!L12/Sheet3!$F$1 -> 0 | M15: =+Sheet3!M12/Sheet3!$F$1 -> 0 | N15: =+Sheet3!N12/Sheet3!$F$1 -> 0 | O15: =+Sheet3!O12/Sheet3!$F$1 -> 0 | P15: =+Sheet3!P12/Sheet3!$F$1 -> 0 | Q15: =+Sheet3!Q12/Sheet3!$F$1 -> 0 | R15: =+Sheet3!R12/Sheet3!$F$1 -> 0 | S15: =+Sheet3!S12/Sheet3!$F$1 -> 0 | T15: =+Sheet3!T12/Sheet3!$F$1 -> 0 | U15: =+Sheet3!U12/Sheet3!$F$1 -> 0 | V15: =+Sheet3!V12/Sheet3!$F$1 -> 0 | W15: =+Sheet3!W12/Sheet3!$F$1 -> 0 | X15: =+Sheet3!X12/Sheet3!$F$1 -> 0 | Y15: =+Sheet3!Y12/Sheet3!$F$1 -> 0 | Z15: =+Sheet3!Z12/Sheet3!$F$1 -> 0 | AA15: =+Sheet3!AA12/Sheet3!$F$1 -> 0 | AB15: =+Sheet3!AB12/Sheet3!$F$1 -> 0 | AC15: =+Sheet3!AC12/Sheet3!$F$1 -> 0 | AD15: =+Sheet3!AD12/Sheet3!$F$1 -> 0.6965 | AE15: =+Sheet3!AE12/Sheet3!$F$1 -> 0 | AF15: =+Sheet3!AF12/Sheet3!$F$1 -> 0 | AG15: =+Sheet3!AG12/Sheet3!$F$1 -> 0 | AH15: =+Sheet3!AH12/Sheet3!$F$1 -> 0 | AI15: =+Sheet3!AI12/Sheet3!$F$1 -> 0 | AJ15: =+Sheet3!AJ12/Sheet3!$F$1 -> 0 | AK15: =+Sheet3!AK12/Sheet3!$F$1 -> 0 | AL15: =+Sheet3!AL12/Sheet3!$F$1 -> 0 | AM15: =+Sheet3!AM12/Sheet3!$F$1 -> 0 | AN15: =+Sheet3!AN12/Sheet3!$F$1 -> 0 | AO15: =+Sheet3!AO12/Sheet3!$F$1 -> 0 | AP15: =+Sheet3!AP12/Sheet3!$F$1 -> 0 | AQ15: =+Sheet3!AQ12/Sheet3!$F$1 -> 0 | AR15: =+Sheet3!AR12/Sheet3!$F$1 -> 0 | AS15: =+Sheet3!AS12/Sheet3!$F$1 -> 0 | AT15: =+Sheet3!AT12/Sheet3!$F$1 -> 0 | AU15: =+Sheet3!AU12/Sheet3!$F$1 -> 0 | AV15: =+Sheet3!AV12/Sheet3!$F$1 -> 0 | AW15: =+Sheet3!AW12/Sheet3!$F$1 -> 0 | AX15: =+Sheet3!AX12/Sheet3!$F$1 -> 0.8988 | AY15: =+Sheet3!AY12/Sheet3!$F$1 -> 0.35 | AZ15: =+Sheet3!AZ12/Sheet3!$F$1 -> 0 | BA15: =+Sheet3!BA12/Sheet3!$F$1 -> 0 | BB15: =+Sheet3!BB12/Sheet3!$F$1 -> 0 | BC15: =+Sheet3!BC12/Sheet3!$F$1 -> 4.42678 | BD15: =+Sheet3!BD12/Sheet3!$F$1 -> 2.8553 | BE15: =+Sheet3!BE12/Sheet3!$F$1 -> 0 | BF15: =+Sheet3!BF12/Sheet3!$F$1 -> 0 | BG15: =+Sheet3!BG12/Sheet3!$F$1 -> 1.68 | BH15: =+Sheet3!BH12/Sheet3!$F$1 -> 22.44585 | BI15: =+Sheet3!BI12/Sheet3!$F$1 -> 15.76493 | BJ15: =+Sheet3!BJ12/Sheet3!$F$1 -> 0 | BK15: =+Sheet3!BK12/Sheet3!$F$1 -> 0 | BL15: =+Sheet3!BL12/Sheet3!$F$1 -> 0 | BM15: =+Sheet3!BM12/Sheet3!$F$1 -> 53.10414 | BN15: =+Sheet3!BN12/Sheet3!$F$1 -> 129.1828 | BO15: =+Sheet3!BO12/Sheet3!$F$1 -> 0.637 | BP15: =+Sheet3!BP12/Sheet3!$F$1 -> 0 | BQ15: =+Sheet3!BQ12/Sheet3!$F$1 -> 0.2583 | BR15: =+Sheet3!BR12/Sheet3!$F$1 -> 45.70816 | BS15: =+Sheet3!BS12/Sheet3!$F$1 -> 75.98272 | BT15: =+Sheet3!BT12/Sheet3!$F$1 -> 0.42575 | BU15: =+Sheet3!BU12/Sheet3!$F$1 -> 0 | BV15: =+Sheet3!BV12/Sheet3!$F$1 -> 0 | BW15: =+Sheet3!BW12/Sheet3!$F$1 -> 15.3517 | BX15: =+Sheet3!BX12/Sheet3!$F$1 -> 8.1865 | BY15: =+Sheet3!BY12/Sheet3!$F$1 -> 0 | BZ15: =+Sheet3!BZ12/Sheet3!$F$1 -> 0 | CA15: =+Sheet3!CA12/Sheet3!$F$1 -> 0 | CB15: =+Sheet3!CB12/Sheet3!$F$1 -> 0 | CC15: =+Sheet3!CC12/Sheet3!$F$1 -> 0 | CD15: =+Sheet3!CD12/Sheet3!$F$1 -> 0 | CE15: =+Sheet3!CE12/Sheet3!$F$1 -> 0 | CF15: =+Sheet3!CF12/Sheet3!$F$1 -> 0 | CG15: =+Sheet3!CG12/Sheet3!$F$1 -> 0 | CH15: =+Sheet3!CH12/Sheet3!$F$1 -> 0 | CI15: =+Sheet3!CI12/Sheet3!$F$1 -> 0 | CJ15: =+Sheet3!CJ12/Sheet3!$F$1 -> 0 | CK15: =+Sheet3!CK12/Sheet3!$F$1 -> 0 | CL15: =+Sheet3!CL12/Sheet3!$F$1 -> 0 | CM15: =+Sheet3!CM12/Sheet3!$F$1 -> 0 | CN15: =+Sheet3!CN12/Sheet3!$F$1 -> 0 | CO15: =+Sheet3!CO12/Sheet3!$F$1 -> 0 | CP15: =+Sheet3!CP12/Sheet3!$F$1 -> 0 | CQ15: =+Sheet3!CQ12/Sheet3!$F$1 -> 0 | CR15: =+Sheet3!CR12/Sheet3!$F$1 -> 0 | CS15: =+Sheet3!CS12/Sheet3!$F$1 -> 0 | CT15: =+Sheet3!CT12/Sheet3!$F$1 -> 0 | CU15: =+Sheet3!CU12/Sheet3!$F$1 -> 0.6965 | CV15: =+Sheet3!CV12/Sheet3!$F$1 -> 0 | CW15: =+Sheet3!CW12/Sheet3!$F$1 -> 0 | CX15: =+Sheet3!CX12/Sheet3!$F$1 -> 0 | CY15: =+Sheet3!CY12/Sheet3!$F$1 -> 1.2488 | CZ15: =+Sheet3!CZ12/Sheet3!$F$1 -> 7.28208 | DA15: =+Sheet3!DA12/Sheet3!$F$1 -> 39.89078 | DB15: =+Sheet3!DB12/Sheet3!$F$1 -> 182.92394 | DC15: =+Sheet3!DC12/Sheet3!$F$1 -> 122.37493 | DD15: =+Sheet3!DD12/Sheet3!$F$1 -> 23.5382 | DE15: =+Sheet3!DE12/Sheet3!$F$1 -> 0 | DF15: =+Sheet3!DF12/Sheet3!$F$1 -> 0 | DG15: =+Sheet3!DG12/Sheet3!$F$1 -> 0 | DH15: =+Sheet3!DH12/Sheet3!$F$1 -> 1.9383 | DI15: =+Sheet3!DI12/Sheet3!$F$1 -> 142.11393 | DJ15: =+Sheet3!DJ12/Sheet3!$F$1 -> 232.32225 | DK15: =+Sheet3!DK12/Sheet3!$F$1 -> 1.06275 | DL15: =+Sheet3!DL12/Sheet3!$F$1 -> 0 | DM15: 377.43723
B16: 11C | C16: Tâmega e Sousa | D16: =+Sheet3!D13/Sheet3!$F$1 -> 0 | E16: =+Sheet3!E13/Sheet3!$F$1 -> 0 | F16: =+Sheet3!F13/Sheet3!$F$1 -> 0 | G16: =+Sheet3!G13/Sheet3!$F$1 -> 0 | H16: =+Sheet3!H13/Sheet3!$F$1 -> 0 | I16: =+Sheet3!I13/Sheet3!$F$1 -> 0 | J16: =+Sheet3!J13/Sheet3!$F$1 -> 0 | K16: =+Sheet3!K13/Sheet3!$F$1 -> 0 | L16: =+Sheet3!L13/Sheet3!$F$1 -> 0 | M16: =+Sheet3!M13/Sheet3!$F$1 -> 0 | N16: =+Sheet3!N13/Sheet3!$F$1 -> 0 | O16: =+Sheet3!O13/Sheet3!$F$1 -> 0 | P16: =+Sheet3!P13/Sheet3!$F$1 -> 0 | Q16: =+Sheet3!Q13/Sheet3!$F$1 -> 0 | R16: =+Sheet3!R13/Sheet3!$F$1 -> 0 | S16: =+Sheet3!S13/Sheet3!$F$1 -> 0 | T16: =+Sheet3!T13/Sheet3!$F$1 -> 0 | U16: =+Sheet3!U13/Sheet3!$F$1 -> 0 | V16: =+Sheet3!V13/Sheet3!$F$1 -> 0 | W16: =+Sheet3!W13/Sheet3!$F$1 -> 0 | X16: =+Sheet3!X13/Sheet3!$F$1 -> 0 | Y16: =+Sheet3!Y13/Sheet3!$F$1 -> 0 | Z16: =+Sheet3!Z13/Sheet3!$F$1 -> 0 | AA16: =+Sheet3!AA13/Sheet3!$F$1 -> 0 | AB16: =+Sheet3!AB13/Sheet3!$F$1 -> 0 | AC16: =+Sheet3!AC13/Sheet3!$F$1 -> 0 | AD16: =+Sheet3!AD13/Sheet3!$F$1 -> 0 | AE16: =+Sheet3!AE13/Sheet3!$F$1 -> 0 | AF16: =+Sheet3!AF13/Sheet3!$F$1 -> 0 | AG16: =+Sheet3!AG13/Sheet3!$F$1 -> 0 | AH16: =+Sheet3!AH13/Sheet3!$F$1 -> 0 | AI16: =+Sheet3!AI13/Sheet3!$F$1 -> 0 | AJ16: =+Sheet3!AJ13/Sheet3!$F$1 -> 0 | AK16: =+Sheet3!AK13/Sheet3!$F$1 -> 0 | AL16: =+Sheet3!AL13/Sheet3!$F$1 -> 0 | AM16: =+Sheet3!AM13/Sheet3!$F$1 -> 0 | AN16: =+Sheet3!AN13/Sheet3!$F$1 -> 0 | AO16: =+Sheet3!AO13/Sheet3!$F$1 -> 0 | AP16: =+Sheet3!AP13/Sheet3!$F$1 -> 0 | AQ16: =+Sheet3!AQ13/Sheet3!$F$1 -> 0 | AR16: =+Sheet3!AR13/Sheet3!$F$1 -> 0 | AS16: =+Sheet3!AS13/Sheet3!$F$1 -> 0 | AT16: =+Sheet3!AT13/Sheet3!$F$1 -> 0 | AU16: =+Sheet3!AU13/Sheet3!$F$1 -> 0 | AV16: =+Sheet3!AV13/Sheet3!$F$1 -> 0 | AW16: =+Sheet3!AW13/Sheet3!$F$1 -> 0 | AX16: =+Sheet3!AX13/Sheet3!$F$1 -> 0 | AY16: =+Sheet3!AY13/Sheet3!$F$1 -> 0 | AZ16: =+Sheet3!AZ13/Sheet3!$F$1 -> 0 | BA16: =+Sheet3!BA13/Sheet3!$F$1 -> 0 | BB16: =+Sheet3!BB13/Sheet3!$F$1 -> 0 | BC16: =+Sheet3!BC13/Sheet3!$F$1 -> 0 | BD16: =+Sheet3!BD13/Sheet3!$F$1 -> 0 | BE16: =+Sheet3!BE13/Sheet3!$F$1 -> 0 | BF16: =+Sheet3!BF13/Sheet3!$F$1 -> 0 | BG16: =+Sheet3!BG13/Sheet3!$F$1 -> 1.05 | BH16: =+Sheet3!BH13/Sheet3!$F$1 -> 3.15 | BI16: =+Sheet3!BI13/Sheet3!$F$1 -> 2.1 | BJ16: =+Sheet3!BJ13/Sheet3!$F$1 -> 0 | BK16: =+Sheet3!BK13/Sheet3!$F$1 -> 0 | BL16: =+Sheet3!BL13/Sheet3!$F$1 -> 0 | BM16: =+Sheet3!BM13/Sheet3!$F$1 -> 0.35 | BN16: =+Sheet3!BN13/Sheet3!$F$1 -> 3.0429 | BO16: =+Sheet3!BO13/Sheet3!$F$1 -> 0 | BP16: =+Sheet3!BP13/Sheet3!$F$1 -> 0 | BQ16: =+Sheet3!BQ13/Sheet3!$F$1 -> 0.7 | BR16: =+Sheet3!BR13/Sheet3!$F$1 -> 1.05 | BS16: =+Sheet3!BS13/Sheet3!$F$1 -> 0.64143 | BT16: =+Sheet3!BT13/Sheet3!$F$1 -> 1.316 | BU16: =+Sheet3!BU13/Sheet3!$F$1 -> 0 | BV16: =+Sheet3!BV13/Sheet3!$F$1 -> 0 | BW16: =+Sheet3!BW13/Sheet3!$F$1 -> 0.35 | BX16: =+Sheet3!BX13/Sheet3!$F$1 -> 0.7 | BY16: =+Sheet3!BY13/Sheet3!$F$1 -> 0 | BZ16: =+Sheet3!BZ13/Sheet3!$F$1 -> 0 | CA16: =+Sheet3!CA13/Sheet3!$F$1 -> 0 | CB16: =+Sheet3!CB13/Sheet3!$F$1 -> 0 | CC16: =+Sheet3!CC13/Sheet3!$F$1 -> 0 | CD16: =+Sheet3!CD13/Sheet3!$F$1 -> 0 | CE16: =+Sheet3!CE13/Sheet3!$F$1 -> 0 | CF16: =+Sheet3!CF13/Sheet3!$F$1 -> 0 | CG16: =+Sheet3!CG13/Sheet3!$F$1 -> 0 | CH16: =+Sheet3!CH13/Sheet3!$F$1 -> 0 | CI16: =+Sheet3!CI13/Sheet3!$F$1 -> 0 | CJ16: =+Sheet3!CJ13/Sheet3!$F$1 -> 0 | CK16: =+Sheet3!CK13/Sheet3!$F$1 -> 0 | CL16: =+Sheet3!CL13/Sheet3!$F$1 -> 0 | CM16: =+Sheet3!CM13/Sheet3!$F$1 -> 0 | CN16: =+Sheet3!CN13/Sheet3!$F$1 -> 0 | CO16: =+Sheet3!CO13/Sheet3!$F$1 -> 0 | CP16: =+Sheet3!CP13/Sheet3!$F$1 -> 0 | CQ16: =+Sheet3!CQ13/Sheet3!$F$1 -> 0 | CR16: =+Sheet3!CR13/Sheet3!$F$1 -> 0 | CS16: =+Sheet3!CS13/Sheet3!$F$1 -> 0 | CT16: =+Sheet3!CT13/Sheet3!$F$1 -> 0 | CU16: =+Sheet3!CU13/Sheet3!$F$1 -> 0 | CV16: =+Sheet3!CV13/Sheet3!$F$1 -> 0 | CW16: =+Sheet3!CW13/Sheet3!$F$1 -> 0 | CX16: =+Sheet3!CX13/Sheet3!$F$1 -> 0 | CY16: =+Sheet3!CY13/Sheet3!$F$1 -> 0 | CZ16: =+Sheet3!CZ13/Sheet3!$F$1 -> 0 | DA16: =+Sheet3!DA13/Sheet3!$F$1 -> 6.3 | DB16: =+Sheet3!DB13/Sheet3!$F$1 -> 3.3929 | DC16: =+Sheet3!DC13/Sheet3!$F$1 -> 3.70743 | DD16: =+Sheet3!DD13/Sheet3!$F$1 -> 1.05 | DE16: =+Sheet3!DE13/Sheet3!$F$1 -> 0 | DF16: =+Sheet3!DF13/Sheet3!$F$1 -> 0 | DG16: =+Sheet3!DG13/Sheet3!$F$1 -> 0 | DH16: =+Sheet3!DH13/Sheet3!$F$1 -> 1.75 | DI16: =+Sheet3!DI13/Sheet3!$F$1 -> 4.9 | DJ16: =+Sheet3!DJ13/Sheet3!$F$1 -> 6.48433 | DK16: =+Sheet3!DK13/Sheet3!$F$1 -> 1.316 | DL16: =+Sheet3!DL13/Sheet3!$F$1 -> 0 | DM16: 14.45033
B17: 11D | C17: Douro | D17: =+Sheet3!D14/Sheet3!$F$1 -> 0 | E17: =+Sheet3!E14/Sheet3!$F$1 -> 0 | F17: =+Sheet3!F14/Sheet3!$F$1 -> 0 | G17: =+Sheet3!G14/Sheet3!$F$1 -> 0 | H17: =+Sheet3!H14/Sheet3!$F$1 -> 0 | I17: =+Sheet3!I14/Sheet3!$F$1 -> 0 | J17: =+Sheet3!J14/Sheet3!$F$1 -> 0 | K17: =+Sheet3!K14/Sheet3!$F$1 -> 0 | L17: =+Sheet3!L14/Sheet3!$F$1 -> 0 | M17: =+Sheet3!M14/Sheet3!$F$1 -> 0 | N17: =+Sheet3!N14/Sheet3!$F$1 -> 0 | O17: =+Sheet3!O14/Sheet3!$F$1 -> 0 | P17: =+Sheet3!P14/Sheet3!$F$1 -> 0 | Q17: =+Sheet3!Q14/Sheet3!$F$1 -> 0 | R17: =+Sheet3!R14/Sheet3!$F$1 -> 0 | S17: =+Sheet3!S14/Sheet3!$F$1 -> 0 | T17: =+Sheet3!T14/Sheet3!$F$1 -> 0 | U17: =+Sheet3!U14/Sheet3!$F$1 -> 0 | V17: =+Sheet3!V14/Sheet3!$F$1 -> 0 | W17: =+Sheet3!W14/Sheet3!$F$1 -> 0 | X17: =+Sheet3!X14/Sheet3!$F$1 -> 0 | Y17: =+Sheet3!Y14/Sheet3!$F$1 -> 0 | Z17: =+Sheet3!Z14/Sheet3!$F$1 -> 0 | AA17: =+Sheet3!AA14/Sheet3!$F$1 -> 0 | AB17: =+Sheet3!AB14/Sheet3!$F$1 -> 0 | AC17: =+Sheet3!AC14/Sheet3!$F$1 -> 0 | AD17: =+Sheet3!AD14/Sheet3!$F$1 -> 0.35 | AE17: =+Sheet3!AE14/Sheet3!$F$1 -> 0 | AF17: =+Sheet3!AF14/Sheet3!$F$1 -> 0 | AG17: =+Sheet3!AG14/Sheet3!$F$1 -> 0 | AH17: =+Sheet3!AH14/Sheet3!$F$1 -> 0 | AI17: =+Sheet3!AI14/Sheet3!$F$1 -> 0 | AJ17: =+Sheet3!AJ14/Sheet3!$F$1 -> 0 | AK17: =+Sheet3!AK14/Sheet3!$F$1 -> 0 | AL17: =+Sheet3!AL14/Sheet3!$F$1 -> 0 | AM17: =+Sheet3!AM14/Sheet3!$F$1 -> 0 | AN17: =+Sheet3!AN14/Sheet3!$F$1 -> 0 | AO17: =+Sheet3!AO14/Sheet3!$F$1 -> 0 | AP17: =+Sheet3!AP14/Sheet3!$F$1 -> 0 | AQ17: =+Sheet3!AQ14/Sheet3!$F$1 -> 0 | AR17: =+Sheet3!AR14/Sheet3!$F$1 -> 0 | AS17: =+Sheet3!AS14/Sheet3!$F$1 -> 0 | AT17: =+Sheet3!AT14/Sheet3!$F$1 -> 0 | AU17: =+Sheet3!AU14/Sheet3!$F$1 -> 0 | AV17: =+Sheet3!AV14/Sheet3!$F$1 -> 0 | AW17: =+Sheet3!AW14/Sheet3!$F$1 -> 0 | AX17: =+Sheet3!AX14/Sheet3!$F$1 -> 0 | AY17: =+Sheet3!AY14/Sheet3!$F$1 -> 0 | AZ17: =+Sheet3!AZ14/Sheet3!$F$1 -> 0 | BA17: =+Sheet3!BA14/Sheet3!$F$1 -> 0 | BB17: =+Sheet3!BB14/Sheet3!$F$1 -> 0 | BC17: =+Sheet3!BC14/Sheet3!$F$1 -> 0.35 | BD17: =+Sheet3!BD14/Sheet3!$F$1 -> 3.00125 | BE17: =+Sheet3!BE14/Sheet3!$F$1 -> 0 | BF17: =+Sheet3!BF14/Sheet3!$F$1 -> 0 | BG17: =+Sheet3!BG14/Sheet3!$F$1 -> 0 | BH17: =+Sheet3!BH14/Sheet3!$F$1 -> 2.765 | BI17: =+Sheet3!BI14/Sheet3!$F$1 -> 1.4 | BJ17: =+Sheet3!BJ14/Sheet3!$F$1 -> 0 | BK17: =+Sheet3!BK14/Sheet3!$F$1 -> 0 | BL17: =+Sheet3!BL14/Sheet3!$F$1 -> 0 | BM17: =+Sheet3!BM14/Sheet3!$F$1 -> 3.39823 | BN17: =+Sheet3!BN14/Sheet3!$F$1 -> 12.46587 | BO17: =+Sheet3!BO14/Sheet3!$F$1 -> 0.20825 | BP17: =+Sheet3!BP14/Sheet3!$F$1 -> 0 | BQ17: =+Sheet3!BQ14/Sheet3!$F$1 -> 0.70884 | BR17: =+Sheet3!BR14/Sheet3!$F$1 -> 16.69179 | BS17: =+Sheet3!BS14/Sheet3!$F$1 -> 19.77681 | BT17: =+Sheet3!BT14/Sheet3!$F$1 -> 0 | BU17: =+Sheet3!BU14/Sheet3!$F$1 -> 0 | BV17: =+Sheet3!BV14/Sheet3!$F$1 -> 0 | BW17: =+Sheet3!BW14/Sheet3!$F$1 -> 4.0782 | BX17: =+Sheet3!BX14/Sheet3!$F$1 -> 4.2868 | BY17: =+Sheet3!BY14/Sheet3!$F$1 -> 0 | BZ17: =+Sheet3!BZ14/Sheet3!$F$1 -> 0 | CA17: =+Sheet3!CA14/Sheet3!$F$1 -> 0 | CB17: =+Sheet3!CB14/Sheet3!$F$1 -> 0 | CC17: =+Sheet3!CC14/Sheet3!$F$1 -> 0 | CD17: =+Sheet3!CD14/Sheet3!$F$1 -> 0 | CE17: =+Sheet3!CE14/Sheet3!$F$1 -> 0 | CF17: =+Sheet3!CF14/Sheet3!$F$1 -> 0 | CG17: =+Sheet3!CG14/Sheet3!$F$1 -> 0 | CH17: =+Sheet3!CH14/Sheet3!$F$1 -> 0 | CI17: =+Sheet3!CI14/Sheet3!$F$1 -> 0 | CJ17: =+Sheet3!CJ14/Sheet3!$F$1 -> 0 | CK17: =+Sheet3!CK14/Sheet3!$F$1 -> 0 | CL17: =+Sheet3!CL14/Sheet3!$F$1 -> 0 | CM17: =+Sheet3!CM14/Sheet3!$F$1 -> 0 | CN17: =+Sheet3!CN14/Sheet3!$F$1 -> 0 | CO17: =+Sheet3!CO14/Sheet3!$F$1 -> 0 | CP17: =+Sheet3!CP14/Sheet3!$F$1 -> 0 | CQ17: =+Sheet3!CQ14/Sheet3!$F$1 -> 0 | CR17: =+Sheet3!CR14/Sheet3!$F$1 -> 0 | CS17: =+Sheet3!CS14/Sheet3!$F$1 -> 0 | CT17: =+Sheet3!CT14/Sheet3!$F$1 -> 0 | CU17: =+Sheet3!CU14/Sheet3!$F$1 -> 0.35 | CV17: =+Sheet3!CV14/Sheet3!$F$1 -> 0 | CW17: =+Sheet3!CW14/Sheet3!$F$1 -> 0 | CX17: =+Sheet3!CX14/Sheet3!$F$1 -> 0 | CY17: =+Sheet3!CY14/Sheet3!$F$1 -> 0 | CZ17: =+Sheet3!CZ14/Sheet3!$F$1 -> 3.35125 | DA17: =+Sheet3!DA14/Sheet3!$F$1 -> 4.165 | DB17: =+Sheet3!DB14/Sheet3!$F$1 -> 16.07235 | DC17: =+Sheet3!DC14/Sheet3!$F$1 -> 37.17744 | DD17: =+Sheet3!DD14/Sheet3!$F$1 -> 8.365 | DE17: =+Sheet3!DE14/Sheet3!$F$1 -> 0 | DF17: =+Sheet3!DF14/Sheet3!$F$1 -> 0 | DG17: =+Sheet3!DG14/Sheet3!$F$1 -> 0 | DH17: =+Sheet3!DH14/Sheet3!$F$1 -> 0.70884 | DI17: =+Sheet3!DI14/Sheet3!$F$1 -> 27.63322 | DJ17: =+Sheet3!DJ14/Sheet3!$F$1 -> 40.93073 | DK17: =+Sheet3!DK14/Sheet3!$F$1 -> 0.20825 | DL17: =+Sheet3!DL14/Sheet3!$F$1 -> 0 | DM17: 69.48104
B18: 11E | C18: Terras de Trás-os-Montes | D18: =+Sheet3!D15/Sheet3!$F$1 -> 0 | E18: =+Sheet3!E15/Sheet3!$F$1 -> 0.658 | F18: =+Sheet3!F15/Sheet3!$F$1 -> 0.6636 | G18: =+Sheet3!G15/Sheet3!$F$1 -> 0 | H18: =+Sheet3!H15/Sheet3!$F$1 -> 0 | I18: =+Sheet3!I15/Sheet3!$F$1 -> 0 | J18: =+Sheet3!J15/Sheet3!$F$1 -> 0 | K18: =+Sheet3!K15/Sheet3!$F$1 -> 0 | L18: =+Sheet3!L15/Sheet3!$F$1 -> 0 | M18: =+Sheet3!M15/Sheet3!$F$1 -> 0 | N18: =+Sheet3!N15/Sheet3!$F$1 -> 0 | O18: =+Sheet3!O15/Sheet3!$F$1 -> 0 | P18: =+Sheet3!P15/Sheet3!$F$1 -> 0.35 | Q18: =+Sheet3!Q15/Sheet3!$F$1 -> 0 | R18: =+Sheet3!R15/Sheet3!$F$1 -> 0 | S18: =+Sheet3!S15/Sheet3!$F$1 -> 0 | T18: =+Sheet3!T15/Sheet3!$F$1 -> 0 | U18: =+Sheet3!U15/Sheet3!$F$1 -> 0 | V18: =+Sheet3!V15/Sheet3!$F$1 -> 0 | W18: =+Sheet3!W15/Sheet3!$F$1 -> 0 | X18: =+Sheet3!X15/Sheet3!$F$1 -> 0 | Y18: =+Sheet3!Y15/Sheet3!$F$1 -> 0 | Z18: =+Sheet3!Z15/Sheet3!$F$1 -> 0 | AA18: =+Sheet3!AA15/Sheet3!$F$1 -> 0 | AB18: =+Sheet3!AB15/Sheet3!$F$1 -> 0 | AC18: =+Sheet3!AC15/Sheet3!$F$1 -> 0 | AD18: =+Sheet3!AD15/Sheet3!$F$1 -> 1.4 | AE18: =+Sheet3!AE15/Sheet3!$F$1 -> 8.0395 | AF18: =+Sheet3!AF15/Sheet3!$F$1 -> 0 | AG18: =+Sheet3!AG15/Sheet3!$F$1 -> 0 | AH18: =+Sheet3!AH15/Sheet3!$F$1 -> 0 | AI18: =+Sheet3!AI15/Sheet3!$F$1 -> 0 | AJ18: =+Sheet3!AJ15/Sheet3!$F$1 -> 0 | AK18: =+Sheet3!AK15/Sheet3!$F$1 -> 0 | AL18: =+Sheet3!AL15/Sheet3!$F$1 -> 0 | AM18: =+Sheet3!AM15/Sheet3!$F$1 -> 0 | AN18: =+Sheet3!AN15/Sheet3!$F$1 -> 0.7 | AO18: =+Sheet3!AO15/Sheet3!$F$1 -> 0.35 | AP18: =+Sheet3!AP15/Sheet3!$F$1 -> 0 | AQ18: =+Sheet3!AQ15/Sheet3!$F$1 -> 0 | AR18: =+Sheet3!AR15/Sheet3!$F$1 -> 0 | AS18: =+Sheet3!AS15/Sheet3!$F$1 -> 0 | AT18: =+Sheet3!AT15/Sheet3!$F$1 -> 0 | AU18: =+Sheet3!AU15/Sheet3!$F$1 -> 0 | AV18: =+Sheet3!AV15/Sheet3!$F$1 -> 0 | AW18: =+Sheet3!AW15/Sheet3!$F$1 -> 0 | AX18: =+Sheet3!AX15/Sheet3!$F$1 -> 5.5111 | AY18: =+Sheet3!AY15/Sheet3!$F$1 -> 16.6831 | AZ18: =+Sheet3!AZ15/Sheet3!$F$1 -> 0 | BA18: =+Sheet3!BA15/Sheet3!$F$1 -> 0 | BB18: =+Sheet3!BB15/Sheet3!$F$1 -> 0 | BC18: =+Sheet3!BC15/Sheet3!$F$1 -> 0 | BD18: =+Sheet3!BD15/Sheet3!$F$1 -> 5.929 | BE18: =+Sheet3!BE15/Sheet3!$F$1 -> 0 | BF18: =+Sheet3!BF15/Sheet3!$F$1 -> 0 | BG18: =+Sheet3!BG15/Sheet3!$F$1 -> 1.05 | BH18: =+Sheet3!BH15/Sheet3!$F$1 -> 6.272 | BI18: =+Sheet3!BI15/Sheet3!$F$1 -> 19.5475 | BJ18: =+Sheet3!BJ15/Sheet3!$F$1 -> 0.7 | BK18: =+Sheet3!BK15/Sheet3!$F$1 -> 0 | BL18: =+Sheet3!BL15/Sheet3!$F$1 -> 0 | BM18: =+Sheet3!BM15/Sheet3!$F$1 -> 2.394 | BN18: =+Sheet3!BN15/Sheet3!$F$1 -> 11.8125 | BO18: =+Sheet3!BO15/Sheet3!$F$1 -> 0.7 | BP18: =+Sheet3!BP15/Sheet3!$F$1 -> 0 | BQ18: =+Sheet3!BQ15/Sheet3!$F$1 -> 3.13724 | BR18: =+Sheet3!BR15/Sheet3!$F$1 -> 51.36246 | BS18: =+Sheet3!BS15/Sheet3!$F$1 -> 64.7164 | BT18: =+Sheet3!BT15/Sheet3!$F$1 -> 0 | BU18: =+Sheet3!BU15/Sheet3!$F$1 -> 0 | BV18: =+Sheet3!BV15/Sheet3!$F$1 -> 0 | BW18: =+Sheet3!BW15/Sheet3!$F$1 -> 44.59188 | BX18: =+Sheet3!BX15/Sheet3!$F$1 -> 84.10461 | BY18: =+Sheet3!BY15/Sheet3!$F$1 -> 0 | BZ18: =+Sheet3!BZ15/Sheet3!$F$1 -> 0 | CA18: =+Sheet3!CA15/Sheet3!$F$1 -> 0 | CB18: =+Sheet3!CB15/Sheet3!$F$1 -> 0 | CC18: =+Sheet3!CC15/Sheet3!$F$1 -> 0 | CD18: =+Sheet3!CD15/Sheet3!$F$1 -> 0 | CE18: =+Sheet3!CE15/Sheet3!$F$1 -> 0 | CF18: =+Sheet3!CF15/Sheet3!$F$1 -> 0 | CG18: =+Sheet3!CG15/Sheet3!$F$1 -> 0 | CH18: =+Sheet3!CH15/Sheet3!$F$1 -> 0 | CI18: =+Sheet3!CI15/Sheet3!$F$1 -> 0 | CJ18: =+Sheet3!CJ15/Sheet3!$F$1 -> 0 | CK18: =+Sheet3!CK15/Sheet3!$F$1 -> 0 | CL18: =+Sheet3!CL15/Sheet3!$F$1 -> 0 | CM18: =+Sheet3!CM15/Sheet3!$F$1 -> 0 | CN18: =+Sheet3!CN15/Sheet3!$F$1 -> 0 | CO18: =+Sheet3!CO15/Sheet3!$F$1 -> 0 | CP18: =+Sheet3!CP15/Sheet3!$F$1 -> 1.3216 | CQ18: =+Sheet3!CQ15/Sheet3!$F$1 -> 0 | CR18: =+Sheet3!CR15/Sheet3!$F$1 -> 0.35 | CS18: =+Sheet3!CS15/Sheet3!$F$1 -> 0 | CT18: =+Sheet3!CT15/Sheet3!$F$1 -> 0 | CU18: =+Sheet3!CU15/Sheet3!$F$1 -> 9.4395 | CV18: =+Sheet3!CV15/Sheet3!$F$1 -> 0 | CW18: =+Sheet3!CW15/Sheet3!$F$1 -> 1.05 | CX18: =+Sheet3!CX15/Sheet3!$F$1 -> 0 | CY18: =+Sheet3!CY15/Sheet3!$F$1 -> 22.1942 | CZ18: =+Sheet3!CZ15/Sheet3!$F$1 -> 5.929 | DA18: =+Sheet3!DA15/Sheet3!$F$1 -> 27.5695 | DB18: =+Sheet3!DB15/Sheet3!$F$1 -> 14.9065 | DC18: =+Sheet3!DC15/Sheet3!$F$1 -> 119.2161 | DD18: =+Sheet3!DD15/Sheet3!$F$1 -> 128.69649 | DE18: =+Sheet3!DE15/Sheet3!$F$1 -> 0 | DF18: =+Sheet3!DF15/Sheet3!$F$1 -> 0 | DG18: =+Sheet3!DG15/Sheet3!$F$1 -> 0 | DH18: =+Sheet3!DH15/Sheet3!$F$1 -> 4.18724 | DI18: =+Sheet3!DI15/Sheet3!$F$1 -> 112.88944 | DJ18: =+Sheet3!DJ15/Sheet3!$F$1 -> 212.19621 | DK18: =+Sheet3!DK15/Sheet3!$F$1 -> 1.4 | DL18: =+Sheet3!DL15/Sheet3!$F$1 -> 0 | DM18: 330.67289
A19: Centro | B19: 16B | C19: Oeste | D19: =+Sheet3!D16/Sheet3!$F$1 -> 0 | E19: =+Sheet3!E16/Sheet3!$F$1 -> 0 | F19: =+Sheet3!F16/Sheet3!$F$1 -> 0 | G19: =+Sheet3!G16/Sheet3!$F$1 -> 0 | H19: =+Sheet3!H16/Sheet3!$F$1 -> 0 | I19: =+Sheet3!I16/Sheet3!$F$1 -> 0 | J19: =+Sheet3!J16/Sheet3!$F$1 -> 0 | K19: =+Sheet3!K16/Sheet3!$F$1 -> 0 | L19: =+Sheet3!L16/Sheet3!$F$1 -> 0 | M19: =+Sheet3!M16/Sheet3!$F$1 -> 0 | N19: =+Sheet3!N16/Sheet3!$F$1 -> 0 | O19: =+Sheet3!O16/Sheet3!$F$1 -> 0 | P19: =+Sheet3!P16/Sheet3!$F$1 -> 0 | Q19: =+Sheet3!Q16/Sheet3!$F$1 -> 0 | R19: =+Sheet3!R16/Sheet3!$F$1 -> 0 | S19: =+Sheet3!S16/Sheet3!$F$1 -> 0 | T19: =+Sheet3!T16/Sheet3!$F$1 -> 0 | U19: =+Sheet3!U16/Sheet3!$F$1 -> 0 | V19: =+Sheet3!V16/Sheet3!$F$1 -> 0 | W19: =+Sheet3!W16/Sheet3!$F$1 -> 0 | X19: =+Sheet3!X16/Sheet3!$F$1 -> 0 | Y19: =+Sheet3!Y16/Sheet3!$F$1 -> 0 | Z19: =+Sheet3!Z16/Sheet3!$F$1 -> 0 | AA19: =+Sheet3!AA16/Sheet3!$F$1 -> 0 | AB19: =+Sheet3!AB16/Sheet3!$F$1 -> 0 | AC19: =+Sheet3!AC16/Sheet3!$F$1 -> 0 | AD19: =+Sheet3!AD16/Sheet3!$F$1 -> 0 | AE19: =+Sheet3!AE16/Sheet3!$F$1 -> 0 | AF19: =+Sheet3!AF16/Sheet3!$F$1 -> 0 | AG19: =+Sheet3!AG16/Sheet3!$F$1 -> 0 | AH19: =+Sheet3!AH16/Sheet3!$F$1 -> 0 | AI19: =+Sheet3!AI16/Sheet3!$F$1 -> 0 | AJ19: =+Sheet3!AJ16/Sheet3!$F$1 -> 0 | AK19: =+Sheet3!AK16/Sheet3!$F$1 -> 0 | AL19: =+Sheet3!AL16/Sheet3!$F$1 -> 0 | AM19: =+Sheet3!AM16/Sheet3!$F$1 -> 0 | AN19: =+Sheet3!AN16/Sheet3!$F$1 -> 0 | AO19: =+Sheet3!AO16/Sheet3!$F$1 -> 0 | AP19: =+Sheet3!AP16/Sheet3!$F$1 -> 0 | AQ19: =+Sheet3!AQ16/Sheet3!$F$1 -> 0 | AR19: =+Sheet3!AR16/Sheet3!$F$1 -> 0 | AS19: =+Sheet3!AS16/Sheet3!$F$1 -> 0 | AT19: =+Sheet3!AT16/Sheet3!$F$1 -> 0 | AU19: =+Sheet3!AU16/Sheet3!$F$1 -> 0 | AV19: =+Sheet3!AV16/Sheet3!$F$1 -> 0 | AW19: =+Sheet3!AW16/Sheet3!$F$1 -> 0 | AX19: =+Sheet3!AX16/Sheet3!$F$1 -> 0 | AY19: =+Sheet3!AY16/Sheet3!$F$1 -> 0 | AZ19: =+Sheet3!AZ16/Sheet3!$F$1 -> 0 | BA19: =+Sheet3!BA16/Sheet3!$F$1 -> 0 | BB19: =+Sheet3!BB16/Sheet3!$F$1 -> 0 | BC19: =+Sheet3!BC16/Sheet3!$F$1 -> 0 | BD19: =+Sheet3!BD16/Sheet3!$F$1 -> 0 | BE19: =+Sheet3!BE16/Sheet3!$F$1 -> 0 | BF19: =+Sheet3!BF16/Sheet3!$F$1 -> 0 | BG19: =+Sheet3!BG16/Sheet3!$F$1 -> 0 | BH19: =+Sheet3!BH16/Sheet3!$F$1 -> 0 | BI19: =+Sheet3!BI16/Sheet3!$F$1 -> 0 | BJ19: =+Sheet3!BJ16/Sheet3!$F$1 -> 0 | BK19: =+Sheet3!BK16/Sheet3!$F$1 -> 0 | BL19: =+Sheet3!BL16/Sheet3!$F$1 -> 0 | BM19: =+Sheet3!BM16/Sheet3!$F$1 -> 0 | BN19: =+Sheet3!BN16/Sheet3!$F$1 -> 0 | BO19: =+Sheet3!BO16/Sheet3!$F$1 -> 0 | BP19: =+Sheet3!BP16/Sheet3!$F$1 -> 0 | BQ19: =+Sheet3!BQ16/Sheet3!$F$1 -> 0 | BR19: =+Sheet3!BR16/Sheet3!$F$1 -> 0 | BS19: =+Sheet3!BS16/Sheet3!$F$1 -> 0 | BT19: =+Sheet3!BT16/Sheet3!$F$1 -> 0 | BU19: =+Sheet3!BU16/Sheet3!$F$1 -> 0 | BV19: =+Sheet3!BV16/Sheet3!$F$1 -> 0 | BW19: =+Sheet3!BW16/Sheet3!$F$1 -> 0 | BX19: =+Sheet3!BX16/Sheet3!$F$1 -> 0 | BY19: =+Sheet3!BY16/Sheet3!$F$1 -> 0 | BZ19: =+Sheet3!BZ16/Sheet3!$F$1 -> 0 | CA19: =+Sheet3!CA16/Sheet3!$F$1 -> 0 | CB19: =+Sheet3!CB16/Sheet3!$F$1 -> 0 | CC19: =+Sheet3!CC16/Sheet3!$F$1 -> 0 | CD19: =+Sheet3!CD16/Sheet3!$F$1 -> 0 | CE19: =+Sheet3!CE16/Sheet3!$F$1 -> 0 | CF19: =+Sheet3!CF16/Sheet3!$F$1 -> 0 | CG19: =+Sheet3!CG16/Sheet3!$F$1 -> 0 | CH19: =+Sheet3!CH16/Sheet3!$F$1 -> 0 | CI19: =+Sheet3!CI16/Sheet3!$F$1 -> 0 | CJ19: =+Sheet3!CJ16/Sheet3!$F$1 -> 0 | CK19: =+Sheet3!CK16/Sheet3!$F$1 -> 0 | CL19: =+Sheet3!CL16/Sheet3!$F$1 -> 0 | CM19: =+Sheet3!CM16/Sheet3!$F$1 -> 0 | CN19: =+Sheet3!CN16/Sheet3!$F$1 -> 0 | CO19: =+Sheet3!CO16/Sheet3!$F$1 -> 0 | CP19: =+Sheet3!CP16/Sheet3!$F$1 -> 0 | CQ19: =+Sheet3!CQ16/Sheet3!$F$1 -> 0 | CR19: =+Sheet3!CR16/Sheet3!$F$1 -> 0 | CS19: =+Sheet3!CS16/Sheet3!$F$1 -> 0 | CT19: =+Sheet3!CT16/Sheet3!$F$1 -> 0 | CU19: =+Sheet3!CU16/Sheet3!$F$1 -> 0 | CV19: =+Sheet3!CV16/Sheet3!$F$1 -> 0 | CW19: =+Sheet3!CW16/Sheet3!$F$1 -> 0 | CX19: =+Sheet3!CX16/Sheet3!$F$1 -> 0 | CY19: =+Sheet3!CY16/Sheet3!$F$1 -> 0 | CZ19: =+Sheet3!CZ16/Sheet3!$F$1 -> 0 | DA19: =+Sheet3!DA16/Sheet3!$F$1 -> 0 | DB19: =+Sheet3!DB16/Sheet3!$F$1 -> 0 | DC19: =+Sheet3!DC16/Sheet3!$F$1 -> 0 | DD19: =+Sheet3!DD16/Sheet3!$F$1 -> 0 | DE19: =+Sheet3!DE16/Sheet3!$F$1 -> 0 | DF19: =+Sheet3!DF16/Sheet3!$F$1 -> 0 | DG19: =+Sheet3!DG16/Sheet3!$F$1 -> 0 | DH19: =+Sheet3!DH16/Sheet3!$F$1 -> 0 | DI19: =+Sheet3!DI16/Sheet3!$F$1 -> 0 | DJ19: =+Sheet3!DJ16/Sheet3!$F$1 -> 0 | DK19: =+Sheet3!DK16/Sheet3!$F$1 -> 0 | DL19: =+Sheet3!DL16/Sheet3!$F$1 -> 0 | DM19: 0
B20: 16D | C20: Região de Aveiro | D20: =+Sheet3!D17/Sheet3!$F$1 -> 0 | E20: =+Sheet3!E17/Sheet3!$F$1 -> 0 | F20: =+Sheet3!F17/Sheet3!$F$1 -> 0 | G20: =+Sheet3!G17/Sheet3!$F$1 -> 0 | H20: =+Sheet3!H17/Sheet3!$F$1 -> 0 | I20: =+Sheet3!I17/Sheet3!$F$1 -> 0 | J20: =+Sheet3!J17/Sheet3!$F$1 -> 0 | K20: =+Sheet3!K17/Sheet3!$F$1 -> 0 | L20: =+Sheet3!L17/Sheet3!$F$1 -> 0 | M20: =+Sheet3!M17/Sheet3!$F$1 -> 0 | N20: =+Sheet3!N17/Sheet3!$F$1 -> 0 | O20: =+Sheet3!O17/Sheet3!$F$1 -> 0 | P20: =+Sheet3!P17/Sheet3!$F$1 -> 0 | Q20: =+Sheet3!Q17/Sheet3!$F$1 -> 0 | R20: =+Sheet3!R17/Sheet3!$F$1 -> 0 | S20: =+Sheet3!S17/Sheet3!$F$1 -> 0 | T20: =+Sheet3!T17/Sheet3!$F$1 -> 0 | U20: =+Sheet3!U17/Sheet3!$F$1 -> 0 | V20: =+Sheet3!V17/Sheet3!$F$1 -> 0 | W20: =+Sheet3!W17/Sheet3!$F$1 -> 0 | X20: =+Sheet3!X17/Sheet3!$F$1 -> 0 | Y20: =+Sheet3!Y17/Sheet3!$F$1 -> 0 | Z20: =+Sheet3!Z17/Sheet3!$F$1 -> 0 | AA20: =+Sheet3!AA17/Sheet3!$F$1 -> 0 | AB20: =+Sheet3!AB17/Sheet3!$F$1 -> 0 | AC20: =+Sheet3!AC17/Sheet3!$F$1 -> 0 | AD20: =+Sheet3!AD17/Sheet3!$F$1 -> 0 | AE20: =+Sheet3!AE17/Sheet3!$F$1 -> 0 | AF20: =+Sheet3!AF17/Sheet3!$F$1 -> 0 | AG20: =+Sheet3!AG17/Sheet3!$F$1 -> 0 | AH20: =+Sheet3!AH17/Sheet3!$F$1 -> 0 | AI20: =+Sheet3!AI17/Sheet3!$F$1 -> 0 | AJ20: =+Sheet3!AJ17/Sheet3!$F$1 -> 0 | AK20: =+Sheet3!AK17/Sheet3!$F$1 -> 0 | AL20: =+Sheet3!AL17/Sheet3!$F$1 -> 0 | AM20: =+Sheet3!AM17/Sheet3!$F$1 -> 0 | AN20: =+Sheet3!AN17/Sheet3!$F$1 -> 0 | AO20: =+Sheet3!AO17/Sheet3!$F$1 -> 0 | AP20: =+Sheet3!AP17/Sheet3!$F$1 -> 0 | AQ20: =+Sheet3!AQ17/Sheet3!$F$1 -> 0 | AR20: =+Sheet3!AR17/Sheet3!$F$1 -> 0 | AS20: =+Sheet3!AS17/Sheet3!$F$1 -> 0 | AT20: =+Sheet3!AT17/Sheet3!$F$1 -> 0 | AU20: =+Sheet3!AU17/Sheet3!$F$1 -> 0 | AV20: =+Sheet3!AV17/Sheet3!$F$1 -> 0 | AW20: =+Sheet3!AW17/Sheet3!$F$1 -> 0 | AX20: =+Sheet3!AX17/Sheet3!$F$1 -> 0 | AY20: =+Sheet3!AY17/Sheet3!$F$1 -> 0 | AZ20: =+Sheet3!AZ17/Sheet3!$F$1 -> 0 | BA20: =+Sheet3!BA17/Sheet3!$F$1 -> 0 | BB20: =+Sheet3!BB17/Sheet3!$F$1 -> 0 | BC20: =+Sheet3!BC17/Sheet3!$F$1 -> 0 | BD20: =+Sheet3!BD17/Sheet3!$F$1 -> 0 | BE20: =+Sheet3!BE17/Sheet3!$F$1 -> 0 | BF20: =+Sheet3!BF17/Sheet3!$F$1 -> 0 | BG20: =+Sheet3!BG17/Sheet3!$F$1 -> 0 | BH20: =+Sheet3!BH17/Sheet3!$F$1 -> 0 | BI20: =+Sheet3!BI17/Sheet3!$F$1 -> 0 | BJ20: =+Sheet3!BJ17/Sheet3!$F$1 -> 0 | BK20: =+Sheet3!BK17/Sheet3!$F$1 -> 0 | BL20: =+Sheet3!BL17/Sheet3!$F$1 -> 0 | BM20: =+Sheet3!BM17/Sheet3!$F$1 -> 0 | BN20: =+Sheet3!BN17/Sheet3!$F$1 -> 0 | BO20: =+Sheet3!BO17/Sheet3!$F$1 -> 0 | BP20: =+Sheet3!BP17/Sheet3!$F$1 -> 0 | BQ20: =+Sheet3!BQ17/Sheet3!$F$1 -> 0 | BR20: =+Sheet3!BR17/Sheet3!$F$1 -> 0 | BS20: =+Sheet3!BS17/Sheet3!$F$1 -> 0 | BT20: =+Sheet3!BT17/Sheet3!$F$1 -> 0 | BU20: =+Sheet3!BU17/Sheet3!$F$1 -> 0 | BV20: =+Sheet3!BV17/Sheet3!$F$1 -> 0 | BW20: =+Sheet3!BW17/Sheet3!$F$1 -> 0 | BX20: =+Sheet3!BX17/Sheet3!$F$1 -> 0 | BY20: =+Sheet3!BY17/Sheet3!$F$1 -> 0 | BZ20: =+Sheet3!BZ17/Sheet3!$F$1 -> 0 | CA20: =+Sheet3!CA17/Sheet3!$F$1 -> 0 | CB20: =+Sheet3!CB17/Sheet3!$F$1 -> 0 | CC20: =+Sheet3!CC17/Sheet3!$F$1 -> 0 | CD20: =+Sheet3!CD17/Sheet3!$F$1 -> 0 | CE20: =+Sheet3!CE17/Sheet3!$F$1 -> 0 | CF20: =+Sheet3!CF17/Sheet3!$F$1 -> 0 | CG20: =+Sheet3!CG17/Sheet3!$F$1 -> 0 | CH20: =+Sheet3!CH17/Sheet3!$F$1 -> 0 | CI20: =+Sheet3!CI17/Sheet3!$F$1 -> 0 | CJ20: =+Sheet3!CJ17/Sheet3!$F$1 -> 0 | CK20: =+Sheet3!CK17/Sheet3!$F$1 -> 0 | CL20: =+Sheet3!CL17/Sheet3!$F$1 -> 0 | CM20: =+Sheet3!CM17/Sheet3!$F$1 -> 0 | CN20: =+Sheet3!CN17/Sheet3!$F$1 -> 0 | CO20: =+Sheet3!CO17/Sheet3!$F$1 -> 0 | CP20: =+Sheet3!CP17/Sheet3!$F$1 -> 0 | CQ20: =+Sheet3!CQ17/Sheet3!$F$1 -> 0 | CR20: =+Sheet3!CR17/Sheet3!$F$1 -> 0 | CS20: =+Sheet3!CS17/Sheet3!$F$1 -> 0 | CT20: =+Sheet3!CT17/Sheet3!$F$1 -> 0 | CU20: =+Sheet3!CU17/Sheet3!$F$1 -> 0 | CV20: =+Sheet3!CV17/Sheet3!$F$1 -> 0 | CW20: =+Sheet3!CW17/Sheet3!$F$1 -> 0 | CX20: =+Sheet3!CX17/Sheet3!$F$1 -> 0 | CY20: =+Sheet3!CY17/Sheet3!$F$1 -> 0 | CZ20: =+Sheet3!CZ17/Sheet3!$F$1 -> 0 | DA20: =+Sheet3!DA17/Sheet3!$F$1 -> 0 | DB20: =+Sheet3!DB17/Sheet3!$F$1 -> 0 | DC20: =+Sheet3!DC17/Sheet3!$F$1 -> 0 | DD20: =+Sheet3!DD17/Sheet3!$F$1 -> 0 | DE20: =+Sheet3!DE17/Sheet3!$F$1 -> 0 | DF20: =+Sheet3!DF17/Sheet3!$F$1 -> 0 | DG20: =+Sheet3!DG17/Sheet3!$F$1 -> 0 | DH20: =+Sheet3!DH17/Sheet3!$F$1 -> 0 | DI20: =+Sheet3!DI17/Sheet3!$F$1 -> 0 | DJ20: =+Sheet3!DJ17/Sheet3!$F$1 -> 0 | DK20: =+Sheet3!DK17/Sheet3!$F$1 -> 0 | DL20: =+Sheet3!DL17/Sheet3!$F$1 -> 0 | DM20: 0
B21: 16E | C21: Região de Coimbra | D21: =+Sheet3!D18/Sheet3!$F$1 -> 0 | E21: =+Sheet3!E18/Sheet3!$F$1 -> 0 | F21: =+Sheet3!F18/Sheet3!$F$1 -> 0 | G21: =+Sheet3!G18/Sheet3!$F$1 -> 0 | H21: =+Sheet3!H18/Sheet3!$F$1 -> 0 | I21: =+Sheet3!I18/Sheet3!$F$1 -> 0 | J21: =+Sheet3!J18/Sheet3!$F$1 -> 0 | K21: =+Sheet3!K18/Sheet3!$F$1 -> 0 | L21: =+Sheet3!L18/Sheet3!$F$1 -> 0 | M21: =+Sheet3!M18/Sheet3!$F$1 -> 0 | N21: =+Sheet3!N18/Sheet3!$F$1 -> 0 | O21: =+Sheet3!O18/Sheet3!$F$1 -> 0 | P21: =+Sheet3!P18/Sheet3!$F$1 -> 0 | Q21: =+Sheet3!Q18/Sheet3!$F$1 -> 0 | R21: =+Sheet3!R18/Sheet3!$F$1 -> 0 | S21: =+Sheet3!S18/Sheet3!$F$1 -> 0 | T21: =+Sheet3!T18/Sheet3!$F$1 -> 0 | U21: =+Sheet3!U18/Sheet3!$F$1 -> 0 | V21: =+Sheet3!V18/Sheet3!$F$1 -> 0 | W21: =+Sheet3!W18/Sheet3!$F$1 -> 0 | X21: =+Sheet3!X18/Sheet3!$F$1 -> 0 | Y21: =+Sheet3!Y18/Sheet3!$F$1 -> 0 | Z21: =+Sheet3!Z18/Sheet3!$F$1 -> 0 | AA21: =+Sheet3!AA18/Sheet3!$F$1 -> 0 | AB21: =+Sheet3!AB18/Sheet3!$F$1 -> 0 | AC21: =+Sheet3!AC18/Sheet3!$F$1 -> 0 | AD21: =+Sheet3!AD18/Sheet3!$F$1 -> 0 | AE21: =+Sheet3!AE18/Sheet3!$F$1 -> 0 | AF21: =+Sheet3!AF18/Sheet3!$F$1 -> 0 | AG21: =+Sheet3!AG18/Sheet3!$F$1 -> 0 | AH21: =+Sheet3!AH18/Sheet3!$F$1 -> 0 | AI21: =+Sheet3!AI18/Sheet3!$F$1 -> 0 | AJ21: =+Sheet3!AJ18/Sheet3!$F$1 -> 0 | AK21: =+Sheet3!AK18/Sheet3!$F$1 -> 0 | AL21: =+Sheet3!AL18/Sheet3!$F$1 -> 0 | AM21: =+Sheet3!AM18/Sheet3!$F$1 -> 0 | AN21: =+Sheet3!AN18/Sheet3!$F$1 -> 0 | AO21: =+Sheet3!AO18/Sheet3!$F$1 -> 0 | AP21: =+Sheet3!AP18/Sheet3!$F$1 -> 0 | AQ21: =+Sheet3!AQ18/Sheet3!$F$1 -> 0 | AR21: =+Sheet3!AR18/Sheet3!$F$1 -> 0 | AS21: =+Sheet3!AS18/Sheet3!$F$1 -> 0 | AT21: =+Sheet3!AT18/Sheet3!$F$1 -> 0 | AU21: =+Sheet3!AU18/Sheet3!$F$1 -> 0 | AV21: =+Sheet3!AV18/Sheet3!$F$1 -> 0 | AW21: =+Sheet3!AW18/Sheet3!$F$1 -> 0 | AX21: =+Sheet3!AX18/Sheet3!$F$1 -> 0 | AY21: =+Sheet3!AY18/Sheet3!$F$1 -> 0 | AZ21: =+Sheet3!AZ18/Sheet3!$F$1 -> 0 | BA21: =+Sheet3!BA18/Sheet3!$F$1 -> 0 | BB21: =+Sheet3!BB18/Sheet3!$F$1 -> 0 | BC21: =+Sheet3!BC18/Sheet3!$F$1 -> 0 | BD21: =+Sheet3!BD18/Sheet3!$F$1 -> 0 | BE21: =+Sheet3!BE18/Sheet3!$F$1 -> 0 | BF21: =+Sheet3!BF18/Sheet3!$F$1 -> 0 | BG21: =+Sheet3!BG18/Sheet3!$F$1 -> 0 | BH21: =+Sheet3!BH18/Sheet3!$F$1 -> 0 | BI21: =+Sheet3!BI18/Sheet3!$F$1 -> 0 | BJ21: =+Sheet3!BJ18/Sheet3!$F$1 -> 0 | BK21: =+Sheet3!BK18/Sheet3!$F$1 -> 0 | BL21: =+Sheet3!BL18/Sheet3!$F$1 -> 0 | BM21: =+Sheet3!BM18/Sheet3!$F$1 -> 0 | BN21: =+Sheet3!BN18/Sheet3!$F$1 -> 0 | BO21: =+Sheet3!BO18/Sheet3!$F$1 -> 0 | BP21: =+Sheet3!BP18/Sheet3!$F$1 -> 0 | BQ21: =+Sheet3!BQ18/Sheet3!$F$1 -> 0 | BR21: =+Sheet3!BR18/Sheet3!$F$1 -> 0 | BS21: =+Sheet3!BS18/Sheet3!$F$1 -> 0 | BT21: =+Sheet3!BT18/Sheet3!$F$1 -> 0 | BU21: =+Sheet3!BU18/Sheet3!$F$1 -> 0 | BV21: =+Sheet3!BV18/Sheet3!$F$1 -> 0 | BW21: =+Sheet3!BW18/Sheet3!$F$1 -> 0 | BX21: =+Sheet3!BX18/Sheet3!$F$1 -> 0 | BY21: =+Sheet3!BY18/Sheet3!$F$1 -> 0 | BZ21: =+Sheet3!BZ18/Sheet3!$F$1 -> 0 | CA21: =+Sheet3!CA18/Sheet3!$F$1 -> 0 | CB21: =+Sheet3!CB18/Sheet3!$F$1 -> 0 | CC21: =+Sheet3!CC18/Sheet3!$F$1 -> 0 | CD21: =+Sheet3!CD18/Sheet3!$F$1 -> 0 | CE21: =+Sheet3!CE18/Sheet3!$F$1 -> 0 | CF21: =+Sheet3!CF18/Sheet3!$F$1 -> 0 | CG21: =+Sheet3!CG18/Sheet3!$F$1 -> 0 | CH21: =+Sheet3!CH18/Sheet3!$F$1 -> 0 | CI21: =+Sheet3!CI18/Sheet3!$F$1 -> 0 | CJ21: =+Sheet3!CJ18/Sheet3!$F$1 -> 0 | CK21: =+Sheet3!CK18/Sheet3!$F$1 -> 0 | CL21: =+Sheet3!CL18/Sheet3!$F$1 -> 0 | CM21: =+Sheet3!CM18/Sheet3!$F$1 -> 0 | CN21: =+Sheet3!CN18/Sheet3!$F$1 -> 0 | CO21: =+Sheet3!CO18/Sheet3!$F$1 -> 0 | CP21: =+Sheet3!CP18/Sheet3!$F$1 -> 0 | CQ21: =+Sheet3!CQ18/Sheet3!$F$1 -> 0 | CR21: =+Sheet3!CR18/Sheet3!$F$1 -> 0 | CS21: =+Sheet3!CS18/Sheet3!$F$1 -> 0 | CT21: =+Sheet3!CT18/Sheet3!$F$1 -> 0 | CU21: =+Sheet3!CU18/Sheet3!$F$1 -> 0 | CV21: =+Sheet3!CV18/Sheet3!$F$1 -> 0 | CW21: =+Sheet3!CW18/Sheet3!$F$1 -> 0 | CX21: =+Sheet3!CX18/Sheet3!$F$1 -> 0 | CY21: =+Sheet3!CY18/Sheet3!$F$1 -> 0 | CZ21: =+Sheet3!CZ18/Sheet3!$F$1 -> 0 | DA21: =+Sheet3!DA18/Sheet3!$F$1 -> 0 | DB21: =+Sheet3!DB18/Sheet3!$F$1 -> 0 | DC21: =+Sheet3!DC18/Sheet3!$F$1 -> 0 | DD21: =+Sheet3!DD18/Sheet3!$F$1 -> 0 | DE21: =+Sheet3!DE18/Sheet3!$F$1 -> 0 | DF21: =+Sheet3!DF18/Sheet3!$F$1 -> 0 | DG21: =+Sheet3!DG18/Sheet3!$F$1 -> 0 | DH21: =+Sheet3!DH18/Sheet3!$F$1 -> 0 | DI21: =+Sheet3!DI18/Sheet3!$F$1 -> 0 | DJ21: =+Sheet3!DJ18/Sheet3!$F$1 -> 0 | DK21: =+Sheet3!DK18/Sheet3!$F$1 -> 0 | DL21: =+Sheet3!DL18/Sheet3!$F$1 -> 0 | DM21: 0
B22: 16F | C22: Região de Leiria | D22: =+Sheet3!D19/Sheet3!$F$1 -> 0 | E22: =+Sheet3!E19/Sheet3!$F$1 -> 0 | F22: =+Sheet3!F19/Sheet3!$F$1 -> 0 | G22: =+Sheet3!G19/Sheet3!$F$1 -> 0 | H22: =+Sheet3!H19/Sheet3!$F$1 -> 0 | I22: =+Sheet3!I19/Sheet3!$F$1 -> 0 | J22: =+Sheet3!J19/Sheet3!$F$1 -> 0 | K22: =+Sheet3!K19/Sheet3!$F$1 -> 0 | L22: =+Sheet3!L19/Sheet3!$F$1 -> 0 | M22: =+Sheet3!M19/Sheet3!$F$1 -> 0 | N22: =+Sheet3!N19/Sheet3!$F$1 -> 0 | O22: =+Sheet3!O19/Sheet3!$F$1 -> 0 | P22: =+Sheet3!P19/Sheet3!$F$1 -> 0 | Q22: =+Sheet3!Q19/Sheet3!$F$1 -> 0 | R22: =+Sheet3!R19/Sheet3!$F$1 -> 0 | S22: =+Sheet3!S19/Sheet3!$F$1 -> 0 | T22: =+Sheet3!T19/Sheet3!$F$1 -> 0 | U22: =+Sheet3!U19/Sheet3!$F$1 -> 0 | V22: =+Sheet3!V19/Sheet3!$F$1 -> 0 | W22: =+Sheet3!W19/Sheet3!$F$1 -> 0 | X22: =+Sheet3!X19/Sheet3!$F$1 -> 0 | Y22: =+Sheet3!Y19/Sheet3!$F$1 -> 0 | Z22: =+Sheet3!Z19/Sheet3!$F$1 -> 0 | AA22: =+Sheet3!AA19/Sheet3!$F$1 -> 0 | AB22: =+Sheet3!AB19/Sheet3!$F$1 -> 0 | AC22: =+Sheet3!AC19/Sheet3!$F$1 -> 0 | AD22: =+Sheet3!AD19/Sheet3!$F$1 -> 0 | AE22: =+Sheet3!AE19/Sheet3!$F$1 -> 0 | AF22: =+Sheet3!AF19/Sheet3!$F$1 -> 0 | AG22: =+Sheet3!AG19/Sheet3!$F$1 -> 0 | AH22: =+Sheet3!AH19/Sheet3!$F$1 -> 0 | AI22: =+Sheet3!AI19/Sheet3!$F$1 -> 0 | AJ22: =+Sheet3!AJ19/Sheet3!$F$1 -> 0 | AK22: =+Sheet3!AK19/Sheet3!$F$1 -> 0 | AL22: =+Sheet3!AL19/Sheet3!$F$1 -> 0 | AM22: =+Sheet3!AM19/Sheet3!$F$1 -> 0 | AN22: =+Sheet3!AN19/Sheet3!$F$1 -> 0 | AO22: =+Sheet3!AO19/Sheet3!$F$1 -> 0 | AP22: =+Sheet3!AP19/Sheet3!$F$1 -> 0 | AQ22: =+Sheet3!AQ19/Sheet3!$F$1 -> 0 | AR22: =+Sheet3!AR19/Sheet3!$F$1 -> 0 | AS22: =+Sheet3!AS19/Sheet3!$F$1 -> 0 | AT22: =+Sheet3!AT19/Sheet3!$F$1 -> 0 | AU22: =+Sheet3!AU19/Sheet3!$F$1 -> 0 | AV22: =+Sheet3!AV19/Sheet3!$F$1 -> 0 | AW22: =+Sheet3!AW19/Sheet3!$F$1 -> 0 | AX22: =+Sheet3!AX19/Sheet3!$F$1 -> 0 | AY22: =+Sheet3!AY19/Sheet3!$F$1 -> 0 | AZ22: =+Sheet3!AZ19/Sheet3!$F$1 -> 0 | BA22: =+Sheet3!BA19/Sheet3!$F$1 -> 0 | BB22: =+Sheet3!BB19/Sheet3!$F$1 -> 0 | BC22: =+Sheet3!BC19/Sheet3!$F$1 -> 0 | BD22: =+Sheet3!BD19/Sheet3!$F$1 -> 0 | BE22: =+Sheet3!BE19/Sheet3!$F$1 -> 0 | BF22: =+Sheet3!BF19/Sheet3!$F$1 -> 0 | BG22: =+Sheet3!BG19/Sheet3!$F$1 -> 0 | BH22: =+Sheet3!BH19/Sheet3!$F$1 -> 0 | BI22: =+Sheet3!BI19/Sheet3!$F$1 -> 0 | BJ22: =+Sheet3!BJ19/Sheet3!$F$1 -> 0 | BK22: =+Sheet3!BK19/Sheet3!$F$1 -> 0 | BL22: =+Sheet3!BL19/Sheet3!$F$1 -> 0 | BM22: =+Sheet3!BM19/Sheet3!$F$1 -> 0 | BN22: =+Sheet3!BN19/Sheet3!$F$1 -> 0 | BO22: =+Sheet3!BO19/Sheet3!$F$1 -> 0 | BP22: =+Sheet3!BP19/Sheet3!$F$1 -> 0 | BQ22: =+Sheet3!BQ19/Sheet3!$F$1 -> 0 | BR22: =+Sheet3!BR19/Sheet3!$F$1 -> 0 | BS22: =+Sheet3!BS19/Sheet3!$F$1 -> 0 | BT22: =+Sheet3!BT19/Sheet3!$F$1 -> 0 | BU22: =+Sheet3!BU19/Sheet3!$F$1 -> 0 | BV22: =+Sheet3!BV19/Sheet3!$F$1 -> 0 | BW22: =+Sheet3!BW19/Sheet3!$F$1 -> 0 | BX22: =+Sheet3!BX19/Sheet3!$F$1 -> 0 | BY22: =+Sheet3!BY19/Sheet3!$F$1 -> 0 | BZ22: =+Sheet3!BZ19/Sheet3!$F$1 -> 0 | CA22: =+Sheet3!CA19/Sheet3!$F$1 -> 0 | CB22: =+Sheet3!CB19/Sheet3!$F$1 -> 0 | CC22: =+Sheet3!CC19/Sheet3!$F$1 -> 0 | CD22: =+Sheet3!CD19/Sheet3!$F$1 -> 0 | CE22: =+Sheet3!CE19/Sheet3!$F$1 -> 0 | CF22: =+Sheet3!CF19/Sheet3!$F$1 -> 0 | CG22: =+Sheet3!CG19/Sheet3!$F$1 -> 0 | CH22: =+Sheet3!CH19/Sheet3!$F$1 -> 0 | CI22: =+Sheet3!CI19/Sheet3!$F$1 -> 0 | CJ22: =+Sheet3!CJ19/Sheet3!$F$1 -> 0 | CK22: =+Sheet3!CK19/Sheet3!$F$1 -> 0 | CL22: =+Sheet3!CL19/Sheet3!$F$1 -> 0 | CM22: =+Sheet3!CM19/Sheet3!$F$1 -> 0 | CN22: =+Sheet3!CN19/Sheet3!$F$1 -> 0 | CO22: =+Sheet3!CO19/Sheet3!$F$1 -> 0 | CP22: =+Sheet3!CP19/Sheet3!$F$1 -> 0 | CQ22: =+Sheet3!CQ19/Sheet3!$F$1 -> 0 | CR22: =+Sheet3!CR19/Sheet3!$F$1 -> 0 | CS22: =+Sheet3!CS19/Sheet3!$F$1 -> 0 | CT22: =+Sheet3!CT19/Sheet3!$F$1 -> 0 | CU22: =+Sheet3!CU19/Sheet3!$F$1 -> 0 | CV22: =+Sheet3!CV19/Sheet3!$F$1 -> 0 | CW22: =+Sheet3!CW19/Sheet3!$F$1 -> 0 | CX22: =+Sheet3!CX19/Sheet3!$F$1 -> 0 | CY22: =+Sheet3!CY19/Sheet3!$F$1 -> 0 | CZ22: =+Sheet3!CZ19/Sheet3!$F$1 -> 0 | DA22: =+Sheet3!DA19/Sheet3!$F$1 -> 0 | DB22: =+Sheet3!DB19/Sheet3!$F$1 -> 0 | DC22: =+Sheet3!DC19/Sheet3!$F$1 -> 0 | DD22: =+Sheet3!DD19/Sheet3!$F$1 -> 0 | DE22: =+Sheet3!DE19/Sheet3!$F$1 -> 0 | DF22: =+Sheet3!DF19/Sheet3!$F$1 -> 0 | DG22: =+Sheet3!DG19/Sheet3!$F$1 -> 0 | DH22: =+Sheet3!DH19/Sheet3!$F$1 -> 0 | DI22: =+Sheet3!DI19/Sheet3!$F$1 -> 0 | DJ22: =+Sheet3!DJ19/Sheet3!$F$1 -> 0 | DK22: =+Sheet3!DK19/Sheet3!$F$1 -> 0 | DL22: =+Sheet3!DL19/Sheet3!$F$1 -> 0 | DM22: 0
B23: 16G | C23: Viseu Dão Lafões | D23: =+Sheet3!D20/Sheet3!$F$1 -> 0 | E23: =+Sheet3!E20/Sheet3!$F$1 -> 0.3325 | F23: =+Sheet3!F20/Sheet3!$F$1 -> 0 | G23: =+Sheet3!G20/Sheet3!$F$1 -> 0 | H23: =+Sheet3!H20/Sheet3!$F$1 -> 0 | I23: =+Sheet3!I20/Sheet3!$F$1 -> 0 | J23: =+Sheet3!J20/Sheet3!$F$1 -> 0 | K23: =+Sheet3!K20/Sheet3!$F$1 -> 0 | L23: =+Sheet3!L20/Sheet3!$F$1 -> 0 | M23: =+Sheet3!M20/Sheet3!$F$1 -> 0 | N23: =+Sheet3!N20/Sheet3!$F$1 -> 0 | O23: =+Sheet3!O20/Sheet3!$F$1 -> 0 | P23: =+Sheet3!P20/Sheet3!$F$1 -> 0 | Q23: =+Sheet3!Q20/Sheet3!$F$1 -> 0 | R23: =+Sheet3!R20/Sheet3!$F$1 -> 0 | S23: =+Sheet3!S20/Sheet3!$F$1 -> 0 | T23: =+Sheet3!T20/Sheet3!$F$1 -> 0 | U23: =+Sheet3!U20/Sheet3!$F$1 -> 0 | V23: =+Sheet3!V20/Sheet3!$F$1 -> 0 | W23: =+Sheet3!W20/Sheet3!$F$1 -> 0 | X23: =+Sheet3!X20/Sheet3!$F$1 -> 0 | Y23: =+Sheet3!Y20/Sheet3!$F$1 -> 0 | Z23: =+Sheet3!Z20/Sheet3!$F$1 -> 0 | AA23: =+Sheet3!AA20/Sheet3!$F$1 -> 0 | AB23: =+Sheet3!AB20/Sheet3!$F$1 -> 0 | AC23: =+Sheet3!AC20/Sheet3!$F$1 -> 0 | AD23: =+Sheet3!AD20/Sheet3!$F$1 -> 0 | AE23: =+Sheet3!AE20/Sheet3!$F$1 -> 0 | AF23: =+Sheet3!AF20/Sheet3!$F$1 -> 0 | AG23: =+Sheet3!AG20/Sheet3!$F$1 -> 0 | AH23: =+Sheet3!AH20/Sheet3!$F$1 -> 0 | AI23: =+Sheet3!AI20/Sheet3!$F$1 -> 0 | AJ23: =+Sheet3!AJ20/Sheet3!$F$1 -> 0 | AK23: =+Sheet3!AK20/Sheet3!$F$1 -> 0 | AL23: =+Sheet3!AL20/Sheet3!$F$1 -> 0 | AM23: =+Sheet3!AM20/Sheet3!$F$1 -> 0 | AN23: =+Sheet3!AN20/Sheet3!$F$1 -> 0 | AO23: =+Sheet3!AO20/Sheet3!$F$1 -> 0 | AP23: =+Sheet3!AP20/Sheet3!$F$1 -> 0 | AQ23: =+Sheet3!AQ20/Sheet3!$F$1 -> 0 | AR23: =+Sheet3!AR20/Sheet3!$F$1 -> 0 | AS23: =+Sheet3!AS20/Sheet3!$F$1 -> 0 | AT23: =+Sheet3!AT20/Sheet3!$F$1 -> 0 | AU23: =+Sheet3!AU20/Sheet3!$F$1 -> 0 | AV23: =+Sheet3!AV20/Sheet3!$F$1 -> 0 | AW23: =+Sheet3!AW20/Sheet3!$F$1 -> 0 | AX23: =+Sheet3!AX20/Sheet3!$F$1 -> 0 | AY23: =+Sheet3!AY20/Sheet3!$F$1 -> 0 | AZ23: =+Sheet3!AZ20/Sheet3!$F$1 -> 0 | BA23: =+Sheet3!BA20/Sheet3!$F$1 -> 0 | BB23: =+Sheet3!BB20/Sheet3!$F$1 -> 0 | BC23: =+Sheet3!BC20/Sheet3!$F$1 -> 0 | BD23: =+Sheet3!BD20/Sheet3!$F$1 -> 0 | BE23: =+Sheet3!BE20/Sheet3!$F$1 -> 0 | BF23: =+Sheet3!BF20/Sheet3!$F$1 -> 0 | BG23: =+Sheet3!BG20/Sheet3!$F$1 -> 0 | BH23: =+Sheet3!BH20/Sheet3!$F$1 -> 0.7 | BI23: =+Sheet3!BI20/Sheet3!$F$1 -> 0 | BJ23: =+Sheet3!BJ20/Sheet3!$F$1 -> 0 | BK23: =+Sheet3!BK20/Sheet3!$F$1 -> 0 | BL23: =+Sheet3!BL20/Sheet3!$F$1 -> 0 | BM23: =+Sheet3!BM20/Sheet3!$F$1 -> 0.7 | BN23: =+Sheet3!BN20/Sheet3!$F$1 -> 1.27796 | BO23: =+Sheet3!BO20/Sheet3!$F$1 -> 0 | BP23: =+Sheet3!BP20/Sheet3!$F$1 -> 0 | BQ23: =+Sheet3!BQ20/Sheet3!$F$1 -> 0.35 | BR23: =+Sheet3!BR20/Sheet3!$F$1 -> 6.51824 | BS23: =+Sheet3!BS20/Sheet3!$F$1 -> 1.61774 | BT23: =+Sheet3!BT20/Sheet3!$F$1 -> 0.7 | BU23: =+Sheet3!BU20/Sheet3!$F$1 -> 0 | BV23: =+Sheet3!BV20/Sheet3!$F$1 -> 0.35 | BW23: =+Sheet3!BW20/Sheet3!$F$1 -> 2.0965 | BX23: =+Sheet3!BX20/Sheet3!$F$1 -> 0 | BY23: =+Sheet3!BY20/Sheet3!$F$1 -> 0 | BZ23: =+Sheet3!BZ20/Sheet3!$F$1 -> 0 | CA23: =+Sheet3!CA20/Sheet3!$F$1 -> 0 | CB23: =+Sheet3!CB20/Sheet3!$F$1 -> 0 | CC23: =+Sheet3!CC20/Sheet3!$F$1 -> 0 | CD23: =+Sheet3!CD20/Sheet3!$F$1 -> 0 | CE23: =+Sheet3!CE20/Sheet3!$F$1 -> 0 | CF23: =+Sheet3!CF20/Sheet3!$F$1 -> 0 | CG23: =+Sheet3!CG20/Sheet3!$F$1 -> 0 | CH23: =+Sheet3!CH20/Sheet3!$F$1 -> 0 | CI23: =+Sheet3!CI20/Sheet3!$F$1 -> 0 | CJ23: =+Sheet3!CJ20/Sheet3!$F$1 -> 0 | CK23: =+Sheet3!CK20/Sheet3!$F$1 -> 0 | CL23: =+Sheet3!CL20/Sheet3!$F$1 -> 0 | CM23: =+Sheet3!CM20/Sheet3!$F$1 -> 0 | CN23: =+Sheet3!CN20/Sheet3!$F$1 -> 0 | CO23: =+Sheet3!CO20/Sheet3!$F$1 -> 0 | CP23: =+Sheet3!CP20/Sheet3!$F$1 -> 0.3325 | CQ23: =+Sheet3!CQ20/Sheet3!$F$1 -> 0 | CR23: =+Sheet3!CR20/Sheet3!$F$1 -> 0 | CS23: =+Sheet3!CS20/Sheet3!$F$1 -> 0 | CT23: =+Sheet3!CT20/Sheet3!$F$1 -> 0 | CU23: =+Sheet3!CU20/Sheet3!$F$1 -> 0 | CV23: =+Sheet3!CV20/Sheet3!$F$1 -> 0 | CW23: =+Sheet3!CW20/Sheet3!$F$1 -> 0 | CX23: =+Sheet3!CX20/Sheet3!$F$1 -> 0 | CY23: =+Sheet3!CY20/Sheet3!$F$1 -> 0 | CZ23: =+Sheet3!CZ20/Sheet3!$F$1 -> 0 | DA23: =+Sheet3!DA20/Sheet3!$F$1 -> 0.7 | DB23: =+Sheet3!DB20/Sheet3!$F$1 -> 1.97796 | DC23: =+Sheet3!DC20/Sheet3!$F$1 -> 9.18598 | DD23: =+Sheet3!DD20/Sheet3!$F$1 -> 2.4465 | DE23: =+Sheet3!DE20/Sheet3!$F$1 -> 0 | DF23: =+Sheet3!DF20/Sheet3!$F$1 -> 0 | DG23: =+Sheet3!DG20/Sheet3!$F$1 -> 0 | DH23: =+Sheet3!DH20/Sheet3!$F$1 -> 0.7 | DI23: =+Sheet3!DI20/Sheet3!$F$1 -> 10.34724 | DJ23: =+Sheet3!DJ20/Sheet3!$F$1 -> 2.8957 | DK23: =+Sheet3!DK20/Sheet3!$F$1 -> 0.7 | DL23: =+Sheet3!DL20/Sheet3!$F$1 -> 0 | DM23: 14.64294
B24: 16H | C24: Beira Baixa | D24: =+Sheet3!D21/Sheet3!$F$1 -> 0 | E24: =+Sheet3!E21/Sheet3!$F$1 -> 0 | F24: =+Sheet3!F21/Sheet3!$F$1 -> 0 | G24: =+Sheet3!G21/Sheet3!$F$1 -> 0 | H24: =+Sheet3!H21/Sheet3!$F$1 -> 0 | I24: =+Sheet3!I21/Sheet3!$F$1 -> 0 | J24: =+Sheet3!J21/Sheet3!$F$1 -> 0 | K24: =+Sheet3!K21/Sheet3!$F$1 -> 0 | L24: =+Sheet3!L21/Sheet3!$F$1 -> 0 | M24: =+Sheet3!M21/Sheet3!$F$1 -> 0 | N24: =+Sheet3!N21/Sheet3!$F$1 -> 0 | O24: =+Sheet3!O21/Sheet3!$F$1 -> 0 | P24: =+Sheet3!P21/Sheet3!$F$1 -> 0 | Q24: =+Sheet3!Q21/Sheet3!$F$1 -> 0 | R24: =+Sheet3!R21/Sheet3!$F$1 -> 0 | S24: =+Sheet3!S21/Sheet3!$F$1 -> 0 | T24: =+Sheet3!T21/Sheet3!$F$1 -> 0 | U24: =+Sheet3!U21/Sheet3!$F$1 -> 0 | V24: =+Sheet3!V21/Sheet3!$F$1 -> 0 | W24: =+Sheet3!W21/Sheet3!$F$1 -> 0 | X24: =+Sheet3!X21/Sheet3!$F$1 -> 0 | Y24: =+Sheet3!Y21/Sheet3!$F$1 -> 0 | Z24: =+Sheet3!Z21/Sheet3!$F$1 -> 0 | AA24: =+Sheet3!AA21/Sheet3!$F$1 -> 0 | AB24: =+Sheet3!AB21/Sheet3!$F$1 -> 0 | AC24: =+Sheet3!AC21/Sheet3!$F$1 -> 0 | AD24: =+Sheet3!AD21/Sheet3!$F$1 -> 0 | AE24: =+Sheet3!AE21/Sheet3!$F$1 -> 0 | AF24: =+Sheet3!AF21/Sheet3!$F$1 -> 0 | AG24: =+Sheet3!AG21/Sheet3!$F$1 -> 0 | AH24: =+Sheet3!AH21/Sheet3!$F$1 -> 0 | AI24: =+Sheet3!AI21/Sheet3!$F$1 -> 0 | AJ24: =+Sheet3!AJ21/Sheet3!$F$1 -> 0 | AK24: =+Sheet3!AK21/Sheet3!$F$1 -> 0 | AL24: =+Sheet3!AL21/Sheet3!$F$1 -> 0 | AM24: =+Sheet3!AM21/Sheet3!$F$1 -> 0 | AN24: =+Sheet3!AN21/Sheet3!$F$1 -> 0 | AO24: =+Sheet3!AO21/Sheet3!$F$1 -> 0 | AP24: =+Sheet3!AP21/Sheet3!$F$1 -> 0 | AQ24: =+Sheet3!AQ21/Sheet3!$F$1 -> 0 | AR24: =+Sheet3!AR21/Sheet3!$F$1 -> 0 | AS24: =+Sheet3!AS21/Sheet3!$F$1 -> 0 | AT24: =+Sheet3!AT21/Sheet3!$F$1 -> 0 | AU24: =+Sheet3!AU21/Sheet3!$F$1 -> 0 | AV24: =+Sheet3!AV21/Sheet3!$F$1 -> 0 | AW24: =+Sheet3!AW21/Sheet3!$F$1 -> 0 | AX24: =+Sheet3!AX21/Sheet3!$F$1 -> 0 | AY24: =+Sheet3!AY21/Sheet3!$F$1 -> 0 | AZ24: =+Sheet3!AZ21/Sheet3!$F$1 -> 0 | BA24: =+Sheet3!BA21/Sheet3!$F$1 -> 0 | BB24: =+Sheet3!BB21/Sheet3!$F$1 -> 0 | BC24: =+Sheet3!BC21/Sheet3!$F$1 -> 0 | BD24: =+Sheet3!BD21/Sheet3!$F$1 -> 0 | BE24: =+Sheet3!BE21/Sheet3!$F$1 -> 0 | BF24: =+Sheet3!BF21/Sheet3!$F$1 -> 0 | BG24: =+Sheet3!BG21/Sheet3!$F$1 -> 0 | BH24: =+Sheet3!BH21/Sheet3!$F$1 -> 0 | BI24: =+Sheet3!BI21/Sheet3!$F$1 -> 0 | BJ24: =+Sheet3!BJ21/Sheet3!$F$1 -> 0 | BK24: =+Sheet3!BK21/Sheet3!$F$1 -> 0 | BL24: =+Sheet3!BL21/Sheet3!$F$1 -> 0 | BM24: =+Sheet3!BM21/Sheet3!$F$1 -> 0 | BN24: =+Sheet3!BN21/Sheet3!$F$1 -> 0 | BO24: =+Sheet3!BO21/Sheet3!$F$1 -> 0 | BP24: =+Sheet3!BP21/Sheet3!$F$1 -> 0 | BQ24: =+Sheet3!BQ21/Sheet3!$F$1 -> 0 | BR24: =+Sheet3!BR21/Sheet3!$F$1 -> 0 | BS24: =+Sheet3!BS21/Sheet3!$F$1 -> 0.51275 | BT24: =+Sheet3!BT21/Sheet3!$F$1 -> 0 | BU24: =+Sheet3!BU21/Sheet3!$F$1 -> 0 | BV24: =+Sheet3!BV21/Sheet3!$F$1 -> 0 | BW24: =+Sheet3!BW21/Sheet3!$F$1 -> 0 | BX24: =+Sheet3!BX21/Sheet3!$F$1 -> 0 | BY24: =+Sheet3!BY21/Sheet3!$F$1 -> 0 | BZ24: =+Sheet3!BZ21/Sheet3!$F$1 -> 0 | CA24: =+Sheet3!CA21/Sheet3!$F$1 -> 0 | CB24: =+Sheet3!CB21/Sheet3!$F$1 -> 0 | CC24: =+Sheet3!CC21/Sheet3!$F$1 -> 0 | CD24: =+Sheet3!CD21/Sheet3!$F$1 -> 0 | CE24: =+Sheet3!CE21/Sheet3!$F$1 -> 0 | CF24: =+Sheet3!CF21/Sheet3!$F$1 -> 0 | CG24: =+Sheet3!CG21/Sheet3!$F$1 -> 0 | CH24: =+Sheet3!CH21/Sheet3!$F$1 -> 0 | CI24: =+Sheet3!CI21/Sheet3!$F$1 -> 0 | CJ24: =+Sheet3!CJ21/Sheet3!$F$1 -> 0 | CK24: =+Sheet3!CK21/Sheet3!$F$1 -> 0 | CL24: =+Sheet3!CL21/Sheet3!$F$1 -> 0 | CM24: =+Sheet3!CM21/Sheet3!$F$1 -> 0 | CN24: =+Sheet3!CN21/Sheet3!$F$1 -> 0 | CO24: =+Sheet3!CO21/Sheet3!$F$1 -> 0 | CP24: =+Sheet3!CP21/Sheet3!$F$1 -> 0 | CQ24: =+Sheet3!CQ21/Sheet3!$F$1 -> 0 | CR24: =+Sheet3!CR21/Sheet3!$F$1 -> 0 | CS24: =+Sheet3!CS21/Sheet3!$F$1 -> 0 | CT24: =+Sheet3!CT21/Sheet3!$F$1 -> 0 | CU24: =+Sheet3!CU21/Sheet3!$F$1 -> 0 | CV24: =+Sheet3!CV21/Sheet3!$F$1 -> 0 | CW24: =+Sheet3!CW21/Sheet3!$F$1 -> 0 | CX24: =+Sheet3!CX21/Sheet3!$F$1 -> 0 | CY24: =+Sheet3!CY21/Sheet3!$F$1 -> 0 | CZ24: =+Sheet3!CZ21/Sheet3!$F$1 -> 0 | DA24: =+Sheet3!DA21/Sheet3!$F$1 -> 0 | DB24: =+Sheet3!DB21/Sheet3!$F$1 -> 0 | DC24: =+Sheet3!DC21/Sheet3!$F$1 -> 0.51275 | DD24: =+Sheet3!DD21/Sheet3!$F$1 -> 0 | DE24: =+Sheet3!DE21/Sheet3!$F$1 -> 0 | DF24: =+Sheet3!DF21/Sheet3!$F$1 -> 0 | DG24: =+Sheet3!DG21/Sheet3!$F$1 -> 0 | DH24: =+Sheet3!DH21/Sheet3!$F$1 -> 0 | DI24: =+Sheet3!DI21/Sheet3!$F$1 -> 0 | DJ24: =+Sheet3!DJ21/Sheet3!$F$1 -> 0.51275 | DK24: =+Sheet3!DK21/Sheet3!$F$1 -> 0 | DL24: =+Sheet3!DL21/Sheet3!$F$1 -> 0 | DM24: 0.51275
B25: 16I | C25: Médio Tejo | D25: =+Sheet3!D22/Sheet3!$F$1 -> 0 | E25: =+Sheet3!E22/Sheet3!$F$1 -> 0 | F25: =+Sheet3!F22/Sheet3!$F$1 -> 0 | G25: =+Sheet3!G22/Sheet3!$F$1 -> 0 | H25: =+Sheet3!H22/Sheet3!$F$1 -> 0 | I25: =+Sheet3!I22/Sheet3!$F$1 -> 0 | J25: =+Sheet3!J22/Sheet3!$F$1 -> 0 | K25: =+Sheet3!K22/Sheet3!$F$1 -> 0 | L25: =+Sheet3!L22/Sheet3!$F$1 -> 0 | M25: =+Sheet3!M22/Sheet3!$F$1 -> 0 | N25: =+Sheet3!N22/Sheet3!$F$1 -> 0 | O25: =+Sheet3!O22/Sheet3!$F$1 -> 0 | P25: =+Sheet3!P22/Sheet3!$F$1 -> 0 | Q25: =+Sheet3!Q22/Sheet3!$F$1 -> 0 | R25: =+Sheet3!R22/Sheet3!$F$1 -> 0 | S25: =+Sheet3!S22/Sheet3!$F$1 -> 0 | T25: =+Sheet3!T22/Sheet3!$F$1 -> 0 | U25: =+Sheet3!U22/Sheet3!$F$1 -> 0 | V25: =+Sheet3!V22/Sheet3!$F$1 -> 0 | W25: =+Sheet3!W22/Sheet3!$F$1 -> 0 | X25: =+Sheet3!X22/Sheet3!$F$1 -> 0 | Y25: =+Sheet3!Y22/Sheet3!$F$1 -> 0 | Z25: =+Sheet3!Z22/Sheet3!$F$1 -> 0 | AA25: =+Sheet3!AA22/Sheet3!$F$1 -> 0 | AB25: =+Sheet3!AB22/Sheet3!$F$1 -> 0 | AC25: =+Sheet3!AC22/Sheet3!$F$1 -> 0 | AD25: =+Sheet3!AD22/Sheet3!$F$1 -> 0 | AE25: =+Sheet3!AE22/Sheet3!$F$1 -> 0 | AF25: =+Sheet3!AF22/Sheet3!$F$1 -> 0 | AG25: =+Sheet3!AG22/Sheet3!$F$1 -> 0 | AH25: =+Sheet3!AH22/Sheet3!$F$1 -> 0 | AI25: =+Sheet3!AI22/Sheet3!$F$1 -> 0 | AJ25: =+Sheet3!AJ22/Sheet3!$F$1 -> 0 | AK25: =+Sheet3!AK22/Sheet3!$F$1 -> 0 | AL25: =+Sheet3!AL22/Sheet3!$F$1 -> 0 | AM25: =+Sheet3!AM22/Sheet3!$F$1 -> 0 | AN25: =+Sheet3!AN22/Sheet3!$F$1 -> 0 | AO25: =+Sheet3!AO22/Sheet3!$F$1 -> 0 | AP25: =+Sheet3!AP22/Sheet3!$F$1 -> 0 | AQ25: =+Sheet3!AQ22/Sheet3!$F$1 -> 0 | AR25: =+Sheet3!AR22/Sheet3!$F$1 -> 0 | AS25: =+Sheet3!AS22/Sheet3!$F$1 -> 0 | AT25: =+Sheet3!AT22/Sheet3!$F$1 -> 0 | AU25: =+Sheet3!AU22/Sheet3!$F$1 -> 0 | AV25: =+Sheet3!AV22/Sheet3!$F$1 -> 0 | AW25: =+Sheet3!AW22/Sheet3!$F$1 -> 0 | AX25: =+Sheet3!AX22/Sheet3!$F$1 -> 0 | AY25: =+Sheet3!AY22/Sheet3!$F$1 -> 0 | AZ25: =+Sheet3!AZ22/Sheet3!$F$1 -> 0 | BA25: =+Sheet3!BA22/Sheet3!$F$1 -> 0 | BB25: =+Sheet3!BB22/Sheet3!$F$1 -> 0 | BC25: =+Sheet3!BC22/Sheet3!$F$1 -> 0 | BD25: =+Sheet3!BD22/Sheet3!$F$1 -> 0 | BE25: =+Sheet3!BE22/Sheet3!$F$1 -> 0 | BF25: =+Sheet3!BF22/Sheet3!$F$1 -> 0 | BG25: =+Sheet3!BG22/Sheet3!$F$1 -> 0 | BH25: =+Sheet3!BH22/Sheet3!$F$1 -> 0 | BI25: =+Sheet3!BI22/Sheet3!$F$1 -> 0 | BJ25: =+Sheet3!BJ22/Sheet3!$F$1 -> 0 | BK25: =+Sheet3!BK22/Sheet3!$F$1 -> 0 | BL25: =+Sheet3!BL22/Sheet3!$F$1 -> 0 | BM25: =+Sheet3!BM22/Sheet3!$F$1 -> 0 | BN25: =+Sheet3!BN22/Sheet3!$F$1 -> 0 | BO25: =+Sheet3!BO22/Sheet3!$F$1 -> 0 | BP25: =+Sheet3!BP22/Sheet3!$F$1 -> 0 | BQ25: =+Sheet3!BQ22/Sheet3!$F$1 -> 0 | BR25: =+Sheet3!BR22/Sheet3!$F$1 -> 0 | BS25: =+Sheet3!BS22/Sheet3!$F$1 -> 0 | BT25: =+Sheet3!BT22/Sheet3!$F$1 -> 0 | BU25: =+Sheet3!BU22/Sheet3!$F$1 -> 0 | BV25: =+Sheet3!BV22/Sheet3!$F$1 -> 0 | BW25: =+Sheet3!BW22/Sheet3!$F$1 -> 0 | BX25: =+Sheet3!BX22/Sheet3!$F$1 -> 0 | BY25: =+Sheet3!BY22/Sheet3!$F$1 -> 0 | BZ25: =+Sheet3!BZ22/Sheet3!$F$1 -> 0 | CA25: =+Sheet3!CA22/Sheet3!$F$1 -> 0 | CB25: =+Sheet3!CB22/Sheet3!$F$1 -> 0 | CC25: =+Sheet3!CC22/Sheet3!$F$1 -> 0 | CD25: =+Sheet3!CD22/Sheet3!$F$1 -> 0 | CE25: =+Sheet3!CE22/Sheet3!$F$1 -> 0 | CF25: =+Sheet3!CF22/Sheet3!$F$1 -> 0 | CG25: =+Sheet3!CG22/Sheet3!$F$1 -> 0 | CH25: =+Sheet3!CH22/Sheet3!$F$1 -> 0 | CI25: =+Sheet3!CI22/Sheet3!$F$1 -> 0 | CJ25: =+Sheet3!CJ22/Sheet3!$F$1 -> 0 | CK25: =+Sheet3!CK22/Sheet3!$F$1 -> 0 | CL25: =+Sheet3!CL22/Sheet3!$F$1 -> 0 | CM25: =+Sheet3!CM22/Sheet3!$F$1 -> 0 | CN25: =+Sheet3!CN22/Sheet3!$F$1 -> 0 | CO25: =+Sheet3!CO22/Sheet3!$F$1 -> 0 | CP25: =+Sheet3!CP22/Sheet3!$F$1 -> 0 | CQ25: =+Sheet3!CQ22/Sheet3!$F$1 -> 0 | CR25: =+Sheet3!CR22/Sheet3!$F$1 -> 0 | CS25: =+Sheet3!CS22/Sheet3!$F$1 -> 0 | CT25: =+Sheet3!CT22/Sheet3!$F$1 -> 0 | CU25: =+Sheet3!CU22/Sheet3!$F$1 -> 0 | CV25: =+Sheet3!CV22/Sheet3!$F$1 -> 0 | CW25: =+Sheet3!CW22/Sheet3!$F$1 -> 0 | CX25: =+Sheet3!CX22/Sheet3!$F$1 -> 0 | CY25: =+Sheet3!CY22/Sheet3!$F$1 -> 0 | CZ25: =+Sheet3!CZ22/Sheet3!$F$1 -> 0 | DA25: =+Sheet3!DA22/Sheet3!$F$1 -> 0 | DB25: =+Sheet3!DB22/Sheet3!$F$1 -> 0 | DC25: =+Sheet3!DC22/Sheet3!$F$1 -> 0 | DD25: =+Sheet3!DD22/Sheet3!$F$1 -> 0 | DE25: =+Sheet3!DE22/Sheet3!$F$1 -> 0 | DF25: =+Sheet3!DF22/Sheet3!$F$1 -> 0 | DG25: =+Sheet3!DG22/Sheet3!$F$1 -> 0 | DH25: =+Sheet3!DH22/Sheet3!$F$1 -> 0 | DI25: =+Sheet3!DI22/Sheet3!$F$1 -> 0 | DJ25: =+Sheet3!DJ22/Sheet3!$F$1 -> 0 | DK25: =+Sheet3!DK22/Sheet3!$F$1 -> 0 | DL25: =+Sheet3!DL22/Sheet3!$F$1 -> 0 | DM25: 0
B26: 16J | C26: Beiras e Serra da Estrela | D26: =+Sheet3!D23/Sheet3!$F$1 -> 0 | E26: =+Sheet3!E23/Sheet3!$F$1 -> 0 | F26: =+Sheet3!F23/Sheet3!$F$1 -> 0 | G26: =+Sheet3!G23/Sheet3!$F$1 -> 0 | H26: =+Sheet3!H23/Sheet3!$F$1 -> 0 | I26: =+Sheet3!I23/Sheet3!$F$1 -> 0 | J26: =+Sheet3!J23/Sheet3!$F$1 -> 0 | K26: =+Sheet3!K23/Sheet3!$F$1 -> 0 | L26: =+Sheet3!L23/Sheet3!$F$1 -> 0 | M26: =+Sheet3!M23/Sheet3!$F$1 -> 0 | N26: =+Sheet3!N23/Sheet3!$F$1 -> 0 | O26: =+Sheet3!O23/Sheet3!$F$1 -> 0 | P26: =+Sheet3!P23/Sheet3!$F$1 -> 0 | Q26: =+Sheet3!Q23/Sheet3!$F$1 -> 0 | R26: =+Sheet3!R23/Sheet3!$F$1 -> 0 | S26: =+Sheet3!S23/Sheet3!$F$1 -> 0 | T26: =+Sheet3!T23/Sheet3!$F$1 -> 0 | U26: =+Sheet3!U23/Sheet3!$F$1 -> 0 | V26: =+Sheet3!V23/Sheet3!$F$1 -> 0 | W26: =+Sheet3!W23/Sheet3!$F$1 -> 0 | X26: =+Sheet3!X23/Sheet3!$F$1 -> 0 | Y26: =+Sheet3!Y23/Sheet3!$F$1 -> 0 | Z26: =+Sheet3!Z23/Sheet3!$F$1 -> 0 | AA26: =+Sheet3!AA23/Sheet3!$F$1 -> 0 | AB26: =+Sheet3!AB23/Sheet3!$F$1 -> 0 | AC26: =+Sheet3!AC23/Sheet3!$F$1 -> 0 | AD26: =+Sheet3!AD23/Sheet3!$F$1 -> 0 | AE26: =+Sheet3!AE23/Sheet3!$F$1 -> 0 | AF26: =+Sheet3!AF23/Sheet3!$F$1 -> 0 | AG26: =+Sheet3!AG23/Sheet3!$F$1 -> 0 | AH26: =+Sheet3!AH23/Sheet3!$F$1 -> 0 | AI26: =+Sheet3!AI23/Sheet3!$F$1 -> 0 | AJ26: =+Sheet3!AJ23/Sheet3!$F$1 -> 0 | AK26: =+Sheet3!AK23/Sheet3!$F$1 -> 0 | AL26: =+Sheet3!AL23/Sheet3!$F$1 -> 0 | AM26: =+Sheet3!AM23/Sheet3!$F$1 -> 0 | AN26: =+Sheet3!AN23/Sheet3!$F$1 -> 0 | AO26: =+Sheet3!AO23/Sheet3!$F$1 -> 1.4 | AP26: =+Sheet3!AP23/Sheet3!$F$1 -> 0 | AQ26: =+Sheet3!AQ23/Sheet3!$F$1 -> 0 | AR26: =+Sheet3!AR23/Sheet3!$F$1 -> 0 | AS26: =+Sheet3!AS23/Sheet3!$F$1 -> 0 | AT26: =+Sheet3!AT23/Sheet3!$F$1 -> 0 | AU26: =+Sheet3!AU23/Sheet3!$F$1 -> 0 | AV26: =+Sheet3!AV23/Sheet3!$F$1 -> 0 | AW26: =+Sheet3!AW23/Sheet3!$F$1 -> 0 | AX26: =+Sheet3!AX23/Sheet3!$F$1 -> 0 | AY26: =+Sheet3!AY23/Sheet3!$F$1 -> 1.05 | AZ26: =+Sheet3!AZ23/Sheet3!$F$1 -> 0 | BA26: =+Sheet3!BA23/Sheet3!$F$1 -> 0 | BB26: =+Sheet3!BB23/Sheet3!$F$1 -> 0 | BC26: =+Sheet3!BC23/Sheet3!$F$1 -> 0.35 | BD26: =+Sheet3!BD23/Sheet3!$F$1 -> 7.532 | BE26: =+Sheet3!BE23/Sheet3!$F$1 -> 0 | BF26: =+Sheet3!BF23/Sheet3!$F$1 -> 0 | BG26: =+Sheet3!BG23/Sheet3!$F$1 -> 0.7 | BH26: =+Sheet3!BH23/Sheet3!$F$1 -> 11.0523 | BI26: =+Sheet3!BI23/Sheet3!$F$1 -> 31.45964 | BJ26: =+Sheet3!BJ23/Sheet3!$F$1 -> 0 | BK26: =+Sheet3!BK23/Sheet3!$F$1 -> 0 | BL26: =+Sheet3!BL23/Sheet3!$F$1 -> 0 | BM26: =+Sheet3!BM23/Sheet3!$F$1 -> 6.3 | BN26: =+Sheet3!BN23/Sheet3!$F$1 -> 66.094 | BO26: =+Sheet3!BO23/Sheet3!$F$1 -> 1.708 | BP26: =+Sheet3!BP23/Sheet3!$F$1 -> 0 | BQ26: =+Sheet3!BQ23/Sheet3!$F$1 -> 0.39743 | BR26: =+Sheet3!BR23/Sheet3!$F$1 -> 73.09422 | BS26: =+Sheet3!BS23/Sheet3!$F$1 -> 92.45981 | BT26: =+Sheet3!BT23/Sheet3!$F$1 -> 2.093 | BU26: =+Sheet3!BU23/Sheet3!$F$1 -> 0 | BV26: =+Sheet3!BV23/Sheet3!$F$1 -> 1.05 | BW26: =+Sheet3!BW23/Sheet3!$F$1 -> 9.4178 | BX26: =+Sheet3!BX23/Sheet3!$F$1 -> 17.115 | BY26: =+Sheet3!BY23/Sheet3!$F$1 -> 0.7 | BZ26: =+Sheet3!BZ23/Sheet3!$F$1 -> 0 | CA26: =+Sheet3!CA23/Sheet3!$F$1 -> 0 | CB26: =+Sheet3!CB23/Sheet3!$F$1 -> 0 | CC26: =+Sheet3!CC23/Sheet3!$F$1 -> 0 | CD26: =+Sheet3!CD23/Sheet3!$F$1 -> 0 | CE26: =+Sheet3!CE23/Sheet3!$F$1 -> 0 | CF26: =+Sheet3!CF23/Sheet3!$F$1 -> 0 | CG26: =+Sheet3!CG23/Sheet3!$F$1 -> 0 | CH26: =+Sheet3!CH23/Sheet3!$F$1 -> 0 | CI26: =+Sheet3!CI23/Sheet3!$F$1 -> 0 | CJ26: =+Sheet3!CJ23/Sheet3!$F$1 -> 0 | CK26: =+Sheet3!CK23/Sheet3!$F$1 -> 0 | CL26: =+Sheet3!CL23/Sheet3!$F$1 -> 0 | CM26: =+Sheet3!CM23/Sheet3!$F$1 -> 0 | CN26: =+Sheet3!CN23/Sheet3!$F$1 -> 0 | CO26: =+Sheet3!CO23/Sheet3!$F$1 -> 0 | CP26: =+Sheet3!CP23/Sheet3!$F$1 -> 0 | CQ26: =+Sheet3!CQ23/Sheet3!$F$1 -> 0 | CR26: =+Sheet3!CR23/Sheet3!$F$1 -> 0 | CS26: =+Sheet3!CS23/Sheet3!$F$1 -> 0 | CT26: =+Sheet3!CT23/Sheet3!$F$1 -> 0 | CU26: =+Sheet3!CU23/Sheet3!$F$1 -> 0 | CV26: =+Sheet3!CV23/Sheet3!$F$1 -> 0 | CW26: =+Sheet3!CW23/Sheet3!$F$1 -> 1.4 | CX26: =+Sheet3!CX23/Sheet3!$F$1 -> 0 | CY26: =+Sheet3!CY23/Sheet3!$F$1 -> 1.05 | CZ26: =+Sheet3!CZ23/Sheet3!$F$1 -> 7.882 | DA26: =+Sheet3!DA23/Sheet3!$F$1 -> 43.21194 | DB26: =+Sheet3!DB23/Sheet3!$F$1 -> 74.102 | DC26: =+Sheet3!DC23/Sheet3!$F$1 -> 168.04446 | DD26: =+Sheet3!DD23/Sheet3!$F$1 -> 28.2828 | DE26: =+Sheet3!DE23/Sheet3!$F$1 -> 0 | DF26: =+Sheet3!DF23/Sheet3!$F$1 -> 0 | DG26: =+Sheet3!DG23/Sheet3!$F$1 -> 0 | DH26: =+Sheet3!DH23/Sheet3!$F$1 -> 2.14743 | DI26: =+Sheet3!DI23/Sheet3!$F$1 -> 100.21432 | DJ26: =+Sheet3!DJ23/Sheet3!$F$1 -> 217.11045 | DK26: =+Sheet3!DK23/Sheet3!$F$1 -> 4.501 | DL26: =+Sheet3!DL23/Sheet3!$F$1 -> 0 | DM26: 323.9732
A27: AML | B27: 170 | C27: Área Metropolitana de Lisboa | D27: =+Sheet3!D24/Sheet3!$F$1 -> 0 | E27: =+Sheet3!E24/Sheet3!$F$1 -> 0 | F27: =+Sheet3!F24/Sheet3!$F$1 -> 0 | G27: =+Sheet3!G24/Sheet3!$F$1 -> 0 | H27: =+Sheet3!H24/Sheet3!$F$1 -> 0 | I27: =+Sheet3!I24/Sheet3!$F$1 -> 0 | J27: =+Sheet3!J24/Sheet3!$F$1 -> 0 | K27: =+Sheet3!K24/Sheet3!$F$1 -> 0 | L27: =+Sheet3!L24/Sheet3!$F$1 -> 0 | M27: =+Sheet3!M24/Sheet3!$F$1 -> 0 | N27: =+Sheet3!N24/Sheet3!$F$1 -> 0 | O27: =+Sheet3!O24/Sheet3!$F$1 -> 0 | P27: =+Sheet3!P24/Sheet3!$F$1 -> 0 | Q27: =+Sheet3!Q24/Sheet3!$F$1 -> 0 | R27: =+Sheet3!R24/Sheet3!$F$1 -> 0 | S27: =+Sheet3!S24/Sheet3!$F$1 -> 0 | T27: =+Sheet3!T24/Sheet3!$F$1 -> 0 | U27: =+Sheet3!U24/Sheet3!$F$1 -> 0 | V27: =+Sheet3!V24/Sheet3!$F$1 -> 0 | W27: =+Sheet3!W24/Sheet3!$F$1 -> 0 | X27: =+Sheet3!X24/Sheet3!$F$1 -> 0 | Y27: =+Sheet3!Y24/Sheet3!$F$1 -> 0 | Z27: =+Sheet3!Z24/Sheet3!$F$1 -> 0 | AA27: =+Sheet3!AA24/Sheet3!$F$1 -> 0 | AB27: =+Sheet3!AB24/Sheet3!$F$1 -> 0 | AC27: =+Sheet3!AC24/Sheet3!$F$1 -> 0 | AD27: =+Sheet3!AD24/Sheet3!$F$1 -> 0 | AE27: =+Sheet3!AE24/Sheet3!$F$1 -> 0 | AF27: =+Sheet3!AF24/Sheet3!$F$1 -> 0 | AG27: =+Sheet3!AG24/Sheet3!$F$1 -> 0 | AH27: =+Sheet3!AH24/Sheet3!$F$1 -> 0 | AI27: =+Sheet3!AI24/Sheet3!$F$1 -> 0 | AJ27: =+Sheet3!AJ24/Sheet3!$F$1 -> 0 | AK27: =+Sheet3!AK24/Sheet3!$F$1 -> 0 | AL27: =+Sheet3!AL24/Sheet3!$F$1 -> 0 | AM27: =+Sheet3!AM24/Sheet3!$F$1 -> 0 | AN27: =+Sheet3!AN24/Sheet3!$F$1 -> 0 | AO27: =+Sheet3!AO24/Sheet3!$F$1 -> 0 | AP27: =+Sheet3!AP24/Sheet3!$F$1 -> 0 | AQ27: =+Sheet3!AQ24/Sheet3!$F$1 -> 0 | AR27: =+Sheet3!AR24/Sheet3!$F$1 -> 0 | AS27: =+Sheet3!AS24/Sheet3!$F$1 -> 0 | AT27: =+Sheet3!AT24/Sheet3!$F$1 -> 0 | AU27: =+Sheet3!AU24/Sheet3!$F$1 -> 0 | AV27: =+Sheet3!AV24/Sheet3!$F$1 -> 0 | AW27: =+Sheet3!AW24/Sheet3!$F$1 -> 0 | AX27: =+Sheet3!AX24/Sheet3!$F$1 -> 0 | AY27: =+Sheet3!AY24/Sheet3!$F$1 -> 0 | AZ27: =+Sheet3!AZ24/Sheet3!$F$1 -> 0 | BA27: =+Sheet3!BA24/Sheet3!$F$1 -> 0 | BB27: =+Sheet3!BB24/Sheet3!$F$1 -> 0 | BC27: =+Sheet3!BC24/Sheet3!$F$1 -> 0 | BD27: =+Sheet3!BD24/Sheet3!$F$1 -> 0 | BE27: =+Sheet3!BE24/Sheet3!$F$1 -> 0 | BF27: =+Sheet3!BF24/Sheet3!$F$1 -> 0 | BG27: =+Sheet3!BG24/Sheet3!$F$1 -> 0 | BH27: =+Sheet3!BH24/Sheet3!$F$1 -> 0 | BI27: =+Sheet3!BI24/Sheet3!$F$1 -> 0 | BJ27: =+Sheet3!BJ24/Sheet3!$F$1 -> 0 | BK27: =+Sheet3!BK24/Sheet3!$F$1 -> 0 | BL27: =+Sheet3!BL24/Sheet3!$F$1 -> 0 | BM27: =+Sheet3!BM24/Sheet3!$F$1 -> 0 | BN27: =+Sheet3!BN24/Sheet3!$F$1 -> 0 | BO27: =+Sheet3!BO24/Sheet3!$F$1 -> 0 | BP27: =+Sheet3!BP24/Sheet3!$F$1 -> 0 | BQ27: =+Sheet3!BQ24/Sheet3!$F$1 -> 0 | BR27: =+Sheet3!BR24/Sheet3!$F$1 -> 0 | BS27: =+Sheet3!BS24/Sheet3!$F$1 -> 0 | BT27: =+Sheet3!BT24/Sheet3!$F$1 -> 0 | BU27: =+Sheet3!BU24/Sheet3!$F$1 -> 0 | BV27: =+Sheet3!BV24/Sheet3!$F$1 -> 0 | BW27: =+Sheet3!BW24/Sheet3!$F$1 -> 0 | BX27: =+Sheet3!BX24/Sheet3!$F$1 -> 0 | BY27: =+Sheet3!BY24/Sheet3!$F$1 -> 0 | BZ27: =+Sheet3!BZ24/Sheet3!$F$1 -> 0 | CA27: =+Sheet3!CA24/Sheet3!$F$1 -> 0 | CB27: =+Sheet3!CB24/Sheet3!$F$1 -> 0 | CC27: =+Sheet3!CC24/Sheet3!$F$1 -> 0 | CD27: =+Sheet3!CD24/Sheet3!$F$1 -> 0 | CE27: =+Sheet3!CE24/Sheet3!$F$1 -> 0 | CF27: =+Sheet3!CF24/Sheet3!$F$1 -> 0 | CG27: =+Sheet3!CG24/Sheet3!$F$1 -> 0 | CH27: =+Sheet3!CH24/Sheet3!$F$1 -> 0 | CI27: =+Sheet3!CI24/Sheet3!$F$1 -> 0 | CJ27: =+Sheet3!CJ24/Sheet3!$F$1 -> 0 | CK27: =+Sheet3!CK24/Sheet3!$F$1 -> 0 | CL27: =+Sheet3!CL24/Sheet3!$F$1 -> 0 | CM27: =+Sheet3!CM24/Sheet3!$F$1 -> 0 | CN27: =+Sheet3!CN24/Sheet3!$F$1 -> 0 | CO27: =+Sheet3!CO24/Sheet3!$F$1 -> 0 | CP27: =+Sheet3!CP24/Sheet3!$F$1 -> 0 | CQ27: =+Sheet3!CQ24/Sheet3!$F$1 -> 0 | CR27: =+Sheet3!CR24/Sheet3!$F$1 -> 0 | CS27: =+Sheet3!CS24/Sheet3!$F$1 -> 0 | CT27: =+Sheet3!CT24/Sheet3!$F$1 -> 0 | CU27: =+Sheet3!CU24/Sheet3!$F$1 -> 0 | CV27: =+Sheet3!CV24/Sheet3!$F$1 -> 0 | CW27: =+Sheet3!CW24/Sheet3!$F$1 -> 0 | CX27: =+Sheet3!CX24/Sheet3!$F$1 -> 0 | CY27: =+Sheet3!CY24/Sheet3!$F$1 -> 0 | CZ27: =+Sheet3!CZ24/Sheet3!$F$1 -> 0 | DA27: =+Sheet3!DA24/Sheet3!$F$1 -> 0 | DB27: =+Sheet3!DB24/Sheet3!$F$1 -> 0 | DC27: =+Sheet3!DC24/Sheet3!$F$1 -> 0 | DD27: =+Sheet3!DD24/Sheet3!$F$1 -> 0 | DE27: =+Sheet3!DE24/Sheet3!$F$1 -> 0 | DF27: =+Sheet3!DF24/Sheet3!$F$1 -> 0 | DG27: =+Sheet3!DG24/Sheet3!$F$1 -> 0 | DH27: =+Sheet3!DH24/Sheet3!$F$1 -> 0 | DI27: =+Sheet3!DI24/Sheet3!$F$1 -> 0 | DJ27: =+Sheet3!DJ24/Sheet3!$F$1 -> 0 | DK27: =+Sheet3!DK24/Sheet3!$F$1 -> 0 | DL27: =+Sheet3!DL24/Sheet3!$F$1 -> 0 | DM27: 0
A28: Alentejo | B28: 181 | C28: Alentejo Litoral | D28: =+Sheet3!D25/Sheet3!$F$1 -> 0 | E28: =+Sheet3!E25/Sheet3!$F$1 -> 0 | F28: =+Sheet3!F25/Sheet3!$F$1 -> 0 | G28: =+Sheet3!G25/Sheet3!$F$1 -> 0 | H28: =+Sheet3!H25/Sheet3!$F$1 -> 0 | I28: =+Sheet3!I25/Sheet3!$F$1 -> 0 | J28: =+Sheet3!J25/Sheet3!$F$1 -> 0 | K28: =+Sheet3!K25/Sheet3!$F$1 -> 0 | L28: =+Sheet3!L25/Sheet3!$F$1 -> 0 | M28: =+Sheet3!M25/Sheet3!$F$1 -> 0 | N28: =+Sheet3!N25/Sheet3!$F$1 -> 0 | O28: =+Sheet3!O25/Sheet3!$F$1 -> 0 | P28: =+Sheet3!P25/Sheet3!$F$1 -> 0 | Q28: =+Sheet3!Q25/Sheet3!$F$1 -> 0 | R28: =+Sheet3!R25/Sheet3!$F$1 -> 0 | S28: =+Sheet3!S25/Sheet3!$F$1 -> 0 | T28: =+Sheet3!T25/Sheet3!$F$1 -> 0 | U28: =+Sheet3!U25/Sheet3!$F$1 -> 0 | V28: =+Sheet3!V25/Sheet3!$F$1 -> 0 | W28: =+Sheet3!W25/Sheet3!$F$1 -> 0 | X28: =+Sheet3!X25/Sheet3!$F$1 -> 0 | Y28: =+Sheet3!Y25/Sheet3!$F$1 -> 0 | Z28: =+Sheet3!Z25/Sheet3!$F$1 -> 0 | AA28: =+Sheet3!AA25/Sheet3!$F$1 -> 0 | AB28: =+Sheet3!AB25/Sheet3!$F$1 -> 0 | AC28: =+Sheet3!AC25/Sheet3!$F$1 -> 0 | AD28: =+Sheet3!AD25/Sheet3!$F$1 -> 0 | AE28: =+Sheet3!AE25/Sheet3!$F$1 -> 0 | AF28: =+Sheet3!AF25/Sheet3!$F$1 -> 0 | AG28: =+Sheet3!AG25/Sheet3!$F$1 -> 0 | AH28: =+Sheet3!AH25/Sheet3!$F$1 -> 0 | AI28: =+Sheet3!AI25/Sheet3!$F$1 -> 0 | AJ28: =+Sheet3!AJ25/Sheet3!$F$1 -> 0 | AK28: =+Sheet3!AK25/Sheet3!$F$1 -> 0 | AL28: =+Sheet3!AL25/Sheet3!$F$1 -> 0 | AM28: =+Sheet3!AM25/Sheet3!$F$1 -> 0 | AN28: =+Sheet3!AN25/Sheet3!$F$1 -> 0 | AO28: =+Sheet3!AO25/Sheet3!$F$1 -> 0 | AP28: =+Sheet3!AP25/Sheet3!$F$1 -> 0 | AQ28: =+Sheet3!AQ25/Sheet3!$F$1 -> 0 | AR28: =+Sheet3!AR25/Sheet3!$F$1 -> 0 | AS28: =+Sheet3!AS25/Sheet3!$F$1 -> 0 | AT28: =+Sheet3!AT25/Sheet3!$F$1 -> 0 | AU28: =+Sheet3!AU25/Sheet3!$F$1 -> 0 | AV28: =+Sheet3!AV25/Sheet3!$F$1 -> 0 | AW28: =+Sheet3!AW25/Sheet3!$F$1 -> 0 | AX28: =+Sheet3!AX25/Sheet3!$F$1 -> 0 | AY28: =+Sheet3!AY25/Sheet3!$F$1 -> 0 | AZ28: =+Sheet3!AZ25/Sheet3!$F$1 -> 0 | BA28: =+Sheet3!BA25/Sheet3!$F$1 -> 0 | BB28: =+Sheet3!BB25/Sheet3!$F$1 -> 0 | BC28: =+Sheet3!BC25/Sheet3!$F$1 -> 0 | BD28: =+Sheet3!BD25/Sheet3!$F$1 -> 0 | BE28: =+Sheet3!BE25/Sheet3!$F$1 -> 0 | BF28: =+Sheet3!BF25/Sheet3!$F$1 -> 0 | BG28: =+Sheet3!BG25/Sheet3!$F$1 -> 0 | BH28: =+Sheet3!BH25/Sheet3!$F$1 -> 0 | BI28: =+Sheet3!BI25/Sheet3!$F$1 -> 0 | BJ28: =+Sheet3!BJ25/Sheet3!$F$1 -> 0 | BK28: =+Sheet3!BK25/Sheet3!$F$1 -> 0 | BL28: =+Sheet3!BL25/Sheet3!$F$1 -> 0 | BM28: =+Sheet3!BM25/Sheet3!$F$1 -> 0 | BN28: =+Sheet3!BN25/Sheet3!$F$1 -> 0.693 | BO28: =+Sheet3!BO25/Sheet3!$F$1 -> 0 | BP28: =+Sheet3!BP25/Sheet3!$F$1 -> 0 | BQ28: =+Sheet3!BQ25/Sheet3!$F$1 -> 0 | BR28: =+Sheet3!BR25/Sheet3!$F$1 -> 0 | BS28: =+Sheet3!BS25/Sheet3!$F$1 -> 0 | BT28: =+Sheet3!BT25/Sheet3!$F$1 -> 0 | BU28: =+Sheet3!BU25/Sheet3!$F$1 -> 0 | BV28: =+Sheet3!BV25/Sheet3!$F$1 -> 0 | BW28: =+Sheet3!BW25/Sheet3!$F$1 -> 0 | BX28: =+Sheet3!BX25/Sheet3!$F$1 -> 0 | BY28: =+Sheet3!BY25/Sheet3!$F$1 -> 0 | BZ28: =+Sheet3!BZ25/Sheet3!$F$1 -> 0 | CA28: =+Sheet3!CA25/Sheet3!$F$1 -> 0 | CB28: =+Sheet3!CB25/Sheet3!$F$1 -> 0 | CC28: =+Sheet3!CC25/Sheet3!$F$1 -> 0 | CD28: =+Sheet3!CD25/Sheet3!$F$1 -> 0 | CE28: =+Sheet3!CE25/Sheet3!$F$1 -> 0 | CF28: =+Sheet3!CF25/Sheet3!$F$1 -> 0 | CG28: =+Sheet3!CG25/Sheet3!$F$1 -> 0 | CH28: =+Sheet3!CH25/Sheet3!$F$1 -> 0 | CI28: =+Sheet3!CI25/Sheet3!$F$1 -> 0 | CJ28: =+Sheet3!CJ25/Sheet3!$F$1 -> 0 | CK28: =+Sheet3!CK25/Sheet3!$F$1 -> 0 | CL28: =+Sheet3!CL25/Sheet3!$F$1 -> 0 | CM28: =+Sheet3!CM25/Sheet3!$F$1 -> 0 | CN28: =+Sheet3!CN25/Sheet3!$F$1 -> 0 | CO28: =+Sheet3!CO25/Sheet3!$F$1 -> 0 | CP28: =+Sheet3!CP25/Sheet3!$F$1 -> 0 | CQ28: =+Sheet3!CQ25/Sheet3!$F$1 -> 0 | CR28: =+Sheet3!CR25/Sheet3!$F$1 -> 0 | CS28: =+Sheet3!CS25/Sheet3!$F$1 -> 0 | CT28: =+Sheet3!CT25/Sheet3!$F$1 -> 0 | CU28: =+Sheet3!CU25/Sheet3!$F$1 -> 0 | CV28: =+Sheet3!CV25/Sheet3!$F$1 -> 0 | CW28: =+Sheet3!CW25/Sheet3!$F$1 -> 0 | CX28: =+Sheet3!CX25/Sheet3!$F$1 -> 0 | CY28: =+Sheet3!CY25/Sheet3!$F$1 -> 0 | CZ28: =+Sheet3!CZ25/Sheet3!$F$1 -> 0 | DA28: =+Sheet3!DA25/Sheet3!$F$1 -> 0 | DB28: =+Sheet3!DB25/Sheet3!$F$1 -> 0.693 | DC28: =+Sheet3!DC25/Sheet3!$F$1 -> 0 | DD28: =+Sheet3!DD25/Sheet3!$F$1 -> 0 | DE28: =+Sheet3!DE25/Sheet3!$F$1 -> 0 | DF28: =+Sheet3!DF25/Sheet3!$F$1 -> 0 | DG28: =+Sheet3!DG25/Sheet3!$F$1 -> 0 | DH28: =+Sheet3!DH25/Sheet3!$F$1 -> 0 | DI28: =+Sheet3!DI25/Sheet3!$F$1 -> 0 | DJ28: =+Sheet3!DJ25/Sheet3!$F$1 -> 0.693 | DK28: =+Sheet3!DK25/Sheet3!$F$1 -> 0 | DL28: =+Sheet3!DL25/Sheet3!$F$1 -> 0 | DM28: 0.693
B29: 184 | C29: Baixo Alentejo | D29: =+Sheet3!D26/Sheet3!$F$1 -> 0 | E29: =+Sheet3!E26/Sheet3!$F$1 -> 0 | F29: =+Sheet3!F26/Sheet3!$F$1 -> 0 | G29: =+Sheet3!G26/Sheet3!$F$1 -> 0 | H29: =+Sheet3!H26/Sheet3!$F$1 -> 0 | I29: =+Sheet3!I26/Sheet3!$F$1 -> 0 | J29: =+Sheet3!J26/Sheet3!$F$1 -> 0 | K29: =+Sheet3!K26/Sheet3!$F$1 -> 0 | L29: =+Sheet3!L26/Sheet3!$F$1 -> 0 | M29: =+Sheet3!M26/Sheet3!$F$1 -> 0 | N29: =+Sheet3!N26/Sheet3!$F$1 -> 0 | O29: =+Sheet3!O26/Sheet3!$F$1 -> 0 | P29: =+Sheet3!P26/Sheet3!$F$1 -> 0 | Q29: =+Sheet3!Q26/Sheet3!$F$1 -> 0 | R29: =+Sheet3!R26/Sheet3!$F$1 -> 0 | S29: =+Sheet3!S26/Sheet3!$F$1 -> 0 | T29: =+Sheet3!T26/Sheet3!$F$1 -> 0 | U29: =+Sheet3!U26/Sheet3!$F$1 -> 0 | V29: =+Sheet3!V26/Sheet3!$F$1 -> 0 | W29: =+Sheet3!W26/Sheet3!$F$1 -> 0 | X29: =+Sheet3!X26/Sheet3!$F$1 -> 0 | Y29: =+Sheet3!Y26/Sheet3!$F$1 -> 0 | Z29: =+Sheet3!Z26/Sheet3!$F$1 -> 0 | AA29: =+Sheet3!AA26/Sheet3!$F$1 -> 0 | AB29: =+Sheet3!AB26/Sheet3!$F$1 -> 0 | AC29: =+Sheet3!AC26/Sheet3!$F$1 -> 0 | AD29: =+Sheet3!AD26/Sheet3!$F$1 -> 0 | AE29: =+Sheet3!AE26/Sheet3!$F$1 -> 0 | AF29: =+Sheet3!AF26/Sheet3!$F$1 -> 0 | AG29: =+Sheet3!AG26/Sheet3!$F$1 -> 0 | AH29: =+Sheet3!AH26/Sheet3!$F$1 -> 0 | AI29: =+Sheet3!AI26/Sheet3!$F$1 -> 0 | AJ29: =+Sheet3!AJ26/Sheet3!$F$1 -> 0 | AK29: =+Sheet3!AK26/Sheet3!$F$1 -> 0 | AL29: =+Sheet3!AL26/Sheet3!$F$1 -> 0 | AM29: =+Sheet3!AM26/Sheet3!$F$1 -> 0 | AN29: =+Sheet3!AN26/Sheet3!$F$1 -> 0 | AO29: =+Sheet3!AO26/Sheet3!$F$1 -> 0 | AP29: =+Sheet3!AP26/Sheet3!$F$1 -> 0 | AQ29: =+Sheet3!AQ26/Sheet3!$F$1 -> 0 | AR29: =+Sheet3!AR26/Sheet3!$F$1 -> 0 | AS29: =+Sheet3!AS26/Sheet3!$F$1 -> 0 | AT29: =+Sheet3!AT26/Sheet3!$F$1 -> 0 | AU29: =+Sheet3!AU26/Sheet3!$F$1 -> 0 | AV29: =+Sheet3!AV26/Sheet3!$F$1 -> 0 | AW29: =+Sheet3!AW26/Sheet3!$F$1 -> 0 | AX29: =+Sheet3!AX26/Sheet3!$F$1 -> 0 | AY29: =+Sheet3!AY26/Sheet3!$F$1 -> 0 | AZ29: =+Sheet3!AZ26/Sheet3!$F$1 -> 0 | BA29: =+Sheet3!BA26/Sheet3!$F$1 -> 0 | BB29: =+Sheet3!BB26/Sheet3!$F$1 -> 0 | BC29: =+Sheet3!BC26/Sheet3!$F$1 -> 0 | BD29: =+Sheet3!BD26/Sheet3!$F$1 -> 0 | BE29: =+Sheet3!BE26/Sheet3!$F$1 -> 0 | BF29: =+Sheet3!BF26/Sheet3!$F$1 -> 0 | BG29: =+Sheet3!BG26/Sheet3!$F$1 -> 0 | BH29: =+Sheet3!BH26/Sheet3!$F$1 -> 0 | BI29: =+Sheet3!BI26/Sheet3!$F$1 -> 0 | BJ29: =+Sheet3!BJ26/Sheet3!$F$1 -> 0 | BK29: =+Sheet3!BK26/Sheet3!$F$1 -> 0 | BL29: =+Sheet3!BL26/Sheet3!$F$1 -> 0 | BM29: =+Sheet3!BM26/Sheet3!$F$1 -> 0 | BN29: =+Sheet3!BN26/Sheet3!$F$1 -> 0 | BO29: =+Sheet3!BO26/Sheet3!$F$1 -> 0 | BP29: =+Sheet3!BP26/Sheet3!$F$1 -> 0 | BQ29: =+Sheet3!BQ26/Sheet3!$F$1 -> 0 | BR29: =+Sheet3!BR26/Sheet3!$F$1 -> 0 | BS29: =+Sheet3!BS26/Sheet3!$F$1 -> 0 | BT29: =+Sheet3!BT26/Sheet3!$F$1 -> 0 | BU29: =+Sheet3!BU26/Sheet3!$F$1 -> 0 | BV29: =+Sheet3!BV26/Sheet3!$F$1 -> 0 | BW29: =+Sheet3!BW26/Sheet3!$F$1 -> 0 | BX29: =+Sheet3!BX26/Sheet3!$F$1 -> 0 | BY29: =+Sheet3!BY26/Sheet3!$F$1 -> 0 | BZ29: =+Sheet3!BZ26/Sheet3!$F$1 -> 0 | CA29: =+Sheet3!CA26/Sheet3!$F$1 -> 0 | CB29: =+Sheet3!CB26/Sheet3!$F$1 -> 0 | CC29: =+Sheet3!CC26/Sheet3!$F$1 -> 0 | CD29: =+Sheet3!CD26/Sheet3!$F$1 -> 0 | CE29: =+Sheet3!CE26/Sheet3!$F$1 -> 0 | CF29: =+Sheet3!CF26/Sheet3!$F$1 -> 0 | CG29: =+Sheet3!CG26/Sheet3!$F$1 -> 0 | CH29: =+Sheet3!CH26/Sheet3!$F$1 -> 0 | CI29: =+Sheet3!CI26/Sheet3!$F$1 -> 0 | CJ29: =+Sheet3!CJ26/Sheet3!$F$1 -> 0 | CK29: =+Sheet3!CK26/Sheet3!$F$1 -> 0 | CL29: =+Sheet3!CL26/Sheet3!$F$1 -> 0 | CM29: =+Sheet3!CM26/Sheet3!$F$1 -> 0 | CN29: =+Sheet3!CN26/Sheet3!$F$1 -> 0 | CO29: =+Sheet3!CO26/Sheet3!$F$1 -> 0 | CP29: =+Sheet3!CP26/Sheet3!$F$1 -> 0 | CQ29: =+Sheet3!CQ26/Sheet3!$F$1 -> 0 | CR29: =+Sheet3!CR26/Sheet3!$F$1 -> 0 | CS29: =+Sheet3!CS26/Sheet3!$F$1 -> 0 | CT29: =+Sheet3!CT26/Sheet3!$F$1 -> 0 | CU29: =+Sheet3!CU26/Sheet3!$F$1 -> 0 | CV29: =+Sheet3!CV26/Sheet3!$F$1 -> 0 | CW29: =+Sheet3!CW26/Sheet3!$F$1 -> 0 | CX29: =+Sheet3!CX26/Sheet3!$F$1 -> 0 | CY29: =+Sheet3!CY26/Sheet3!$F$1 -> 0 | CZ29: =+Sheet3!CZ26/Sheet3!$F$1 -> 0 | DA29: =+Sheet3!DA26/Sheet3!$F$1 -> 0 | DB29: =+Sheet3!DB26/Sheet3!$F$1 -> 0 | DC29: =+Sheet3!DC26/Sheet3!$F$1 -> 0 | DD29: =+Sheet3!DD26/Sheet3!$F$1 -> 0 | DE29: =+Sheet3!DE26/Sheet3!$F$1 -> 0 | DF29: =+Sheet3!DF26/Sheet3!$F$1 -> 0 | DG29: =+Sheet3!DG26/Sheet3!$F$1 -> 0 | DH29: =+Sheet3!DH26/Sheet3!$F$1 -> 0 | DI29: =+Sheet3!DI26/Sheet3!$F$1 -> 0 | DJ29: =+Sheet3!DJ26/Sheet3!$F$1 -> 0 | DK29: =+Sheet3!DK26/Sheet3!$F$1 -> 0 | DL29: =+Sheet3!DL26/Sheet3!$F$1 -> 0 | DM29: 0
B30: 185 | C30: Lezíria do Tejo | D30: =+Sheet3!D27/Sheet3!$F$1 -> 0 | E30: =+Sheet3!E27/Sheet3!$F$1 -> 0 | F30: =+Sheet3!F27/Sheet3!$F$1 -> 0 | G30: =+Sheet3!G27/Sheet3!$F$1 -> 0 | H30: =+Sheet3!H27/Sheet3!$F$1 -> 0 | I30: =+Sheet3!I27/Sheet3!$F$1 -> 0 | J30: =+Sheet3!J27/Sheet3!$F$1 -> 0 | K30: =+Sheet3!K27/Sheet3!$F$1 -> 0 | L30: =+Sheet3!L27/Sheet3!$F$1 -> 0 | M30: =+Sheet3!M27/Sheet3!$F$1 -> 0 | N30: =+Sheet3!N27/Sheet3!$F$1 -> 0 | O30: =+Sheet3!O27/Sheet3!$F$1 -> 0 | P30: =+Sheet3!P27/Sheet3!$F$1 -> 0 | Q30: =+Sheet3!Q27/Sheet3!$F$1 -> 0 | R30: =+Sheet3!R27/Sheet3!$F$1 -> 0 | S30: =+Sheet3!S27/Sheet3!$F$1 -> 0 | T30: =+Sheet3!T27/Sheet3!$F$1 -> 0 | U30: =+Sheet3!U27/Sheet3!$F$1 -> 0 | V30: =+Sheet3!V27/Sheet3!$F$1 -> 0 | W30: =+Sheet3!W27/Sheet3!$F$1 -> 0 | X30: =+Sheet3!X27/Sheet3!$F$1 -> 0 | Y30: =+Sheet3!Y27/Sheet3!$F$1 -> 0 | Z30: =+Sheet3!Z27/Sheet3!$F$1 -> 0 | AA30: =+Sheet3!AA27/Sheet3!$F$1 -> 0 | AB30: =+Sheet3!AB27/Sheet3!$F$1 -> 0 | AC30: =+Sheet3!AC27/Sheet3!$F$1 -> 0 | AD30: =+Sheet3!AD27/Sheet3!$F$1 -> 0 | AE30: =+Sheet3!AE27/Sheet3!$F$1 -> 0 | AF30: =+Sheet3!AF27/Sheet3!$F$1 -> 0 | AG30: =+Sheet3!AG27/Sheet3!$F$1 -> 0 | AH30: =+Sheet3!AH27/Sheet3!$F$1 -> 0 | AI30: =+Sheet3!AI27/Sheet3!$F$1 -> 0 | AJ30: =+Sheet3!AJ27/Sheet3!$F$1 -> 0 | AK30: =+Sheet3!AK27/Sheet3!$F$1 -> 0 | AL30: =+Sheet3!AL27/Sheet3!$F$1 -> 0 | AM30: =+Sheet3!AM27/Sheet3!$F$1 -> 0 | AN30: =+Sheet3!AN27/Sheet3!$F$1 -> 0 | AO30: =+Sheet3!AO27/Sheet3!$F$1 -> 0 | AP30: =+Sheet3!AP27/Sheet3!$F$1 -> 0 | AQ30: =+Sheet3!AQ27/Sheet3!$F$1 -> 0 | AR30: =+Sheet3!AR27/Sheet3!$F$1 -> 0 | AS30: =+Sheet3!AS27/Sheet3!$F$1 -> 0 | AT30: =+Sheet3!AT27/Sheet3!$F$1 -> 0 | AU30: =+Sheet3!AU27/Sheet3!$F$1 -> 0 | AV30: =+Sheet3!AV27/Sheet3!$F$1 -> 0 | AW30: =+Sheet3!AW27/Sheet3!$F$1 -> 0 | AX30: =+Sheet3!AX27/Sheet3!$F$1 -> 0 | AY30: =+Sheet3!AY27/Sheet3!$F$1 -> 0 | AZ30: =+Sheet3!AZ27/Sheet3!$F$1 -> 0 | BA30: =+Sheet3!BA27/Sheet3!$F$1 -> 0 | BB30: =+Sheet3!BB27/Sheet3!$F$1 -> 0 | BC30: =+Sheet3!BC27/Sheet3!$F$1 -> 0 | BD30: =+Sheet3!BD27/Sheet3!$F$1 -> 0 | BE30: =+Sheet3!BE27/Sheet3!$F$1 -> 0 | BF30: =+Sheet3!BF27/Sheet3!$F$1 -> 0 | BG30: =+Sheet3!BG27/Sheet3!$F$1 -> 0 | BH30: =+Sheet3!BH27/Sheet3!$F$1 -> 0 | BI30: =+Sheet3!BI27/Sheet3!$F$1 -> 0 | BJ30: =+Sheet3!BJ27/Sheet3!$F$1 -> 0 | BK30: =+Sheet3!BK27/Sheet3!$F$1 -> 0 | BL30: =+Sheet3!BL27/Sheet3!$F$1 -> 0 | BM30: =+Sheet3!BM27/Sheet3!$F$1 -> 0 | BN30: =+Sheet3!BN27/Sheet3!$F$1 -> 0 | BO30: =+Sheet3!BO27/Sheet3!$F$1 -> 0 | BP30: =+Sheet3!BP27/Sheet3!$F$1 -> 0 | BQ30: =+Sheet3!BQ27/Sheet3!$F$1 -> 0 | BR30: =+Sheet3!BR27/Sheet3!$F$1 -> 0 | BS30: =+Sheet3!BS27/Sheet3!$F$1 -> 0 | BT30: =+Sheet3!BT27/Sheet3!$F$1 -> 0 | BU30: =+Sheet3!BU27/Sheet3!$F$1 -> 0 | BV30: =+Sheet3!BV27/Sheet3!$F$1 -> 0 | BW30: =+Sheet3!BW27/Sheet3!$F$1 -> 0 | BX30: =+Sheet3!BX27/Sheet3!$F$1 -> 0 | BY30: =+Sheet3!BY27/Sheet3!$F$1 -> 0 | BZ30: =+Sheet3!BZ27/Sheet3!$F$1 -> 0 | CA30: =+Sheet3!CA27/Sheet3!$F$1 -> 0 | CB30: =+Sheet3!CB27/Sheet3!$F$1 -> 0 | CC30: =+Sheet3!CC27/Sheet3!$F$1 -> 0 | CD30: =+Sheet3!CD27/Sheet3!$F$1 -> 0 | CE30: =+Sheet3!CE27/Sheet3!$F$1 -> 0 | CF30: =+Sheet3!CF27/Sheet3!$F$1 -> 0 | CG30: =+Sheet3!CG27/Sheet3!$F$1 -> 0 | CH30: =+Sheet3!CH27/Sheet3!$F$1 -> 0 | CI30: =+Sheet3!CI27/Sheet3!$F$1 -> 0 | CJ30: =+Sheet3!CJ27/Sheet3!$F$1 -> 0 | CK30: =+Sheet3!CK27/Sheet3!$F$1 -> 0 | CL30: =+Sheet3!CL27/Sheet3!$F$1 -> 0 | CM30: =+Sheet3!CM27/Sheet3!$F$1 -> 0 | CN30: =+Sheet3!CN27/Sheet3!$F$1 -> 0 | CO30: =+Sheet3!CO27/Sheet3!$F$1 -> 0 | CP30: =+Sheet3!CP27/Sheet3!$F$1 -> 0 | CQ30: =+Sheet3!CQ27/Sheet3!$F$1 -> 0 | CR30: =+Sheet3!CR27/Sheet3!$F$1 -> 0 | CS30: =+Sheet3!CS27/Sheet3!$F$1 -> 0 | CT30: =+Sheet3!CT27/Sheet3!$F$1 -> 0 | CU30: =+Sheet3!CU27/Sheet3!$F$1 -> 0 | CV30: =+Sheet3!CV27/Sheet3!$F$1 -> 0 | CW30: =+Sheet3!CW27/Sheet3!$F$1 -> 0 | CX30: =+Sheet3!CX27/Sheet3!$F$1 -> 0 | CY30: =+Sheet3!CY27/Sheet3!$F$1 -> 0 | CZ30: =+Sheet3!CZ27/Sheet3!$F$1 -> 0 | DA30: =+Sheet3!DA27/Sheet3!$F$1 -> 0 | DB30: =+Sheet3!DB27/Sheet3!$F$1 -> 0 | DC30: =+Sheet3!DC27/Sheet3!$F$1 -> 0 | DD30: =+Sheet3!DD27/Sheet3!$F$1 -> 0 | DE30: =+Sheet3!DE27/Sheet3!$F$1 -> 0 | DF30: =+Sheet3!DF27/Sheet3!$F$1 -> 0 | DG30: =+Sheet3!DG27/Sheet3!$F$1 -> 0 | DH30: =+Sheet3!DH27/Sheet3!$F$1 -> 0 | DI30: =+Sheet3!DI27/Sheet3!$F$1 -> 0 | DJ30: =+Sheet3!DJ27/Sheet3!$F$1 -> 0 | DK30: =+Sheet3!DK27/Sheet3!$F$1 -> 0 | DL30: =+Sheet3!DL27/Sheet3!$F$1 -> 0 | DM30: 0
B31: 186 | C31: Alto Alentejo | D31: =+Sheet3!D28/Sheet3!$F$1 -> 0 | E31: =+Sheet3!E28/Sheet3!$F$1 -> 0 | F31: =+Sheet3!F28/Sheet3!$F$1 -> 0 | G31: =+Sheet3!G28/Sheet3!$F$1 -> 0 | H31: =+Sheet3!H28/Sheet3!$F$1 -> 0 | I31: =+Sheet3!I28/Sheet3!$F$1 -> 0 | J31: =+Sheet3!J28/Sheet3!$F$1 -> 0 | K31: =+Sheet3!K28/Sheet3!$F$1 -> 0 | L31: =+Sheet3!L28/Sheet3!$F$1 -> 0 | M31: =+Sheet3!M28/Sheet3!$F$1 -> 0 | N31: =+Sheet3!N28/Sheet3!$F$1 -> 0 | O31: =+Sheet3!O28/Sheet3!$F$1 -> 0 | P31: =+Sheet3!P28/Sheet3!$F$1 -> 0 | Q31: =+Sheet3!Q28/Sheet3!$F$1 -> 0 | R31: =+Sheet3!R28/Sheet3!$F$1 -> 0 | S31: =+Sheet3!S28/Sheet3!$F$1 -> 0 | T31: =+Sheet3!T28/Sheet3!$F$1 -> 0 | U31: =+Sheet3!U28/Sheet3!$F$1 -> 0 | V31: =+Sheet3!V28/Sheet3!$F$1 -> 0 | W31: =+Sheet3!W28/Sheet3!$F$1 -> 0 | X31: =+Sheet3!X28/Sheet3!$F$1 -> 0 | Y31: =+Sheet3!Y28/Sheet3!$F$1 -> 0 | Z31: =+Sheet3!Z28/Sheet3!$F$1 -> 0 | AA31: =+Sheet3!AA28/Sheet3!$F$1 -> 0 | AB31: =+Sheet3!AB28/Sheet3!$F$1 -> 0 | AC31: =+Sheet3!AC28/Sheet3!$F$1 -> 0 | AD31: =+Sheet3!AD28/Sheet3!$F$1 -> 0 | AE31: =+Sheet3!AE28/Sheet3!$F$1 -> 0 | AF31: =+Sheet3!AF28/Sheet3!$F$1 -> 0 | AG31: =+Sheet3!AG28/Sheet3!$F$1 -> 0 | AH31: =+Sheet3!AH28/Sheet3!$F$1 -> 0 | AI31: =+Sheet3!AI28/Sheet3!$F$1 -> 0 | AJ31: =+Sheet3!AJ28/Sheet3!$F$1 -> 0 | AK31: =+Sheet3!AK28/Sheet3!$F$1 -> 0 | AL31: =+Sheet3!AL28/Sheet3!$F$1 -> 0 | AM31: =+Sheet3!AM28/Sheet3!$F$1 -> 0 | AN31: =+Sheet3!AN28/Sheet3!$F$1 -> 0 | AO31: =+Sheet3!AO28/Sheet3!$F$1 -> 0 | AP31: =+Sheet3!AP28/Sheet3!$F$1 -> 0 | AQ31: =+Sheet3!AQ28/Sheet3!$F$1 -> 0 | AR31: =+Sheet3!AR28/Sheet3!$F$1 -> 0 | AS31: =+Sheet3!AS28/Sheet3!$F$1 -> 0 | AT31: =+Sheet3!AT28/Sheet3!$F$1 -> 0 | AU31: =+Sheet3!AU28/Sheet3!$F$1 -> 0 | AV31: =+Sheet3!AV28/Sheet3!$F$1 -> 0 | AW31: =+Sheet3!AW28/Sheet3!$F$1 -> 0 | AX31: =+Sheet3!AX28/Sheet3!$F$1 -> 0 | AY31: =+Sheet3!AY28/Sheet3!$F$1 -> 0 | AZ31: =+Sheet3!AZ28/Sheet3!$F$1 -> 0 | BA31: =+Sheet3!BA28/Sheet3!$F$1 -> 0 | BB31: =+Sheet3!BB28/Sheet3!$F$1 -> 0 | BC31: =+Sheet3!BC28/Sheet3!$F$1 -> 0 | BD31: =+Sheet3!BD28/Sheet3!$F$1 -> 0 | BE31: =+Sheet3!BE28/Sheet3!$F$1 -> 0 | BF31: =+Sheet3!BF28/Sheet3!$F$1 -> 0 | BG31: =+Sheet3!BG28/Sheet3!$F$1 -> 0 | BH31: =+Sheet3!BH28/Sheet3!$F$1 -> 0 | BI31: =+Sheet3!BI28/Sheet3!$F$1 -> 0 | BJ31: =+Sheet3!BJ28/Sheet3!$F$1 -> 0 | BK31: =+Sheet3!BK28/Sheet3!$F$1 -> 0 | BL31: =+Sheet3!BL28/Sheet3!$F$1 -> 0 | BM31: =+Sheet3!BM28/Sheet3!$F$1 -> 0 | BN31: =+Sheet3!BN28/Sheet3!$F$1 -> 0 | BO31: =+Sheet3!BO28/Sheet3!$F$1 -> 0 | BP31: =+Sheet3!BP28/Sheet3!$F$1 -> 0 | BQ31: =+Sheet3!BQ28/Sheet3!$F$1 -> 0 | BR31: =+Sheet3!BR28/Sheet3!$F$1 -> 0 | BS31: =+Sheet3!BS28/Sheet3!$F$1 -> 0 | BT31: =+Sheet3!BT28/Sheet3!$F$1 -> 0 | BU31: =+Sheet3!BU28/Sheet3!$F$1 -> 0 | BV31: =+Sheet3!BV28/Sheet3!$F$1 -> 0 | BW31: =+Sheet3!BW28/Sheet3!$F$1 -> 0 | BX31: =+Sheet3!BX28/Sheet3!$F$1 -> 0 | BY31: =+Sheet3!BY28/Sheet3!$F$1 -> 0 | BZ31: =+Sheet3!BZ28/Sheet3!$F$1 -> 0 | CA31: =+Sheet3!CA28/Sheet3!$F$1 -> 0 | CB31: =+Sheet3!CB28/Sheet3!$F$1 -> 0 | CC31: =+Sheet3!CC28/Sheet3!$F$1 -> 0 | CD31: =+Sheet3!CD28/Sheet3!$F$1 -> 0 | CE31: =+Sheet3!CE28/Sheet3!$F$1 -> 0 | CF31: =+Sheet3!CF28/Sheet3!$F$1 -> 0 | CG31: =+Sheet3!CG28/Sheet3!$F$1 -> 0 | CH31: =+Sheet3!CH28/Sheet3!$F$1 -> 0 | CI31: =+Sheet3!CI28/Sheet3!$F$1 -> 0 | CJ31: =+Sheet3!CJ28/Sheet3!$F$1 -> 0 | CK31: =+Sheet3!CK28/Sheet3!$F$1 -> 0 | CL31: =+Sheet3!CL28/Sheet3!$F$1 -> 0 | CM31: =+Sheet3!CM28/Sheet3!$F$1 -> 0 | CN31: =+Sheet3!CN28/Sheet3!$F$1 -> 0 | CO31: =+Sheet3!CO28/Sheet3!$F$1 -> 0 | CP31: =+Sheet3!CP28/Sheet3!$F$1 -> 0 | CQ31: =+Sheet3!CQ28/Sheet3!$F$1 -> 0 | CR31: =+Sheet3!CR28/Sheet3!$F$1 -> 0 | CS31: =+Sheet3!CS28/Sheet3!$F$1 -> 0 | CT31: =+Sheet3!CT28/Sheet3!$F$1 -> 0 | CU31: =+Sheet3!CU28/Sheet3!$F$1 -> 0 | CV31: =+Sheet3!CV28/Sheet3!$F$1 -> 0 | CW31: =+Sheet3!CW28/Sheet3!$F$1 -> 0 | CX31: =+Sheet3!CX28/Sheet3!$F$1 -> 0 | CY31: =+Sheet3!CY28/Sheet3!$F$1 -> 0 | CZ31: =+Sheet3!CZ28/Sheet3!$F$1 -> 0 | DA31: =+Sheet3!DA28/Sheet3!$F$1 -> 0 | DB31: =+Sheet3!DB28/Sheet3!$F$1 -> 0 | DC31: =+Sheet3!DC28/Sheet3!$F$1 -> 0 | DD31: =+Sheet3!DD28/Sheet3!$F$1 -> 0 | DE31: =+Sheet3!DE28/Sheet3!$F$1 -> 0 | DF31: =+Sheet3!DF28/Sheet3!$F$1 -> 0 | DG31: =+Sheet3!DG28/Sheet3!$F$1 -> 0 | DH31: =+Sheet3!DH28/Sheet3!$F$1 -> 0 | DI31: =+Sheet3!DI28/Sheet3!$F$1 -> 0 | DJ31: =+Sheet3!DJ28/Sheet3!$F$1 -> 0 | DK31: =+Sheet3!DK28/Sheet3!$F$1 -> 0 | DL31: =+Sheet3!DL28/Sheet3!$F$1 -> 0 | DM31: 0
B32: 187 | C32: Alentejo Central | D32: =+Sheet3!D29/Sheet3!$F$1 -> 0 | E32: =+Sheet3!E29/Sheet3!$F$1 -> 0 | F32: =+Sheet3!F29/Sheet3!$F$1 -> 0 | G32: =+Sheet3!G29/Sheet3!$F$1 -> 0 | H32: =+Sheet3!H29/Sheet3!$F$1 -> 0 | I32: =+Sheet3!I29/Sheet3!$F$1 -> 0 | J32: =+Sheet3!J29/Sheet3!$F$1 -> 0 | K32: =+Sheet3!K29/Sheet3!$F$1 -> 0 | L32: =+Sheet3!L29/Sheet3!$F$1 -> 0 | M32: =+Sheet3!M29/Sheet3!$F$1 -> 0 | N32: =+Sheet3!N29/Sheet3!$F$1 -> 0 | O32: =+Sheet3!O29/Sheet3!$F$1 -> 0 | P32: =+Sheet3!P29/Sheet3!$F$1 -> 0 | Q32: =+Sheet3!Q29/Sheet3!$F$1 -> 0 | R32: =+Sheet3!R29/Sheet3!$F$1 -> 0 | S32: =+Sheet3!S29/Sheet3!$F$1 -> 0 | T32: =+Sheet3!T29/Sheet3!$F$1 -> 0 | U32: =+Sheet3!U29/Sheet3!$F$1 -> 0 | V32: =+Sheet3!V29/Sheet3!$F$1 -> 0 | W32: =+Sheet3!W29/Sheet3!$F$1 -> 0 | X32: =+Sheet3!X29/Sheet3!$F$1 -> 0 | Y32: =+Sheet3!Y29/Sheet3!$F$1 -> 0 | Z32: =+Sheet3!Z29/Sheet3!$F$1 -> 0 | AA32: =+Sheet3!AA29/Sheet3!$F$1 -> 0 | AB32: =+Sheet3!AB29/Sheet3!$F$1 -> 0 | AC32: =+Sheet3!AC29/Sheet3!$F$1 -> 0 | AD32: =+Sheet3!AD29/Sheet3!$F$1 -> 0 | AE32: =+Sheet3!AE29/Sheet3!$F$1 -> 0 | AF32: =+Sheet3!AF29/Sheet3!$F$1 -> 0 | AG32: =+Sheet3!AG29/Sheet3!$F$1 -> 0 | AH32: =+Sheet3!AH29/Sheet3!$F$1 -> 0 | AI32: =+Sheet3!AI29/Sheet3!$F$1 -> 0 | AJ32: =+Sheet3!AJ29/Sheet3!$F$1 -> 0 | AK32: =+Sheet3!AK29/Sheet3!$F$1 -> 0 | AL32: =+Sheet3!AL29/Sheet3!$F$1 -> 0 | AM32: =+Sheet3!AM29/Sheet3!$F$1 -> 0 | AN32: =+Sheet3!AN29/Sheet3!$F$1 -> 0 | AO32: =+Sheet3!AO29/Sheet3!$F$1 -> 0 | AP32: =+Sheet3!AP29/Sheet3!$F$1 -> 0 | AQ32: =+Sheet3!AQ29/Sheet3!$F$1 -> 0 | AR32: =+Sheet3!AR29/Sheet3!$F$1 -> 0 | AS32: =+Sheet3!AS29/Sheet3!$F$1 -> 0 | AT32: =+Sheet3!AT29/Sheet3!$F$1 -> 0 | AU32: =+Sheet3!AU29/Sheet3!$F$1 -> 0 | AV32: =+Sheet3!AV29/Sheet3!$F$1 -> 0 | AW32: =+Sheet3!AW29/Sheet3!$F$1 -> 0 | AX32: =+Sheet3!AX29/Sheet3!$F$1 -> 0 | AY32: =+Sheet3!AY29/Sheet3!$F$1 -> 0 | AZ32: =+Sheet3!AZ29/Sheet3!$F$1 -> 0 | BA32: =+Sheet3!BA29/Sheet3!$F$1 -> 0 | BB32: =+Sheet3!BB29/Sheet3!$F$1 -> 0 | BC32: =+Sheet3!BC29/Sheet3!$F$1 -> 0 | BD32: =+Sheet3!BD29/Sheet3!$F$1 -> 0 | BE32: =+Sheet3!BE29/Sheet3!$F$1 -> 0 | BF32: =+Sheet3!BF29/Sheet3!$F$1 -> 0 | BG32: =+Sheet3!BG29/Sheet3!$F$1 -> 0 | BH32: =+Sheet3!BH29/Sheet3!$F$1 -> 0 | BI32: =+Sheet3!BI29/Sheet3!$F$1 -> 0 | BJ32: =+Sheet3!BJ29/Sheet3!$F$1 -> 0 | BK32: =+Sheet3!BK29/Sheet3!$F$1 -> 0 | BL32: =+Sheet3!BL29/Sheet3!$F$1 -> 0 | BM32: =+Sheet3!BM29/Sheet3!$F$1 -> 0 | BN32: =+Sheet3!BN29/Sheet3!$F$1 -> 1.4 | BO32: =+Sheet3!BO29/Sheet3!$F$1 -> 0 | BP32: =+Sheet3!BP29/Sheet3!$F$1 -> 0 | BQ32: =+Sheet3!BQ29/Sheet3!$F$1 -> 0 | BR32: =+Sheet3!BR29/Sheet3!$F$1 -> 0 | BS32: =+Sheet3!BS29/Sheet3!$F$1 -> 0 | BT32: =+Sheet3!BT29/Sheet3!$F$1 -> 0 | BU32: =+Sheet3!BU29/Sheet3!$F$1 -> 0 | BV32: =+Sheet3!BV29/Sheet3!$F$1 -> 0 | BW32: =+Sheet3!BW29/Sheet3!$F$1 -> 0 | BX32: =+Sheet3!BX29/Sheet3!$F$1 -> 0 | BY32: =+Sheet3!BY29/Sheet3!$F$1 -> 0 | BZ32: =+Sheet3!BZ29/Sheet3!$F$1 -> 0 | CA32: =+Sheet3!CA29/Sheet3!$F$1 -> 0 | CB32: =+Sheet3!CB29/Sheet3!$F$1 -> 0 | CC32: =+Sheet3!CC29/Sheet3!$F$1 -> 0 | CD32: =+Sheet3!CD29/Sheet3!$F$1 -> 0 | CE32: =+Sheet3!CE29/Sheet3!$F$1 -> 0 | CF32: =+Sheet3!CF29/Sheet3!$F$1 -> 0 | CG32: =+Sheet3!CG29/Sheet3!$F$1 -> 0 | CH32: =+Sheet3!CH29/Sheet3!$F$1 -> 0 | CI32: =+Sheet3!CI29/Sheet3!$F$1 -> 0 | CJ32: =+Sheet3!CJ29/Sheet3!$F$1 -> 0 | CK32: =+Sheet3!CK29/Sheet3!$F$1 -> 0 | CL32: =+Sheet3!CL29/Sheet3!$F$1 -> 0 | CM32: =+Sheet3!CM29/Sheet3!$F$1 -> 0 | CN32: =+Sheet3!CN29/Sheet3!$F$1 -> 0 | CO32: =+Sheet3!CO29/Sheet3!$F$1 -> 0 | CP32: =+Sheet3!CP29/Sheet3!$F$1 -> 0 | CQ32: =+Sheet3!CQ29/Sheet3!$F$1 -> 0 | CR32: =+Sheet3!CR29/Sheet3!$F$1 -> 0 | CS32: =+Sheet3!CS29/Sheet3!$F$1 -> 0 | CT32: =+Sheet3!CT29/Sheet3!$F$1 -> 0 | CU32: =+Sheet3!CU29/Sheet3!$F$1 -> 0 | CV32: =+Sheet3!CV29/Sheet3!$F$1 -> 0 | CW32: =+Sheet3!CW29/Sheet3!$F$1 -> 0 | CX32: =+Sheet3!CX29/Sheet3!$F$1 -> 0 | CY32: =+Sheet3!CY29/Sheet3!$F$1 -> 0 | CZ32: =+Sheet3!CZ29/Sheet3!$F$1 -> 0 | DA32: =+Sheet3!DA29/Sheet3!$F$1 -> 0 | DB32: =+Sheet3!DB29/Sheet3!$F$1 -> 1.4 | DC32: =+Sheet3!DC29/Sheet3!$F$1 -> 0 | DD32: =+Sheet3!DD29/Sheet3!$F$1 -> 0 | DE32: =+Sheet3!DE29/Sheet3!$F$1 -> 0 | DF32: =+Sheet3!DF29/Sheet3!$F$1 -> 0 | DG32: =+Sheet3!DG29/Sheet3!$F$1 -> 0 | DH32: =+Sheet3!DH29/Sheet3!$F$1 -> 0 | DI32: =+Sheet3!DI29/Sheet3!$F$1 -> 0 | DJ32: =+Sheet3!DJ29/Sheet3!$F$1 -> 1.4 | DK32: =+Sheet3!DK29/Sheet3!$F$1 -> 0 | DL32: =+Sheet3!DL29/Sheet3!$F$1 -> 0 | DM32: 1.4
A33: Algarve | B33: 150 | C33: Algarve | D33: =+Sheet3!D30/Sheet3!$F$1 -> 0 | E33: =+Sheet3!E30/Sheet3!$F$1 -> 0 | F33: =+Sheet3!F30/Sheet3!$F$1 -> 0 | G33: =+Sheet3!G30/Sheet3!$F$1 -> 0 | H33: =+Sheet3!H30/Sheet3!$F$1 -> 0 | I33: =+Sheet3!I30/Sheet3!$F$1 -> 0 | J33: =+Sheet3!J30/Sheet3!$F$1 -> 0 | K33: =+Sheet3!K30/Sheet3!$F$1 -> 0 | L33: =+Sheet3!L30/Sheet3!$F$1 -> 0 | M33: =+Sheet3!M30/Sheet3!$F$1 -> 0 | N33: =+Sheet3!N30/Sheet3!$F$1 -> 0 | O33: =+Sheet3!O30/Sheet3!$F$1 -> 0 | P33: =+Sheet3!P30/Sheet3!$F$1 -> 0 | Q33: =+Sheet3!Q30/Sheet3!$F$1 -> 0 | R33: =+Sheet3!R30/Sheet3!$F$1 -> 0 | S33: =+Sheet3!S30/Sheet3!$F$1 -> 0 | T33: =+Sheet3!T30/Sheet3!$F$1 -> 0 | U33: =+Sheet3!U30/Sheet3!$F$1 -> 0 | V33: =+Sheet3!V30/Sheet3!$F$1 -> 0 | W33: =+Sheet3!W30/Sheet3!$F$1 -> 0 | X33: =+Sheet3!X30/Sheet3!$F$1 -> 0 | Y33: =+Sheet3!Y30/Sheet3!$F$1 -> 0 | Z33: =+Sheet3!Z30/Sheet3!$F$1 -> 0 | AA33: =+Sheet3!AA30/Sheet3!$F$1 -> 0 | AB33: =+Sheet3!AB30/Sheet3!$F$1 -> 0 | AC33: =+Sheet3!AC30/Sheet3!$F$1 -> 0 | AD33: =+Sheet3!AD30/Sheet3!$F$1 -> 0 | AE33: =+Sheet3!AE30/Sheet3!$F$1 -> 0 | AF33: =+Sheet3!AF30/Sheet3!$F$1 -> 0 | AG33: =+Sheet3!AG30/Sheet3!$F$1 -> 0 | AH33: =+Sheet3!AH30/Sheet3!$F$1 -> 0 | AI33: =+Sheet3!AI30/Sheet3!$F$1 -> 0 | AJ33: =+Sheet3!AJ30/Sheet3!$F$1 -> 0 | AK33: =+Sheet3!AK30/Sheet3!$F$1 -> 0 | AL33: =+Sheet3!AL30/Sheet3!$F$1 -> 0 | AM33: =+Sheet3!AM30/Sheet3!$F$1 -> 0 | AN33: =+Sheet3!AN30/Sheet3!$F$1 -> 0 | AO33: =+Sheet3!AO30/Sheet3!$F$1 -> 0 | AP33: =+Sheet3!AP30/Sheet3!$F$1 -> 0 | AQ33: =+Sheet3!AQ30/Sheet3!$F$1 -> 0 | AR33: =+Sheet3!AR30/Sheet3!$F$1 -> 0 | AS33: =+Sheet3!AS30/Sheet3!$F$1 -> 0 | AT33: =+Sheet3!AT30/Sheet3!$F$1 -> 0 | AU33: =+Sheet3!AU30/Sheet3!$F$1 -> 0 | AV33: =+Sheet3!AV30/Sheet3!$F$1 -> 0 | AW33: =+Sheet3!AW30/Sheet3!$F$1 -> 0 | AX33: =+Sheet3!AX30/Sheet3!$F$1 -> 0 | AY33: =+Sheet3!AY30/Sheet3!$F$1 -> 0 | AZ33: =+Sheet3!AZ30/Sheet3!$F$1 -> 0 | BA33: =+Sheet3!BA30/Sheet3!$F$1 -> 0 | BB33: =+Sheet3!BB30/Sheet3!$F$1 -> 0 | BC33: =+Sheet3!BC30/Sheet3!$F$1 -> 0 | BD33: =+Sheet3!BD30/Sheet3!$F$1 -> 0 | BE33: =+Sheet3!BE30/Sheet3!$F$1 -> 0 | BF33: =+Sheet3!BF30/Sheet3!$F$1 -> 0 | BG33: =+Sheet3!BG30/Sheet3!$F$1 -> 0 | BH33: =+Sheet3!BH30/Sheet3!$F$1 -> 0 | BI33: =+Sheet3!BI30/Sheet3!$F$1 -> 0 | BJ33: =+Sheet3!BJ30/Sheet3!$F$1 -> 0 | BK33: =+Sheet3!BK30/Sheet3!$F$1 -> 0 | BL33: =+Sheet3!BL30/Sheet3!$F$1 -> 0 | BM33: =+Sheet3!BM30/Sheet3!$F$1 -> 0 | BN33: =+Sheet3!BN30/Sheet3!$F$1 -> 0 | BO33: =+Sheet3!BO30/Sheet3!$F$1 -> 0 | BP33: =+Sheet3!BP30/Sheet3!$F$1 -> 0 | BQ33: =+Sheet3!BQ30/Sheet3!$F$1 -> 0 | BR33: =+Sheet3!BR30/Sheet3!$F$1 -> 0 | BS33: =+Sheet3!BS30/Sheet3!$F$1 -> 0 | BT33: =+Sheet3!BT30/Sheet3!$F$1 -> 0 | BU33: =+Sheet3!BU30/Sheet3!$F$1 -> 0 | BV33: =+Sheet3!BV30/Sheet3!$F$1 -> 0 | BW33: =+Sheet3!BW30/Sheet3!$F$1 -> 0 | BX33: =+Sheet3!BX30/Sheet3!$F$1 -> 0 | BY33: =+Sheet3!BY30/Sheet3!$F$1 -> 0 | BZ33: =+Sheet3!BZ30/Sheet3!$F$1 -> 0 | CA33: =+Sheet3!CA30/Sheet3!$F$1 -> 0 | CB33: =+Sheet3!CB30/Sheet3!$F$1 -> 0 | CC33: =+Sheet3!CC30/Sheet3!$F$1 -> 0 | CD33: =+Sheet3!CD30/Sheet3!$F$1 -> 0 | CE33: =+Sheet3!CE30/Sheet3!$F$1 -> 0 | CF33: =+Sheet3!CF30/Sheet3!$F$1 -> 0 | CG33: =+Sheet3!CG30/Sheet3!$F$1 -> 0 | CH33: =+Sheet3!CH30/Sheet3!$F$1 -> 0 | CI33: =+Sheet3!CI30/Sheet3!$F$1 -> 0 | CJ33: =+Sheet3!CJ30/Sheet3!$F$1 -> 0 | CK33: =+Sheet3!CK30/Sheet3!$F$1 -> 0 | CL33: =+Sheet3!CL30/Sheet3!$F$1 -> 0 | CM33: =+Sheet3!CM30/Sheet3!$F$1 -> 0 | CN33: =+Sheet3!CN30/Sheet3!$F$1 -> 0 | CO33: =+Sheet3!CO30/Sheet3!$F$1 -> 0 | CP33: =+Sheet3!CP30/Sheet3!$F$1 -> 0 | CQ33: =+Sheet3!CQ30/Sheet3!$F$1 -> 0 | CR33: =+Sheet3!CR30/Sheet3!$F$1 -> 0 | CS33: =+Sheet3!CS30/Sheet3!$F$1 -> 0 | CT33: =+Sheet3!CT30/Sheet3!$F$1 -> 0 | CU33: =+Sheet3!CU30/Sheet3!$F$1 -> 0 | CV33: =+Sheet3!CV30/Sheet3!$F$1 -> 0 | CW33: =+Sheet3!CW30/Sheet3!$F$1 -> 0 | CX33: =+Sheet3!CX30/Sheet3!$F$1 -> 0 | CY33: =+Sheet3!CY30/Sheet3!$F$1 -> 0 | CZ33: =+Sheet3!CZ30/Sheet3!$F$1 -> 0 | DA33: =+Sheet3!DA30/Sheet3!$F$1 -> 0 | DB33: =+Sheet3!DB30/Sheet3!$F$1 -> 0 | DC33: =+Sheet3!DC30/Sheet3!$F$1 -> 0 | DD33: =+Sheet3!DD30/Sheet3!$F$1 -> 0 | DE33: =+Sheet3!DE30/Sheet3!$F$1 -> 0 | DF33: =+Sheet3!DF30/Sheet3!$F$1 -> 0 | DG33: =+Sheet3!DG30/Sheet3!$F$1 -> 0 | DH33: =+Sheet3!DH30/Sheet3!$F$1 -> 0 | DI33: =+Sheet3!DI30/Sheet3!$F$1 -> 0 | DJ33: =+Sheet3!DJ30/Sheet3!$F$1 -> 0 | DK33: =+Sheet3!DK30/Sheet3!$F$1 -> 0 | DL33: =+Sheet3!DL30/Sheet3!$F$1 -> 0 | DM33: 0
A34: Continente | D34: =+Sheet3!D31/Sheet3!$F$1 -> 0 | E34: =+Sheet3!E31/Sheet3!$F$1 -> 0.4725 | F34: =+Sheet3!F31/Sheet3!$F$1 -> 0.6636 | G34: =+Sheet3!G31/Sheet3!$F$1 -> 0 | H34: =+Sheet3!H31/Sheet3!$F$1 -> 0 | I34: =+Sheet3!I31/Sheet3!$F$1 -> 0 | J34: =+Sheet3!J31/Sheet3!$F$1 -> 0.35 | K34: =+Sheet3!K31/Sheet3!$F$1 -> 0 | L34: =+Sheet3!L31/Sheet3!$F$1 -> 0 | M34: =+Sheet3!M31/Sheet3!$F$1 -> 0 | N34: =+Sheet3!N31/Sheet3!$F$1 -> 0 | O34: =+Sheet3!O31/Sheet3!$F$1 -> 0 | P34: =+Sheet3!P31/Sheet3!$F$1 -> 0.35 | Q34: =+Sheet3!Q31/Sheet3!$F$1 -> 0 | R34: =+Sheet3!R31/Sheet3!$F$1 -> 0 | S34: =+Sheet3!S31/Sheet3!$F$1 -> 0 | T34: =+Sheet3!T31/Sheet3!$F$1 -> 0 | U34: =+Sheet3!U31/Sheet3!$F$1 -> 0 | V34: =+Sheet3!V31/Sheet3!$F$1 -> 0 | W34: =+Sheet3!W31/Sheet3!$F$1 -> 0 | X34: =+Sheet3!X31/Sheet3!$F$1 -> 0 | Y34: =+Sheet3!Y31/Sheet3!$F$1 -> 0 | Z34: =+Sheet3!Z31/Sheet3!$F$1 -> 0 | AA34: =+Sheet3!AA31/Sheet3!$F$1 -> 0 | AB34: =+Sheet3!AB31/Sheet3!$F$1 -> 0 | AC34: =+Sheet3!AC31/Sheet3!$F$1 -> 0 | AD34: =+Sheet3!AD31/Sheet3!$F$1 -> 2.4465 | AE34: =+Sheet3!AE31/Sheet3!$F$1 -> 8.0395 | AF34: =+Sheet3!AF31/Sheet3!$F$1 -> 0 | AG34: =+Sheet3!AG31/Sheet3!$F$1 -> 0 | AH34: =+Sheet3!AH31/Sheet3!$F$1 -> 0 | AI34: =+Sheet3!AI31/Sheet3!$F$1 -> 0 | AJ34: =+Sheet3!AJ31/Sheet3!$F$1 -> 0 | AK34: =+Sheet3!AK31/Sheet3!$F$1 -> 0 | AL34: =+Sheet3!AL31/Sheet3!$F$1 -> 0 | AM34: =+Sheet3!AM31/Sheet3!$F$1 -> 0 | AN34: =+Sheet3!AN31/Sheet3!$F$1 -> 1.1732 | AO34: =+Sheet3!AO31/Sheet3!$F$1 -> 1.75 | AP34: =+Sheet3!AP31/Sheet3!$F$1 -> 0 | AQ34: =+Sheet3!AQ31/Sheet3!$F$1 -> 0 | AR34: =+Sheet3!AR31/Sheet3!$F$1 -> 0 | AS34: =+Sheet3!AS31/Sheet3!$F$1 -> 0 | AT34: =+Sheet3!AT31/Sheet3!$F$1 -> 0 | AU34: =+Sheet3!AU31/Sheet3!$F$1 -> 0 | AV34: =+Sheet3!AV31/Sheet3!$F$1 -> 0 | AW34: =+Sheet3!AW31/Sheet3!$F$1 -> 0 | AX34: =+Sheet3!AX31/Sheet3!$F$1 -> 6.4099 | AY34: =+Sheet3!AY31/Sheet3!$F$1 -> 18.0831 | AZ34: =+Sheet3!AZ31/Sheet3!$F$1 -> 0 | BA34: =+Sheet3!BA31/Sheet3!$F$1 -> 0 | BB34: =+Sheet3!BB31/Sheet3!$F$1 -> 0 | BC34: =+Sheet3!BC31/Sheet3!$F$1 -> 5.12678 | BD34: =+Sheet3!BD31/Sheet3!$F$1 -> 19.31755 | BE34: =+Sheet3!BE31/Sheet3!$F$1 -> 0 | BF34: =+Sheet3!BF31/Sheet3!$F$1 -> 0 | BG34: =+Sheet3!BG31/Sheet3!$F$1 -> 4.83 | BH34: =+Sheet3!BH31/Sheet3!$F$1 -> 64.24828 | BI34: =+Sheet3!BI31/Sheet3!$F$1 -> 76.56857 | BJ34: =+Sheet3!BJ31/Sheet3!$F$1 -> 0.7 | BK34: =+Sheet3!BK31/Sheet3!$F$1 -> 0 | BL34: =+Sheet3!BL31/Sheet3!$F$1 -> 0 | BM34: =+Sheet3!BM31/Sheet3!$F$1 -> 83.49437 | BN34: =+Sheet3!BN31/Sheet3!$F$1 -> 267.88713 | BO34: =+Sheet3!BO31/Sheet3!$F$1 -> 4.30325 | BP34: =+Sheet3!BP31/Sheet3!$F$1 -> 0 | BQ34: =+Sheet3!BQ31/Sheet3!$F$1 -> 5.55181 | BR34: =+Sheet3!BR31/Sheet3!$F$1 -> 202.42065 | BS34: =+Sheet3!BS31/Sheet3!$F$1 -> 289.44591 | BT34: =+Sheet3!BT31/Sheet3!$F$1 -> 5.23475 | BU34: =+Sheet3!BU31/Sheet3!$F$1 -> 0 | BV34: =+Sheet3!BV31/Sheet3!$F$1 -> 1.4 | BW34: =+Sheet3!BW31/Sheet3!$F$1 -> 76.66658 | BX34: =+Sheet3!BX31/Sheet3!$F$1 -> 114.39291 | BY34: =+Sheet3!BY31/Sheet3!$F$1 -> 0.7 | BZ34: =+Sheet3!BZ31/Sheet3!$F$1 -> 0 | CA34: =+Sheet3!CA31/Sheet3!$F$1 -> 0 | CB34: =+Sheet3!CB31/Sheet3!$F$1 -> 0.4704 | CC34: =+Sheet3!CC31/Sheet3!$F$1 -> 0 | CD34: =+Sheet3!CD31/Sheet3!$F$1 -> 0 | CE34: =+Sheet3!CE31/Sheet3!$F$1 -> 0 | CF34: =+Sheet3!CF31/Sheet3!$F$1 -> 0 | CG34: =+Sheet3!CG31/Sheet3!$F$1 -> 0 | CH34: =+Sheet3!CH31/Sheet3!$F$1 -> 0 | CI34: =+Sheet3!CI31/Sheet3!$F$1 -> 0 | CJ34: =+Sheet3!CJ31/Sheet3!$F$1 -> 0 | CK34: =+Sheet3!CK31/Sheet3!$F$1 -> 0 | CL34: =+Sheet3!CL31/Sheet3!$F$1 -> 0 | CM34: =+Sheet3!CM31/Sheet3!$F$1 -> 0 | CN34: =+Sheet3!CN31/Sheet3!$F$1 -> 0 | CO34: =+Sheet3!CO31/Sheet3!$F$1 -> 0 | CP34: =+Sheet3!CP31/Sheet3!$F$1 -> 1.1361 | CQ34: =+Sheet3!CQ31/Sheet3!$F$1 -> 0.35 | CR34: =+Sheet3!CR31/Sheet3!$F$1 -> 0.35 | CS34: =+Sheet3!CS31/Sheet3!$F$1 -> 0 | CT34: =+Sheet3!CT31/Sheet3!$F$1 -> 0 | CU34: =+Sheet3!CU31/Sheet3!$F$1 -> 10.486 | CV34: =+Sheet3!CV31/Sheet3!$F$1 -> 0 | CW34: =+Sheet3!CW31/Sheet3!$F$1 -> 2.9232 | CX34: =+Sheet3!CX31/Sheet3!$F$1 -> 0 | CY34: =+Sheet3!CY31/Sheet3!$F$1 -> 24.493 | CZ34: =+Sheet3!CZ31/Sheet3!$F$1 -> 24.44433 | DA34: =+Sheet3!DA31/Sheet3!$F$1 -> 146.34685 | DB34: =+Sheet3!DB31/Sheet3!$F$1 -> 355.68475 | DC34: =+Sheet3!DC31/Sheet3!$F$1 -> 502.65312 | DD34: =+Sheet3!DD31/Sheet3!$F$1 -> 193.15949 | DE34: =+Sheet3!DE31/Sheet3!$F$1 -> 0.4704 | DF34: =+Sheet3!DF31/Sheet3!$F$1 -> 0 | DG34: =+Sheet3!DG31/Sheet3!$F$1 -> 0 | DH34: =+Sheet3!DH31/Sheet3!$F$1 -> 11.78181 | DI34: =+Sheet3!DI31/Sheet3!$F$1 -> 443.27916 | DJ34: =+Sheet3!DJ31/Sheet3!$F$1 -> 796.49827 | DK34: =+Sheet3!DK31/Sheet3!$F$1 -> 10.938 | DL34: =+Sheet3!DL31/Sheet3!$F$1 -> 0 | DM34: =SUM(DH34:DL34) -> 1262.49724
B37: Legenda
B38: MP | C38: =+INDEX(Sheet6!O8:Q8,1,Sheet3!$B$1) -> < 5 ha
B39: P | C39: =+INDEX(Sheet6!O9:Q9,1,Sheet3!$B$1) -> >= 5 e < 25 ha
B40: M | C40: =+INDEX(Sheet6!O10:Q10,1,Sheet3!$B$1) -> >= 25 e < 200 ha
B41: G | C41: =+INDEX(Sheet6!O11:Q11,1,Sheet3!$B$1) -> >= 200 e < 1 000 ha
B42: MG | C42: =+INDEX(Sheet6!O12:Q12,1,Sheet3!$B$1) -> >= 1 000 ha
A43: Fonte: GPP a partir de dados IFAP
D45: =+INDEX(Sheet6!$D$2:$D$117,Sheet3!$C$1)&" segundo Orientação Técnico Económica e "&INDEX(Sheet6!$M$3:$M$6,Sheet3!$B$1)&" e por NUTSIII em " &Sheet6!$B$1 -> (50) - Maa - Pastoreio Extensivo Iii (Mapa) segundo Orientação Técnico Económica e Classes de Superfície Agrícola e por NUTSIII em 2019 | AH45: =+D45& " (cont.)" -> (50) - Maa - Pastoreio Extensivo Iii (Mapa) segundo Orientação Técnico Económica e Classes de Superfície Agrícola e por NUTSIII em 2019 (cont.) | BL45: =+AH45 -> (50) - Maa - Pastoreio Extensivo Iii (Mapa) segundo Orientação Técnico Económica e Classes de Superfície Agrícola e por NUTSIII em 2019 (cont.) | CP45: =+INDEX(Sheet6!$D$2:$D$117,Sheet3!$C$1)&" segundo Orientação Técnico Económica por NUTSIII em " &Sheet6!B43 -> (50) - Maa - Pastoreio Extensivo Iii (Mapa) segundo Orientação Técnico Económica por NUTSIII em 42 | DH45: =+INDEX(Sheet6!$D$2:$D$117,Sheet3!$C$1)&CHAR(10)& "segundo "&INDEX(Sheet6!$M$3:$M$6,Sheet3!$B$1)& " por NUTSIII em " &Sheet6!$B$1 -> (50) - Maa - Pastoreio Extensivo Iii (Mapa) segundo Classes de Superfície Agrícola por NUTSIII em 2019
C46: Unidade (%)
C47: OTE | D47: Não classificadas | I47: Arvenses e Outras Cult pred. Regadio | N47: Arvenses e Outras Cult pred. Sequeiro | S47: Arroz | X47: Horticultura e Industriais | AC47: Horticultura e Floricultura | AH47: Vinhos | AM47: Fruticultura | AR47: Olival | AW47: Policultura | BB47: Bovinos Leite | BG47: Bovinos Carne pred. Intensivos | BL47: Bovinos Carne pred. Extensivos | BQ47: Outros Ruminantes | BV47: Mistas | CA47: Pousio e Pastagem | CF47: Tomate Indústria | CK47: Plantas tuberosas | CP47: Não classificadas | CQ47: Arvenses e Outras Cult pred. Regadio | CR47: Arvenses e Outras Cult pred. Sequeiro | CS47: Arroz | CT47: Horticultura e Industriais | CU47: Horticultura e Floricultura | CV47: Vinhos | CW47: Fruticultura | CX47: Olival | CY47: Policultura | CZ47: Bovinos Leite | DA47: Bovinos Carne pred. Intensivos | DB47: Bovinos Carne pred. Extensivos | DC47: Outros Ruminantes | DD47: Mistas | DE47: Pousio e Pastagem | DF47: Tomate Indústria | DG47: Plantas tuberosas | DH47: MP | DI47: P | DJ47: M | DK47: G | DL47: MG | DM47: Total
C48: =+C9 -> Classes de Superfície Agrícola | D48: MP | E48: P | F48: M | G48: G | H48: MG | I48: MP | J48: P | K48: M | L48: G | M48: MG | N48: MP | O48: P | P48: M | Q48: G | R48: MG | S48: MP | T48: P | U48: M | V48: G | W48: MG | X48: MP | Y48: P | Z48: M | AA48: G | AB48: MG | AC48: MP | AD48: P | AE48: M | AF48: G | AG48: MG | AH48: MP | AI48: P | AJ48: M | AK48: G | AL48: MG | AM48: MP | AN48: P | AO48: M | AP48: G | AQ48: MG | AR48: MP | AS48: P | AT48: M | AU48: G | AV48: MG | AW48: MP | AX48: P | AY48: M | AZ48: G | BA48: MG | BB48: MP | BC48: P | BD48: M | BE48: G | BF48: MG | BG48: MP | BH48: P | BI48: M | BJ48: G | BK48: MG | BL48: MP | BM48: P | BN48: M | BO48: G | BP48: MG | BQ48: MP | BR48: P | BS48: M | BT48: G | BU48: MG | BV48: MP | BW48: P | BX48: M | BY48: G | BZ48: MG | CA48: MP | CB48: P | CC48: M | CD48: G | CE48: MG | CF48: MP | CG48: P | CH48: M | CI48: G | CJ48: MG | CK48: MP | CL48: P | CM48: M | CN48: G | CO48: MG | CQ48: Arvenses e Outras Cult pred. Regadio
A49: NUTS II | B49: Cód. | C49: NUTS III | AG49: =+"Unidade: % " -> Unidade: % | BK49: =+"Unidade: % " -> Unidade: % | CO49: =+"Unidade: % " -> Unidade: % | DM49: Unidade: %
A50: Norte | B50: 111 | C50: Alto Minho | D50: =+D11/$DM$34*100 -> 0 | E50: =+E11/$DM$34*100 -> 0 | F50: 0 | G50: 0 | H50: 0 | I50: 0 | J50: 0.02772283288 | K50: 0 | L50: 0 | M50: 0 | N50: 0 | O50: 0 | P50: 0 | Q50: 0 | R50: 0 | S50: 0 | T50: 0 | U50: 0 | V50: 0 | W50: 0 | X50: 0 | Y50: 0 | Z50: 0 | AA50: 0 | AB50: 0 | AC50: 0 | AD50: 0 | AE50: 0 | AF50: 0 | AG50: 0 | AH50: 0 | AI50: 0 | AJ50: =+AJ11/$DM$34*100 -> 0 | AK50: 0 | AL50: 0 | AM50: 0 | AN50: 0 | AO50: 0 | AP50: 0 | AQ50: 0 | AR50: 0 | AS50: 0 | AT50: 0 | AU50: 0 | AV50: 0 | AW50: 0 | AX50: 0 | AY50: 0 | AZ50: 0 | BA50: 0 | BB50: 0 | BC50: 0 | BD50: 0 | BE50: 0 | BF50: 0 | BG50: 0 | BH50: 0.354921964 | BI50: 0.3603968275 | BJ50: 0 | BK50: 0 | BL50: 0 | BM50: 0.3867889644 | BN50: 1.870542703 | BO50: 0.08316849865 | BP50: =+BP11/$DM$34*100 -> 0 | BQ50: 0 | BR50: 0.1106141032 | BS50: 0.5287853144 | BT50: 0.05544566577 | BU50: 0 | BV50: 0 | BW50: 0.03409908445 | BX50: 0 | BY50: 0 | BZ50: 0 | CA50: 0 | CB50: 0 | CC50: 0 | CD50: 0 | CE50: 0 | CF50: 0 | CG50: 0 | CH50: 0 | CI50: 0 | CJ50: 0 | CK50: 0 | CL50: 0 | CM50: 0 | CN50: 0 | CO50: 0 | CP50: 0 | CQ50: 0.02772283288 | CR50: 0 | CS50: 0 | CT50: 0 | CU50: 0 | CV50: =+CV11/$DM$34*100 -> 0 | CW50: 0 | CX50: 0 | CY50: 0 | CZ50: 0 | DA50: 0.7153187915 | DB50: 2.340500166 | DC50: 0.6948450834 | DD50: 0.03409908445 | DE50: 0 | DF50: 0 | DG50: 0 | DH50: 0 | DI50: 0.9141469489 | DJ50: 2.759724845 | DK50: 0.1386141644 | DL50: 0 | DM50: =SUM(DH50:DL50) -> 3.812485958
B51: 112 | C51: Cávado | D51: =+D12/$DM$34*100 -> 0 | E51: 0 | F51: 0 | G51: 0 | H51: 0 | I51: 0 | J51: 0 | K51: 0 | L51: 0 | M51: 0 | N51: 0 | O51: 0 | P51: 0 | Q51: 0 | R51: 0 | S51: 0 | T51: 0 | U51: 0 | V51: 0 | W51: 0 | X51: 0 | Y51: 0 | Z51: 0 | AA51: 0 | AB51: 0 | AC51: 0 | AD51: 0 | AE51: 0 | AF51: 0 | AG51: 0 | AH51: 0 | AI51: 0 | AJ51: =+AJ12/$DM$34*100 -> 0 | AK51: 0 | AL51: 0 | AM51: 0 | AN51: 0 | AO51: 0 | AP51: 0 | AQ51: 0 | AR51: 0 | AS51: 0 | AT51: 0 | AU51: 0 | AV51: 0 | AW51: 0 | AX51: 0 | AY51: 0 | AZ51: 0 | BA51: 0 | BB51: 0 | BC51: 0 | BD51: 0 | BE51: 0 | BF51: 0 | BG51: 0 | BH51: 0.08316849865 | BI51: 0.0268911479 | BJ51: 0 | BK51: 0 | BL51: 0 | BM51: 0.05544566577 | BN51: 0.2217826631 | BO51: 0 | BP51: =+BP12/$DM$34*100 -> 0 | BQ51: 0 | BR51: 0 | BS51: 0.5771893806 | BT51: 0 | BU51: 0 | BV51: 0 | BW51: 0.02772283288 | BX51: 0 | BY51: 0 | BZ51: 0 | CA51: 0 | CB51: 0 | CC51: 0 | CD51: 0 | CE51: 0 | CF51: 0 | CG51: 0 | CH51: 0 | CI51: 0 | CJ51: 0 | CK51: 0 | CL51: 0 | CM51: 0 | CN51: 0 | CO51: 0 | CP51: 0 | CQ51: 0 | CR51: 0 | CS51: 0 | CT51: 0 | CU51: 0 | CV51: =+CV12/$DM$34*100 -> 0 | CW51: 0 | CX51: 0 | CY51: 0 | CZ51: 0 | DA51: 0.1100596465 | DB51: 0.2772283288 | DC51: 0.5771893806 | DD51: 0.02772283288 | DE51: 0 | DF51: 0 | DG51: 0 | DH51: 0 | DI51: 0.1663369973 | DJ51: 0.8258631916 | DK51: 0 | DL51: 0 | DM51: =SUM(DH51:DL51) -> 0.9922001889
B52: 119 | C52: Ave | D52: =+D13/$DM$34*100 -> 0 | E52: 0 | F52: 0 | G52: 0 | H52: 0 | I52: 0 | J52: 0 | K52: 0 | L52: 0 | M52: 0 | N52: 0 | O52: 0 | P52: 0 | Q52: 0 | R52: 0 | S52: 0 | T52: 0 | U52: 0 | V52: 0 | W52: 0 | X52: 0 | Y52: 0 | Z52: 0 | AA52: 0 | AB52: 0 | AC52: 0 | AD52: 0 | AE52: 0 | AF52: 0 | AG52: 0 | AH52: 0 | AI52: 0 | AJ52: =+AJ13/$DM$34*100 -> 0 | AK52: 0 | AL52: 0 | AM52: 0 | AN52: 0.03748127006 | AO52: 0 | AP52: 0 | AQ52: 0 | AR52: 0 | AS52: 0 | AT52: 0 | AU52: 0 | AV52: 0 | AW52: 0 | AX52: 0 | AY52: 0 | AZ52: 0 | BA52: 0 | BB52: 0 | BC52: 0 | BD52: 0 | BE52: 0 | BF52: 0 | BG52: 0 | BH52: 0.9768140166 | BI52: 0.1114457882 | BJ52: 0 | BK52: 0 | BL52: 0 | BM52: 0.9239465743 | BN52: 1.172481771 | BO52: 0 | BP52: =+BP13/$DM$34*100 -> 0 | BQ52: 0 | BR52: 0.5227163903 | BS52: 1.566367781 | BT52: 0 | BU52: 0 | BV52: 0 | BW52: 0 | BX52: 0 | BY52: 0 | BZ52: 0 | CA52: 0 | CB52: 0.03725948739 | CC52: 0 | CD52: 0 | CE52: 0 | CF52: 0 | CG52: 0 | CH52: 0 | CI52: 0 | CJ52: 0 | CK52: 0 | CL52: 0 | CM52: 0 | CN52: 0 | CO52: 0 | CP52: 0 | CQ52: 0 | CR52: 0 | CS52: 0 | CT52: 0 | CU52: 0 | CV52: =+CV13/$DM$34*100 -> 0 | CW52: 0.03748127006 | CX52: 0 | CY52: 0 | CZ52: 0 | DA52: 1.088259805 | DB52: 2.096428345 | DC52: 2.089084171 | DD52: 0 | DE52: 0.03725948739 | DF52: 0 | DG52: 0 | DH52: 0 | DI52: 2.498217739 | DJ52: 2.85029534 | DK52: 0 | DL52: 0 | DM52: 5.348513079
B53: 11A | C53: Área Metropolitana do Porto | D53: =+D14/$DM$34*100 -> 0 | E53: 0 | F53: 0 | G53: 0 | H53: 0 | I53: 0 | J53: 0 | K53: 0 | L53: 0 | M53: 0 | N53: 0 | O53: 0 | P53: 0 | Q53: 0 | R53: 0 | S53: 0 | T53: 0 | U53: 0 | V53: 0 | W53: 0 | X53: 0 | Y53: 0 | Z53: 0 | AA53: 0 | AB53: 0 | AC53: 0 | AD53: 0 | AE53: 0 | AF53: 0 | AG53: 0 | AH53: 0 | AI53: 0 | AJ53: =+AJ14/$DM$34*100 -> 0 | AK53: 0 | AL53: 0 | AM53: 0 | AN53: 0 | AO53: 0 | AP53: 0 | AQ53: 0 | AR53: 0 | AS53: 0 | AT53: 0 | AU53: 0 | AV53: 0 | AW53: 0 | AX53: 0 | AY53: 0 | AZ53: 0 | BA53: 0 | BB53: 0 | BC53: 0 | BD53: 0 | BE53: 0 | BF53: 0 | BG53: 0.02772283288 | BH53: 0 | BI53: 0 | BJ53: 0 | BK53: 0 | BL53: 0 | BM53: 0 | BN53: 0.05544566577 | BO53: 0 | BP53: =+BP14/$DM$34*100 -> 0 | BQ53: 0 | BR53: 0 | BS53: 0 | BT53: 0 | BU53: 0 | BV53: 0 | BW53: 0 | BX53: 0 | BY53: 0 | BZ53: 0 | CA53: 0 | CB53: 0 | CC53: 0 | CD53: 0 | CE53: 0 | CF53: 0 | CG53: 0 | CH53: 0 | CI53: 0 | CJ53: 0 | CK53: 0 | CL53: 0 | CM53: 0 | CN53: 0 | CO53: 0 | CP53: 0 | CQ53: 0 | CR53: 0 | CS53: 0 | CT53: 0 | CU53: 0 | CV53: =+CV14/$DM$34*100 -> 0 | CW53: 0 | CX53: 0 | CY53: 0 | CZ53: 0 | DA53: 0.02772283288 | DB53: 0.05544566577 | DC53: 0 | DD53: 0 | DE53: 0 | DF53: 0 | DG53: 0 | DH53: 0.02772283288 | DI53: 0 | DJ53: 0.05544566577 | DK53: 0 | DL53: 0 | DM53: 0.08316849865
B54: 11B | C54: Alto Tâmega | D54: =+D15/$DM$34*100 -> 0 | E54: -0.04102979267 | F54: 0 | G54: 0 | H54: 0 | I54: 0 | J54: 0 | K54: 0 | L54: 0 | M54: 0 | N54: 0 | O54: 0 | P54: 0 | Q54: 0 | R54: 0 | S54: 0 | T54: 0 | U54: 0 | V54: 0 | W54: 0 | X54: 0 | Y54: 0 | Z54: 0 | AA54: 0 | AB54: 0 | AC54: 0 | AD54: 0.05516843744 | AE54: 0 | AF54: 0 | AG54: 0 | AH54: 0 | AI54: 0 | AJ54: =+AJ15/$DM$34*100 -> 0 | AK54: 0 | AL54: 0 | AM54: 0 | AN54: 0 | AO54: 0 | AP54: 0 | AQ54: 0 | AR54: 0 | AS54: 0 | AT54: 0 | AU54: 0 | AV54: 0 | AW54: 0 | AX54: 0.07119223484 | AY54: 0.02772283288 | AZ54: 0 | BA54: 0 | BB54: 0 | BC54: 0.3506368061 | BD54: 0.2261628707 | BE54: 0 | BF54: 0 | BG54: 0.1330695978 | BH54: 1.777892996 | BI54: 1.248710057 | BJ54: 0 | BK54: 0 | BL54: 0 | BM54: 4.20627771 | BN54: 10.23232336 | BO54: 0.05045555585 | BP54: =+BP15/$DM$34*100 -> 0 | BQ54: 0.02045945067 | BR54: 3.620456232 | BS54: 6.018446424 | BT54: 0.033722846 | BU54: 0 | BV54: 0 | BW54: 1.215978896 | BX54: 0.6484370611 | BY54: 0 | BZ54: 0 | CA54: 0 | CB54: 0 | CC54: 0 | CD54: 0 | CE54: 0 | CF54: 0 | CG54: 0 | CH54: 0 | CI54: 0 | CJ54: 0 | CK54: 0 | CL54: 0 | CM54: 0 | CN54: 0 | CO54: 0 | CP54: 0 | CQ54: 0 | CR54: 0 | CS54: 0 | CT54: 0 | CU54: 0.05516843744 | CV54: =+CV15/$DM$34*100 -> 0 | CW54: 0 | CX54: 0 | CY54: 0.09891506773 | CZ54: 0.5767996768 | DA54: 3.15967265 | DB54: 14.48905663 | DC54: 9.693084953 | DD54: 1.864415957 | DE54: 0 | DF54: 0 | DG54: 0 | DH54: 0.1535290485 | DI54: 11.25657352 | DJ54: 18.40180261 | DK54: 0.08417840185 | DL54: 0 | DM54: 29.89608357
B55: 11C | C55: Tâmega e Sousa | D55: =+D16/$DM$34*100 -> 0 | E55: 0 | F55: 0 | G55: 0 | H55: 0 | I55: 0 | J55: 0 | K55: 0 | L55: 0 | M55: 0 | N55: 0 | O55: 0 | P55: 0 | Q55: 0 | R55: 0 | S55: 0 | T55: 0 | U55: 0 | V55: 0 | W55: 0 | X55: 0 | Y55: 0 | Z55: 0 | AA55: 0 | AB55: 0 | AC55: 0 | AD55: 0 | AE55: 0 | AF55: 0 | AG55: 0 | AH55: 0 | AI55: 0 | AJ55: =+AJ16/$DM$34*100 -> 0 | AK55: 0 | AL55: 0 | AM55: 0 | AN55: 0 | AO55: 0 | AP55: 0 | AQ55: 0 | AR55: 0 | AS55: 0 | AT55: 0 | AU55: 0 | AV55: 0 | AW55: 0 | AX55: 0 | AY55: 0 | AZ55: 0 | BA55: 0 | BB55: 0 | BC55: 0 | BD55: 0 | BE55: 0 | BF55: 0 | BG55: 0.08316849865 | BH55: 0.2495054959 | BI55: 0.1663369973 | BJ55: 0 | BK55: 0 | BL55: 0 | BM55: 0.02772283288 | BN55: 0.2410223091 | BO55: 0 | BP55: =+BP16/$DM$34*100 -> 0 | BQ55: 0.05544566577 | BR55: 0.08316849865 | BS55: 0.0508064477 | BT55: 0.1042378516 | BU55: 0 | BV55: 0 | BW55: 0.02772283288 | BX55: 0.05544566577 | BY55: 0 | BZ55: 0 | CA55: 0 | CB55: 0 | CC55: 0 | CD55: 0 | CE55: 0 | CF55: 0 | CG55: 0 | CH55: 0 | CI55: 0 | CJ55: 0 | CK55: 0 | CL55: 0 | CM55: 0 | CN55: 0 | CO55: 0 | CP55: 0 | CQ55: 0 | CR55: 0 | CS55: 0 | CT55: 0 | CU55: 0 | CV55: =+CV16/$DM$34*100 -> 0 | CW55: 0 | CX55: 0 | CY55: 0 | CZ55: 0 | DA55: 0.4990109919 | DB55: 0.268745142 | DC55: 0.2936584638 | DD55: 0.08316849865 | DE55: 0 | DF55: 0 | DG55: 0 | DH55: 0.1386141644 | DI55: 0.3881196604 | DJ55: 0.5136114199 | DK55: 0.1042378516 | DL55: 0 | DM55: 1.144583096
B56: 11D | C56: Douro | D56: =+D17/$DM$34*100 -> 0 | E56: 0 | F56: 0 | G56: 0 | H56: 0 | I56: 0 | J56: 0 | K56: 0 | L56: 0 | M56: 0 | N56: 0 | O56: 0 | P56: 0 | Q56: 0 | R56: 0 | S56: 0 | T56: 0 | U56: 0 | V56: 0 | W56: 0 | X56: 0 | Y56: 0 | Z56: 0 | AA56: 0 | AB56: 0 | AC56: 0 | AD56: 0.02772283288 | AE56: 0 | AF56: 0 | AG56: 0 | AH56: 0 | AI56: 0 | AJ56: =+AJ17/$DM$34*100 -> 0 | AK56: 0 | AL56: 0 | AM56: 0 | AN56: 0 | AO56: 0 | AP56: 0 | AQ56: 0 | AR56: 0 | AS56: 0 | AT56: 0 | AU56: 0 | AV56: 0 | AW56: 0 | AX56: 0 | AY56: 0 | AZ56: 0 | BA56: 0 | BB56: 0 | BC56: 0.02772283288 | BD56: 0.237723292 | BE56: 0 | BF56: 0 | BG56: 0 | BH56: 0.2190103798 | BI56: 0.1108913315 | BJ56: 0 | BK56: 0 | BL56: 0 | BM56: 0.2691673211 | BN56: 0.9873978022 | BO56: 0.01649508557 | BP56: =+BP17/$DM$34*100 -> 0 | BQ56: 0.05614586532 | BR56: 1.322124871 | BS56: 1.566483425 | BT56: 0 | BU56: 0 | BV56: 0 | BW56: 0.3230264488 | BX56: 0.3395492572 | BY56: 0 | BZ56: 0 | CA56: 0 | CB56: 0 | CC56: 0 | CD56: 0 | CE56: 0 | CF56: 0 | CG56: 0 | CH56: 0 | CI56: 0 | CJ56: 0 | CK56: 0 | CL56: 0 | CM56: 0 | CN56: 0 | CO56: 0 | CP56: 0 | CQ56: 0 | CR56: 0 | CS56: 0 | CT56: 0 | CU56: 0.02772283288 | CV56: =+CV17/$DM$34*100 -> 0 | CW56: 0 | CX56: 0 | CY56: 0 | CZ56: 0.2654461249 | DA56: 0.3299017113 | DB56: 1.273060209 | DC56: 2.94475416 | DD56: 0.6625757059 | DE56: 0 | DF56: 0 | DG56: 0 | DH56: 0.05614586532 | DI56: 2.188774686 | DJ56: 3.242045107 | DK56: 0.01649508557 | DL56: 0 | DM56: 5.503460744
B57: 11E | C57: Terras de Trás-os-Montes | D57: =+D18/$DM$34*100 -> 0 | E57: 0.05211892582 | F57: 0.05256249115 | G57: 0 | H57: 0 | I57: 0 | J57: 0 | K57: 0 | L57: 0 | M57: 0 | N57: 0 | O57: 0 | P57: 0.02772283288 | Q57: 0 | R57: 0 | S57: 0 | T57: 0 | U57: 0 | V57: 0 | W57: 0 | X57: 0 | Y57: 0 | Z57: 0 | AA57: 0 | AB57: 0 | AC57: 0 | AD57: 0.1108913315 | AE57: 0.6367934713 | AF57: 0 | AG57: 0 | AH57: 0 | AI57: 0 | AJ57: =+AJ18/$DM$34*100 -> 0 | AK57: 0 | AL57: 0 | AM57: 0 | AN57: 0.05544566577 | AO57: 0.02772283288 | AP57: 0 | AQ57: 0 | AR57: 0 | AS57: 0 | AT57: 0 | AU57: 0 | AV57: 0 | AW57: 0 | AX57: 0.4365237266 | AY57: 1.321436552 | AZ57: 0 | BA57: 0 | BB57: 0 | BC57: 0 | BD57: 0.469624789 | BE57: 0 | BF57: 0 | BG57: 0.08316849865 | BH57: 0.4967931653 | BI57: 1.548320217 | BJ57: 0.05544566577 | BK57: 0 | BL57: 0 | BM57: 0.1896241769 | BN57: 0.9356456098 | BO57: 0.05544566577 | BP57: =+BP18/$DM$34*100 -> 0 | BQ57: 0.2484948007 | BR57: 4.068322557 | BS57: 5.126062691 | BT57: 0 | BU57: 0 | BV57: 0 | BW57: 3.532037821 | BX57: 6.661765851 | BY57: 0 | BZ57: 0 | CA57: 0 | CB57: 0 | CC57: 0 | CD57: 0 | CE57: 0 | CF57: 0 | CG57: 0 | CH57: 0 | CI57: 0 | CJ57: 0 | CK57: 0 | CL57: 0 | CM57: 0 | CN57: 0 | CO57: 0 | CP57: 0.104681417 | CQ57: 0 | CR57: 0.02772283288 | CS57: 0 | CT57: 0 | CU57: 0.7476848029 | CV57: =+CV18/$DM$34*100 -> 0 | CW57: 0.08316849865 | CX57: 0 | CY57: 1.757960279 | CZ57: 0.469624789 | DA57: 2.183727546 | DB57: 1.180715452 | DC57: 9.442880049 | DD57: 10.19380367 | DE57: 0 | DF57: 0 | DG57: 0 | DH57: 0.3316632993 | DI57: 8.94175737 | DJ57: 16.80765734 | DK57: 0.1108913315 | DL57: 0 | DM57: 26.19196934
A58: Centro | B58: 16B | C58: Oeste | D58: =+D19/$DM$34*100 -> 0 | E58: 0 | F58: 0 | G58: 0 | H58: 0 | I58: 0 | J58: 0 | K58: 0 | L58: 0 | M58: 0 | N58: 0 | O58: 0 | P58: 0 | Q58: 0 | R58: 0 | S58: 0 | T58: 0 | U58: 0 | V58: 0 | W58: 0 | X58: 0 | Y58: 0 | Z58: 0 | AA58: 0 | AB58: 0 | AC58: 0 | AD58: 0 | AE58: 0 | AF58: 0 | AG58: 0 | AH58: 0 | AI58: 0 | AJ58: =+AJ19/$DM$34*100 -> 0 | AK58: 0 | AL58: 0 | AM58: 0 | AN58: 0 | AO58: 0 | AP58: 0 | AQ58: 0 | AR58: 0 | AS58: 0 | AT58: 0 | AU58: 0 | AV58: 0 | AW58: 0 | AX58: 0 | AY58: 0 | AZ58: 0 | BA58: 0 | BB58: 0 | BC58: 0 | BD58: 0 | BE58: 0 | BF58: 0 | BG58: 0 | BH58: 0 | BI58: 0 | BJ58: 0 | BK58: 0 | BL58: 0 | BM58: 0 | BN58: 0 | BO58: 0 | BP58: =+BP19/$DM$34*100 -> 0 | BQ58: 0 | BR58: 0 | BS58: 0 | BT58: 0 | BU58: 0 | BV58: 0 | BW58: 0 | BX58: 0 | BY58: 0 | BZ58: 0 | CA58: 0 | CB58: 0 | CC58: 0 | CD58: 0 | CE58: 0 | CF58: 0 | CG58: 0 | CH58: 0 | CI58: 0 | CJ58: 0 | CK58: 0 | CL58: 0 | CM58: 0 | CN58: 0 | CO58: 0 | CP58: 0 | CQ58: 0 | CR58: 0 | CS58: 0 | CT58: 0 | CU58: 0 | CV58: =+CV19/$DM$34*100 -> 0 | CW58: 0 | CX58: 0 | CY58: 0 | CZ58: 0 | DA58: 0 | DB58: 0 | DC58: 0 | DD58: 0 | DE58: 0 | DF58: 0 | DG58: 0 | DH58: 0 | DI58: 0 | DJ58: 0 | DK58: 0 | DL58: 0 | DM58: 0
B59: 16D | C59: Região de Aveiro | D59: =+D20/$DM$34*100 -> 0 | E59: 0 | F59: 0 | G59: 0 | H59: 0 | I59: 0 | J59: 0 | K59: 0 | L59: 0 | M59: 0 | N59: 0 | O59: 0 | P59: 0 | Q59: 0 | R59: 0 | S59: 0 | T59: 0 | U59: 0 | V59: 0 | W59: 0 | X59: 0 | Y59: 0 | Z59: 0 | AA59: 0 | AB59: 0 | AC59: 0 | AD59: 0 | AE59: 0 | AF59: 0 | AG59: 0 | AH59: 0 | AI59: 0 | AJ59: =+AJ20/$DM$34*100 -> 0 | AK59: 0 | AL59: 0 | AM59: 0 | AN59: 0 | AO59: 0 | AP59: 0 | AQ59: 0 | AR59: 0 | AS59: 0 | AT59: 0 | AU59: 0 | AV59: 0 | AW59: 0 | AX59: 0 | AY59: 0 | AZ59: 0 | BA59: 0 | BB59: 0 | BC59: 0 | BD59: 0 | BE59: 0 | BF59: 0 | BG59: 0 | BH59: 0 | BI59: 0 | BJ59: 0 | BK59: 0 | BL59: 0 | BM59: 0 | BN59: 0 | BO59: 0 | BP59: =+BP20/$DM$34*100 -> 0 | BQ59: 0 | BR59: 0 | BS59: 0 | BT59: 0 | BU59: 0 | BV59: 0 | BW59: 0 | BX59: 0 | BY59: 0 | BZ59: 0 | CA59: 0 | CB59: 0 | CC59: 0 | CD59: 0 | CE59: 0 | CF59: 0 | CG59: 0 | CH59: 0 | CI59: 0 | CJ59: 0 | CK59: 0 | CL59: 0 | CM59: 0 | CN59: 0 | CO59: 0 | CP59: 0 | CQ59: 0 | CR59: 0 | CS59: 0 | CT59: 0 | CU59: 0 | CV59: =+CV20/$DM$34*100 -> 0 | CW59: 0 | CX59: 0 | CY59: 0 | CZ59: 0 | DA59: 0 | DB59: 0 | DC59: 0 | DD59: 0 | DE59: 0 | DF59: 0 | DG59: 0 | DH59: 0 | DI59: 0 | DJ59: 0 | DK59: 0 | DL59: 0 | DM59: 0
B60: 16E | C60: Região de Coimbra | D60: =+D21/$DM$34*100 -> 0 | E60: 0 | F60: 0 | G60: 0 | H60: 0 | I60: 0 | J60: 0 | K60: 0 | L60: 0 | M60: 0 | N60: 0 | O60: 0 | P60: 0 | Q60: 0 | R60: 0 | S60: 0 | T60: 0 | U60: 0 | V60: 0 | W60: 0 | X60: 0 | Y60: 0 | Z60: 0 | AA60: 0 | AB60: 0 | AC60: 0 | AD60: 0 | AE60: 0 | AF60: 0 | AG60: 0 | AH60: 0 | AI60: 0 | AJ60: =+AJ21/$DM$34*100 -> 0 | AK60: 0 | AL60: 0 | AM60: 0 | AN60: 0 | AO60: 0 | AP60: 0 | AQ60: 0 | AR60: 0 | AS60: 0 | AT60: 0 | AU60: 0 | AV60: 0 | AW60: 0 | AX60: 0 | AY60: 0 | AZ60: 0 | BA60: 0 | BB60: 0 | BC60: 0 | BD60: 0 | BE60: 0 | BF60: 0 | BG60: 0 | BH60: 0 | BI60: 0 | BJ60: 0 | BK60: 0 | BL60: 0 | BM60: 0 | BN60: 0 | BO60: 0 | BP60: =+BP21/$DM$34*100 -> 0 | BQ60: 0 | BR60: 0 | BS60: 0 | BT60: 0 | BU60: 0 | BV60: 0 | BW60: 0 | BX60: 0 | BY60: 0 | BZ60: 0 | CA60: 0 | CB60: 0 | CC60: 0 | CD60: 0 | CE60: 0 | CF60: 0 | CG60: 0 | CH60: 0 | CI60: 0 | CJ60: 0 | CK60: 0 | CL60: 0 | CM60: 0 | CN60: 0 | CO60: 0 | CP60: 0 | CQ60: 0 | CR60: 0 | CS60: 0 | CT60: 0 | CU60: 0 | CV60: =+CV21/$DM$34*100 -> 0 | CW60: 0 | CX60: 0 | CY60: 0 | CZ60: 0 | DA60: 0 | DB60: 0 | DC60: 0 | DD60: 0 | DE60: 0 | DF60: 0 | DG60: 0 | DH60: 0 | DI60: 0 | DJ60: 0 | DK60: 0 | DL60: 0 | DM60: 0
B61: 16F | C61: Região de Leiria | D61: =+D22/$DM$34*100 -> 0 | E61: 0 | F61: 0 | G61: 0 | H61: 0 | I61: 0 | J61: 0 | K61: 0 | L61: 0 | M61: 0 | N61: 0 | O61: 0 | P61: 0 | Q61: 0 | R61: 0 | S61: 0 | T61: 0 | U61: 0 | V61: 0 | W61: 0 | X61: 0 | Y61: 0 | Z61: 0 | AA61: 0 | AB61: 0 | AC61: 0 | AD61: 0 | AE61: 0 | AF61: 0 | AG61: 0 | AH61: 0 | AI61: 0 | AJ61: =+AJ22/$DM$34*100 -> 0 | AK61: 0 | AL61: 0 | AM61: 0 | AN61: 0 | AO61: 0 | AP61: 0 | AQ61: 0 | AR61: 0 | AS61: 0 | AT61: 0 | AU61: 0 | AV61: 0 | AW61: 0 | AX61: 0 | AY61: 0 | AZ61: 0 | BA61: 0 | BB61: 0 | BC61: 0 | BD61: 0 | BE61: 0 | BF61: 0 | BG61: 0 | BH61: 0 | BI61: 0 | BJ61: 0 | BK61: 0 | BL61: 0 | BM61: 0 | BN61: 0 | BO61: 0 | BP61: =+BP22/$DM$34*100 -> 0 | BQ61: 0 | BR61: 0 | BS61: 0 | BT61: 0 | BU61: 0 | BV61: 0 | BW61: 0 | BX61: 0 | BY61: 0 | BZ61: 0 | CA61: 0 | CB61: 0 | CC61: 0 | CD61: 0 | CE61: 0 | CF61: 0 | CG61: 0 | CH61: 0 | CI61: 0 | CJ61: 0 | CK61: 0 | CL61: 0 | CM61: 0 | CN61: 0 | CO61: 0 | CP61: 0 | CQ61: 0 | CR61: 0 | CS61: 0 | CT61: 0 | CU61: 0 | CV61: =+CV22/$DM$34*100 -> 0 | CW61: 0 | CX61: 0 | CY61: 0 | CZ61: 0 | DA61: 0 | DB61: 0 | DC61: 0 | DD61: 0 | DE61: 0 | DF61: 0 | DG61: 0 | DH61: 0 | DI61: 0 | DJ61: 0 | DK61: 0 | DL61: 0 | DM61: 0
B62: 16G | C62: Viseu Dão Lafões | D62: =+D23/$DM$34*100 -> 0 | E62: 0.02633669124 | F62: 0 | G62: 0 | H62: 0 | I62: 0 | J62: 0 | K62: 0 | L62: 0 | M62: 0 | N62: 0 | O62: 0 | P62: 0 | Q62: 0 | R62: 0 | S62: 0 | T62: 0 | U62: 0 | V62: 0 | W62: 0 | X62: 0 | Y62: 0 | Z62: 0 | AA62: 0 | AB62: 0 | AC62: 0 | AD62: 0 | AE62: 0 | AF62: 0 | AG62: 0 | AH62: 0 | AI62: 0 | AJ62: =+AJ23/$DM$34*100 -> 0 | AK62: 0 | AL62: 0 | AM62: 0 | AN62: 0 | AO62: 0 | AP62: 0 | AQ62: 0 | AR62: 0 | AS62: 0 | AT62: 0 | AU62: 0 | AV62: 0 | AW62: 0 | AX62: 0 | AY62: 0 | AZ62: 0 | BA62: 0 | BB62: 0 | BC62: 0 | BD62: 0 | BE62: 0 | BF62: 0 | BG62: 0 | BH62: 0.05544566577 | BI62: 0 | BJ62: 0 | BK62: 0 | BL62: 0 | BM62: 0.05544566577 | BN62: 0.1012247757 | BO62: 0 | BP62: =+BP23/$DM$34*100 -> 0 | BQ62: 0.02772283288 | BR62: 0.5162973663 | BS62: 0.1281381019 | BT62: 0.05544566577 | BU62: 0 | BV62: 0.02772283288 | BW62: 0.166059769 | BX62: 0 | BY62: 0 | BZ62: 0 | CA62: 0 | CB62: 0 | CC62: 0 | CD62: 0 | CE62: 0 | CF62: 0 | CG62: 0 | CH62: 0 | CI62: 0 | CJ62: 0 | CK62: 0 | CL62: 0 | CM62: 0 | CN62: 0 | CO62: 0 | CP62: 0.02633669124 | CQ62: 0 | CR62: 0 | CS62: 0 | CT62: 0 | CU62: 0 | CV62: =+CV23/$DM$34*100 -> 0 | CW62: 0 | CX62: 0 | CY62: 0 | CZ62: 0 | DA62: 0.05544566577 | DB62: 0.1566704415 | DC62: 0.7276039669 | DD62: 0.1937826019 | DE62: 0 | DF62: 0 | DG62: 0 | DH62: 0.05544566577 | DI62: 0.8195851581 | DJ62: 0.2293628777 | DK62: 0.05544566577 | DL62: 0 | DM62: 1.159839367
B63: 16H | C63: Beira Baixa | D63: =+D24/$DM$34*100 -> 0 | E63: 0 | F63: 0 | G63: 0 | H63: 0 | I63: 0 | J63: 0 | K63: 0 | L63: 0 | M63: 0 | N63: 0 | O63: 0 | P63: 0 | Q63: 0 | R63: 0 | S63: 0 | T63: 0 | U63: 0 | V63: 0 | W63: 0 | X63: 0 | Y63: 0 | Z63: 0 | AA63: 0 | AB63: 0 | AC63: 0 | AD63: 0 | AE63: 0 | AF63: 0 | AG63: 0 | AH63: 0 | AI63: 0 | AJ63: =+AJ24/$DM$34*100 -> 0 | AK63: 0 | AL63: 0 | AM63: 0 | AN63: 0 | AO63: 0 | AP63: 0 | AQ63: 0 | AR63: 0 | AS63: 0 | AT63: 0 | AU63: 0 | AV63: 0 | AW63: 0 | AX63: 0 | AY63: 0 | AZ63: 0 | BA63: 0 | BB63: 0 | BC63: 0 | BD63: 0 | BE63: 0 | BF63: 0 | BG63: 0 | BH63: 0 | BI63: 0 | BJ63: 0 | BK63: 0 | BL63: 0 | BM63: 0 | BN63: 0 | BO63: 0 | BP63: =+BP24/$DM$34*100 -> 0 | BQ63: 0 | BR63: 0 | BS63: 0.04061395017 | BT63: 0 | BU63: 0 | BV63: 0 | BW63: 0 | BX63: 0 | BY63: 0 | BZ63: 0 | CA63: 0 | CB63: 0 | CC63: 0 | CD63: 0 | CE63: 0 | CF63: 0 | CG63: 0 | CH63: 0 | CI63: 0 | CJ63: 0 | CK63: 0 | CL63: 0 | CM63: 0 | CN63: 0 | CO63: 0 | CP63: 0 | CQ63: 0 | CR63: 0 | CS63: 0 | CT63: 0 | CU63: 0 | CV63: =+CV24/$DM$34*100 -> 0 | CW63: 0 | CX63: 0 | CY63: 0 | CZ63: 0 | DA63: 0 | DB63: 0 | DC63: 0.04061395017 | DD63: 0 | DE63: 0 | DF63: 0 | DG63: 0 | DH63: 0 | DI63: 0 | DJ63: 0.04061395017 | DK63: 0 | DL63: 0 | DM63: 0.04061395017
B64: 16I | C64: Médio Tejo | D64: =+D25/$DM$34*100 -> 0 | E64: 0 | F64: 0 | G64: 0 | H64: 0 | I64: 0 | J64: 0 | K64: 0 | L64: 0 | M64: 0 | N64: 0 | O64: 0 | P64: 0 | Q64: 0 | R64: 0 | S64: 0 | T64: 0 | U64: 0 | V64: 0 | W64: 0 | X64: 0 | Y64: 0 | Z64: 0 | AA64: 0 | AB64: 0 | AC64: 0 | AD64: 0 | AE64: 0 | AF64: 0 | AG64: 0 | AH64: 0 | AI64: 0 | AJ64: =+AJ25/$DM$34*100 -> 0 | AK64: 0 | AL64: 0 | AM64: 0 | AN64: 0 | AO64: 0 | AP64: 0 | AQ64: 0 | AR64: 0 | AS64: 0 | AT64: 0 | AU64: 0 | AV64: 0 | AW64: 0 | AX64: 0 | AY64: 0 | AZ64: 0 | BA64: 0 | BB64: 0 | BC64: 0 | BD64: 0 | BE64: 0 | BF64: 0 | BG64: 0 | BH64: 0 | BI64: 0 | BJ64: 0 | BK64: 0 | BL64: 0 | BM64: 0 | BN64: 0 | BO64: 0 | BP64: =+BP25/$DM$34*100 -> 0 | BQ64: 0 | BR64: 0 | BS64: 0 | BT64: 0 | BU64: 0 | BV64: 0 | BW64: 0 | BX64: 0 | BY64: 0 | BZ64: 0 | CA64: 0 | CB64: 0 | CC64: 0 | CD64: 0 | CE64: 0 | CF64: 0 | CG64: 0 | CH64: 0 | CI64: 0 | CJ64: 0 | CK64: 0 | CL64: 0 | CM64: 0 | CN64: 0 | CO64: 0 | CP64: 0 | CQ64: 0 | CR64: 0 | CS64: 0 | CT64: 0 | CU64: 0 | CV64: =+CV25/$DM$34*100 -> 0 | CW64: 0 | CX64: 0 | CY64: 0 | CZ64: 0 | DA64: 0 | DB64: 0 | DC64: 0 | DD64: 0 | DE64: 0 | DF64: 0 | DG64: 0 | DH64: 0 | DI64: 0 | DJ64: 0 | DK64: 0 | DL64: 0 | DM64: 0
B65: 16J | C65: Beiras e Serra da Estrela | D65: =+D26/$DM$34*100 -> 0 | E65: 0 | F65: 0 | G65: 0 | H65: 0 | I65: 0 | J65: 0 | K65: 0 | L65: 0 | M65: 0 | N65: 0 | O65: 0 | P65: 0 | Q65: 0 | R65: 0 | S65: 0 | T65: 0 | U65: 0 | V65: 0 | W65: 0 | X65: 0 | Y65: 0 | Z65: 0 | AA65: 0 | AB65: 0 | AC65: 0 | AD65: 0 | AE65: 0 | AF65: 0 | AG65: 0 | AH65: 0 | AI65: 0 | AJ65: =+AJ26/$DM$34*100 -> 0 | AK65: 0 | AL65: 0 | AM65: 0 | AN65: 0 | AO65: 0.1108913315 | AP65: 0 | AQ65: 0 | AR65: 0 | AS65: 0 | AT65: 0 | AU65: 0 | AV65: 0 | AW65: 0 | AX65: 0 | AY65: 0.08316849865 | AZ65: 0 | BA65: 0 | BB65: 0 | BC65: 0.02772283288 | BD65: 0.5965953636 | BE65: 0 | BF65: 0 | BG65: 0.05544566577 | BH65: 0.8754316168 | BI65: 2.491858121 | BJ65: 0 | BK65: 0 | BL65: 0 | BM65: 0.4990109919 | BN65: 5.235179762 | BO65: 0.1352874245 | BP65: =+BP26/$DM$34*100 -> 0 | BQ65: 0.03147967278 | BR65: 5.789653845 | BS65: 7.323565317 | BT65: 0.1657825406 | BU65: 0 | BV65: 0.08316849865 | BW65: 0.7459659872 | BX65: 1.355646528 | BY65: 0.05544566577 | BZ65: 0 | CA65: 0 | CB65: 0 | CC65: 0 | CD65: 0 | CE65: 0 | CF65: 0 | CG65: 0 | CH65: 0 | CI65: 0 | CJ65: 0 | CK65: 0 | CL65: 0 | CM65: 0 | CN65: 0 | CO65: 0 | CP65: 0 | CQ65: 0 | CR65: 0 | CS65: 0 | CT65: 0 | CU65: 0 | CV65: =+CV26/$DM$34*100 -> 0 | CW65: 0.1108913315 | CX65: 0 | CY65: 0.08316849865 | CZ65: 0.6243181965 | DA65: 3.422735403 | DB65: 5.869478178 | DC65: 13.31048138 | DD65: 2.24022668 | DE65: 0 | DF65: 0 | DG65: 0 | DH65: 0.1700938372 | DI65: 7.937785274 | DJ65: 17.19690492 | DK65: 0.3565156309 | DL65: 0 | DM65: 25.66129966
A66: AML | B66: 170 | C66: Área Metropolitana de Lisboa | D66: =+D27/$DM$34*100 -> 0 | E66: 0 | F66: 0 | G66: 0 | H66: 0 | I66: 0 | J66: 0 | K66: 0 | L66: 0 | M66: 0 | N66: 0 | O66: 0 | P66: 0 | Q66: 0 | R66: 0 | S66: 0 | T66: 0 | U66: 0 | V66: 0 | W66: 0 | X66: 0 | Y66: 0 | Z66: 0 | AA66: 0 | AB66: 0 | AC66: 0 | AD66: 0 | AE66: 0 | AF66: 0 | AG66: 0 | AH66: 0 | AI66: 0 | AJ66: =+AJ27/$DM$34*100 -> 0 | AK66: 0 | AL66: 0 | AM66: 0 | AN66: 0 | AO66: 0 | AP66: 0 | AQ66: 0 | AR66: 0 | AS66: 0 | AT66: 0 | AU66: 0 | AV66: 0 | AW66: 0 | AX66: 0 | AY66: 0 | AZ66: 0 | BA66: 0 | BB66: 0 | BC66: 0 | BD66: 0 | BE66: 0 | BF66: 0 | BG66: 0 | BH66: 0 | BI66: 0 | BJ66: 0 | BK66: 0 | BL66: 0 | BM66: 0 | BN66: 0 | BO66: 0 | BP66: =+BP27/$DM$34*100 -> 0 | BQ66: 0 | BR66: 0 | BS66: 0 | BT66: 0 | BU66: 0 | BV66: 0 | BW66: 0 | BX66: 0 | BY66: 0 | BZ66: 0 | CA66: 0 | CB66: 0 | CC66: 0 | CD66: 0 | CE66: 0 | CF66: 0 | CG66: 0 | CH66: 0 | CI66: 0 | CJ66: 0 | CK66: 0 | CL66: 0 | CM66: 0 | CN66: 0 | CO66: 0 | CP66: 0 | CQ66: 0 | CR66: 0 | CS66: 0 | CT66: 0 | CU66: 0 | CV66: =+CV27/$DM$34*100 -> 0 | CW66: 0 | CX66: 0 | CY66: 0 | CZ66: 0 | DA66: 0 | DB66: 0 | DC66: 0 | DD66: 0 | DE66: 0 | DF66: 0 | DG66: 0 | DH66: 0 | DI66: 0 | DJ66: 0 | DK66: 0 | DL66: 0 | DM66: 0
A67: Alentejo | B67: 181 | C67: Alentejo Litoral | D67: =+D28/$DM$34*100 -> 0 | E67: 0 | F67: 0 | G67: 0 | H67: 0 | I67: 0 | J67: 0 | K67: 0 | L67: 0 | M67: 0 | N67: 0 | O67: 0 | P67: 0 | Q67: 0 | R67: 0 | S67: 0 | T67: 0 | U67: 0 | V67: 0 | W67: 0 | X67: 0 | Y67: 0 | Z67: 0 | AA67: 0 | AB67: 0 | AC67: 0 | AD67: 0 | AE67: 0 | AF67: 0 | AG67: 0 | AH67: 0 | AI67: 0 | AJ67: =+AJ28/$DM$34*100 -> 0 | AK67: 0 | AL67: 0 | AM67: 0 | AN67: 0 | AO67: 0 | AP67: 0 | AQ67: 0 | AR67: 0 | AS67: 0 | AT67: 0 | AU67: 0 | AV67: 0 | AW67: 0 | AX67: 0 | AY67: 0 | AZ67: 0 | BA67: 0 | BB67: 0 | BC67: 0 | BD67: 0 | BE67: 0 | BF67: 0 | BG67: 0 | BH67: 0 | BI67: 0 | BJ67: 0 | BK67: 0 | BL67: 0 | BM67: 0 | BN67: 0.05489120911 | BO67: 0 | BP67: =+BP28/$DM$34*100 -> 0 | BQ67: 0 | BR67: 0 | BS67: 0 | BT67: 0 | BU67: 0 | BV67: 0 | BW67: 0 | BX67: 0 | BY67: 0 | BZ67: 0 | CA67: 0 | CB67: 0 | CC67: 0 | CD67: 0 | CE67: 0 | CF67: 0 | CG67: 0 | CH67: 0 | CI67: 0 | CJ67: 0 | CK67: 0 | CL67: 0 | CM67: 0 | CN67: 0 | CO67: 0 | CP67: 0 | CQ67: 0 | CR67: 0 | CS67: 0 | CT67: 0 | CU67: 0 | CV67: =+CV28/$DM$34*100 -> 0 | CW67: 0 | CX67: 0 | CY67: 0 | CZ67: 0 | DA67: 0 | DB67: 0.05489120911 | DC67: 0 | DD67: 0 | DE67: 0 | DF67: 0 | DG67: 0 | DH67: 0 | DI67: 0 | DJ67: 0.05489120911 | DK67: 0 | DL67: 0 | DM67: 0.05489120911
B68: 184 | C68: Baixo Alentejo | D68: =+D29/$DM$34*100 -> 0 | E68: 0 | F68: 0 | G68: 0 | H68: 0 | I68: 0 | J68: 0 | K68: 0 | L68: 0 | M68: 0 | N68: 0 | O68: 0 | P68: 0 | Q68: 0 | R68: 0 | S68: 0 | T68: 0 | U68: 0 | V68: 0 | W68: 0 | X68: 0 | Y68: 0 | Z68: 0 | AA68: 0 | AB68: 0 | AC68: 0 | AD68: 0 | AE68: 0 | AF68: 0 | AG68: 0 | AH68: 0 | AI68: 0 | AJ68: =+AJ29/$DM$34*100 -> 0 | AK68: 0 | AL68: 0 | AM68: 0 | AN68: 0 | AO68: 0 | AP68: 0 | AQ68: 0 | AR68: 0 | AS68: 0 | AT68: 0 | AU68: 0 | AV68: 0 | AW68: 0 | AX68: 0 | AY68: 0 | AZ68: 0 | BA68: 0 | BB68: 0 | BC68: 0 | BD68: 0 | BE68: 0 | BF68: 0 | BG68: 0 | BH68: 0 | BI68: 0 | BJ68: 0 | BK68: 0 | BL68: 0 | BM68: 0 | BN68: 0 | BO68: 0 | BP68: =+BP29/$DM$34*100 -> 0 | BQ68: 0 | BR68: 0 | BS68: 0 | BT68: 0 | BU68: 0 | BV68: 0 | BW68: 0 | BX68: 0 | BY68: 0 | BZ68: 0 | CA68: 0 | CB68: 0 | CC68: 0 | CD68: 0 | CE68: 0 | CF68: 0 | CG68: 0 | CH68: 0 | CI68: 0 | CJ68: 0 | CK68: 0 | CL68: 0 | CM68: 0 | CN68: 0 | CO68: 0 | CP68: 0 | CQ68: 0 | CR68: 0 | CS68: 0 | CT68: 0 | CU68: 0 | CV68: =+CV29/$DM$34*100 -> 0 | CW68: 0 | CX68: 0 | CY68: 0 | CZ68: 0 | DA68: 0 | DB68: 0 | DC68: 0 | DD68: 0 | DE68: 0 | DF68: 0 | DG68: 0 | DH68: 0 | DI68: 0 | DJ68: 0 | DK68: 0 | DL68: 0 | DM68: 0
B69: 185 | C69: Lezíria do Tejo | D69: =+D30/$DM$34*100 -> 0 | E69: 0 | F69: 0 | G69: 0 | H69: 0 | I69: 0 | J69: 0 | K69: 0 | L69: 0 | M69: 0 | N69: 0 | O69: 0 | P69: 0 | Q69: 0 | R69: 0 | S69: 0 | T69: 0 | U69: 0 | V69: 0 | W69: 0 | X69: 0 | Y69: 0 | Z69: 0 | AA69: 0 | AB69: 0 | AC69: 0 | AD69: 0 | AE69: 0 | AF69: 0 | AG69: 0 | AH69: 0 | AI69: 0 | AJ69: =+AJ30/$DM$34*100 -> 0 | AK69: 0 | AL69: 0 | AM69: 0 | AN69: 0 | AO69: 0 | AP69: 0 | AQ69: 0 | AR69: 0 | AS69: 0 | AT69: 0 | AU69: 0 | AV69: 0 | AW69: 0 | AX69: 0 | AY69: 0 | AZ69: 0 | BA69: 0 | BB69: 0 | BC69: 0 | BD69: 0 | BE69: 0 | BF69: 0 | BG69: 0 | BH69: 0 | BI69: 0 | BJ69: 0 | BK69: 0 | BL69: 0 | BM69: 0 | BN69: 0 | BO69: 0 | BP69: =+BP30/$DM$34*100 -> 0 | BQ69: 0 | BR69: 0 | BS69: 0 | BT69: 0 | BU69: 0 | BV69: 0 | BW69: 0 | BX69: 0 | BY69: 0 | BZ69: 0 | CA69: 0 | CB69: 0 | CC69: 0 | CD69: 0 | CE69: 0 | CF69: 0 | CG69: 0 | CH69: 0 | CI69: 0 | CJ69: 0 | CK69: 0 | CL69: 0 | CM69: 0 | CN69: 0 | CO69: 0 | CP69: 0 | CQ69: 0 | CR69: 0 | CS69: 0 | CT69: 0 | CU69: 0 | CV69: =+CV30/$DM$34*100 -> 0 | CW69: 0 | CX69: 0 | CY69: 0 | CZ69: 0 | DA69: 0 | DB69: 0 | DC69: 0 | DD69: 0 | DE69: 0 | DF69: 0 | DG69: 0 | DH69: 0 | DI69: 0 | DJ69: 0 | DK69: 0 | DL69: 0 | DM69: 0
B70: 186 | C70: Alto Alentejo | D70: =+D31/$DM$34*100 -> 0 | E70: 0 | F70: 0 | G70: 0 | H70: 0 | I70: 0 | J70: 0 | K70: 0 | L70: 0 | M70: 0 | N70: 0 | O70: 0 | P70: 0 | Q70: 0 | R70: 0 | S70: 0 | T70: 0 | U70: 0 | V70: 0 | W70: 0 | X70: 0 | Y70: 0 | Z70: 0 | AA70: 0 | AB70: 0 | AC70: 0 | AD70: 0 | AE70: 0 | AF70: 0 | AG70: 0 | AH70: 0 | AI70: 0 | AJ70: =+AJ31/$DM$34*100 -> 0 | AK70: 0 | AL70: 0 | AM70: 0 | AN70: 0 | AO70: 0 | AP70: 0 | AQ70: 0 | AR70: 0 | AS70: 0 | AT70: 0 | AU70: 0 | AV70: 0 | AW70: 0 | AX70: 0 | AY70: 0 | AZ70: 0 | BA70: 0 | BB70: 0 | BC70: 0 | BD70: 0 | BE70: 0 | BF70: 0 | BG70: 0 | BH70: 0 | BI70: 0 | BJ70: 0 | BK70: 0 | BL70: 0 | BM70: 0 | BN70: 0 | BO70: 0 | BP70: =+BP31/$DM$34*100 -> 0 | BQ70: 0 | BR70: 0 | BS70: 0 | BT70: 0 | BU70: 0 | BV70: 0 | BW70: 0 | BX70: 0 | BY70: 0 | BZ70: 0 | CA70: 0 | CB70: 0 | CC70: 0 | CD70: 0 | CE70: 0 | CF70: 0 | CG70: 0 | CH70: 0 | CI70: 0 | CJ70: 0 | CK70: 0 | CL70: 0 | CM70: 0 | CN70: 0 | CO70: 0 | CP70: 0 | CQ70: 0 | CR70: 0 | CS70: 0 | CT70: 0 | CU70: 0 | CV70: =+CV31/$DM$34*100 -> 0 | CW70: 0 | CX70: 0 | CY70: 0 | CZ70: 0 | DA70: 0 | DB70: 0 | DC70: 0 | DD70: 0 | DE70: 0 | DF70: 0 | DG70: 0 | DH70: 0 | DI70: 0 | DJ70: 0 | DK70: 0 | DL70: 0 | DM70: 0
B71: 187 | C71: Alentejo Central | D71: =+D32/$DM$34*100 -> 0 | E71: 0 | F71: 0 | G71: 0 | H71: 0 | I71: 0 | J71: 0 | K71: 0 | L71: 0 | M71: 0 | N71: 0 | O71: 0 | P71: 0 | Q71: 0 | R71: 0 | S71: 0 | T71: 0 | U71: 0 | V71: 0 | W71: 0 | X71: 0 | Y71: 0 | Z71: 0 | AA71: 0 | AB71: 0 | AC71: 0 | AD71: 0 | AE71: 0 | AF71: 0 | AG71: 0 | AH71: 0 | AI71: 0 | AJ71: =+AJ32/$DM$34*100 -> 0 | AK71: 0 | AL71: 0 | AM71: 0 | AN71: 0 | AO71: 0 | AP71: 0 | AQ71: 0 | AR71: 0 | AS71: 0 | AT71: 0 | AU71: 0 | AV71: 0 | AW71: 0 | AX71: 0 | AY71: 0 | AZ71: 0 | BA71: 0 | BB71: 0 | BC71: 0 | BD71: 0 | BE71: 0 | BF71: 0 | BG71: 0 | BH71: 0 | BI71: 0 | BJ71: 0 | BK71: 0 | BL71: 0 | BM71: 0 | BN71: 0.1108913315 | BO71: 0 | BP71: =+BP32/$DM$34*100 -> 0 | BQ71: 0 | BR71: 0 | BS71: 0 | BT71: 0 | BU71: 0 | BV71: 0 | BW71: 0 | BX71: 0 | BY71: 0 | BZ71: 0 | CA71: 0 | CB71: 0 | CC71: 0 | CD71: 0 | CE71: 0 | CF71: 0 | CG71: 0 | CH71: 0 | CI71: 0 | CJ71: 0 | CK71: 0 | CL71: 0 | CM71: 0 | CN71: 0 | CO71: 0 | CP71: 0 | CQ71: 0 | CR71: 0 | CS71: 0 | CT71: 0 | CU71: 0 | CV71: =+CV32/$DM$34*100 -> 0 | CW71: 0 | CX71: 0 | CY71: 0 | CZ71: 0 | DA71: 0 | DB71: 0.1108913315 | DC71: 0 | DD71: 0 | DE71: 0 | DF71: 0 | DG71: 0 | DH71: 0 | DI71: 0 | DJ71: 0.1108913315 | DK71: 0 | DL71: 0 | DM71: 0.1108913315
A72: Algarve | B72: 150 | C72: Algarve | D72: =+D33/$DM$34*100 -> 0 | E72: 0 | F72: 0 | G72: 0 | H72: 0 | I72: 0 | J72: 0 | K72: 0 | L72: 0 | M72: 0 | N72: 0 | O72: 0 | P72: 0 | Q72: 0 | R72: 0 | S72: 0 | T72: 0 | U72: 0 | V72: 0 | W72: 0 | X72: 0 | Y72: 0 | Z72: 0 | AA72: 0 | AB72: 0 | AC72: 0 | AD72: 0 | AE72: 0 | AF72: 0 | AG72: 0 | AH72: 0 | AI72: 0 | AJ72: =+AJ33/$DM$34*100 -> 0 | AK72: 0 | AL72: 0 | AM72: 0 | AN72: 0 | AO72: 0 | AP72: 0 | AQ72: 0 | AR72: 0 | AS72: 0 | AT72: 0 | AU72: 0 | AV72: 0 | AW72: 0 | AX72: 0 | AY72: 0 | AZ72: 0 | BA72: 0 | BB72: 0 | BC72: 0 | BD72: 0 | BE72: 0 | BF72: 0 | BG72: 0 | BH72: 0 | BI72: 0 | BJ72: 0 | BK72: 0 | BL72: 0 | BM72: 0 | BN72: 0 | BO72: 0 | BP72: =+BP33/$DM$34*100 -> 0 | BQ72: 0 | BR72: 0 | BS72: 0 | BT72: 0 | BU72: 0 | BV72: 0 | BW72: 0 | BX72: 0 | BY72: 0 | BZ72: 0 | CA72: 0 | CB72: 0 | CC72: 0 | CD72: 0 | CE72: 0 | CF72: 0 | CG72: 0 | CH72: 0 | CI72: 0 | CJ72: 0 | CK72: 0 | CL72: 0 | CM72: 0 | CN72: 0 | CO72: 0 | CP72: 0 | CQ72: 0 | CR72: 0 | CS72: 0 | CT72: 0 | CU72: 0 | CV72: =+CV33/$DM$34*100 -> 0 | CW72: 0 | CX72: 0 | CY72: 0 | CZ72: 0 | DA72: 0 | DB72: 0 | DC72: 0 | DD72: 0 | DE72: 0 | DF72: 0 | DG72: 0 | DH72: 0 | DI72: 0 | DJ72: 0 | DK72: 0 | DL72: 0 | DM72: 0
A73: Continente | D73: =+D34/$DM$34*100 -> 0 | E73: 0.03742582439 | F73: 0.05256249115 | G73: 0 | H73: 0 | I73: 0 | J73: 0.02772283288 | K73: 0 | L73: 0 | M73: 0 | N73: 0 | O73: 0 | P73: 0.02772283288 | Q73: 0 | R73: 0 | S73: 0 | T73: 0 | U73: 0 | V73: 0 | W73: 0 | X73: 0 | Y73: 0 | Z73: 0 | AA73: 0 | AB73: 0 | AC73: 0 | AD73: 0.1937826019 | AE73: 0.6367934713 | AF73: 0 | AG73: 0 | AH73: 0 | AI73: 0 | AJ73: =+AJ34/$DM$34*100 -> 0 | AK73: 0 | AL73: 0 | AM73: 0 | AN73: 0.09292693582 | AO73: 0.1386141644 | AP73: 0 | AQ73: 0 | AR73: 0 | AS73: 0 | AT73: 0 | AU73: 0 | AV73: 0 | AW73: 0 | AX73: 0.5077159614 | AY73: 1.432327884 | AZ73: 0 | BA73: 0 | BB73: 0 | BC73: 0.4060824719 | BD73: 1.530106315 | BE73: 0 | BF73: 0 | BG73: 0.3825750938 | BH73: 5.088983798 | BI73: 6.064850486 | BJ73: 0.05544566577 | BK73: 0 | BL73: 0 | BM73: 6.613429903 | BN73: 21.21882896 | BO73: 0.3408522303 | BP73: =+BP34/$DM$34*100 -> 0 | BQ73: 0.4397482881 | BR73: 16.03335386 | BS73: 22.92645883 | BT73: 0.4146345698 | BU73: 0 | BV73: 0.1108913315 | BW73: 6.072613672 | BX73: 9.060844363 | BY73: 0.05544566577 | BZ73: 0 | CA73: 0 | CB73: 0.03725948739 | CC73: 0 | CD73: 0 | CE73: 0 | CF73: 0 | CG73: 0 | CH73: 0 | CI73: 0 | CJ73: 0 | CK73: 0 | CL73: 0 | CM73: 0 | CN73: 0 | CO73: 0 | CP73: 0.08998831554 | CQ73: 0.02772283288 | CR73: 0.02772283288 | CS73: 0 | CT73: 0 | CU73: 0.8305760732 | CV73: =+CV34/$DM$34*100 -> 0 | CW73: 0.2315411002 | CX73: 0 | CY73: 1.940043845 | CZ73: 1.936188787 | DA73: 11.59185504 | DB73: 28.1731111 | DC73: 39.81419555 | DD73: 15.29979503 | DE73: 0.03725948739 | DF73: 0 | DG73: 0 | DH73: 0.9332147134 | DI73: 35.11129735 | DJ73: 63.0891098 | DK73: 0.8663781316 | DL73: 0 | DM73: =SUM(DM50:DM72) -> 100
B76: Legenda
B77: MP | C77: =+C38 -> < 5 ha
B78: P | C78: =+C39 -> >= 5 e < 25 ha
B79: M | C79: >= 25 e < 200 ha
B80: G | C80: >= 200 e < 1 000 ha
B81: MG | C81: >= 1 000 ha
A82: Fonte: GPP a partir de dados IFAP

Sheet CHART-Geral (hidden)
A1: =+"Valores Globais " & TRIM(INDEX(Sheet6!$D$2:$D$117,Sheet3!$C$1)) -> Valores Globais (50) - Maa - Pastoreio Extensivo Iii (Mapa)
B3: Tipo de Beneficiário: | C3: =INDEX(Sheet6!$P$1:$P$6,Sheet3!$A$2) -> Todos os Produtores do PU | O3: Valor total: | P3: =+Base!$DM$34 -> 1262.49724 | Q3: =+"(" & (INDEX(Sheet6!$G$2:$G$117,Sheet3!$C$1)) & ")" -> (1000 €)
AK4: =+Base!A11 -> Norte | AL4: =+SUM(Base!DM11:DM18) -> 921.27535
C5: =+"Por " & INDEX(Sheet6!$M$3:$M$6,Sheet3!$B$1) -> Por Classes de Superfície Agrícola | M5: Por NUTII | AK5: =+Base!A19 -> Centro | AL5: =+SUM(Base!DM19:DM26) -> 339.12889
AK6: =+Base!A27 -> AML | AL6: =+SUM(Base!DM27) -> 0
AK7: =+Base!A28 -> Alentejo | AL7: =+SUM(Base!DM28:DM32) -> 2.093
AK8: =+Base!A33 -> Algarve | AL8: =+SUM(Base!DM33) -> 0
AL9: =SUM(AL4:AL8) -> 1262.49724 | AM9: =+AL9-Base!DM34 -> 0
AK13: Grandes Culturas (Arvenses e Industriais) | AL13: =+SUM(Base!CQ34:CT34)+Base!DF34+Base!DG34 -> 0.7
AK14: Horticultura Intensiva | AL14: =+Base!CU34 -> 10.486
AK15: Culturas Permanentes | AL15: =+SUM(Base!CV34:CX34) -> 2.9232
AK16: Leite | AL16: =+Base!CZ34 -> 24.44433
AK17: Outros herbívoros | AL17: =+SUM(Base!DA34:DC34) -> 1004.68472
AK18: Mistas | AL18: =+Base!CY34+Base!DD34+Base!DE34+Base!CP34 -> 219.25899
AL19: =SUM(AL13:AL18) -> 1262.49724
A25: Legenda
A26: MP | B26: =+Base!C38 -> < 5 ha
A27: P | B27: =+Base!C39 -> >= 5 e < 25 ha
A28: M | B28: =+Base!C40 -> >= 25 e < 200 ha
A29: G | B29: =+Base!C41 -> >= 200 e < 1 000 ha
A30: MG | B30: =+Base!C42 -> >= 1 000 ha
H31: Por Grande Orientação Produtiva
A59: Fonte: GPP a partir de dados IFAP

Sheet CHART-NUTIII-DE (hidden)
A1: =+INDEX(Sheet6!$D$2:$D$117,Sheet3!$C$1)& " por NUTIII e por " & INDEX(Sheet6!$M$3:$M$6,Sheet3!$B$1) -> (50) - Maa - Pastoreio Extensivo Iii (Mapa) por NUTIII e por Classes de Superfície Agrícola
A3: =+Base!C7 -> Unidade: 1000 € | D3: Tipo de Beneficiário: | E3: =INDEX(Sheet6!$P$1:$P$6,Sheet3!$A$2) -> Todos os Produtores do PU | P3: Valor total: | Q3: =+Base!$DM$34 -> 1262.49724 | S3: =+"(" & (INDEX(Sheet6!$G$2:$G$117,Sheet3!$C$1)) & ")" -> (1000 €)
A40: Legenda
A41: MP | B41: =+Base!C38 -> < 5 ha
A42: P | B42: =+Base!C39 -> >= 5 e < 25 ha
A43: M | B43: =+Base!C40 -> >= 25 e < 200 ha
A44: G | B44: =+Base!C41 -> >= 200 e < 1 000 ha
A45: MG | B45: =+Base!C42 -> >= 1 000 ha
A47: =+"Estrutura: "&INDEX(Sheet6!$D$2:$D$117,Sheet3!$C$1)& ", por NUTIII e por " & INDEX(Sheet6!$M$3:$M$6,Sheet3!$B$1) -> Estrutura: (50) - Maa - Pastoreio Extensivo Iii (Mapa), por NUTIII e por Classes de Superfície Agrícola
A89: Fonte: GPP a partir de dados IFAP

Sheet CHART-NUTIII-GOP (hidden)
A1: =+INDEX(Sheet6!$D$2:$D$117,Sheet3!$C$1)& " por NUTIII e por Grande Orientação Produtiva" -> (50) - Maa - Pastoreio Extensivo Iii (Mapa) por NUTIII e por Grande Orientação Produtiva
A3: =+Base!C7 -> Unidade: 1000 € | D3: Tipo de Beneficiário: | E3: =INDEX(Sheet6!$P$1:$P$6,Sheet3!$A$2) -> Todos os Produtores do PU | P3: Valor total: | Q3: =+Base!$DM$34 -> 1262.49724 | S3: =+"(" & (INDEX(Sheet6!$G$2:$G$117,Sheet3!$C$1)) & ")" -> (1000 €)
AK5: Grandes Culturas (Arvenses e Industriais) | AL5: Horticultura Intensiva | AM5: Culturas Permanentes | AN5: Leite | AO5: Outros herbívoros | AP5: Mistas
AJ6: =Base!C11 -> Alto Minho | AK6: =SUM(Base!CQ11:CT11)+Base!DF11+Base!DG11 -> 0.35 | AL6: =Base!CU11 -> 0 | AM6: =SUM(Base!CV11:CX11) -> 0 | AN6: =Base!CZ11 -> 0 | AO6: =SUM(Base!DA11:DC11) -> 47.35203 | AP6: =Base!CY11+Base!DD11+Base!DE11+Base!CP11 -> 0.4305
AJ7: =Base!C12 -> Cávado | AK7: =SUM(Base!CQ12:CT12)+Base!DF12+Base!DG12 -> 0 | AL7: =Base!CU12 -> 0 | AM7: =SUM(Base!CV12:CX12) -> 0 | AN7: =Base!CZ12 -> 0 | AO7: =SUM(Base!DA12:DC12) -> 12.1765 | AP7: =Base!CY12+Base!DD12+Base!DE12+Base!CP12 -> 0.35
AJ8: =Base!C13 -> Ave | AK8: =SUM(Base!CQ13:CT13)+Base!DF13+Base!DG13 -> 0 | AL8: =Base!CU13 -> 0 | AM8: =SUM(Base!CV13:CX13) -> 0.4732 | AN8: =Base!CZ13 -> 0 | AO8: =SUM(Base!DA13:DC13) -> 66.58123 | AP8: =Base!CY13+Base!DD13+Base!DE13+Base!CP13 -> 0.4704
AJ9: =Base!C14 -> Área Metropolitana do Porto | AK9: =SUM(Base!CQ14:CT14)+Base!DF14+Base!DG14 -> 0 | AL9: =Base!CU14 -> 0 | AM9: =SUM(Base!CV14:CX14) -> 0 | AN9: =Base!CZ14 -> 0 | AO9: =SUM(Base!DA14:DC14) -> 1.05 | AP9: =Base!CY14+Base!DD14+Base!DE14+Base!CP14 -> 0
AJ10: =Base!C15 -> Alto Tâmega | AK10: =SUM(Base!CQ15:CT15)+Base!DF15+Base!DG15 -> 0 | AL10: =Base!CU15 -> 0.6965 | AM10: =SUM(Base!CV15:CX15) -> 0 | AN10: =Base!CZ15 -> 7.28208 | AO10: =SUM(Base!DA15:DC15) -> 345.18965 | AP10: =Base!CY15+Base!DD15+Base!DE15+Base!CP15 -> 24.787
AJ11: =Base!C16 -> Tâmega e Sousa | AK11: =SUM(Base!CQ16:CT16)+Base!DF16+Base!DG16 -> 0 | AL11: =Base!CU16 -> 0 | AM11: =SUM(Base!CV16:CX16) -> 0 | AN11: =Base!CZ16 -> 0 | AO11: =SUM(Base!DA16:DC16) -> 13.40033 | AP11: =Base!CY16+Base!DD16+Base!DE16+Base!CP16 -> 1.05
AJ12: =Base!C17 -> Douro | AK12: =SUM(Base!CQ17:CT17)+Base!DF17+Base!DG17 -> 0 | AL12: =Base!CU17 -> 0.35 | AM12: =SUM(Base!CV17:CX17) -> 0 | AN12: =Base!CZ17 -> 3.35125 | AO12: =SUM(Base!DA17:DC17) -> 57.41479 | AP12: =Base!CY17+Base!DD17+Base!DE17+Base!CP17 -> 8.365
AJ13: =Base!C18 -> Terras de Trás-os-Montes | AK13: =SUM(Base!CQ18:CT18)+Base!DF18+Base!DG18 -> 0.35 | AL13: =Base!CU18 -> 9.4395 | AM13: =SUM(Base!CV18:CX18) -> 1.05 | AN13: =Base!CZ18 -> 5.929 | AO13: =SUM(Base!DA18:DC18) -> 161.6921 | AP13: =Base!CY18+Base!DD18+Base!DE18+Base!CP18 -> 152.21229
AJ14: =Base!C19 -> Oeste | AK14: =SUM(Base!CQ19:CT19)+Base!DF19+Base!DG19 -> 0 | AL14: =Base!CU19 -> 0 | AM14: =SUM(Base!CV19:CX19) -> 0 | AN14: =Base!CZ19 -> 0 | AO14: =SUM(Base!DA19:DC19) -> 0 | AP14: =Base!CY19+Base!DD19+Base!DE19+Base!CP19 -> 0
AJ15: =Base!C20 -> Região de Aveiro | AK15: =SUM(Base!CQ20:CT20)+Base!DF20+Base!DG20 -> 0 | AL15: =Base!CU20 -> 0 | AM15: =SUM(Base!CV20:CX20) -> 0 | AN15: =Base!CZ20 -> 0 | AO15: =SUM(Base!DA20:DC20) -> 0 | AP15: =Base!CY20+Base!DD20+Base!DE20+Base!CP20 -> 0
AJ16: =Base!C21 -> Região de Coimbra | AK16: =SUM(Base!CQ21:CT21)+Base!DF21+Base!DG21 -> 0 | AL16: =Base!CU21 -> 0 | AM16: =SUM(Base!CV21:CX21) -> 0 | AN16: =Base!CZ21 -> 0 | AO16: =SUM(Base!DA21:DC21) -> 0 | AP16: =Base!CY21+Base!DD21+Base!DE21+Base!CP21 -> 0
AJ17: =Base!C22 -> Região de Leiria | AK17: =SUM(Base!CQ22:CT22)+Base!DF22+Base!DG22 -> 0 | AL17: =Base!CU22 -> 0 | AM17: =SUM(Base!CV22:CX22) -> 0 | AN17: =Base!CZ22 -> 0 | AO17: =SUM(Base!DA22:DC22) -> 0 | AP17: =Base!CY22+Base!DD22+Base!DE22+Base!CP22 -> 0
AJ18: =Base!C23 -> Viseu Dão Lafões | AK18: =SUM(Base!CQ23:CT23)+Base!DF23+Base!DG23 -> 0 | AL18: =Base!CU23 -> 0 | AM18: =SUM(Base!CV23:CX23) -> 0 | AN18: =Base!CZ23 -> 0 | AO18: =SUM(Base!DA23:DC23) -> 11.86394 | AP18: =Base!CY23+Base!DD23+Base!DE23+Base!CP23 -> 2.779
AJ19: =Base!C24 -> Beira Baixa | AK19: =SUM(Base!CQ24:CT24)+Base!DF24+Base!DG24 -> 0 | AL19: =Base!CU24 -> 0 | AM19: =SUM(Base!CV24:CX24) -> 0 | AN19: =Base!CZ24 -> 0 | AO19: =SUM(Base!DA24:DC24) -> 0.51275 | AP19: =Base!CY24+Base!DD24+Base!DE24+Base!CP24 -> 0
AJ20: =Base!C25 -> Médio Tejo | AK20: =SUM(Base!CQ25:CT25)+Base!DF25+Base!DG25 -> 0 | AL20: =Base!CU25 -> 0 | AM20: =SUM(Base!CV25:CX25) -> 0 | AN20: =Base!CZ25 -> 0 | AO20: =SUM(Base!DA25:DC25) -> 0 | AP20: =Base!CY25+Base!DD25+Base!DE25+Base!CP25 -> 0
AJ21: =Base!C26 -> Beiras e Serra da Estrela | AK21: =SUM(Base!CQ26:CT26)+Base!DF26+Base!DG26 -> 0 | AL21: =Base!CU26 -> 0 | AM21: =SUM(Base!CV26:CX26) -> 1.4 | AN21: =Base!CZ26 -> 7.882 | AO21: =SUM(Base!DA26:DC26) -> 285.3584 | AP21: =Base!CY26+Base!DD26+Base!DE26+Base!CP26 -> 29.3328
AJ22: =Base!C27 -> Área Metropolitana de Lisboa | AK22: =SUM(Base!CQ27:CT27)+Base!DF27+Base!DG27 -> 0 | AL22: =Base!CU27 -> 0 | AM22: =SUM(Base!CV27:CX27) -> 0 | AN22: =Base!CZ27 -> 0 | AO22: =SUM(Base!DA27:DC27) -> 0 | AP22: =Base!CY27+Base!DD27+Base!DE27+Base!CP27 -> 0
AJ23: =Base!C28 -> Alentejo Litoral | AK23: =SUM(Base!CQ28:CT28)+Base!DF28+Base!DG28 -> 0 | AL23: =Base!CU28 -> 0 | AM23: =SUM(Base!CV28:CX28) -> 0 | AN23: =Base!CZ28 -> 0 | AO23: =SUM(Base!DA28:DC28) -> 0.693 | AP23: =Base!CY28+Base!DD28+Base!DE28+Base!CP28 -> 0
AJ24: =Base!C29 -> Baixo Alentejo | AK24: =SUM(Base!CQ29:CT29)+Base!DF29+Base!DG29 -> 0 | AL24: =Base!CU29 -> 0 | AM24: =SUM(Base!CV29:CX29) -> 0 | AN24: =Base!CZ29 -> 0 | AO24: =SUM(Base!DA29:DC29) -> 0 | AP24: =Base!CY29+Base!DD29+Base!DE29+Base!CP29 -> 0
AJ25: =Base!C30 -> Lezíria do Tejo | AK25: =SUM(Base!CQ30:CT30)+Base!DF30+Base!DG30 -> 0 | AL25: =Base!CU30 -> 0 | AM25: =SUM(Base!CV30:CX30) -> 0 | AN25: =Base!CZ30 -> 0 | AO25: =SUM(Base!DA30:DC30) -> 0 | AP25: =Base!CY30+Base!DD30+Base!DE30+Base!CP30 -> 0
AJ26: =Base!C31 -> Alto Alentejo | AK26: =SUM(Base!CQ31:CT31)+Base!DF31+Base!DG31 -> 0 | AL26: =Base!CU31 -> 0 | AM26: =SUM(Base!CV31:CX31) -> 0 | AN26: =Base!CZ31 -> 0 | AO26: =SUM(Base!DA31:DC31) -> 0 | AP26: =Base!CY31+Base!DD31+Base!DE31+Base!CP31 -> 0
AJ27: =Base!C32 -> Alentejo Central | AK27: =SUM(Base!CQ32:CT32)+Base!DF32+Base!DG32 -> 0 | AL27: =Base!CU32 -> 0 | AM27: =SUM(Base!CV32:CX32) -> 0 | AN27: =Base!CZ32 -> 0 | AO27: =SUM(Base!DA32:DC32) -> 1.4 | AP27: =Base!CY32+Base!DD32+Base!DE32+Base!CP32 -> 0
AJ28: =Base!C33 -> Algarve | AK28: =SUM(Base!CQ33:CT33)+Base!DF33+Base!DG33 -> 0 | AL28: =Base!CU33 -> 0 | AM28: =SUM(Base!CV33:CX33) -> 0 | AN28: =Base!CZ33 -> 0 | AO28: =SUM(Base!DA33:DC33) -> 0 | AP28: =Base!CY33+Base!DD33+Base!DE33+Base!CP33 -> 0
AJ29: Continente | AK29: =SUM(AK6:AK28) -> 0.7 | AL29: =SUM(AL6:AL28) -> 10.486 | AM29: 2.9232 | AN29: 24.44433 | AO29: 1004.68472 | AP29: 219.77699
A47: =+"Estrutura: "&INDEX(Sheet6!$D$2:$D$117,Sheet3!$C$1)& ", por NUTIII e por Grande Orientação Produtiva" -> Estrutura: (50) - Maa - Pastoreio Extensivo Iii (Mapa), por NUTIII e por Grande Orientação Produtiva
A89: Fonte: GPP a partir de dados IFAP

Sheet CHART-OTE-DE (hidden)
A1: =+INDEX(Sheet6!$D$2:$D$117,Sheet3!$C$1)& " por OTE e por " & INDEX(Sheet6!$M$3:$M$6,Sheet3!$B$1) -> (50) - Maa - Pastoreio Extensivo Iii (Mapa) por OTE e por Classes de Superfície Agrícola
A3: =+Base!C7 -> Unidade: 1000 € | D3: Tipo de Beneficiário: | E3: =INDEX(Sheet6!$P$1:$P$6,Sheet3!$A$2) -> Todos os Produtores do PU | P3: Valor total: | Q3: =+Base!$DM$34 -> 1262.49724 | S3: =+"(" & (INDEX(Sheet6!$G$2:$G$117,Sheet3!$C$1)) & ")" -> (1000 €)
A43: Legenda
A44: MP | B44: =+Base!C38 -> < 5 ha
A45: P | B45: =+Base!C39 -> >= 5 e < 25 ha
A46: M | B46: =+Base!C40 -> >= 25 e < 200 ha
A47: G | B47: =+Base!C41 -> >= 200 e < 1 000 ha
A48: MG | B48: =+Base!C42 -> >= 1 000 ha
A50: Fonte: GPP a partir de dados IFAP

Sheet Sheet6 (hidden)
A1: Ano | B1: 2019 | F1: desmultiplicador | G1: Unidade | K1: =+INDEX(K2:K105,Sheet3!C1) -> MAAPPL_Pastoreio Extensivo - Apoio à Proteção do Lobo Ibérico.pdf | P1: Todos os Produtores do PU | Q1: <5
B2: 1 | C2: ContarDeGPP_ID | D2: =+J2&"("&I2& ") - "&H2 & IF(K2<>""," (Mapa)","") -> (1) - Nº de Beneficiários (Mapa) | E2: 1 | F2: 1 | G2: Nº | H2: Nº de Beneficiários | I2: 1 | K2: Beneficiarios_PU_2019.pdf | P2: Beneficiários do RPA | Q2: 1 | U2: ContarDeGPP_ID
B3: 2 | C3: SomaDeVpp | D3: (2) - Valor de Produção Padrão | E3: 2 | F3: 1000 | G3: 1000 € | H3: Valor de Produção Padrão | I3: =+I2+1 -> 2 | M3: Classe de DE | N3: 1 | P3: Beneficiários do RPB | Q3: 2 | U3: SomaDeVpp
B4: 3 | C4: SomaDeSAU | D4: (3) - Superfície Elegível (inclui Superfície Agrícola e Agro-Florestal Elegível) (Mapa) | E4: 3 | F4: 1 | G4: ha | H4: Superfície Elegível (inclui Superfície Agrícola e Agro-Florestal Elegível) | I4: =+I3+1 -> 3 | K4: SPE_PU_2019.pdf | M4: Classes de Superfície Agrícola | N4: 2 | P4: Apenas Pagamentos ligados e 2º Pilar | Q4: 3 | U4: SomaDeSAU
B5: 4 | C5: SumD_RPB | D5: (3a) - Nº de Direitos de RPB | E5: 3a | F5: 1 | G5: Nº | H5: Nº de Direitos de RPB | I5: =+E5 -> 3a | M5: Classe de AD | N5: 3 | P5: Apenas outras ajudas 2º Pilar | Q5: 4
B6: 5 | C6: SumMG_Direitos | D6: (3b) - Montante Global dos Direitos de RPB | E6: 3b | F6: 1000 | G6: 1000 € | H6: Montante Global dos Direitos de RPB | I6: =+E6 -> 3b | U6: SomaDeSAU_IRRIG
B7: 6 | C7: SUmofSAU_est | D7: (3c) - Superfície Agrícola (inc. Pastagens arbustivas) | E7: 3c | F7: 1 | G7: ha | H7: Superfície Agrícola (inc. Pastagens arbustivas) | I7: =+E7 -> 3c | U7: SomaDeCult_Temp
B8: 7 | C8: SomaDeSAU_IRRIG | D8: (4) - Superfície Agrícola de Regadio | E8: 4 | F8: 1 | G8: ha | H8: Superfície Agrícola de Regadio | I8: =+E8 -> 4 | M8: MP | N8: Muito Pequenas | O8: < 4 000 € de VPP | P8: < 5 ha | Q8: < 1250 € | U8: SomaDeSF
B9: 8 | C9: SomaDeCult_Temp | D9: (5) - Culturas Temporárias | E9: 5 | F9: 1 | G9: ha | H9: Culturas Temporárias | I9: 5 | M9: P | N9: Pequenas | O9: >= 4 000 e < 25 000 € de VPP | P9: >= 5 e < 25 ha | Q9: >= 1 250 e < 5 000 € | U9: SomaDePousio
B10: 9 | C10: SumOf_ARV_Ind_SEQ | D10: (5a) - Culturas Arvenses e Indústriais de sequeiro | E10: 5a | F10: 1 | G10: ha | H10: Culturas Arvenses e Indústriais de sequeiro | I10: =+E10 -> 5a | M10: MP | N10: Médias | O10: >= 25 000 e < 100 000 € de VPP | P10: >= 25 e < 200 ha | Q10: >= 5 000 e < 50 000 € | U10: SomaDeCP
B11: 10 | C11: SumOf_ARV_Ind_Reg | D11: (5b) - Culturas Arvenses e Indústriais de regadio | E11: 5b | F11: 1 | G11: ha | H11: Culturas Arvenses e Indústriais de regadio | I11: =+E11 -> 5b | M11: G | N11: Grandes | O11: >= 100 000 e < 500 000 € de VPP | P11: >= 200 e < 1 000 ha | Q11: >= 50 000 e < 300 000 € | U11: SomaDePP
B12: 11 | C12: SomaDeSF | D12: (6) - Superfície Forrageira Temporária | E12: 6 | F12: 1 | G12: ha | H12: Superfície Forrageira Temporária | I12: 6 | M12: MG | N12: Muito Grandes | O12: >= 500 000 € de VPP | P12: >= 1 000 ha | Q12: >= 300 000 € | U12: SomaDeCNH
B13: 12 | C13: SomaDePousio | D13: (7) - Superfície de Pousio | E13: 7 | F13: 1 | G13: ha | H13: Superfície de Pousio | I13: 7 | U13: SomaDeCNT
B14: 13 | C14: SomaDeCP | D14: (8) - Culturas Permanentes | E14: 8 | F14: 1 | G14: ha | H14: Culturas Permanentes | I14: 8 | U14: SomaDeS_RPB
B15: 14 | C15: SomaDePP | D15: (9) - Superfície de Pastagens Permanentes | E15: 9 | F15: 1 | G15: ha | H15: Superfície de Pastagens Permanentes | I15: 9 | M15: MP | N15: P | O15: MP | P15: G | Q15: MG | U15: SomaDeS_MAA
B16: 15 | C16: Sumpp_02cn | D16: (9a) - Superfície de Pastagens com encabeçamento inferior a 0,2CN/ha de PP | E16: 9a | F16: 1 | G16: ha | H16: Superfície de Pastagens com encabeçamento inferior a 0,2CN/ha de PP | I16: 9a | M16: MP | N16: P | O16: MP | P16: G | Q16: MG | U16: SomaDeS_MZD
B17: 16 | C17: SomaDeCNH | D17: (10) - Nº de Cabeças Normais (Cn) de Herbívoros | E17: 10 | F17: 1 | G17: CN | H17: Nº de Cabeças Normais (Cn) de Herbívoros | I17: 10 | M17: Muito Pequenas | N17: Pequenas | O17: Médias | P17: Grandes | Q17: Muito Grandes | U17: SomaDeAD_Totais2015
B18: 17 | C18: SomaDeCNT | D18: (11) - Nº de Cabeças Normais (Cn) Totais | E18: 11 | F18: 1 | G18: CN | H18: Nº de Cabeças Normais (Cn) Totais | I18: 11 | M18: < 4000€ de VPP | N18: >= 4000 e <25 000€ de VPP | O18: >=25000 e <100 000€ de VPP | P18: >= 100 000 e < 500 000 € de VPP | Q18: >= 500 000 € de VPP | U18: Ajudas_desligadas
B19: 18 | C19: SomaDeS_RPB | D19: (12) - Superfície Agrícola Declarada para Activar Direitos de RPB | E19: 12 | F19: 1 | G19: ha | H19: Superfície Agrícola Declarada para Activar Direitos de RPB | I19: 12 | M19: < 5 ha | N19: >= 5 e < 25 ha | O19: >= 25 e < 200 ha | P19: = 200 e < 1 000 ha | Q19: >= 1 000 ha | U19: SomaDeRPA
B20: 19 | C20: SomaDeS_MAA | D20: (13) - Superfície Agrícola Declarada para Medidas Agroambientais | E20: 13 | F20: 1 | G20: ha | H20: Superfície Agrícola Declarada para Medidas Agroambientais | I20: 13 | M20: =+M$16& CHAR(10) & M18 -> MP < 4000€ de VPP | N20: P >= 4000 e <25 000€ de VPP | O20: MP >=25000 e <100 000€ de VPP | P20: G >= 100 000 e < 500 000 € de VPP | Q20: MG >= 500 000 € de VPP | U20: RPB_Total
B21: 20 | C21: SomaDeS_MZD | D21: (14) - Superfície Agrícola Declarada para MZDs | E21: 14 | F21: 1 | G21: ha | H21: Superfície Agrícola Declarada para MZDs | I21: 14 | M21: MP < 5 ha | N21: P >= 5 e < 25 ha | O21: MP >= 25 e < 200 ha | P21: G = 200 e < 1 000 ha | Q21: MG >= 1 000 ha | U21: SomaDeRPBAJU
B22: 21 | C22: SomaDeAD_Totais2015 | D22: (15) - Montante Total das AD 1º Pilar (16+22) (Mapa) | E22: 15 | F22: 1000 | G22: 1000 € | H22: Montante Total das AD 1º Pilar (16+22) | I22: 15 | K22: AD_PU_2019.pdf | U22: SomaDeRPBJOV
B23: 22 | C23: Ajudas_desligadas | D23: (16) - Total de pagamentos desligados (17+18+21+21a) | E23: 16 | F23: 1000 | G23: 1000 € | H23: Total de pagamentos desligados (17+18+21+21a) | I23: 16 | U23: SomaDeGREEN
B24: 23 | C24: SomaDeRPA | D24: (17) - Montante Regime Pequena Agricultura | E24: 17 | F24: 1000 | G24: 1000 € | H24: Montante Regime Pequena Agricultura | I24: 17
B25: 24 | C25: RPB_Total | D25: (18) - Regime Pagamento Base (RPB) [(19)+(20)] | E25: 18 | F25: 1000 | G25: 1000 € | H25: Regime Pagamento Base (RPB) [(19)+(20)] | I25: 18 | U25: Pag_ligados
B26: 25 | C26: SomaDeRPBAJU | D26: (19) - RPB normal | E26: 19 | F26: 1000 | G26: 1000 € | H26: RPB normal | I26: 19 | M26: MP | N26: Muito Pequenas | O26: < 4 000 € de VPP | P26: < 4 ha | Q26: < 1250 € | U26: SomaDeVACAS_ALEIT
B27: 26 | C27: SomaDeRPBJOV | D27: (20) - RPB Jovens agricultores | E27: 20 | F27: 1000 | G27: 1000 € | H27: RPB Jovens agricultores | I27: 20 | M27: P | N27: Pequenas | O27: >= 4 000 e < 25 000 € de VPP | P27: >= 4 e < 25 ha | Q27: >= 1 250 e < 5 000 € | U27: SomaDePAG_OV_CAP
B28: 27 | C28: SomaDeGREEN | D28: (21) - Pagamento por Práticas Agrícolas Benéficas para o Ambiente (Greening) | E28: 21 | F28: 1000 | G28: 1000 € | H28: Pagamento por Práticas Agrícolas Benéficas para o Ambiente (Greening) | I28: 21 | M28: MP | N28: Médias | O28: >= 25 000 e < 100 000 € de VPP | P28: >= 25 e < 200 ha | Q28: >= 5 000 e < 50 000 € | U28: SomaDeVACAS_leite
B29: 28 | D29: (21a) - Pagamento Redistributivo | E29: 21a | F29: 1000 | G29: 1000 € | H29: Pagamento Redistributivo | I29: 21a | M29: G | N29: Grandes | O29: >= 100 000 e < 500 000 € de VPP | P29: = 200 e < 1 000 ha | Q29: >= 50 000 e < 300 000 € | U29: SomaDePAG_COMPL_Leite
B30: 29 | C30: Pag_ligados | D30: (22) - Total de pagamentos ligados (23+…..+28) | E30: 22 | F30: 1000 | G30: 1000 € | H30: Total de pagamentos ligados (23+…..+28) | I30: 22 | M30: MG | N30: Muito Grandes | O30: >= 500 000 € de VPP | P30: >= 1 000 ha | Q30: >= 300 000 € | U30: SomaDePAG_TOMATE
B31: 30 | C31: SomaDeVACAS_ALEIT | D31: (23) - Prémio às vacas em aleitamento | E31: 23 | F31: 1000 | G31: 1000 € | H31: Prémio às vacas em aleitamento | I31: 23 | U31: SomaDePAG_ARROZ
B32: 31 | C32: SomaDePAG_OV_CAP | D32: (24) - Prémio aos ovinos e caprinos | E32: 24 | F32: 1000 | G32: 1000 € | H32: Prémio aos ovinos e caprinos | I32: 24
B33: 32 | C33: SomaDeVACAS_leite | D33: (25) - Prémio à vaca leiteira | E33: 25 | F33: 1000 | G33: 1000 € | H33: Prémio à vaca leiteira | I33: 25
B34: 33 | C34: SomaDePAG_COMPL_Leite | D34: (26) - Apoio Específico aos produtores de Leite (Medida 1 e 2) 2016 | E34: 26 | F34: 1000 | G34: 1000 € | H34: Apoio Específico aos produtores de Leite (Medida 1 e 2) 2016 | I34: 26
B35: 34 | C35: SomaDePAG_TOMATE | D35: (27) - Pagamento Específico por superfície ao tomate | E35: 27 | F35: 1000 | G35: 1000 € | H35: Pagamento Específico por superfície ao tomate | I35: 27
B36: 35 | C36: SomaDePAG_ARROZ | D36: (28) - Pagamento Específico por superfície ao arroz | E36: 28 | F36: 1000 | G36: 1000 € | H36: Pagamento Específico por superfície ao arroz | I36: 28
B37: 36 | C37: 2_pilar | D37: =+J37&"("&I37& ") - "&H37 & IF(K37<>""," (Mapa)","") -> (29) - Total de Pagamentos Superfície Desenvolvimento Rural ((30)+(34)) (Mapa) | E37: 29 | F37: 1000 | G37: 1000 € | H37: Total de Pagamentos Superfície Desenvolvimento Rural ((30)+(34)) | I37: 29 | K37: MAA_MZD_PU_2019.pdf
B38: 37 | C38: MZD | D38: (30) - Medida Zonas Desfavorecidas (MZD) (Mapa) | E38: 30 | F38: 1000 | G38: 1000 € | H38: Medida Zonas Desfavorecidas (MZD) | I38: 30 | K38: MZD_Medida Zonas desfavorecidas.pdf
B39: 38 | C39: AZDZCE | D39: (31) - Zona Condicionantes Específicas (Mapa) | E39: 31 | F39: 1000 | G39: 1000 € | H39: Zona Condicionantes Específicas | I39: 31 | K39: MZD_ZCE Zona Condicionantes Específicas.pdf
B40: 39 | C40: AZDZCN | D40: (32) - Zona Outras Condicionantes Naturais (Mapa) | E40: 32 | F40: 1000 | G40: 1000 € | H40: Zona Outras Condicionantes Naturais | I40: 32 | K40: MZD_ZCN Zona Outras Condicionantes Naturais.pdf
B41: 40 | C41: AZDZMT | D41: (33) - Zona De Montanha (mapa) (Mapa) | E41: 33 | F41: 1000 | G41: 1000 € | H41: Zona De Montanha (mapa) | I41: 33 | K41: MZD_ZM Zona de Montanha.pdf
B42: 41 | C42: MAA | D42: (34) - Medidas Agroambientais (Mapa) | E42: 34 | F42: 1000 | G42: 1000 € | H42: Medidas Agroambientais | I42: 34 | K42: MAA_Medidas Agroambientais.pdf
B43: 42 | C43: MAAABC | D43: =+J43&"("&I43& ") - "&H43 & IF(K43<>""," (Mapa)","") -> (35) - Maa-Agric.Biológica - Conv (Mapa) | E43: 35 | F43: 1000 | G43: 1000 € | H43: Maa-Agric.Biológica - Conv | I43: 35 | K43: MAAABC_Agricultura Biológica - Transitada da Produção Integrada.pdf
B44: 43 | C44: MAAABM | D44: (36) - Maa-Agric.Biológica - Manut (Mapa) | E44: 36 | F44: 1000 | G44: 1000 € | H44: Maa-Agric.Biológica - Manut | I44: 36 | K44: MAAABM_Agricultura Biológica – Manutenção.pdf
B45: 44 | C45: MAAAPI | D45: (37) - Apoio Agroambiental À Apicultura (Mapa) | E45: 37 | F45: 1000 | G45: 1000 € | H45: Apoio Agroambiental À Apicultura | I45: 37 | K45: MAAPI_apoio à Apicultura.pdf
B46: 45 | C46: MAACPD | D46: (38) - Maa - Douro Vinhateiro (Mapa) | E46: 38 | F46: 1000 | G46: 1000 € | H46: Maa - Douro Vinhateiro | I46: 38 | K46: MAACPD_apoio Douro Vinhateiro.pdf
B47: 46 | C47: MAACPT | D47: (39) - Culturas Permanentes Tradicionais (Mapa) | E47: 39 | F47: 1000 | G47: 1000 € | H47: Culturas Permanentes Tradicionais | I47: 39 | K47: MAACPT_ Culturas Permanentes Tradicionais.pdf
B48: 47 | C48: MAACSE | D48: (40) - Maa-Conservação Solo-Enr.Entr (Mapa) | E48: 40 | F48: 1000 | G48: 1000 € | H48: Maa-Conservação Solo-Enr.Entr | I48: 40 | K48: MAACSE_Conservação do Solo - Enrelvamento da Entrelinha de Culturas Permanentes.pdf
B49: 48 | C49: MAACSS | D49: (41) - Maa-Conservação Solo-Sem Dir (Mapa) | E49: 41 | F49: 1000 | G49: 1000 € | H49: Maa-Conservação Solo-Sem Dir | I49: 41 | K49: MAACSS_Conservação do Solo - Sementeira Direta ou Mobilização na Linha.pdf
B50: 49 | C50: MAAMAF | D50: (42) - Mosaico Agroflorestal (Mapa) | E50: 42 | F50: 1000 | G50: 1000 € | H50: Mosaico Agroflorestal | I50: 42 | K50: MAAMAF_ Mosaico AgroFlorestal.pdf
B51: 50 | C51: MAAMNS | D51: (43) - Maa - Soutos Notáveis (Mapa) | E51: 43 | F51: 1000 | G51: 1000 € | H51: Maa - Soutos Notáveis | I51: 43 | K51: MAAMNS_Conservação dos Soutos Notáveis da Terra Fria.pdf
B52: 51 | C52: MAAPDI | D52: (44) - Maa - Produçao Integrada (Mapa) | E52: 44 | F52: 1000 | G52: 1000 € | H52: Maa - Produçao Integrada | I52: 44 | K52: MAAPDI_Produção Integrada.pdf
B53: 52 | C53: MAAPGP | D53: (45) - Maa - Az Peneda/Gerês (Mapa) | E53: 45 | F53: 1000 | G53: 1000 € | H53: Maa - Az Peneda/Gerês | I53: 45 | K53: MAAPGP_Gestão de Pastoreio em áreas de Baldio -Peneda_Gerês.pdf
B54: 53 | C54: MAAPGS | D54: (46) - Maa - Manut. Socalcos (Mapa) | E54: 46 | F54: 1000 | G54: 1000 € | H54: Maa - Manut. Socalcos | I54: 46 | K54: MAAPGS_Manutenção de Socalcos - Peneda_Gerês.pdf
B55: 54 | C55: MAAPLR | D55: (47) - Maa - Lameiros De Regadio (Mapa) | E55: 47 | F55: 1000 | G55: 1000 € | H55: Maa - Lameiros De Regadio | I55: 47 | K55: MAAPLR_Pastoreio Extensivo - Apoio à Manutenção de Lameiros de Alto Valor Natural - Regadio.pdf
B56: 55 | C56: MAAPLS | D56: (48) - Maa - Lameiros De Sequeiro (Mapa) | E56: 48 | F56: 1000 | G56: 1000 € | H56: Maa - Lameiros De Sequeiro | I56: 48 | K56: MAAPLS_Pastoreio Extensivo - Apoio à Manutenção de Lameiros de Alto Valor Natural – Sequeiro.pdf
B57: 56 | C57: MAAPMT | D57: (49) - Maa - Pastoreio Extensivo Ii (Mapa) | E57: 49 | F57: 1000 | G57: 1000 € | H57: Maa - Pastoreio Extensivo Ii | I57: 49 | K57: MAAPMT_Pastoreio Extensivo -Apoio à Manutenção de Sistemas Agro-silvo-pastoris sob Montado.pdf
B58: 57 | C58: MAAPPL | D58: (50) - Maa - Pastoreio Extensivo Iii (Mapa) | E58: 50 | F58: 1000 | G58: 1000 € | H58: Maa - Pastoreio Extensivo Iii | I58: 50 | K58: MAAPPL_Pastoreio Extensivo - Apoio à Proteção do Lobo Ibérico.pdf
B59: 58 | C59: MAARAE | D59: (51) - Maa - Rot. De Seq Iii (Mapa) | E59: 51 | F59: 1000 | G59: 1000 € | H59: Maa - Rot. De Seq Iii | I59: 51 | K59: MAARAE_Manutenção de Rotação de Sequeiro Cereal-Pousio - Outras Áreas Estepárias.pdf
B60: 59 | C60: MAARCV | D60: (52) - Maa - Rot. De Seq Ii (Mapa) | E60: 52 | F60: 1000 | G60: 1000 € | H60: Maa - Rot. De Seq Ii | I60: 52 | K60: MAARCV_Manutenção de Rotação de Sequeiro Cereal-Pousio AZ Castro Verde.pdf
B61: 60 | C61: MAARGN | D61: (53) - Raças (Mapa) | E61: 53 | F61: 1000 | G61: 1000 € | H61: Raças | I61: 53 | K61: MAARGN_ Recursos Genéticos – Manutenção de Raças Autóctones em risco.pdf
B62: 61 | C62: MAAROA | D62: (54) - Maa - Rot. De Seq I (Mapa) | E62: 54 | F62: 1000 | G62: 1000 € | H62: Maa - Rot. De Seq I | I62: 54 | K62: MAAROA_Manutenção de Rotação de Sequeiro Cereal-Pousio - AZ Montesinho_Nogueira e Douro Internacional, Sabor, Maçãs e Vale do Côa.pdf
B63: 62 | C63: MAAUEA | D63: (55) - Uso Eficiente Da Água Na Agricultura (Mapa) | E63: 55 | F63: 1000 | G63: 1000 € | H63: Uso Eficiente Da Água Na Agricultura | I63: 55 | K63: MAAUEA_Uso Eficiente da Água na Agricultura.pdf
B64: 63 | C64: PAg_Natura | D64: (56) - Pagamentos Natura (Mapa) | E64: 56 | F64: 1000 | G64: 1000 € | H64: Pagamentos Natura | I64: 56 | K64: PAgamentos_natura2018.pdf
B65: 64 | D65: (57) - Total de Pagamentos aos Produtores (15+29) | E65: 57 | F65: 1000 | G65: 1000 € | H65: Total de Pagamentos aos Produtores (15+29) | I65: 57
B66: 65 | C66: Cereais_seq | D66: (58) - Superfície de Cereais De Outono-Inverno | E66: 58 | F66: 1 | G66: ha | H66: Superfície de Cereais De Outono-Inverno | I66: 58
B67: 66 | C67: Milho_grao | D67: (59) - Superfície de Milho Grão; | E67: 59 | F67: 1 | G67: ha | H67: Superfície de Milho Grão; | I67: 59
B68: 67 | C68: Arroz | D68: (60) - Superfície de Arroz; | E68: 60 | F68: 1 | G68: ha | H68: Superfície de Arroz; | I68: 60
B69: 68 | C69: Oleag_proteag | D69: (61) - Superfície de Oleaginosas E Proteaginosas; | E69: 61 | F69: 1 | G69: ha | H69: Superfície de Oleaginosas E Proteaginosas; | I69: 61
B70: 69 | C70: Horticolas | D70: (62) - Superfície de Hortícolas, Batata, Plantas E Flores; | E70: 62 | F70: 1 | G70: ha | H70: Superfície de Hortícolas, Batata, Plantas E Flores; | I70: 62
B71: 70 | C71: Forrag_prados_temp | D71: (63) - Superfície de Forragens E Prados Temporários; | E71: 63 | F71: 1 | G71: ha | H71: Superfície de Forragens E Prados Temporários; | I71: 63
B72: 71 | C72: Pousios | D72: (64) - Superfície de Pousios; | E72: 64 | F72: 1 | G72: ha | H72: Superfície de Pousios; | I72: 64
B73: 72 | C73: Pomares | D73: (65) - Superfície de Pomares; | E73: 65 | F73: 1 | G73: ha | H73: Superfície de Pomares; | I73: 65
B74: 73 | C74: Vinha | D74: (66) - Superfície de Vinha; | E74: 66 | F74: 1 | G74: ha | H74: Superfície de Vinha; | I74: 66
B75: 74 | C75: Olival | D75: (67) - Superfície de Olival; | E75: 67 | F75: 1 | G75: ha | H75: Superfície de Olival; | I75: =+E75 -> 67
B76: 75 | C76: Past_prados_perm | D76: (68) - Superfície de Prados E Pastagens Permanentes; | E76: 68 | F76: 1 | G76: ha | H76: Superfície de Prados E Pastagens Permanentes; | I76: 68
B77: 76 | C77: Vacas_leite1 | D77: (69) - Cabeças de Vacas Leiteiras | E77: 69 | F77: 1 | G77: Cab. | H77: Cabeças de Vacas Leiteiras | I77: 69
B78: 77 | C78: Vacas_aleit1 | D78: (70) - Cabeças de Vacas Aleitantes | E78: 70 | F78: 1 | G78: Cab. | H78: Cabeças de Vacas Aleitantes | I78: 70
B79: 78 | C79: Outros_bov | D79: (71) - Cabeças de Outros Bovinos | E79: 71 | F79: 1 | G79: Cab. | H79: Cabeças de Outros Bovinos | I79: 71
B80: 79 | C80: Ovelhas | D80: (72) - Cabeças de Ovelhas | E80: 72 | F80: 1 | G80: Cab. | H80: Cabeças de Ovelhas | I80: 72
B81: 80 | C81: Outros_ovinos | D81: (73) - Cabeças de Outros Ovinos | E81: 73 | F81: 1 | G81: Cab. | H81: Cabeças de Outros Ovinos | I81: 73
B82: 81 | C82: Cabras | D82: (74) - Cabeças de Cabras | E82: 74 | F82: 1 | G82: Cab. | H82: Cabeças de Cabras | I82: 74
B83: 82 | C83: Outros_cap | D83: (75) - Cabeças de Outros Caprinos | E83: 75 | F83: 1 | G83: Cab. | H83: Cabeças de Outros Caprinos | I83: 75
B84: 83 | C84: PI_N | D84: (76) - Número de Produtores Maa - Produçao Integrada | E84: 76 | F84: 1 | G84: Nº | H84: Número de Produtores Maa - Produçao Integrada | I84: 76
B85: 84 | C85: PI_SAU | D85: (77) - SA Declarada para Maa - Produçao Integrada (Mapa) | E85: 77 | F85: 1 | G85: ha | H85: SA Declarada para Maa - Produçao Integrada | I85: 77 | K85: MAAPDI_PI_SAU.pdf
B86: 85 | C86: PABC_N | D86: (78) - Número de Produtores Maa-Agric.Biológica - Conv | E86: 78 | F86: 1 | G86: Nº | H86: Número de Produtores Maa-Agric.Biológica - Conv | I86: 78
B87: 86 | C87: PABC_SAU | D87: (79) - SA Declarada para Maa-Agric.Biológica - Conv (Mapa) | E87: 79 | F87: 1 | G87: ha | H87: SA Declarada para Maa-Agric.Biológica - Conv | I87: 79 | K87: MAAABC_PABC_SAU.pdf
B88: 87 | C88: PABM_N | D88: (80) - Número de Produtores Maa-Agric.Biológica - Manut | E88: 80 | F88: 1 | G88: Nº | H88: Número de Produtores Maa-Agric.Biológica - Manut | I88: 80
B89: 88 | C89: PABM_SAU | D89: (81) - SA Declarada para Maa-Agric.Biológica - Manut (Mapa) | E89: 81 | F89: 1 | G89: ha | H89: SA Declarada para Maa-Agric.Biológica - Manut | I89: 81 | K89: MAAABM_PABM_SAU.pdf
B90: 89 | C90: PUEA_N | D90: (82) - Número de Produtores Uso Eficiente Da Água Na Agricultura | E90: 82 | F90: 1 | G90: Nº | H90: Número de Produtores Uso Eficiente Da Água Na Agricultura | I90: 82
B91: 90 | C91: PUEA_SAU | D91: (83) - SA Declarada para Uso Eficiente Da Água Na Agricultura (Mapa) | E91: 83 | F91: 1 | G91: ha | H91: SA Declarada para Uso Eficiente Da Água Na Agricultura | I91: 83 | K91: MAAUEA_PUEA_SAU_Uso Eficiente da Água na Agricultura.pdf
B92: 91 | C92: PCPT_N | D92: (84) - Número de Produtores Culturas Permanentes Tradicionais | E92: 84 | F92: 1 | G92: Nº | H92: Número de Produtores Culturas Permanentes Tradicionais | I92: 84
B93: 92 | C93: PCPT_SAU | D93: (85) - SA Declarada para Culturas Permanentes Tradicionais (Mapa) | E93: 85 | F93: 1 | G93: ha | H93: SA Declarada para Culturas Permanentes Tradicionais | I93: 85 | K93: MAACPT_PCPT_SAU_Culturas Permanentes Tradicionais.pdf
B94: 93 | C94: PCSS_N | D94: (86) - Número de Produtores Maa-Conservação Solo-Sem Dir | E94: 86 | F94: 1 | G94: Nº | H94: Número de Produtores Maa-Conservação Solo-Sem Dir | I94: 86
B95: 94 | C95: PCSS_SAU | D95: (87) - SA Declarada para Maa-Conservação Solo-Sem Dir (Mapa) | E95: 87 | F95: 1 | G95: ha | H95: SA Declarada para Maa-Conservação Solo-Sem Dir | I95: 87 | K95: MAACSS_PCSS_SAU_Conservação do Solo - Sementeira Direta ou mobilização na linha.pdf
B96: 95 | C96: PCSE_N | D96: (88) - Número de Produtores Maa-Conservação Solo-Enr.Entr | E96: 88 | F96: 1 | G96: Nº | H96: Número de Produtores Maa-Conservação Solo-Enr.Entr | I96: 88
B97: 96 | C97: PCSE_SAU | D97: (89) - SA Declarada para Maa-Conservação Solo-Enr.Entr (Mapa) | E97: 89 | F97: 1 | G97: ha | H97: SA Declarada para Maa-Conservação Solo-Enr.Entr | I97: 89 | K97: MAACSE_PCSE_SAU_Conservação do Solo - Enrelvamento da Entrelinha de culuras permanentes.pdf
B98: 97 | C98: PPLS_N | D98: (90) - Número de Produtores Maa - Lameiros De Sequeiro | E98: 90 | F98: 1 | G98: Nº | H98: Número de Produtores Maa - Lameiros De Sequeiro | I98: 90
B99: 98 | C99: PPLS_SAU | D99: (91) - SA Declarada para Maa - Lameiros De Sequeiro (Mapa) | E99: 91 | F99: 1 | G99: ha | H99: SA Declarada para Maa - Lameiros De Sequeiro | I99: 91 | K99: MAAPLS_PPLS_SAU_Pastoreio Extensivo - Apoio à Manutenção de Lameiros de Alto Valor Natural – Sequeiro.pdf
B100: 99 | C100: PPLR_N | D100: (92) - Número de Produtores Maa - Lameiros De Regadio | E100: 92 | F100: 1 | G100: Nº | H100: Número de Produtores Maa - Lameiros De Regadio | I100: 92
B101: 100 | C101: PPLR_SAU | D101: (93) - SA Declarada para Maa - Lameiros De Regadio (Mapa) | E101: 93 | F101: 1 | G101: ha | H101: SA Declarada para Maa - Lameiros De Regadio | I101: 93 | K101: MAAPLR_PPLR_SAU_Pastoreio Extensivo - Apoio à Manutenção de Lameiros de Alto Valor Natural – Regadio.pdf
B102: 101 | C102: PPMT_N | D102: (94) - Número de Produtores Maa -Pastoreio Extensivo -Apoio à Manutenção de Sistemas Agro-silvo-pastoris sob Montado Ii | E102: 94 | F102: 1 | G102: Nº | H102: Número de Produtores Maa -Pastoreio Extensivo -Apoio à Manutenção de Sistemas Agro-silvo-pastoris sob Montado Ii | I102: 94
B103: 102 | C103: PPMT_SAU | D103: (95) - SA Declarada para Maa - Pastoreio Extensivo -Apoio à Manutenção de Sistemas Agro-silvo-pastoris sob Montado Ii (Mapa) | E103: 95 | F103: 1 | G103: ha | H103: SA Declarada para Maa - Pastoreio Extensivo -Apoio à Manutenção de Sistemas Agro-silvo-pastoris sob Montado Ii | I103: 95 | K103: MAAPPMT_PPMT_SAU_Pastoreio Extensivo -Apoio à Manutenção de Sistemas Agro-silvo-pastoris sob Montado.pdf
B104: 103 | C104: PPPL_N | D104: =+J104&"("&I104& ") - "&H104 & IF(K104<>""," (Mapa)","") -> (96) - Número de Produtores Maa - Pastoreio Extensivo Apoio à Proteção do Lobo Ibérico | E104: 96 | F104: 1 | G104: Nº | H104: Número de Produtores Maa - Pastoreio Extensivo Apoio à Proteção do Lobo Ibérico | I104: 96
B105: 104 | C105: PPPL_SAU | D105: (97) - SA Declarada para Maa - Pastoreio Extensivo Apoio à Proteção do Lobo Ibérico (Mapa) | E105: 97 | F105: 1 | G105: ha | H105: SA Declarada para Maa - Pastoreio Extensivo Apoio à Proteção do Lobo Ibérico | I105: 97 | K105: MAAPPL_SAU_Pastoreio Extensivo - Apoio à Proteção do Lobo Ibérico.pdf
B106: 105
B107: 106

Sheet Sheet3 (hidden)
B1: 2 | C1: 57 | E1: 22 | F1: =+INDEX(Sheet6!F2:F117,C1) -> 1000
A2: 1 | B2: =+A2-1 -> 0
A3: =+INDEX(Sheet6!Q1:Q5,Sheet3!A2) -> <5 | C3: =SUM(I8:M8) -> 350 | D3: 0 | E3: 0 | F3: 0 | G3: 0 | H3: 0 | I3: 1_1 | J3: 1_1 | K3: 1_1 | L3: 1_1 | M3: 1_1 | N3: 1_2 | O3: 1_2 | P3: 1_2 | Q3: 1_2 | R3: 1_2 | S3: 2 | T3: 2 | U3: 2 | V3: 2 | W3: 2 | X3: 3 | Y3: 3 | Z3: 3 | AA3: 3 | AB3: 3 | AC3: 4 | AD3: 4 | AE3: 4 | AF3: 4 | AG3: 4 | AH3: 5 | AI3: 5 | AJ3: 5 | AK3: 5 | AL3: 5 | AM3: 6 | AN3: 6 | AO3: 6 | AP3: 6 | AQ3: 6 | AR3: 7 | AS3: 7 | AT3: 7 | AU3: 7 | AV3: 7 | AW3: 8 | AX3: 8 | AY3: 8 | AZ3: 8 | BA3: 8 | BB3: 9 | BC3: 9 | BD3: 9 | BE3: 9 | BF3: 9 | BG3: 10_1 | BH3: 10_1 | BI3: 10_1 | BJ3: 10_1 | BK3: 10_1 | BL3: 10_2 | BM3: 10_2 | BN3: 10_2 | BO3: 10_2 | BP3: 10_2 | BQ3: 11 | BR3: 11 | BS3: 11 | BT3: 11 | BU3: 11 | BV3: 12 | BW3: 12 | BX3: 12 | BY3: 12 | BZ3: 12 | CA3: 13 | CB3: 13 | CC3: 13 | CD3: 13 | CE3: 13 | CF3: 14 | CG3: 14 | CH3: 14 | CI3: 14 | CJ3: 14 | CK3: 15 | CL3: 15 | CM3: 15 | CN3: 15 | CO3: 15 | CP3: 0 | CQ3: 1_1 | CR3: 1_2 | CS3: 2 | CT3: 3 | CU3: 4 | CV3: 5 | CW3: 6 | CX3: 7 | CY3: 8 | CZ3: 9 | DA3: 10_1 | DB3: 10_2 | DC3: 11 | DD3: 12 | DE3: 13 | DF3: 14 | DG3: 15 | DH3: 1 | DI3: 2 | DJ3: 3 | DK3: 4 | DL3: 5
D4: 1 | E4: 2 | F4: 3 | G4: 4 | H4: 5 | I4: 1 | J4: 2 | K4: 3 | L4: 4 | M4: 5 | N4: 1 | O4: 2 | P4: 3 | Q4: 4 | R4: 5 | S4: 1 | T4: 2 | U4: 3 | V4: 4 | W4: 5 | X4: 1 | Y4: 2 | Z4: 3 | AA4: 4 | AB4: 5 | AC4: 1 | AD4: 2 | AE4: 3 | AF4: 4 | AG4: 5 | AH4: 1 | AI4: 2 | AJ4: 3 | AK4: 4 | AL4: 5 | AM4: 1 | AN4: 2 | AO4: 3 | AP4: 4 | AQ4: 5 | AR4: 1 | AS4: 2 | AT4: 3 | AU4: 4 | AV4: 5 | AW4: 1 | AX4: 2 | AY4: 3 | AZ4: 4 | BA4: 5 | BB4: 1 | BC4: 2 | BD4: 3 | BE4: 4 | BF4: 5 | BG4: 1 | BH4: 2 | BI4: 3 | BJ4: 4 | BK4: 5 | BL4: 1 | BM4: 2 | BN4: 3 | BO4: 4 | BP4: 5 | BQ4: 1 | BR4: 2 | BS4: 3 | BT4: 4 | BU4: 5 | BV4: 1 | BW4: 2 | BX4: 3 | BY4: 4 | BZ4: 5 | CA4: 1 | CB4: 2 | CC4: 3 | CD4: 4 | CE4: 5 | CF4: 1 | CG4: 2 | CH4: 3 | CI4: 4 | CJ4: 5 | CK4: 1 | CL4: 2 | CM4: 3 | CN4: 4 | CO4: 5 | DH4: 1 | DI4: 2 | DJ4: 3 | DK4: 4 | DL4: 5
I5: Arvenses e Outras Cult pred. Regadio | J5: Arvenses e Outras Cult pred. Regadio | K5: Arvenses e Outras Cult pred. Regadio | L5: Arvenses e Outras Cult pred. Regadio | M5: Arvenses e Outras Cult pred. Regadio | N5: Arvenses e Outras Cult pred. Sequeiro | O5: Arvenses e Outras Cult pred. Sequeiro | P5: Arvenses e Outras Cult pred. Sequeiro | Q5: Arvenses e Outras Cult pred. Sequeiro | R5: Arvenses e Outras Cult pred. Sequeiro | S5: Arroz | T5: Arroz | U5: Arroz | V5: Arroz | W5: Arroz | X5: Horticultura e Industriais | Y5: Horticultura e Industriais | Z5: Horticultura e Industriais | AA5: Horticultura e Industriais | AB5: Horticultura e Industriais | AC5: Horticultura e Floricultura | AD5: Horticultura e Floricultura | AE5: Horticultura e Floricultura | AF5: Horticultura e Floricultura | AG5: Horticultura e Floricultura | AH5: Vinhos | AI5: Vinhos
I6: Muito Pequenas | J6: Pequenas | K6: Médias | L6: Grandes | M6: Muito Grandes | N6: Muito Pequenas | O6: Pequenas | P6: Médias | Q6: Grandes | R6: Muito Grandes | S6: Muito Pequenas | T6: Pequenas | U6: Médias | V6: Grandes | W6: Muito Grandes | X6: Muito Pequenas | Y6: Pequenas | Z6: Médias | AA6: Grandes | AB6: Muito Grandes | AC6: Muito Pequenas | AD6: Pequenas | AE6: Médias | AF6: Grandes | AG6: Muito Grandes | AH6: Muito Pequenas | AI6: Pequenas
C7: NUT'S III
A8: 1 | B8: 111 | C8: Alto Minho | D8: =+SUMIFS(Sheet4!$DM$2:$DM$8270,Sheet4!$C$2:$C$8270,Sheet3!$B8,Sheet4!$D$2:$D$8270,Sheet3!D$3,Sheet4!$E$2:$E$8270,Sheet3!D$4,Sheet4!$A$2:$A$8270,Sheet3!$B$1,Sheet4!$B$2:$B$8270,Sheet3!$A$3) -> 0 | E8: =+SUMIFS(Sheet4!$DM$2:$DM$8270,Sheet4!$C$2:$C$8270,Sheet3!$B8,Sheet4!$D$2:$D$8270,Sheet3!E$3,Sheet4!$E$2:$E$8270,Sheet3!E$4,Sheet4!$A$2:$A$8270,Sheet3!$B$1,Sheet4!$B$2:$B$8270,Sheet3!$A$3) -> 0 | F8: =+SUMIFS(Sheet4!$DM$2:$DM$8270,Sheet4!$C$2:$C$8270,Sheet3!$B8,Sheet4!$D$2:$D$8270,Sheet3!F$3,Sheet4!$E$2:$E$8270,Sheet3!F$4,Sheet4!$A$2:$A$8270,Sheet3!$B$1,Sheet4!$B$2:$B$8270,Sheet3!$A$3) -> 0 | G8: =+SUMIFS(Sheet4!$DM$2:$DM$8270,Sheet4!$C$2:$C$8270,Sheet3!$B8,Sheet4!$D$2:$D$8270,Sheet3!G$3,Sheet4!$E$2:$E$8270,Sheet3!G$4,Sheet4!$A$2:$A$8270,Sheet3!$B$1,Sheet4!$B$2:$B$8270,Sheet3!$A$3) -> 0 | H8: =+SUMIFS(Sheet4!$DM$2:$DM$8270,Sheet4!$C$2:$C$8270,Sheet3!$B8,Sheet4!$D$2:$D$8270,Sheet3!H$3,Sheet4!$E$2:$E$8270,Sheet3!H$4,Sheet4!$A$2:$A$8270,Sheet3!$B$1,Sheet4!$B$2:$B$8270,Sheet3!$A$3) -> 0 | I8: =+SUMIFS(Sheet4!$DM$2:$DM$8270,Sheet4!$C$2:$C$8270,Sheet3!$B8,Sheet4!$D$2:$D$8270,Sheet3!I$3,Sheet4!$E$2:$E$8270,Sheet3!I$4,Sheet4!$A$2:$A$8270,Sheet3!$B$1,Sheet4!$B$2:$B$8270,Sheet3!$A$3) -> 0 | J8: =+SUMIFS(Sheet4!$DM$2:$DM$8270,Sheet4!$C$2:$C$8270,Sheet3!$B8,Sheet4!$D$2:$D$8270,Sheet3!J$3,Sheet4!$E$2:$E$8270,Sheet3!J$4,Sheet4!$A$2:$A$8270,Sheet3!$B$1,Sheet4!$B$2:$B$8270,Sheet3!$A$3) -> 350 | K8: =+SUMIFS(Sheet4!$DM$2:$DM$8270,Sheet4!$C$2:$C$8270,Sheet3!$B8,Sheet4!$D$2:$D$8270,Sheet3!K$3,Sheet4!$E$2:$E$8270,Sheet3!K$4,Sheet4!$A$2:$A$8270,Sheet3!$B$1,Sheet4!$B$2:$B$8270,Sheet3!$A$3) -> 0 | L8: =+SUMIFS(Sheet4!$DM$2:$DM$8270,Sheet4!$C$2:$C$8270,Sheet3!$B8,Sheet4!$D$2:$D$8270,Sheet3!L$3,Sheet4!$E$2:$E$8270,Sheet3!L$4,Sheet4!$A$2:$A$8270,Sheet3!$B$1,Sheet4!$B$2:$B$8270,Sheet3!$A$3) -> 0 | M8: =+SUMIFS(Sheet4!$DM$2:$DM$8270,Sheet4!$C$2:$C$8270,Sheet3!$B8,Sheet4!$D$2:$D$8270,Sheet3!M$3,Sheet4!$E$2:$E$8270,Sheet3!M$4,Sheet4!$A$2:$A$8270,Sheet3!$B$1,Sheet4!$B$2:$B$8270,Sheet3!$A$3) -> 0 | N8: =+SUMIFS(Sheet4!$DM$2:$DM$8270,Sheet4!$C$2:$C$8270,Sheet3!$B8,Sheet4!$D$2:$D$8270,Sheet3!N$3,Sheet4!$E$2:$E$8270,Sheet3!N$4,Sheet4!$A$2:$A$8270,Sheet3!$B$1,Sheet4!$B$2:$B$8270,Sheet3!$A$3) -> 0 | O8: =+SUMIFS(Sheet4!$DM$2:$DM$8270,Sheet4!$C$2:$C$8270,Sheet3!$B8,Sheet4!$D$2:$D$8270,Sheet3!O$3,Sheet4!$E$2:$E$8270,Sheet3!O$4,Sheet4!$A$2:$A$8270,Sheet3!$B$1,Sheet4!$B$2:$B$8270,Sheet3!$A$3) -> 0 | P8: =+SUMIFS(Sheet4!$DM$2:$DM$8270,Sheet4!$C$2:$C$8270,Sheet3!$B8,Sheet4!$D$2:$D$8270,Sheet3!P$3,Sheet4!$E$2:$E$8270,Sheet3!P$4,Sheet4!$A$2:$A$8270,Sheet3!$B$1,Sheet4!$B$2:$B$8270,Sheet3!$A$3) -> 0 | Q8: =+SUMIFS(Sheet4!$DM$2:$DM$8270,Sheet4!$C$2:$C$8270,Sheet3!$B8,Sheet4!$D$2:$D$8270,Sheet3!Q$3,Sheet4!$E$2:$E$8270,Sheet3!Q$4,Sheet4!$A$2:$A$8270,Sheet3!$B$1,Sheet4!$B$2:$B$8270,Sheet3!$A$3) -> 0 | R8: =+SUMIFS(Sheet4!$DM$2:$DM$8270,Sheet4!$C$2:$C$8270,Sheet3!$B8,Sheet4!$D$2:$D$8270,Sheet3!R$3,Sheet4!$E$2:$E$8270,Sheet3!R$4,Sheet4!$A$2:$A$8270,Sheet3!$B$1,Sheet4!$B$2:$B$8270,Sheet3!$A$3) -> 0 | S8: =+SUMIFS(Sheet4!$DM$2:$DM$8270,Sheet4!$C$2:$C$8270,Sheet3!$B8,Sheet4!$D$2:$D$8270,Sheet3!S$3,Sheet4!$E$2:$E$8270,Sheet3!S$4,Sheet4!$A$2:$A$8270,Sheet3!$B$1,Sheet4!$B$2:$B$8270,Sheet3!$A$3) -> 0 | T8: =+SUMIFS(Sheet4!$DM$2:$DM$8270,Sheet4!$C$2:$C$8270,Sheet3!$B8,Sheet4!$D$2:$D$8270,Sheet3!T$3,Sheet4!$E$2:$E$8270,Sheet3!T$4,Sheet4!$A$2:$A$8270,Sheet3!$B$1,Sheet4!$B$2:$B$8270,Sheet3!$A$3) -> 0 | U8: =+SUMIFS(Sheet4!$DM$2:$DM$8270,Sheet4!$C$2:$C$8270,Sheet3!$B8,Sheet4!$D$2:$D$8270,Sheet3!U$3,Sheet4!$E$2:$E$8270,Sheet3!U$4,Sheet4!$A$2:$A$8270,Sheet3!$B$1,Sheet4!$B$2:$B$8270,Sheet3!$A$3) -> 0 | V8: =+SUMIFS(Sheet4!$DM$2:$DM$8270,Sheet4!$C$2:$C$8270,Sheet3!$B8,Sheet4!$D$2:$D$8270,Sheet3!V$3,Sheet4!$E$2:$E$8270,Sheet3!V$4,Sheet4!$A$2:$A$8270,Sheet3!$B$1,Sheet4!$B$2:$B$8270,Sheet3!$A$3) -> 0 | W8: =+SUMIFS(Sheet4!$DM$2:$DM$8270,Sheet4!$C$2:$C$8270,Sheet3!$B8,Sheet4!$D$2:$D$8270,Sheet3!W$3,Sheet4!$E$2:$E$8270,Sheet3!W$4,Sheet4!$A$2:$A$8270,Sheet3!$B$1,Sheet4!$B$2:$B$8270,Sheet3!$A$3) -> 0 | X8: =+SUMIFS(Sheet4!$DM$2:$DM$8270,Sheet4!$C$2:$C$8270,Sheet3!$B8,Sheet4!$D$2:$D$8270,Sheet3!X$3,Sheet4!$E$2:$E$8270,Sheet3!X$4,Sheet4!$A$2:$A$8270,Sheet3!$B$1,Sheet4!$B$2:$B$8270,Sheet3!$A$3) -> 0 | Y8: =+SUMIFS(Sheet4!$DM$2:$DM$8270,Sheet4!$C$2:$C$8270,Sheet3!$B8,Sheet4!$D$2:$D$8270,Sheet3!Y$3,Sheet4!$E$2:$E$8270,Sheet3!Y$4,Sheet4!$A$2:$A$8270,Sheet3!$B$1,Sheet4!$B$2:$B$8270,Sheet3!$A$3) -> 0 | Z8: =+SUMIFS(Sheet4!$DM$2:$DM$8270,Sheet4!$C$2:$C$8270,Sheet3!$B8,Sheet4!$D$2:$D$8270,Sheet3!Z$3,Sheet4!$E$2:$E$8270,Sheet3!Z$4,Sheet4!$A$2:$A$8270,Sheet3!$B$1,Sheet4!$B$2:$B$8270,Sheet3!$A$3) -> 0 | AA8: =+SUMIFS(Sheet4!$DM$2:$DM$8270,Sheet4!$C$2:$C$8270,Sheet3!$B8,Sheet4!$D$2:$D$8270,Sheet3!AA$3,Sheet4!$E$2:$E$8270,Sheet3!AA$4,Sheet4!$A$2:$A$8270,Sheet3!$B$1,Sheet4!$B$2:$B$8270,Sheet3!$A$3) -> 0 | AB8: =+SUMIFS(Sheet4!$DM$2:$DM$8270,Sheet4!$C$2:$C$8270,Sheet3!$B8,Sheet4!$D$2:$D$8270,Sheet3!AB$3,Sheet4!$E$2:$E$8270,Sheet3!AB$4,Sheet4!$A$2:$A$8270,Sheet3!$B$1,Sheet4!$B$2:$B$8270,Sheet3!$A$3) -> 0 | AC8: =+SUMIFS(Sheet4!$DM$2:$DM$8270,Sheet4!$C$2:$C$8270,Sheet3!$B8,Sheet4!$D$2:$D$8270,Sheet3!AC$3,Sheet4!$E$2:$E$8270,Sheet3!AC$4,Sheet4!$A$2:$A$8270,Sheet3!$B$1,Sheet4!$B$2:$B$8270,Sheet3!$A$3) -> 0 | AD8: =+SUMIFS(Sheet4!$DM$2:$DM$8270,Sheet4!$C$2:$C$8270,Sheet3!$B8,Sheet4!$D$2:$D$8270,Sheet3!AD$3,Sheet4!$E$2:$E$8270,Sheet3!AD$4,Sheet4!$A$2:$A$8270,Sheet3!$B$1,Sheet4!$B$2:$B$8270,Sheet3!$A$3) -> 0 | AE8: =+SUMIFS(Sheet4!$DM$2:$DM$8270,Sheet4!$C$2:$C$8270,Sheet3!$B8,Sheet4!$D$2:$D$8270,Sheet3!AE$3,Sheet4!$E$2:$E$8270,Sheet3!AE$4,Sheet4!$A$2:$A$8270,Sheet3!$B$1,Sheet4!$B$2:$B$8270,Sheet3!$A$3) -> 0 | AF8: =+SUMIFS(Sheet4!$DM$2:$DM$8270,Sheet4!$C$2:$C$8270,Sheet3!$B8,Sheet4!$D$2:$D$8270,Sheet3!AF$3,Sheet4!$E$2:$E$8270,Sheet3!AF$4,Sheet4!$A$2:$A$8270,Sheet3!$B$1,Sheet4!$B$2:$B$8270,Sheet3!$A$3) -> 0 | AG8: =+SUMIFS(Sheet4!$DM$2:$DM$8270,Sheet4!$C$2:$C$8270,Sheet3!$B8,Sheet4!$D$2:$D$8270,Sheet3!AG$3,Sheet4!$E$2:$E$8270,Sheet3!AG$4,Sheet4!$A$2:$A$8270,Sheet3!$B$1,Sheet4!$B$2:$B$8270,Sheet3!$A$3) -> 0 | AH8: =+SUMIFS(Sheet4!$DM$2:$DM$8270,Sheet4!$C$2:$C$8270,Sheet3!$B8,Sheet4!$D$2:$D$8270,Sheet3!AH$3,Sheet4!$E$2:$E$8270,Sheet3!AH$4,Sheet4!$A$2:$A$8270,Sheet3!$B$1,Sheet4!$B$2:$B$8270,Sheet3!$A$3) -> 0 | AI8: =+SUMIFS(Sheet4!$DM$2:$DM$8270,Sheet4!$C$2:$C$8270,Sheet3!$B8,Sheet4!$D$2:$D$8270,Sheet3!AI$3,Sheet4!$E$2:$E$8270,Sheet3!AI$4,Sheet4!$A$2:$A$8270,Sheet3!$B$1,Sheet4!$B$2:$B$8270,Sheet3!$A$3) -> 0 | AJ8: =+SUMIFS(Sheet4!$DM$2:$DM$8270,Sheet4!$C$2:$C$8270,Sheet3!$B8,Sheet4!$D$2:$D$8270,Sheet3!AJ$3,Sheet4!$E$2:$E$8270,Sheet3!AJ$4,Sheet4!$A$2:$A$8270,Sheet3!$B$1,Sheet4!$B$2:$B$8270,Sheet3!$A$3) -> 0 | AK8: =+SUMIFS(Sheet4!$DM$2:$DM$8270,Sheet4!$C$2:$C$8270,Sheet3!$B8,Sheet4!$D$2:$D$8270,Sheet3!AK$3,Sheet4!$E$2:$E$8270,Sheet3!AK$4,Sheet4!$A$2:$A$8270,Sheet3!$B$1,Sheet4!$B$2:$B$8270,Sheet3!$A$3) -> 0 | AL8: =+SUMIFS(Sheet4!$DM$2:$DM$8270,Sheet4!$C$2:$C$8270,Sheet3!$B8,Sheet4!$D$2:$D$8270,Sheet3!AL$3,Sheet4!$E$2:$E$8270,Sheet3!AL$4,Sheet4!$A$2:$A$8270,Sheet3!$B$1,Sheet4!$B$2:$B$8270,Sheet3!$A$3) -> 0 | AM8: =+SUMIFS(Sheet4!$DM$2:$DM$8270,Sheet4!$C$2:$C$8270,Sheet3!$B8,Sheet4!$D$2:$D$8270,Sheet3!AM$3,Sheet4!$E$2:$E$8270,Sheet3!AM$4,Sheet4!$A$2:$A$8270,Sheet3!$B$1,Sheet4!$B$2:$B$8270,Sheet3!$A$3) -> 0 | AN8: =+SUMIFS(Sheet4!$DM$2:$DM$8270,Sheet4!$C$2:$C$8270,Sheet3!$B8,Sheet4!$D$2:$D$8270,Sheet3!AN$3,Sheet4!$E$2:$E$8270,Sheet3!AN$4,Sheet4!$A$2:$A$8270,Sheet3!$B$1,Sheet4!$B$2:$B$8270,Sheet3!$A$3) -> 0 | AO8: =+SUMIFS(Sheet4!$DM$2:$DM$8270,Sheet4!$C$2:$C$8270,Sheet3!$B8,Sheet4!$D$2:$D$8270,Sheet3!AO$3,Sheet4!$E$2:$E$8270,Sheet3!AO$4,Sheet4!$A$2:$A$8270,Sheet3!$B$1,Sheet4!$B$2:$B$8270,Sheet3!$A$3) -> 0 | AP8: =+SUMIFS(Sheet4!$DM$2:$DM$8270,Sheet4!$C$2:$C$8270,Sheet3!$B8,Sheet4!$D$2:$D$8270,Sheet3!AP$3,Sheet4!$E$2:$E$8270,Sheet3!AP$4,Sheet4!$A$2:$A$8270,Sheet3!$B$1,Sheet4!$B$2:$B$8270,Sheet3!$A$3) -> 0 | AQ8: =+SUMIFS(Sheet4!$DM$2:$DM$8270,Sheet4!$C$2:$C$8270,Sheet3!$B8,Sheet4!$D$2:$D$8270,Sheet3!AQ$3,Sheet4!$E$2:$E$8270,Sheet3!AQ$4,Sheet4!$A$2:$A$8270,Sheet3!$B$1,Sheet4!$B$2:$B$8270,Sheet3!$A$3) -> 0 | AR8: =+SUMIFS(Sheet4!$DM$2:$DM$8270,Sheet4!$C$2:$C$8270,Sheet3!$B8,Sheet4!$D$2:$D$8270,Sheet3!AR$3,Sheet4!$E$2:$E$8270,Sheet3!AR$4,Sheet4!$A$2:$A$8270,Sheet3!$B$1,Sheet4!$B$2:$B$8270,Sheet3!$A$3) -> 0 | AS8: =+SUMIFS(Sheet4!$DM$2:$DM$8270,Sheet4!$C$2:$C$8270,Sheet3!$B8,Sheet4!$D$2:$D$8270,Sheet3!AS$3,Sheet4!$E$2:$E$8270,Sheet3!AS$4,Sheet4!$A$2:$A$8270,Sheet3!$B$1,Sheet4!$B$2:$B$8270,Sheet3!$A$3) -> 0 | AT8: =+SUMIFS(Sheet4!$DM$2:$DM$8270,Sheet4!$C$2:$C$8270,Sheet3!$B8,Sheet4!$D$2:$D$8270,Sheet3!AT$3,Sheet4!$E$2:$E$8270,Sheet3!AT$4,Sheet4!$A$2:$A$8270,Sheet3!$B$1,Sheet4!$B$2:$B$8270,Sheet3!$A$3) -> 0 | AU8: =+SUMIFS(Sheet4!$DM$2:$DM$8270,Sheet4!$C$2:$C$8270,Sheet3!$B8,Sheet4!$D$2:$D$8270,Sheet3!AU$3,Sheet4!$E$2:$E$8270,Sheet3!AU$4,Sheet4!$A$2:$A$8270,Sheet3!$B$1,Sheet4!$B$2:$B$8270,Sheet3!$A$3) -> 0 | AV8: =+SUMIFS(Sheet4!$DM$2:$DM$8270,Sheet4!$C$2:$C$8270,Sheet3!$B8,Sheet4!$D$2:$D$8270,Sheet3!AV$3,Sheet4!$E$2:$E$8270,Sheet3!AV$4,Sheet4!$A$2:$A$8270,Sheet3!$B$1,Sheet4!$B$2:$B$8270,Sheet3!$A$3) -> 0 | AW8: =+SUMIFS(Sheet4!$DM$2:$DM$8270,Sheet4!$C$2:$C$8270,Sheet3!$B8,Sheet4!$D$2:$D$8270,Sheet3!AW$3,Sheet4!$E$2:$E$8270,Sheet3!AW$4,Sheet4!$A$2:$A$8270,Sheet3!$B$1,Sheet4!$B$2:$B$8270,Sheet3!$A$3) -> 0 | AX8: =+SUMIFS(Sheet4!$DM$2:$DM$8270,Sheet4!$C$2:$C$8270,Sheet3!$B8,Sheet4!$D$2:$D$8270,Sheet3!AX$3,Sheet4!$E$2:$E$8270,Sheet3!AX$4,Sheet4!$A$2:$A$8270,Sheet3!$B$1,Sheet4!$B$2:$B$8270,Sheet3!$A$3) -> 0 | AY8: =+SUMIFS(Sheet4!$DM$2:$DM$8270,Sheet4!$C$2:$C$8270,Sheet3!$B8,Sheet4!$D$2:$D$8270,Sheet3!AY$3,Sheet4!$E$2:$E$8270,Sheet3!AY$4,Sheet4!$A$2:$A$8270,Sheet3!$B$1,Sheet4!$B$2:$B$8270,Sheet3!$A$3) -> 0 | AZ8: =+SUMIFS(Sheet4!$DM$2:$DM$8270,Sheet4!$C$2:$C$8270,Sheet3!$B8,Sheet4!$D$2:$D$8270,Sheet3!AZ$3,Sheet4!$E$2:$E$8270,Sheet3!AZ$4,Sheet4!$A$2:$A$8270,Sheet3!$B$1,Sheet4!$B$2:$B$8270,Sheet3!$A$3) -> 0 | BA8: =+SUMIFS(Sheet4!$DM$2:$DM$8270,Sheet4!$C$2:$C$8270,Sheet3!$B8,Sheet4!$D$2:$D$8270,Sheet3!BA$3,Sheet4!$E$2:$E$8270,Sheet3!BA$4,Sheet4!$A$2:$A$8270,Sheet3!$B$1,Sheet4!$B$2:$B$8270,Sheet3!$A$3) -> 0 | BB8: =+SUMIFS(Sheet4!$DM$2:$DM$8270,Sheet4!$C$2:$C$8270,Sheet3!$B8,Sheet4!$D$2:$D$8270,Sheet3!BB$3,Sheet4!$E$2:$E$8270,Sheet3!BB$4,Sheet4!$A$2:$A$8270,Sheet3!$B$1,Sheet4!$B$2:$B$8270,Sheet3!$A$3) -> 0 | BC8: =+SUMIFS(Sheet4!$DM$2:$DM$8270,Sheet4!$C$2:$C$8270,Sheet3!$B8,Sheet4!$D$2:$D$8270,Sheet3!BC$3,Sheet4!$E$2:$E$8270,Sheet3!BC$4,Sheet4!$A$2:$A$8270,Sheet3!$B$1,Sheet4!$B$2:$B$8270,Sheet3!$A$3) -> 0 | BD8: =+SUMIFS(Sheet4!$DM$2:$DM$8270,Sheet4!$C$2:$C$8270,Sheet3!$B8,Sheet4!$D$2:$D$8270,Sheet3!BD$3,Sheet4!$E$2:$E$8270,Sheet3!BD$4,Sheet4!$A$2:$A$8270,Sheet3!$B$1,Sheet4!$B$2:$B$8270,Sheet3!$A$3) -> 0 | BE8: =+SUMIFS(Sheet4!$DM$2:$DM$8270,Sheet4!$C$2:$C$8270,Sheet3!$B8,Sheet4!$D$2:$D$8270,Sheet3!BE$3,Sheet4!$E$2:$E$8270,Sheet3!BE$4,Sheet4!$A$2:$A$8270,Sheet3!$B$1,Sheet4!$B$2:$B$8270,Sheet3!$A$3) -> 0 | BF8: =+SUMIFS(Sheet4!$DM$2:$DM$8270,Sheet4!$C$2:$C$8270,Sheet3!$B8,Sheet4!$D$2:$D$8270,Sheet3!BF$3,Sheet4!$E$2:$E$8270,Sheet3!BF$4,Sheet4!$A$2:$A$8270,Sheet3!$B$1,Sheet4!$B$2:$B$8270,Sheet3!$A$3) -> 0 | BG8: =+SUMIFS(Sheet4!$DM$2:$DM$8270,Sheet4!$C$2:$C$8270,Sheet3!$B8,Sheet4!$D$2:$D$8270,Sheet3!BG$3,Sheet4!$E$2:$E$8270,Sheet3!BG$4,Sheet4!$A$2:$A$8270,Sheet3!$B$1,Sheet4!$B$2:$B$8270,Sheet3!$A$3) -> 0 | BH8: =+SUMIFS(Sheet4!$DM$2:$DM$8270,Sheet4!$C$2:$C$8270,Sheet3!$B8,Sheet4!$D$2:$D$8270,Sheet3!BH$3,Sheet4!$E$2:$E$8270,Sheet3!BH$4,Sheet4!$A$2:$A$8270,Sheet3!$B$1,Sheet4!$B$2:$B$8270,Sheet3!$A$3) -> 4480.88 | BI8: =+SUMIFS(Sheet4!$DM$2:$DM$8270,Sheet4!$C$2:$C$8270,Sheet3!$B8,Sheet4!$D$2:$D$8270,Sheet3!BI$3,Sheet4!$E$2:$E$8270,Sheet3!BI$4,Sheet4!$A$2:$A$8270,Sheet3!$B$1,Sheet4!$B$2:$B$8270,Sheet3!$A$3) -> 4550 | BJ8: =+SUMIFS(Sheet4!$DM$2:$DM$8270,Sheet4!$C$2:$C$8270,Sheet3!$B8,Sheet4!$D$2:$D$8270,Sheet3!BJ$3,Sheet4!$E$2:$E$8270,Sheet3!BJ$4,Sheet4!$A$2:$A$8270,Sheet3!$B$1,Sheet4!$B$2:$B$8270,Sheet3!$A$3) -> 0 | BK8: =+SUMIFS(Sheet4!$DM$2:$DM$8270,Sheet4!$C$2:$C$8270,Sheet3!$B8,Sheet4!$D$2:$D$8270,Sheet3!BK$3,Sheet4!$E$2:$E$8270,Sheet3!BK$4,Sheet4!$A$2:$A$8270,Sheet3!$B$1,Sheet4!$B$2:$B$8270,Sheet3!$A$3) -> 0 | BL8: =+SUMIFS(Sheet4!$DM$2:$DM$8270,Sheet4!$C$2:$C$8270,Sheet3!$B8,Sheet4!$D$2:$D$8270,Sheet3!BL$3,Sheet4!$E$2:$E$8270,Sheet3!BL$4,Sheet4!$A$2:$A$8270,Sheet3!$B$1,Sheet4!$B$2:$B$8270,Sheet3!$A$3) -> 0 | BM8: =+SUMIFS(Sheet4!$DM$2:$DM$8270,Sheet4!$C$2:$C$8270,Sheet3!$B8,Sheet4!$D$2:$D$8270,Sheet3!BM$3,Sheet4!$E$2:$E$8270,Sheet3!BM$4,Sheet4!$A$2:$A$8270,Sheet3!$B$1,Sheet4!$B$2:$B$8270,Sheet3!$A$3) -> 4883.2 | BN8: =+SUMIFS(Sheet4!$DM$2:$DM$8270,Sheet4!$C$2:$C$8270,Sheet3!$B8,Sheet4!$D$2:$D$8270,Sheet3!BN$3,Sheet4!$E$2:$E$8270,Sheet3!BN$4,Sheet4!$A$2:$A$8270,Sheet3!$B$1,Sheet4!$B$2:$B$8270,Sheet3!$A$3) -> 23615.55 | BO8: =+SUMIFS(Sheet4!$DM$2:$DM$8270,Sheet4!$C$2:$C$8270,Sheet3!$B8,Sheet4!$D$2:$D$8270,Sheet3!BO$3,Sheet4!$E$2:$E$8270,Sheet3!BO$4,Sheet4!$A$2:$A$8270,Sheet3!$B$1,Sheet4!$B$2:$B$8270,Sheet3!$A$3) -> 1050 | BP8: =+SUMIFS(Sheet4!$DM$2:$DM$8270,Sheet4!$C$2:$C$8270,Sheet3!$B8,Sheet4!$D$2:$D$8270,Sheet3!BP$3,Sheet4!$E$2:$E$8270,Sheet3!BP$4,Sheet4!$A$2:$A$8270,Sheet3!$B$1,Sheet4!$B$2:$B$8270,Sheet3!$A$3) -> 0 | BQ8: =+SUMIFS(Sheet4!$DM$2:$DM$8270,Sheet4!$C$2:$C$8270,Sheet3!$B8,Sheet4!$D$2:$D$8270,Sheet3!BQ$3,Sheet4!$E$2:$E$8270,Sheet3!BQ$4,Sheet4!$A$2:$A$8270,Sheet3!$B$1,Sheet4!$B$2:$B$8270,Sheet3!$A$3) -> 0 | BR8: =+SUMIFS(Sheet4!$DM$2:$DM$8270,Sheet4!$C$2:$C$8270,Sheet3!$B8,Sheet4!$D$2:$D$8270,Sheet3!BR$3,Sheet4!$E$2:$E$8270,Sheet3!BR$4,Sheet4!$A$2:$A$8270,Sheet3!$B$1,Sheet4!$B$2:$B$8270,Sheet3!$A$3) -> 1396.5 | BS8: =+SUMIFS(Sheet4!$DM$2:$DM$8270,Sheet4!$C$2:$C$8270,Sheet3!$B8,Sheet4!$D$2:$D$8270,Sheet3!BS$3,Sheet4!$E$2:$E$8270,Sheet3!BS$4,Sheet4!$A$2:$A$8270,Sheet3!$B$1,Sheet4!$B$2:$B$8270,Sheet3!$A$3) -> 6675.9 | BT8: =+SUMIFS(Sheet4!$DM$2:$DM$8270,Sheet4!$C$2:$C$8270,Sheet3!$B8,Sheet4!$D$2:$D$8270,Sheet3!BT$3,Sheet4!$E$2:$E$8270,Sheet3!BT$4,Sheet4!$A$2:$A$8270,Sheet3!$B$1,Sheet4!$B$2:$B$8270,Sheet3!$A$3) -> 700 | BU8: =+SUMIFS(Sheet4!$DM$2:$DM$8270,Sheet4!$C$2:$C$8270,Sheet3!$B8,Sheet4!$D$2:$D$8270,Sheet3!BU$3,Sheet4!$E$2:$E$8270,Sheet3!BU$4,Sheet4!$A$2:$A$8270,Sheet3!$B$1,Sheet4!$B$2:$B$8270,Sheet3!$A$3) -> 0 | BV8: =+SUMIFS(Sheet4!$DM$2:$DM$8270,Sheet4!$C$2:$C$8270,Sheet3!$B8,Sheet4!$D$2:$D$8270,Sheet3!BV$3,Sheet4!$E$2:$E$8270,Sheet3!BV$4,Sheet4!$A$2:$A$8270,Sheet3!$B$1,Sheet4!$B$2:$B$8270,Sheet3!$A$3) -> 0 | BW8: =+SUMIFS(Sheet4!$DM$2:$DM$8270,Sheet4!$C$2:$C$8270,Sheet3!$B8,Sheet4!$D$2:$D$8270,Sheet3!BW$3,Sheet4!$E$2:$E$8270,Sheet3!BW$4,Sheet4!$A$2:$A$8270,Sheet3!$B$1,Sheet4!$B$2:$B$8270,Sheet3!$A$3) -> 430.5 | BX8: =+SUMIFS(Sheet4!$DM$2:$DM$8270,Sheet4!$C$2:$C$8270,Sheet3!$B8,Sheet4!$D$2:$D$8270,Sheet3!BX$3,Sheet4!$E$2:$E$8270,Sheet3!BX$4,Sheet4!$A$2:$A$8270,Sheet3!$B$1,Sheet4!$B$2:$B$8270,Sheet3!$A$3) -> 0 | BY8: =+SUMIFS(Sheet4!$DM$2:$DM$8270,Sheet4!$C$2:$C$8270,Sheet3!$B8,Sheet4!$D$2:$D$8270,Sheet3!BY$3,Sheet4!$E$2:$E$8270,Sheet3!BY$4,Sheet4!$A$2:$A$8270,Sheet3!$B$1,Sheet4!$B$2:$B$8270,Sheet3!$A$3) -> 0 | BZ8: =+SUMIFS(Sheet4!$DM$2:$DM$8270,Sheet4!$C$2:$C$8270,Sheet3!$B8,Sheet4!$D$2:$D$8270,Sheet3!BZ$3,Sheet4!$E$2:$E$8270,Sheet3!BZ$4,Sheet4!$A$2:$A$8270,Sheet3!$B$1,Sheet4!$B$2:$B$8270,Sheet3!$A$3) -> 0 | CA8: =+SUMIFS(Sheet4!$DM$2:$DM$8270,Sheet4!$C$2:$C$8270,Sheet3!$B8,Sheet4!$D$2:$D$8270,Sheet3!CA$3,Sheet4!$E$2:$E$8270,Sheet3!CA$4,Sheet4!$A$2:$A$8270,Sheet3!$B$1,Sheet4!$B$2:$B$8270,Sheet3!$A$3) -> 0 | CB8: =+SUMIFS(Sheet4!$DM$2:$DM$8270,Sheet4!$C$2:$C$8270,Sheet3!$B8,Sheet4!$D$2:$D$8270,Sheet3!CB$3,Sheet4!$E$2:$E$8270,Sheet3!CB$4,Sheet4!$A$2:$A$8270,Sheet3!$B$1,Sheet4!$B$2:$B$8270,Sheet3!$A$3) -> 0 | CC8: =+SUMIFS(Sheet4!$DM$2:$DM$8270,Sheet4!$C$2:$C$8270,Sheet3!$B8,Sheet4!$D$2:$D$8270,Sheet3!CC$3,Sheet4!$E$2:$E$8270,Sheet3!CC$4,Sheet4!$A$2:$A$8270,Sheet3!$B$1,Sheet4!$B$2:$B$8270,Sheet3!$A$3) -> 0 | CD8: =+SUMIFS(Sheet4!$DM$2:$DM$8270,Sheet4!$C$2:$C$8270,Sheet3!$B8,Sheet4!$D$2:$D$8270,Sheet3!CD$3,Sheet4!$E$2:$E$8270,Sheet3!CD$4,Sheet4!$A$2:$A$8270,Sheet3!$B$1,Sheet4!$B$2:$B$8270,Sheet3!$A$3) -> 0 | CE8: =+SUMIFS(Sheet4!$DM$2:$DM$8270,Sheet4!$C$2:$C$8270,Sheet3!$B8,Sheet4!$D$2:$D$8270,Sheet3!CE$3,Sheet4!$E$2:$E$8270,Sheet3!CE$4,Sheet4!$A$2:$A$8270,Sheet3!$B$1,Sheet4!$B$2:$B$8270,Sheet3!$A$3) -> 0 | CF8: =+SUMIFS(Sheet4!$DM$2:$DM$8270,Sheet4!$C$2:$C$8270,Sheet3!$B8,Sheet4!$D$2:$D$8270,Sheet3!CF$3,Sheet4!$E$2:$E$8270,Sheet3!CF$4,Sheet4!$A$2:$A$8270,Sheet3!$B$1,Sheet4!$B$2:$B$8270,Sheet3!$A$3) -> 0 | CG8: =+SUMIFS(Sheet4!$DM$2:$DM$8270,Sheet4!$C$2:$C$8270,Sheet3!$B8,Sheet4!$D$2:$D$8270,Sheet3!CG$3,Sheet4!$E$2:$E$8270,Sheet3!CG$4,Sheet4!$A$2:$A$8270,Sheet3!$B$1,Sheet4!$B$2:$B$8270,Sheet3!$A$3) -> 0 | CH8: =+SUMIFS(Sheet4!$DM$2:$DM$8270,Sheet4!$C$2:$C$8270,Sheet3!$B8,Sheet4!$D$2:$D$8270,Sheet3!CH$3,Sheet4!$E$2:$E$8270,Sheet3!CH$4,Sheet4!$A$2:$A$8270,Sheet3!$B$1,Sheet4!$B$2:$B$8270,Sheet3!$A$3) -> 0 | CI8: =+SUMIFS(Sheet4!$DM$2:$DM$8270,Sheet4!$C$2:$C$8270,Sheet3!$B8,Sheet4!$D$2:$D$8270,Sheet3!CI$3,Sheet4!$E$2:$E$8270,Sheet3!CI$4,Sheet4!$A$2:$A$8270,Sheet3!$B$1,Sheet4!$B$2:$B$8270,Sheet3!$A$3) -> 0 | CJ8: =+SUMIFS(Sheet4!$DM$2:$DM$8270,Sheet4!$C$2:$C$8270,Sheet3!$B8,Sheet4!$D$2:$D$8270,Sheet3!CJ$3,Sheet4!$E$2:$E$8270,Sheet3!CJ$4,Sheet4!$A$2:$A$8270,Sheet3!$B$1,Sheet4!$B$2:$B$8270,Sheet3!$A$3) -> 0 | CK8: =+SUMIFS(Sheet4!$DM$2:$DM$8270,Sheet4!$C$2:$C$8270,Sheet3!$B8,Sheet4!$D$2:$D$8270,Sheet3!CK$3,Sheet4!$E$2:$E$8270,Sheet3!CK$4,Sheet4!$A$2:$A$8270,Sheet3!$B$1,Sheet4!$B$2:$B$8270,Sheet3!$A$3) -> 0 | CL8: =+SUMIFS(Sheet4!$DM$2:$DM$8270,Sheet4!$C$2:$C$8270,Sheet3!$B8,Sheet4!$D$2:$D$8270,Sheet3!CL$3,Sheet4!$E$2:$E$8270,Sheet3!CL$4,Sheet4!$A$2:$A$8270,Sheet3!$B$1,Sheet4!$B$2:$B$8270,Sheet3!$A$3) -> 0 | CM8: =+SUMIFS(Sheet4!$DM$2:$DM$8270,Sheet4!$C$2:$C$8270,Sheet3!$B8,Sheet4!$D$2:$D$8270,Sheet3!CM$3,Sheet4!$E$2:$E$8270,Sheet3!CM$4,Sheet4!$A$2:$A$8270,Sheet3!$B$1,Sheet4!$B$2:$B$8270,Sheet3!$A$3) -> 0 | CN8: =+SUMIFS(Sheet4!$DM$2:$DM$8270,Sheet4!$C$2:$C$8270,Sheet3!$B8,Sheet4!$D$2:$D$8270,Sheet3!CN$3,Sheet4!$E$2:$E$8270,Sheet3!CN$4,Sheet4!$A$2:$A$8270,Sheet3!$B$1,Sheet4!$B$2:$B$8270,Sheet3!$A$3) -> 0 | CO8: =+SUMIFS(Sheet4!$DM$2:$DM$8270,Sheet4!$C$2:$C$8270,Sheet3!$B8,Sheet4!$D$2:$D$8270,Sheet3!CO$3,Sheet4!$E$2:$E$8270,Sheet3!CO$4,Sheet4!$A$2:$A$8270,Sheet3!$B$1,Sheet4!$B$2:$B$8270,Sheet3!$A$3) -> 0 | CP8: =+IF(SUMIFS(Sheet4!$DN$2:$DN$8270,Sheet4!$C$2:$C$8270,Sheet3!$B8,Sheet4!$D$2:$D$8270,Sheet3!CP$3,Sheet4!$A$2:$A$8270,Sheet3!$B$1,Sheet4!$B$2:$B$8270,Sheet3!$A$3)<3,0,SUMIFS(Sheet4!$DN$2:$DN$8270,Sheet4!$C$2:$C$8270,Sheet3!$B8,Sheet4!$D$2:$D$8270,Sheet3!CP$3,Sheet4!$A$2:$A$8270,Sheet3!$B$1,Sheet4!$B$2:$B$8270,Sheet3!$A$3)) -> 0 | CQ8: =+IF(SUMIFS(Sheet4!$DN$2:$DN$8270,Sheet4!$C$2:$C$8270,Sheet3!$B8,Sheet4!$D$2:$D$8270,Sheet3!CQ$3,Sheet4!$A$2:$A$8270,Sheet3!$B$1,Sheet4!$B$2:$B$8270,Sheet3!$A$3)<3,0,SUMIFS(Sheet4!$DN$2:$DN$8270,Sheet4!$C$2:$C$8270,Sheet3!$B8,Sheet4!$D$2:$D$8270,Sheet3!CQ$3,Sheet4!$A$2:$A$8270,Sheet3!$B$1,Sheet4!$B$2:$B$8270,Sheet3!$A$3)) -> 350 | CR8: =+IF(SUMIFS(Sheet4!$DN$2:$DN$8270,Sheet4!$C$2:$C$8270,Sheet3!$B8,Sheet4!$D$2:$D$8270,Sheet3!CR$3,Sheet4!$A$2:$A$8270,Sheet3!$B$1,Sheet4!$B$2:$B$8270,Sheet3!$A$3)<3,0,SUMIFS(Sheet4!$DN$2:$DN$8270,Sheet4!$C$2:$C$8270,Sheet3!$B8,Sheet4!$D$2:$D$8270,Sheet3!CR$3,Sheet4!$A$2:$A$8270,Sheet3!$B$1,Sheet4!$B$2:$B$8270,Sheet3!$A$3)) -> 0 | CS8: =+IF(SUMIFS(Sheet4!$DN$2:$DN$8270,Sheet4!$C$2:$C$8270,Sheet3!$B8,Sheet4!$D$2:$D$8270,Sheet3!CS$3,Sheet4!$A$2:$A$8270,Sheet3!$B$1,Sheet4!$B$2:$B$8270,Sheet3!$A$3)<3,0,SUMIFS(Sheet4!$DN$2:$DN$8270,Sheet4!$C$2:$C$8270,Sheet3!$B8,Sheet4!$D$2:$D$8270,Sheet3!CS$3,Sheet4!$A$2:$A$8270,Sheet3!$B$1,Sheet4!$B$2:$B$8270,Sheet3!$A$3)) -> 0 | CT8: =+IF(SUMIFS(Sheet4!$DN$2:$DN$8270,Sheet4!$C$2:$C$8270,Sheet3!$B8,Sheet4!$D$2:$D$8270,Sheet3!CT$3,Sheet4!$A$2:$A$8270,Sheet3!$B$1,Sheet4!$B$2:$B$8270,Sheet3!$A$3)<3,0,SUMIFS(Sheet4!$DN$2:$DN$8270,Sheet4!$C$2:$C$8270,Sheet3!$B8,Sheet4!$D$2:$D$8270,Sheet3!CT$3,Sheet4!$A$2:$A$8270,Sheet3!$B$1,Sheet4!$B$2:$B$8270,Sheet3!$A$3)) -> 0 | CU8: =+IF(SUMIFS(Sheet4!$DN$2:$DN$8270,Sheet4!$C$2:$C$8270,Sheet3!$B8,Sheet4!$D$2:$D$8270,Sheet3!CU$3,Sheet4!$A$2:$A$8270,Sheet3!$B$1,Sheet4!$B$2:$B$8270,Sheet3!$A$3)<3,0,SUMIFS(Sheet4!$DN$2:$DN$8270,Sheet4!$C$2:$C$8270,Sheet3!$B8,Sheet4!$D$2:$D$8270,Sheet3!CU$3,Sheet4!$A$2:$A$8270,Sheet3!$B$1,Sheet4!$B$2:$B$8270,Sheet3!$A$3)) -> 0 | CV8: =+IF(SUMIFS(Sheet4!$DN$2:$DN$8270,Sheet4!$C$2:$C$8270,Sheet3!$B8,Sheet4!$D$2:$D$8270,Sheet3!CV$3,Sheet4!$A$2:$A$8270,Sheet3!$B$1,Sheet4!$B$2:$B$8270,Sheet3!$A$3)<3,0,SUMIFS(Sheet4!$DN$2:$DN$8270,Sheet4!$C$2:$C$8270,Sheet3!$B8,Sheet4!$D$2:$D$8270,Sheet3!CV$3,Sheet4!$A$2:$A$8270,Sheet3!$B$1,Sheet4!$B$2:$B$8270,Sheet3!$A$3)) -> 0 | CW8: =+IF(SUMIFS(Sheet4!$DN$2:$DN$8270,Sheet4!$C$2:$C$8270,Sheet3!$B8,Sheet4!$D$2:$D$8270,Sheet3!CW$3,Sheet4!$A$2:$A$8270,Sheet3!$B$1,Sheet4!$B$2:$B$8270,Sheet3!$A$3)<3,0,SUMIFS(Sheet4!$DN$2:$DN$8270,Sheet4!$C$2:$C$8270,Sheet3!$B8,Sheet4!$D$2:$D$8270,Sheet3!CW$3,Sheet4!$A$2:$A$8270,Sheet3!$B$1,Sheet4!$B$2:$B$8270,Sheet3!$A$3)) -> 0 | CX8: =+IF(SUMIFS(Sheet4!$DN$2:$DN$8270,Sheet4!$C$2:$C$8270,Sheet3!$B8,Sheet4!$D$2:$D$8270,Sheet3!CX$3,Sheet4!$A$2:$A$8270,Sheet3!$B$1,Sheet4!$B$2:$B$8270,Sheet3!$A$3)<3,0,SUMIFS(Sheet4!$DN$2:$DN$8270,Sheet4!$C$2:$C$8270,Sheet3!$B8,Sheet4!$D$2:$D$8270,Sheet3!CX$3,Sheet4!$A$2:$A$8270,Sheet3!$B$1,Sheet4!$B$2:$B$8270,Sheet3!$A$3)) -> 0 | CY8: =+IF(SUMIFS(Sheet4!$DN$2:$DN$8270,Sheet4!$C$2:$C$8270,Sheet3!$B8,Sheet4!$D$2:$D$8270,Sheet3!CY$3,Sheet4!$A$2:$A$8270,Sheet3!$B$1,Sheet4!$B$2:$B$8270,Sheet3!$A$3)<3,0,SUMIFS(Sheet4!$DN$2:$DN$8270,Sheet4!$C$2:$C$8270,Sheet3!$B8,Sheet4!$D$2:$D$8270,Sheet3!CY$3,Sheet4!$A$2:$A$8270,Sheet3!$B$1,Sheet4!$B$2:$B$8270,Sheet3!$A$3)) -> 0 | CZ8: =+IF(SUMIFS(Sheet4!$DN$2:$DN$8270,Sheet4!$C$2:$C$8270,Sheet3!$B8,Sheet4!$D$2:$D$8270,Sheet3!CZ$3,Sheet4!$A$2:$A$8270,Sheet3!$B$1,Sheet4!$B$2:$B$8270,Sheet3!$A$3)<3,0,SUMIFS(Sheet4!$DN$2:$DN$8270,Sheet4!$C$2:$C$8270,Sheet3!$B8,Sheet4!$D$2:$D$8270,Sheet3!CZ$3,Sheet4!$A$2:$A$8270,Sheet3!$B$1,Sheet4!$B$2:$B$8270,Sheet3!$A$3)) -> 0 | DA8: =+IF(SUMIFS(Sheet4!$DN$2:$DN$8270,Sheet4!$C$2:$C$8270,Sheet3!$B8,Sheet4!$D$2:$D$8270,Sheet3!DA$3,Sheet4!$A$2:$A$8270,Sheet3!$B$1,Sheet4!$B$2:$B$8270,Sheet3!$A$3)<3,0,SUMIFS(Sheet4!$DN$2:$DN$8270,Sheet4!$C$2:$C$8270,Sheet3!$B8,Sheet4!$D$2:$D$8270,Sheet3!DA$3,Sheet4!$A$2:$A$8270,Sheet3!$B$1,Sheet4!$B$2:$B$8270,Sheet3!$A$3)) -> 9030.88 | DB8: =+IF(SUMIFS(Sheet4!$DN$2:$DN$8270,Sheet4!$C$2:$C$8270,Sheet3!$B8,Sheet4!$D$2:$D$8270,Sheet3!DB$3,Sheet4!$A$2:$A$8270,Sheet3!$B$1,Sheet4!$B$2:$B$8270,Sheet3!$A$3)<3,0,SUMIFS(Sheet4!$DN$2:$DN$8270,Sheet4!$C$2:$C$8270,Sheet3!$B8,Sheet4!$D$2:$D$8270,Sheet3!DB$3,Sheet4!$A$2:$A$8270,Sheet3!$B$1,Sheet4!$B$2:$B$8270,Sheet3!$A$3)) -> 29548.75 | DC8: =+IF(SUMIFS(Sheet4!$DN$2:$DN$8270,Sheet4!$C$2:$C$8270,Sheet3!$B8,Sheet4!$D$2:$D$8270,Sheet3!DC$3,Sheet4!$A$2:$A$8270,Sheet3!$B$1,Sheet4!$B$2:$B$8270,Sheet3!$A$3)<3,0,SUMIFS(Sheet4!$DN$2:$DN$8270,Sheet4!$C$2:$C$8270,Sheet3!$B8,Sheet4!$D$2:$D$8270,Sheet3!DC$3,Sheet4!$A$2:$A$8270,Sheet3!$B$1,Sheet4!$B$2:$B$8270,Sheet3!$A$3)) -> 8772.4 | DD8: =+IF(SUMIFS(Sheet4!$DN$2:$DN$8270,Sheet4!$C$2:$C$8270,Sheet3!$B8,Sheet4!$D$2:$D$8270,Sheet3!DD$3,Sheet4!$A$2:$A$8270,Sheet3!$B$1,Sheet4!$B$2:$B$8270,Sheet3!$A$3)<3,0,SUMIFS(Sheet4!$DN$2:$DN$8270,Sheet4!$C$2:$C$8270,Sheet3!$B8,Sheet4!$D$2:$D$8270,Sheet3!DD$3,Sheet4!$A$2:$A$8270,Sheet3!$B$1,Sheet4!$B$2:$B$8270,Sheet3!$A$3)) -> 430.5 | DE8: =+IF(SUMIFS(Sheet4!$DN$2:$DN$8270,Sheet4!$C$2:$C$8270,Sheet3!$B8,Sheet4!$D$2:$D$8270,Sheet3!DE$3,Sheet4!$A$2:$A$8270,Sheet3!$B$1,Sheet4!$B$2:$B$8270,Sheet3!$A$3)<3,0,SUMIFS(Sheet4!$DN$2:$DN$8270,Sheet4!$C$2:$C$8270,Sheet3!$B8,Sheet4!$D$2:$D$8270,Sheet3!DE$3,Sheet4!$A$2:$A$8270,Sheet3!$B$1,Sheet4!$B$2:$B$8270,Sheet3!$A$3)) -> 0 | DF8: =+IF(SUMIFS(Sheet4!$DN$2:$DN$8270,Sheet4!$C$2:$C$8270,Sheet3!$B8,Sheet4!$D$2:$D$8270,Sheet3!DF$3,Sheet4!$A$2:$A$8270,Sheet3!$B$1,Sheet4!$B$2:$B$8270,Sheet3!$A$3)<3,0,SUMIFS(Sheet4!$DN$2:$DN$8270,Sheet4!$C$2:$C$8270,Sheet3!$B8,Sheet4!$D$2:$D$8270,Sheet3!DF$3,Sheet4!$A$2:$A$8270,Sheet3!$B$1,Sheet4!$B$2:$B$8270,Sheet3!$A$3)) -> 0 | DG8: =+IF(SUMIFS(Sheet4!$DN$2:$DN$8270,Sheet4!$C$2:$C$8270,Sheet3!$B8,Sheet4!$D$2:$D$8270,Sheet3!DG$3,Sheet4!$A$2:$A$8270,Sheet3!$B$1,Sheet4!$B$2:$B$8270,Sheet3!$A$3)<3,0,SUMIFS(Sheet4!$DN$2:$DN$8270,Sheet4!$C$2:$C$8270,Sheet3!$B8,Sheet4!$D$2:$D$8270,Sheet3!DG$3,Sheet4!$A$2:$A$8270,Sheet3!$B$1,Sheet4!$B$2:$B$8270,Sheet3!$A$3)) -> 0 | DH8: =+IF(SUMIFS(Sheet4!$DN$2:$DN$8270,Sheet4!$C$2:$C$8270,Sheet3!$B8,Sheet4!$E$2:$E$8270,Sheet3!DH$4,Sheet4!$A$2:$A$8270,Sheet3!$B$1,Sheet4!$B$2:$B$8270,Sheet3!$A$3)<3,0,SUMIFS(Sheet4!$DN$2:$DN$8270,Sheet4!$C$2:$C$8270,Sheet3!$B8,Sheet4!$E$2:$E$8270,Sheet3!DH$4,Sheet4!$A$2:$A$8270,Sheet3!$B$1,Sheet4!$B$2:$B$8270,Sheet3!$A$3)) -> 0 | DI8: =+IF(SUMIFS(Sheet4!$DN$2:$DN$8270,Sheet4!$C$2:$C$8270,Sheet3!$B8,Sheet4!$E$2:$E$8270,Sheet3!DI$4,Sheet4!$A$2:$A$8270,Sheet3!$B$1,Sheet4!$B$2:$B$8270,Sheet3!$A$3)<3,0,SUMIFS(Sheet4!$DN$2:$DN$8270,Sheet4!$C$2:$C$8270,Sheet3!$B8,Sheet4!$E$2:$E$8270,Sheet3!DI$4,Sheet4!$A$2:$A$8270,Sheet3!$B$1,Sheet4!$B$2:$B$8270,Sheet3!$A$3)) -> 11541.08 | DJ8: =+IF(SUMIFS(Sheet4!$DN$2:$DN$8270,Sheet4!$C$2:$C$8270,Sheet3!$B8,Sheet4!$E$2:$E$8270,Sheet3!DJ$4,Sheet4!$A$2:$A$8270,Sheet3!$B$1,Sheet4!$B$2:$B$8270,Sheet3!$A$3)<3,0,SUMIFS(Sheet4!$DN$2:$DN$8270,Sheet4!$C$2:$C$8270,Sheet3!$B8,Sheet4!$E$2:$E$8270,Sheet3!DJ$4,Sheet4!$A$2:$A$8270,Sheet3!$B$1,Sheet4!$B$2:$B$8270,Sheet3!$A$3)) -> 34841.45 | DK8: =+IF(SUMIFS(Sheet4!$DN$2:$DN$8270,Sheet4!$C$2:$C$8270,Sheet3!$B8,Sheet4!$E$2:$E$8270,Sheet3!DK$4,Sheet4!$A$2:$A$8270,Sheet3!$B$1,Sheet4!$B$2:$B$8270,Sheet3!$A$3)<3,0,SUMIFS(Sheet4!$DN$2:$DN$8270,Sheet4!$C$2:$C$8270,Sheet3!$B8,Sheet4!$E$2:$E$8270,Sheet3!DK$4,Sheet4!$A$2:$A$8270,Sheet3!$B$1,Sheet4!$B$2:$B$8270,Sheet3!$A$3)) -> 1750 | DL8: =+IF(SUMIFS(Sheet4!$DN$2:$DN$8270,Sheet4!$C$2:$C$8270,Sheet3!$B8,Sheet4!$E$2:$E$8270,Sheet3!DL$4,Sheet4!$A$2:$A$8270,Sheet3!$B$1,Sheet4!$B$2:$B$8270,Sheet3!$A$3)<3,0,SUMIFS(Sheet4!$DN$2:$DN$8270,Sheet4!$C$2:$C$8270,Sheet3!$B8,Sheet4!$E$2:$E$8270,Sheet3!DL$4,Sheet4!$A$2:$A$8270,Sheet3!$B$1,Sheet4!$B$2:$B$8270,Sheet3!$A$3)) -> 0
A9: 1 | B9: 112 | C9: Cávado | D9: =+SUMIFS(Sheet4!$DM$2:$DM$8270,Sheet4!$C$2:$C$8270,Sheet3!$B9,Sheet4!$D$2:$D$8270,Sheet3!D$3,Sheet4!$E$2:$E$8270,Sheet3!D$4,Sheet4!$A$2:$A$8270,Sheet3!$B$1,Sheet4!$B$2:$B$8270,Sheet3!$A$3) -> 0 | E9: =+SUMIFS(Sheet4!$DM$2:$DM$8270,Sheet4!$C$2:$C$8270,Sheet3!$B9,Sheet4!$D$2:$D$8270,Sheet3!E$3,Sheet4!$E$2:$E$8270,Sheet3!E$4,Sheet4!$A$2:$A$8270,Sheet3!$B$1,Sheet4!$B$2:$B$8270,Sheet3!$A$3) -> 0 | F9: =+SUMIFS(Sheet4!$DM$2:$DM$8270,Sheet4!$C$2:$C$8270,Sheet3!$B9,Sheet4!$D$2:$D$8270,Sheet3!F$3,Sheet4!$E$2:$E$8270,Sheet3!F$4,Sheet4!$A$2:$A$8270,Sheet3!$B$1,Sheet4!$B$2:$B$8270,Sheet3!$A$3) -> 0 | G9: =+SUMIFS(Sheet4!$DM$2:$DM$8270,Sheet4!$C$2:$C$8270,Sheet3!$B9,Sheet4!$D$2:$D$8270,Sheet3!G$3,Sheet4!$E$2:$E$8270,Sheet3!G$4,Sheet4!$A$2:$A$8270,Sheet3!$B$1,Sheet4!$B$2:$B$8270,Sheet3!$A$3) -> 0 | H9: =+SUMIFS(Sheet4!$DM$2:$DM$8270,Sheet4!$C$2:$C$8270,Sheet3!$B9,Sheet4!$D$2:$D$8270,Sheet3!H$3,Sheet4!$E$2:$E$8270,Sheet3!H$4,Sheet4!$A$2:$A$8270,Sheet3!$B$1,Sheet4!$B$2:$B$8270,Sheet3!$A$3) -> 0 | I9: =+SUMIFS(Sheet4!$DM$2:$DM$8270,Sheet4!$C$2:$C$8270,Sheet3!$B9,Sheet4!$D$2:$D$8270,Sheet3!I$3,Sheet4!$E$2:$E$8270,Sheet3!I$4,Sheet4!$A$2:$A$8270,Sheet3!$B$1,Sheet4!$B$2:$B$8270,Sheet3!$A$3) -> 0 | J9: =+SUMIFS(Sheet4!$DM$2:$DM$8270,Sheet4!$C$2:$C$8270,Sheet3!$B9,Sheet4!$D$2:$D$8270,Sheet3!J$3,Sheet4!$E$2:$E$8270,Sheet3!J$4,Sheet4!$A$2:$A$8270,Sheet3!$B$1,Sheet4!$B$2:$B$8270,Sheet3!$A$3) -> 0 | K9: =+SUMIFS(Sheet4!$DM$2:$DM$8270,Sheet4!$C$2:$C$8270,Sheet3!$B9,Sheet4!$D$2:$D$8270,Sheet3!K$3,Sheet4!$E$2:$E$8270,Sheet3!K$4,Sheet4!$A$2:$A$8270,Sheet3!$B$1,Sheet4!$B$2:$B$8270,Sheet3!$A$3) -> 0 | L9: =+SUMIFS(Sheet4!$DM$2:$DM$8270,Sheet4!$C$2:$C$8270,Sheet3!$B9,Sheet4!$D$2:$D$8270,Sheet3!L$3,Sheet4!$E$2:$E$8270,Sheet3!L$4,Sheet4!$A$2:$A$8270,Sheet3!$B$1,Sheet4!$B$2:$B$8270,Sheet3!$A$3) -> 0 | M9: =+SUMIFS(Sheet4!$DM$2:$DM$8270,Sheet4!$C$2:$C$8270,Sheet3!$B9,Sheet4!$D$2:$D$8270,Sheet3!M$3,Sheet4!$E$2:$E$8270,Sheet3!M$4,Sheet4!$A$2:$A$8270,Sheet3!$B$1,Sheet4!$B$2:$B$8270,Sheet3!$A$3) -> 0 | N9: =+SUMIFS(Sheet4!$DM$2:$DM$8270,Sheet4!$C$2:$C$8270,Sheet3!$B9,Sheet4!$D$2:$D$8270,Sheet3!N$3,Sheet4!$E$2:$E$8270,Sheet3!N$4,Sheet4!$A$2:$A$8270,Sheet3!$B$1,Sheet4!$B$2:$B$8270,Sheet3!$A$3) -> 0 | O9: =+SUMIFS(Sheet4!$DM$2:$DM$8270,Sheet4!$C$2:$C$8270,Sheet3!$B9,Sheet4!$D$2:$D$8270,Sheet3!O$3,Sheet4!$E$2:$E$8270,Sheet3!O$4,Sheet4!$A$2:$A$8270,Sheet3!$B$1,Sheet4!$B$2:$B$8270,Sheet3!$A$3) -> 0 | P9: =+SUMIFS(Sheet4!$DM$2:$DM$8270,Sheet4!$C$2:$C$8270,Sheet3!$B9,Sheet4!$D$2:$D$8270,Sheet3!P$3,Sheet4!$E$2:$E$8270,Sheet3!P$4,Sheet4!$A$2:$A$8270,Sheet3!$B$1,Sheet4!$B$2:$B$8270,Sheet3!$A$3) -> 0 | Q9: =+SUMIFS(Sheet4!$DM$2:$DM$8270,Sheet4!$C$2:$C$8270,Sheet3!$B9,Sheet4!$D$2:$D$8270,Sheet3!Q$3,Sheet4!$E$2:$E$8270,Sheet3!Q$4,Sheet4!$A$2:$A$8270,Sheet3!$B$1,Sheet4!$B$2:$B$8270,Sheet3!$A$3) -> 0 | R9: =+SUMIFS(Sheet4!$DM$2:$DM$8270,Sheet4!$C$2:$C$8270,Sheet3!$B9,Sheet4!$D$2:$D$8270,Sheet3!R$3,Sheet4!$E$2:$E$8270,Sheet3!R$4,Sheet4!$A$2:$A$8270,Sheet3!$B$1,Sheet4!$B$2:$B$8270,Sheet3!$A$3) -> 0 | S9: =+SUMIFS(Sheet4!$DM$2:$DM$8270,Sheet4!$C$2:$C$8270,Sheet3!$B9,Sheet4!$D$2:$D$8270,Sheet3!S$3,Sheet4!$E$2:$E$8270,Sheet3!S$4,Sheet4!$A$2:$A$8270,Sheet3!$B$1,Sheet4!$B$2:$B$8270,Sheet3!$A$3) -> 0 | T9: =+SUMIFS(Sheet4!$DM$2:$DM$8270,Sheet4!$C$2:$C$8270,Sheet3!$B9,Sheet4!$D$2:$D$8270,Sheet3!T$3,Sheet4!$E$2:$E$8270,Sheet3!T$4,Sheet4!$A$2:$A$8270,Sheet3!$B$1,Sheet4!$B$2:$B$8270,Sheet3!$A$3) -> 0 | U9: =+SUMIFS(Sheet4!$DM$2:$DM$8270,Sheet4!$C$2:$C$8270,Sheet3!$B9,Sheet4!$D$2:$D$8270,Sheet3!U$3,Sheet4!$E$2:$E$8270,Sheet3!U$4,Sheet4!$A$2:$A$8270,Sheet3!$B$1,Sheet4!$B$2:$B$8270,Sheet3!$A$3) -> 0 | V9: =+SUMIFS(Sheet4!$DM$2:$DM$8270,Sheet4!$C$2:$C$8270,Sheet3!$B9,Sheet4!$D$2:$D$8270,Sheet3!V$3,Sheet4!$E$2:$E$8270,Sheet3!V$4,Sheet4!$A$2:$A$8270,Sheet3!$B$1,Sheet4!$B$2:$B$8270,Sheet3!$A$3) -> 0 | W9: =+SUMIFS(Sheet4!$DM$2:$DM$8270,Sheet4!$C$2:$C$8270,Sheet3!$B9,Sheet4!$D$2:$D$8270,Sheet3!W$3,Sheet4!$E$2:$E$8270,Sheet3!W$4,Sheet4!$A$2:$A$8270,Sheet3!$B$1,Sheet4!$B$2:$B$8270,Sheet3!$A$3) -> 0 | X9: =+SUMIFS(Sheet4!$DM$2:$DM$8270,Sheet4!$C$2:$C$8270,Sheet3!$B9,Sheet4!$D$2:$D$8270,Sheet3!X$3,Sheet4!$E$2:$E$8270,Sheet3!X$4,Sheet4!$A$2:$A$8270,Sheet3!$B$1,Sheet4!$B$2:$B$8270,Sheet3!$A$3) -> 0 | Y9: =+SUMIFS(Sheet4!$DM$2:$DM$8270,Sheet4!$C$2:$C$8270,Sheet3!$B9,Sheet4!$D$2:$D$8270,Sheet3!Y$3,Sheet4!$E$2:$E$8270,Sheet3!Y$4,Sheet4!$A$2:$A$8270,Sheet3!$B$1,Sheet4!$B$2:$B$8270,Sheet3!$A$3) -> 0 | Z9: =+SUMIFS(Sheet4!$DM$2:$DM$8270,Sheet4!$C$2:$C$8270,Sheet3!$B9,Sheet4!$D$2:$D$8270,Sheet3!Z$3,Sheet4!$E$2:$E$8270,Sheet3!Z$4,Sheet4!$A$2:$A$8270,Sheet3!$B$1,Sheet4!$B$2:$B$8270,Sheet3!$A$3) -> 0 | AA9: =+SUMIFS(Sheet4!$DM$2:$DM$8270,Sheet4!$C$2:$C$8270,Sheet3!$B9,Sheet4!$D$2:$D$8270,Sheet3!AA$3,Sheet4!$E$2:$E$8270,Sheet3!AA$4,Sheet4!$A$2:$A$8270,Sheet3!$B$1,Sheet4!$B$2:$B$8270,Sheet3!$A$3) -> 0 | AB9: =+SUMIFS(Sheet4!$DM$2:$DM$8270,Sheet4!$C$2:$C$8270,Sheet3!$B9,Sheet4!$D$2:$D$8270,Sheet3!AB$3,Sheet4!$E$2:$E$8270,Sheet3!AB$4,Sheet4!$A$2:$A$8270,Sheet3!$B$1,Sheet4!$B$2:$B$8270,Sheet3!$A$3) -> 0 | AC9: =+SUMIFS(Sheet4!$DM$2:$DM$8270,Sheet4!$C$2:$C$8270,Sheet3!$B9,Sheet4!$D$2:$D$8270,Sheet3!AC$3,Sheet4!$E$2:$E$8270,Sheet3!AC$4,Sheet4!$A$2:$A$8270,Sheet3!$B$1,Sheet4!$B$2:$B$8270,Sheet3!$A$3) -> 0 | AD9: =+SUMIFS(Sheet4!$DM$2:$DM$8270,Sheet4!$C$2:$C$8270,Sheet3!$B9,Sheet4!$D$2:$D$8270,Sheet3!AD$3,Sheet4!$E$2:$E$8270,Sheet3!AD$4,Sheet4!$A$2:$A$8270,Sheet3!$B$1,Sheet4!$B$2:$B$8270,Sheet3!$A$3) -> 0 | AE9: =+SUMIFS(Sheet4!$DM$2:$DM$8270,Sheet4!$C$2:$C$8270,Sheet3!$B9,Sheet4!$D$2:$D$8270,Sheet3!AE$3,Sheet4!$E$2:$E$8270,Sheet3!AE$4,Sheet4!$A$2:$A$8270,Sheet3!$B$1,Sheet4!$B$2:$B$8270,Sheet3!$A$3) -> 0 | AF9: =+SUMIFS(Sheet4!$DM$2:$DM$8270,Sheet4!$C$2:$C$8270,Sheet3!$B9,Sheet4!$D$2:$D$8270,Sheet3!AF$3,Sheet4!$E$2:$E$8270,Sheet3!AF$4,Sheet4!$A$2:$A$8270,Sheet3!$B$1,Sheet4!$B$2:$B$8270,Sheet3!$A$3) -> 0 | AG9: =+SUMIFS(Sheet4!$DM$2:$DM$8270,Sheet4!$C$2:$C$8270,Sheet3!$B9,Sheet4!$D$2:$D$8270,Sheet3!AG$3,Sheet4!$E$2:$E$8270,Sheet3!AG$4,Sheet4!$A$2:$A$8270,Sheet3!$B$1,Sheet4!$B$2:$B$8270,Sheet3!$A$3) -> 0 | AH9: =+SUMIFS(Sheet4!$DM$2:$DM$8270,Sheet4!$C$2:$C$8270,Sheet3!$B9,Sheet4!$D$2:$D$8270,Sheet3!AH$3,Sheet4!$E$2:$E$8270,Sheet3!AH$4,Sheet4!$A$2:$A$8270,Sheet3!$B$1,Sheet4!$B$2:$B$8270,Sheet3!$A$3) -> 0 | AI9: =+SUMIFS(Sheet4!$DM$2:$DM$8270,Sheet4!$C$2:$C$8270,Sheet3!$B9,Sheet4!$D$2:$D$8270,Sheet3!AI$3,Sheet4!$E$2:$E$8270,Sheet3!AI$4,Sheet4!$A$2:$A$8270,Sheet3!$B$1,Sheet4!$B$2:$B$8270,Sheet3!$A$3) -> 0 | AJ9: =+SUMIFS(Sheet4!$DM$2:$DM$8270,Sheet4!$C$2:$C$8270,Sheet3!$B9,Sheet4!$D$2:$D$8270,Sheet3!AJ$3,Sheet4!$E$2:$E$8270,Sheet3!AJ$4,Sheet4!$A$2:$A$8270,Sheet3!$B$1,Sheet4!$B$2:$B$8270,Sheet3!$A$3) -> 0 | AK9: =+SUMIFS(Sheet4!$DM$2:$DM$8270,Sheet4!$C$2:$C$8270,Sheet3!$B9,Sheet4!$D$2:$D$8270,Sheet3!AK$3,Sheet4!$E$2:$E$8270,Sheet3!AK$4,Sheet4!$A$2:$A$8270,Sheet3!$B$1,Sheet4!$B$2:$B$8270,Sheet3!$A$3) -> 0 | AL9: =+SUMIFS(Sheet4!$DM$2:$DM$8270,Sheet4!$C$2:$C$8270,Sheet3!$B9,Sheet4!$D$2:$D$8270,Sheet3!AL$3,Sheet4!$E$2:$E$8270,Sheet3!AL$4,Sheet4!$A$2:$A$8270,Sheet3!$B$1,Sheet4!$B$2:$B$8270,Sheet3!$A$3) -> 0 | AM9: =+SUMIFS(Sheet4!$DM$2:$DM$8270,Sheet4!$C$2:$C$8270,Sheet3!$B9,Sheet4!$D$2:$D$8270,Sheet3!AM$3,Sheet4!$E$2:$E$8270,Sheet3!AM$4,Sheet4!$A$2:$A$8270,Sheet3!$B$1,Sheet4!$B$2:$B$8270,Sheet3!$A$3) -> 0 | AN9: =+SUMIFS(Sheet4!$DM$2:$DM$8270,Sheet4!$C$2:$C$8270,Sheet3!$B9,Sheet4!$D$2:$D$8270,Sheet3!AN$3,Sheet4!$E$2:$E$8270,Sheet3!AN$4,Sheet4!$A$2:$A$8270,Sheet3!$B$1,Sheet4!$B$2:$B$8270,Sheet3!$A$3) -> 0 | AO9: =+SUMIFS(Sheet4!$DM$2:$DM$8270,Sheet4!$C$2:$C$8270,Sheet3!$B9,Sheet4!$D$2:$D$8270,Sheet3!AO$3,Sheet4!$E$2:$E$8270,Sheet3!AO$4,Sheet4!$A$2:$A$8270,Sheet3!$B$1,Sheet4!$B$2:$B$8270,Sheet3!$A$3) -> 0 | AP9: =+SUMIFS(Sheet4!$DM$2:$DM$8270,Sheet4!$C$2:$C$8270,Sheet3!$B9,Sheet4!$D$2:$D$8270,Sheet3!AP$3,Sheet4!$E$2:$E$8270,Sheet3!AP$4,Sheet4!$A$2:$A$8270,Sheet3!$B$1,Sheet4!$B$2:$B$8270,Sheet3!$A$3) -> 0 | AQ9: =+SUMIFS(Sheet4!$DM$2:$DM$8270,Sheet4!$C$2:$C$8270,Sheet3!$B9,Sheet4!$D$2:$D$8270,Sheet3!AQ$3,Sheet4!$E$2:$E$8270,Sheet3!AQ$4,Sheet4!$A$2:$A$8270,Sheet3!$B$1,Sheet4!$B$2:$B$8270,Sheet3!$A$3) -> 0 | AR9: =+SUMIFS(Sheet4!$DM$2:$DM$8270,Sheet4!$C$2:$C$8270,Sheet3!$B9,Sheet4!$D$2:$D$8270,Sheet3!AR$3,Sheet4!$E$2:$E$8270,Sheet3!AR$4,Sheet4!$A$2:$A$8270,Sheet3!$B$1,Sheet4!$B$2:$B$8270,Sheet3!$A$3) -> 0 | AS9: =+SUMIFS(Sheet4!$DM$2:$DM$8270,Sheet4!$C$2:$C$8270,Sheet3!$B9,Sheet4!$D$2:$D$8270,Sheet3!AS$3,Sheet4!$E$2:$E$8270,Sheet3!AS$4,Sheet4!$A$2:$A$8270,Sheet3!$B$1,Sheet4!$B$2:$B$8270,Sheet3!$A$3) -> 0 | AT9: =+SUMIFS(Sheet4!$DM$2:$DM$8270,Sheet4!$C$2:$C$8270,Sheet3!$B9,Sheet4!$D$2:$D$8270,Sheet3!AT$3,Sheet4!$E$2:$E$8270,Sheet3!AT$4,Sheet4!$A$2:$A$8270,Sheet3!$B$1,Sheet4!$B$2:$B$8270,Sheet3!$A$3) -> 0 | AU9: =+SUMIFS(Sheet4!$DM$2:$DM$8270,Sheet4!$C$2:$C$8270,Sheet3!$B9,Sheet4!$D$2:$D$8270,Sheet3!AU$3,Sheet4!$E$2:$E$8270,Sheet3!AU$4,Sheet4!$A$2:$A$8270,Sheet3!$B$1,Sheet4!$B$2:$B$8270,Sheet3!$A$3) -> 0 | AV9: =+SUMIFS(Sheet4!$DM$2:$DM$8270,Sheet4!$C$2:$C$8270,Sheet3!$B9,Sheet4!$D$2:$D$8270,Sheet3!AV$3,Sheet4!$E$2:$E$8270,Sheet3!AV$4,Sheet4!$A$2:$A$8270,Sheet3!$B$1,Sheet4!$B$2:$B$8270,Sheet3!$A$3) -> 0 | AW9: =+SUMIFS(Sheet4!$DM$2:$DM$8270,Sheet4!$C$2:$C$8270,Sheet3!$B9,Sheet4!$D$2:$D$8270,Sheet3!AW$3,Sheet4!$E$2:$E$8270,Sheet3!AW$4,Sheet4!$A$2:$A$8270,Sheet3!$B$1,Sheet4!$B$2:$B$8270,Sheet3!$A$3) -> 0 | AX9: =+SUMIFS(Sheet4!$DM$2:$DM$8270,Sheet4!$C$2:$C$8270,Sheet3!$B9,Sheet4!$D$2:$D$8270,Sheet3!AX$3,Sheet4!$E$2:$E$8270,Sheet3!AX$4,Sheet4!$A$2:$A$8270,Sheet3!$B$1,Sheet4!$B$2:$B$8270,Sheet3!$A$3) -> 0 | AY9: =+SUMIFS(Sheet4!$DM$2:$DM$8270,Sheet4!$C$2:$C$8270,Sheet3!$B9,Sheet4!$D$2:$D$8270,Sheet3!AY$3,Sheet4!$E$2:$E$8270,Sheet3!AY$4,Sheet4!$A$2:$A$8270,Sheet3!$B$1,Sheet4!$B$2:$B$8270,Sheet3!$A$3) -> 0 | AZ9: =+SUMIFS(Sheet4!$DM$2:$DM$8270,Sheet4!$C$2:$C$8270,Sheet3!$B9,Sheet4!$D$2:$D$8270,Sheet3!AZ$3,Sheet4!$E$2:$E$8270,Sheet3!AZ$4,Sheet4!$A$2:$A$8270,Sheet3!$B$1,Sheet4!$B$2:$B$8270,Sheet3!$A$3) -> 0 | BA9: =+SUMIFS(Sheet4!$DM$2:$DM$8270,Sheet4!$C$2:$C$8270,Sheet3!$B9,Sheet4!$D$2:$D$8270,Sheet3!BA$3,Sheet4!$E$2:$E$8270,Sheet3!BA$4,Sheet4!$A$2:$A$8270,Sheet3!$B$1,Sheet4!$B$2:$B$8270,Sheet3!$A$3) -> 0 | BB9: =+SUMIFS(Sheet4!$DM$2:$DM$8270,Sheet4!$C$2:$C$8270,Sheet3!$B9,Sheet4!$D$2:$D$8270,Sheet3!BB$3,Sheet4!$E$2:$E$8270,Sheet3!BB$4,Sheet4!$A$2:$A$8270,Sheet3!$B$1,Sheet4!$B$2:$B$8270,Sheet3!$A$3) -> 0 | BC9: =+SUMIFS(Sheet4!$DM$2:$DM$8270,Sheet4!$C$2:$C$8270,Sheet3!$B9,Sheet4!$D$2:$D$8270,Sheet3!BC$3,Sheet4!$E$2:$E$8270,Sheet3!BC$4,Sheet4!$A$2:$A$8270,Sheet3!$B$1,Sheet4!$B$2:$B$8270,Sheet3!$A$3) -> 0 | BD9: =+SUMIFS(Sheet4!$DM$2:$DM$8270,Sheet4!$C$2:$C$8270,Sheet3!$B9,Sheet4!$D$2:$D$8270,Sheet3!BD$3,Sheet4!$E$2:$E$8270,Sheet3!BD$4,Sheet4!$A$2:$A$8270,Sheet3!$B$1,Sheet4!$B$2:$B$8270,Sheet3!$A$3) -> 0 | BE9: =+SUMIFS(Sheet4!$DM$2:$DM$8270,Sheet4!$C$2:$C$8270,Sheet3!$B9,Sheet4!$D$2:$D$8270,Sheet3!BE$3,Sheet4!$E$2:$E$8270,Sheet3!BE$4,Sheet4!$A$2:$A$8270,Sheet3!$B$1,Sheet4!$B$2:$B$8270,Sheet3!$A$3) -> 0 | BF9: =+SUMIFS(Sheet4!$DM$2:$DM$8270,Sheet4!$C$2:$C$8270,Sheet3!$B9,Sheet4!$D$2:$D$8270,Sheet3!BF$3,Sheet4!$E$2:$E$8270,Sheet3!BF$4,Sheet4!$A$2:$A$8270,Sheet3!$B$1,Sheet4!$B$2:$B$8270,Sheet3!$A$3) -> 0 | BG9: =+SUMIFS(Sheet4!$DM$2:$DM$8270,Sheet4!$C$2:$C$8270,Sheet3!$B9,Sheet4!$D$2:$D$8270,Sheet3!BG$3,Sheet4!$E$2:$E$8270,Sheet3!BG$4,Sheet4!$A$2:$A$8270,Sheet3!$B$1,Sheet4!$B$2:$B$8270,Sheet3!$A$3) -> 0 | BH9: =+SUMIFS(Sheet4!$DM$2:$DM$8270,Sheet4!$C$2:$C$8270,Sheet3!$B9,Sheet4!$D$2:$D$8270,Sheet3!BH$3,Sheet4!$E$2:$E$8270,Sheet3!BH$4,Sheet4!$A$2:$A$8270,Sheet3!$B$1,Sheet4!$B$2:$B$8270,Sheet3!$A$3) -> 1050 | BI9: =+SUMIFS(Sheet4!$DM$2:$DM$8270,Sheet4!$C$2:$C$8270,Sheet3!$B9,Sheet4!$D$2:$D$8270,Sheet3!BI$3,Sheet4!$E$2:$E$8270,Sheet3!BI$4,Sheet4!$A$2:$A$8270,Sheet3!$B$1,Sheet4!$B$2:$B$8270,Sheet3!$A$3) -> 339.5 | BJ9: =+SUMIFS(Sheet4!$DM$2:$DM$8270,Sheet4!$C$2:$C$8270,Sheet3!$B9,Sheet4!$D$2:$D$8270,Sheet3!BJ$3,Sheet4!$E$2:$E$8270,Sheet3!BJ$4,Sheet4!$A$2:$A$8270,Sheet3!$B$1,Sheet4!$B$2:$B$8270,Sheet3!$A$3) -> 0 | BK9: =+SUMIFS(Sheet4!$DM$2:$DM$8270,Sheet4!$C$2:$C$8270,Sheet3!$B9,Sheet4!$D$2:$D$8270,Sheet3!BK$3,Sheet4!$E$2:$E$8270,Sheet3!BK$4,Sheet4!$A$2:$A$8270,Sheet3!$B$1,Sheet4!$B$2:$B$8270,Sheet3!$A$3) -> 0 | BL9: =+SUMIFS(Sheet4!$DM$2:$DM$8270,Sheet4!$C$2:$C$8270,Sheet3!$B9,Sheet4!$D$2:$D$8270,Sheet3!BL$3,Sheet4!$E$2:$E$8270,Sheet3!BL$4,Sheet4!$A$2:$A$8270,Sheet3!$B$1,Sheet4!$B$2:$B$8270,Sheet3!$A$3) -> 0 | BM9: =+SUMIFS(Sheet4!$DM$2:$DM$8270,Sheet4!$C$2:$C$8270,Sheet3!$B9,Sheet4!$D$2:$D$8270,Sheet3!BM$3,Sheet4!$E$2:$E$8270,Sheet3!BM$4,Sheet4!$A$2:$A$8270,Sheet3!$B$1,Sheet4!$B$2:$B$8270,Sheet3!$A$3) -> 700 | BN9: =+SUMIFS(Sheet4!$DM$2:$DM$8270,Sheet4!$C$2:$C$8270,Sheet3!$B9,Sheet4!$D$2:$D$8270,Sheet3!BN$3,Sheet4!$E$2:$E$8270,Sheet3!BN$4,Sheet4!$A$2:$A$8270,Sheet3!$B$1,Sheet4!$B$2:$B$8270,Sheet3!$A$3) -> 2800 | BO9: =+SUMIFS(Sheet4!$DM$2:$DM$8270,Sheet4!$C$2:$C$8270,Sheet3!$B9,Sheet4!$D$2:$D$8270,Sheet3!BO$3,Sheet4!$E$2:$E$8270,Sheet3!BO$4,Sheet4!$A$2:$A$8270,Sheet3!$B$1,Sheet4!$B$2:$B$8270,Sheet3!$A$3) -> 0 | BP9: =+SUMIFS(Sheet4!$DM$2:$DM$8270,Sheet4!$C$2:$C$8270,Sheet3!$B9,Sheet4!$D$2:$D$8270,Sheet3!BP$3,Sheet4!$E$2:$E$8270,Sheet3!BP$4,Sheet4!$A$2:$A$8270,Sheet3!$B$1,Sheet4!$B$2:$B$8270,Sheet3!$A$3) -> 0 | BQ9: =+SUMIFS(Sheet4!$DM$2:$DM$8270,Sheet4!$C$2:$C$8270,Sheet3!$B9,Sheet4!$D$2:$D$8270,Sheet3!BQ$3,Sheet4!$E$2:$E$8270,Sheet3!BQ$4,Sheet4!$A$2:$A$8270,Sheet3!$B$1,Sheet4!$B$2:$B$8270,Sheet3!$A$3) -> 0 | BR9: =+SUMIFS(Sheet4!$DM$2:$DM$8270,Sheet4!$C$2:$C$8270,Sheet3!$B9,Sheet4!$D$2:$D$8270,Sheet3!BR$3,Sheet4!$E$2:$E$8270,Sheet3!BR$4,Sheet4!$A$2:$A$8270,Sheet3!$B$1,Sheet4!$B$2:$B$8270,Sheet3!$A$3) -> 0 | BS9: =+SUMIFS(Sheet4!$DM$2:$DM$8270,Sheet4!$C$2:$C$8270,Sheet3!$B9,Sheet4!$D$2:$D$8270,Sheet3!BS$3,Sheet4!$E$2:$E$8270,Sheet3!BS$4,Sheet4!$A$2:$A$8270,Sheet3!$B$1,Sheet4!$B$2:$B$8270,Sheet3!$A$3) -> 7287 | BT9: =+SUMIFS(Sheet4!$DM$2:$DM$8270,Sheet4!$C$2:$C$8270,Sheet3!$B9,Sheet4!$D$2:$D$8270,Sheet3!BT$3,Sheet4!$E$2:$E$8270,Sheet3!BT$4,Sheet4!$A$2:$A$8270,Sheet3!$B$1,Sheet4!$B$2:$B$8270,Sheet3!$A$3) -> 0 | BU9: =+SUMIFS(Sheet4!$DM$2:$DM$8270,Sheet4!$C$2:$C$8270,Sheet3!$B9,Sheet4!$D$2:$D$8270,Sheet3!BU$3,Sheet4!$E$2:$E$8270,Sheet3!BU$4,Sheet4!$A$2:$A$8270,Sheet3!$B$1,Sheet4!$B$2:$B$8270,Sheet3!$A$3) -> 0 | BV9: =+SUMIFS(Sheet4!$DM$2:$DM$8270,Sheet4!$C$2:$C$8270,Sheet3!$B9,Sheet4!$D$2:$D$8270,Sheet3!BV$3,Sheet4!$E$2:$E$8270,Sheet3!BV$4,Sheet4!$A$2:$A$8270,Sheet3!$B$1,Sheet4!$B$2:$B$8270,Sheet3!$A$3) -> 0 | BW9: =+SUMIFS(Sheet4!$DM$2:$DM$8270,Sheet4!$C$2:$C$8270,Sheet3!$B9,Sheet4!$D$2:$D$8270,Sheet3!BW$3,Sheet4!$E$2:$E$8270,Sheet3!BW$4,Sheet4!$A$2:$A$8270,Sheet3!$B$1,Sheet4!$B$2:$B$8270,Sheet3!$A$3) -> 350 | BX9: =+SUMIFS(Sheet4!$DM$2:$DM$8270,Sheet4!$C$2:$C$8270,Sheet3!$B9,Sheet4!$D$2:$D$8270,Sheet3!BX$3,Sheet4!$E$2:$E$8270,Sheet3!BX$4,Sheet4!$A$2:$A$8270,Sheet3!$B$1,Sheet4!$B$2:$B$8270,Sheet3!$A$3) -> 0 | BY9: =+SUMIFS(Sheet4!$DM$2:$DM$8270,Sheet4!$C$2:$C$8270,Sheet3!$B9,Sheet4!$D$2:$D$8270,Sheet3!BY$3,Sheet4!$E$2:$E$8270,Sheet3!BY$4,Sheet4!$A$2:$A$8270,Sheet3!$B$1,Sheet4!$B$2:$B$8270,Sheet3!$A$3) -> 0 | BZ9: =+SUMIFS(Sheet4!$DM$2:$DM$8270,Sheet4!$C$2:$C$8270,Sheet3!$B9,Sheet4!$D$2:$D$8270,Sheet3!BZ$3,Sheet4!$E$2:$E$8270,Sheet3!BZ$4,Sheet4!$A$2:$A$8270,Sheet3!$B$1,Sheet4!$B$2:$B$8270,Sheet3!$A$3) -> 0 | CA9: =+SUMIFS(Sheet4!$DM$2:$DM$8270,Sheet4!$C$2:$C$8270,Sheet3!$B9,Sheet4!$D$2:$D$8270,Sheet3!CA$3,Sheet4!$E$2:$E$8270,Sheet3!CA$4,Sheet4!$A$2:$A$8270,Sheet3!$B$1,Sheet4!$B$2:$B$8270,Sheet3!$A$3) -> 0 | CB9: =+SUMIFS(Sheet4!$DM$2:$DM$8270,Sheet4!$C$2:$C$8270,Sheet3!$B9,Sheet4!$D$2:$D$8270,Sheet3!CB$3,Sheet4!$E$2:$E$8270,Sheet3!CB$4,Sheet4!$A$2:$A$8270,Sheet3!$B$1,Sheet4!$B$2:$B$8270,Sheet3!$A$3) -> 0 | CC9: =+SUMIFS(Sheet4!$DM$2:$DM$8270,Sheet4!$C$2:$C$8270,Sheet3!$B9,Sheet4!$D$2:$D$8270,Sheet3!CC$3,Sheet4!$E$2:$E$8270,Sheet3!CC$4,Sheet4!$A$2:$A$8270,Sheet3!$B$1,Sheet4!$B$2:$B$8270,Sheet3!$A$3) -> 0 | CD9: =+SUMIFS(Sheet4!$DM$2:$DM$8270,Sheet4!$C$2:$C$8270,Sheet3!$B9,Sheet4!$D$2:$D$8270,Sheet3!CD$3,Sheet4!$E$2:$E$8270,Sheet3!CD$4,Sheet4!$A$2:$A$8270,Sheet3!$B$1,Sheet4!$B$2:$B$8270,Sheet3!$A$3) -> 0 | CE9: =+SUMIFS(Sheet4!$DM$2:$DM$8270,Sheet4!$C$2:$C$8270,Sheet3!$B9,Sheet4!$D$2:$D$8270,Sheet3!CE$3,Sheet4!$E$2:$E$8270,Sheet3!CE$4,Sheet4!$A$2:$A$8270,Sheet3!$B$1,Sheet4!$B$2:$B$8270,Sheet3!$A$3) -> 0 | CF9: =+SUMIFS(Sheet4!$DM$2:$DM$8270,Sheet4!$C$2:$C$8270,Sheet3!$B9,Sheet4!$D$2:$D$8270,Sheet3!CF$3,Sheet4!$E$2:$E$8270,Sheet3!CF$4,Sheet4!$A$2:$A$8270,Sheet3!$B$1,Sheet4!$B$2:$B$8270,Sheet3!$A$3) -> 0 | CG9: =+SUMIFS(Sheet4!$DM$2:$DM$8270,Sheet4!$C$2:$C$8270,Sheet3!$B9,Sheet4!$D$2:$D$8270,Sheet3!CG$3,Sheet4!$E$2:$E$8270,Sheet3!CG$4,Sheet4!$A$2:$A$8270,Sheet3!$B$1,Sheet4!$B$2:$B$8270,Sheet3!$A$3) -> 0 | CH9: =+SUMIFS(Sheet4!$DM$2:$DM$8270,Sheet4!$C$2:$C$8270,Sheet3!$B9,Sheet4!$D$2:$D$8270,Sheet3!CH$3,Sheet4!$E$2:$E$8270,Sheet3!CH$4,Sheet4!$A$2:$A$8270,Sheet3!$B$1,Sheet4!$B$2:$B$8270,Sheet3!$A$3) -> 0 | CI9: =+SUMIFS(Sheet4!$DM$2:$DM$8270,Sheet4!$C$2:$C$8270,Sheet3!$B9,Sheet4!$D$2:$D$8270,Sheet3!CI$3,Sheet4!$E$2:$E$8270,Sheet3!CI$4,Sheet4!$A$2:$A$8270,Sheet3!$B$1,Sheet4!$B$2:$B$8270,Sheet3!$A$3) -> 0 | CJ9: =+SUMIFS(Sheet4!$DM$2:$DM$8270,Sheet4!$C$2:$C$8270,Sheet3!$B9,Sheet4!$D$2:$D$8270,Sheet3!CJ$3,Sheet4!$E$2:$E$8270,Sheet3!CJ$4,Sheet4!$A$2:$A$8270,Sheet3!$B$1,Sheet4!$B$2:$B$8270,Sheet3!$A$3) -> 0 | CK9: =+SUMIFS(Sheet4!$DM$2:$DM$8270,Sheet4!$C$2:$C$8270,Sheet3!$B9,Sheet4!$D$2:$D$8270,Sheet3!CK$3,Sheet4!$E$2:$E$8270,Sheet3!CK$4,Sheet4!$A$2:$A$8270,Sheet3!$B$1,Sheet4!$B$2:$B$8270,Sheet3!$A$3) -> 0 | CL9: =+SUMIFS(Sheet4!$DM$2:$DM$8270,Sheet4!$C$2:$C$8270,Sheet3!$B9,Sheet4!$D$2:$D$8270,Sheet3!CL$3,Sheet4!$E$2:$E$8270,Sheet3!CL$4,Sheet4!$A$2:$A$8270,Sheet3!$B$1,Sheet4!$B$2:$B$8270,Sheet3!$A$3) -> 0 | CM9: =+SUMIFS(Sheet4!$DM$2:$DM$8270,Sheet4!$C$2:$C$8270,Sheet3!$B9,Sheet4!$D$2:$D$8270,Sheet3!CM$3,Sheet4!$E$2:$E$8270,Sheet3!CM$4,Sheet4!$A$2:$A$8270,Sheet3!$B$1,Sheet4!$B$2:$B$8270,Sheet3!$A$3) -> 0 | CN9: =+SUMIFS(Sheet4!$DM$2:$DM$8270,Sheet4!$C$2:$C$8270,Sheet3!$B9,Sheet4!$D$2:$D$8270,Sheet3!CN$3,Sheet4!$E$2:$E$8270,Sheet3!CN$4,Sheet4!$A$2:$A$8270,Sheet3!$B$1,Sheet4!$B$2:$B$8270,Sheet3!$A$3) -> 0 | CO9: =+SUMIFS(Sheet4!$DM$2:$DM$8270,Sheet4!$C$2:$C$8270,Sheet3!$B9,Sheet4!$D$2:$D$8270,Sheet3!CO$3,Sheet4!$E$2:$E$8270,Sheet3!CO$4,Sheet4!$A$2:$A$8270,Sheet3!$B$1,Sheet4!$B$2:$B$8270,Sheet3!$A$3) -> 0 | CP9: =+IF(SUMIFS(Sheet4!$DN$2:$DN$8270,Sheet4!$C$2:$C$8270,Sheet3!$B9,Sheet4!$D$2:$D$8270,Sheet3!CP$3,Sheet4!$A$2:$A$8270,Sheet3!$B$1,Sheet4!$B$2:$B$8270,Sheet3!$A$3)<3,0,SUMIFS(Sheet4!$DN$2:$DN$8270,Sheet4!$C$2:$C$8270,Sheet3!$B9,Sheet4!$D$2:$D$8270,Sheet3!CP$3,Sheet4!$A$2:$A$8270,Sheet3!$B$1,Sheet4!$B$2:$B$8270,Sheet3!$A$3)) -> 0 | CQ9: =+IF(SUMIFS(Sheet4!$DN$2:$DN$8270,Sheet4!$C$2:$C$8270,Sheet3!$B9,Sheet4!$D$2:$D$8270,Sheet3!CQ$3,Sheet4!$A$2:$A$8270,Sheet3!$B$1,Sheet4!$B$2:$B$8270,Sheet3!$A$3)<3,0,SUMIFS(Sheet4!$DN$2:$DN$8270,Sheet4!$C$2:$C$8270,Sheet3!$B9,Sheet4!$D$2:$D$8270,Sheet3!CQ$3,Sheet4!$A$2:$A$8270,Sheet3!$B$1,Sheet4!$B$2:$B$8270,Sheet3!$A$3)) -> 0 | CR9: =+IF(SUMIFS(Sheet4!$DN$2:$DN$8270,Sheet4!$C$2:$C$8270,Sheet3!$B9,Sheet4!$D$2:$D$8270,Sheet3!CR$3,Sheet4!$A$2:$A$8270,Sheet3!$B$1,Sheet4!$B$2:$B$8270,Sheet3!$A$3)<3,0,SUMIFS(Sheet4!$DN$2:$DN$8270,Sheet4!$C$2:$C$8270,Sheet3!$B9,Sheet4!$D$2:$D$8270,Sheet3!CR$3,Sheet4!$A$2:$A$8270,Sheet3!$B$1,Sheet4!$B$2:$B$8270,Sheet3!$A$3)) -> 0 | CS9: =+IF(SUMIFS(Sheet4!$DN$2:$DN$8270,Sheet4!$C$2:$C$8270,Sheet3!$B9,Sheet4!$D$2:$D$8270,Sheet3!CS$3,Sheet4!$A$2:$A$8270,Sheet3!$B$1,Sheet4!$B$2:$B$8270,Sheet3!$A$3)<3,0,SUMIFS(Sheet4!$DN$2:$DN$8270,Sheet4!$C$2:$C$8270,Sheet3!$B9,Sheet4!$D$2:$D$8270,Sheet3!CS$3,Sheet4!$A$2:$A$8270,Sheet3!$B$1,Sheet4!$B$2:$B$8270,Sheet3!$A$3)) -> 0 | CT9: =+IF(SUMIFS(Sheet4!$DN$2:$DN$8270,Sheet4!$C$2:$C$8270,Sheet3!$B9,Sheet4!$D$2:$D$8270,Sheet3!CT$3,Sheet4!$A$2:$A$8270,Sheet3!$B$1,Sheet4!$B$2:$B$8270,Sheet3!$A$3)<3,0,SUMIFS(Sheet4!$DN$2:$DN$8270,Sheet4!$C$2:$C$8270,Sheet3!$B9,Sheet4!$D$2:$D$8270,Sheet3!CT$3,Sheet4!$A$2:$A$8270,Sheet3!$B$1,Sheet4!$B$2:$B$8270,Sheet3!$A$3)) -> 0 | CU9: =+IF(SUMIFS(Sheet4!$DN$2:$DN$8270,Sheet4!$C$2:$C$8270,Sheet3!$B9,Sheet4!$D$2:$D$8270,Sheet3!CU$3,Sheet4!$A$2:$A$8270,Sheet3!$B$1,Sheet4!$B$2:$B$8270,Sheet3!$A$3)<3,0,SUMIFS(Sheet4!$DN$2:$DN$8270,Sheet4!$C$2:$C$8270,Sheet3!$B9,Sheet4!$D$2:$D$8270,Sheet3!CU$3,Sheet4!$A$2:$A$8270,Sheet3!$B$1,Sheet4!$B$2:$B$8270,Sheet3!$A$3)) -> 0 | CV9: =+IF(SUMIFS(Sheet4!$DN$2:$DN$8270,Sheet4!$C$2:$C$8270,Sheet3!$B9,Sheet4!$D$2:$D$8270,Sheet3!CV$3,Sheet4!$A$2:$A$8270,Sheet3!$B$1,Sheet4!$B$2:$B$8270,Sheet3!$A$3)<3,0,SUMIFS(Sheet4!$DN$2:$DN$8270,Sheet4!$C$2:$C$8270,Sheet3!$B9,Sheet4!$D$2:$D$8270,Sheet3!CV$3,Sheet4!$A$2:$A$8270,Sheet3!$B$1,Sheet4!$B$2:$B$8270,Sheet3!$A$3)) -> 0 | CW9: =+IF(SUMIFS(Sheet4!$DN$2:$DN$8270,Sheet4!$C$2:$C$8270,Sheet3!$B9,Sheet4!$D$2:$D$8270,Sheet3!CW$3,Sheet4!$A$2:$A$8270,Sheet3!$B$1,Sheet4!$B$2:$B$8270,Sheet3!$A$3)<3,0,SUMIFS(Sheet4!$DN$2:$DN$8270,Sheet4!$C$2:$C$8270,Sheet3!$B9,Sheet4!$D$2:$D$8270,Sheet3!CW$3,Sheet4!$A$2:$A$8270,Sheet3!$B$1,Sheet4!$B$2:$B$8270,Sheet3!$A$3)) -> 0 | CX9: =+IF(SUMIFS(Sheet4!$DN$2:$DN$8270,Sheet4!$C$2:$C$8270,Sheet3!$B9,Sheet4!$D$2:$D$8270,Sheet3!CX$3,Sheet4!$A$2:$A$8270,Sheet3!$B$1,Sheet4!$B$2:$B$8270,Sheet3!$A$3)<3,0,SUMIFS(Sheet4!$DN$2:$DN$8270,Sheet4!$C$2:$C$8270,Sheet3!$B9,Sheet4!$D$2:$D$8270,Sheet3!CX$3,Sheet4!$A$2:$A$8270,Sheet3!$B$1,Sheet4!$B$2:$B$8270,Sheet3!$A$3)) -> 0 | CY9: =+IF(SUMIFS(Sheet4!$DN$2:$DN$8270,Sheet4!$C$2:$C$8270,Sheet3!$B9,Sheet4!$D$2:$D$8270,Sheet3!CY$3,Sheet4!$A$2:$A$8270,Sheet3!$B$1,Sheet4!$B$2:$B$8270,Sheet3!$A$3)<3,0,SUMIFS(Sheet4!$DN$2:$DN$8270,Sheet4!$C$2:$C$8270,Sheet3!$B9,Sheet4!$D$2:$D$8270,Sheet3!CY$3,Sheet4!$A$2:$A$8270,Sheet3!$B$1,Sheet4!$B$2:$B$8270,Sheet3!$A$3)) -> 0 | CZ9: =+IF(SUMIFS(Sheet4!$DN$2:$DN$8270,Sheet4!$C$2:$C$8270,Sheet3!$B9,Sheet4!$D$2:$D$8270,Sheet3!CZ$3,Sheet4!$A$2:$A$8270,Sheet3!$B$1,Sheet4!$B$2:$B$8270,Sheet3!$A$3)<3,0,SUMIFS(Sheet4!$DN$2:$DN$8270,Sheet4!$C$2:$C$8270,Sheet3!$B9,Sheet4!$D$2:$D$8270,Sheet3!CZ$3,Sheet4!$A$2:$A$8270,Sheet3!$B$1,Sheet4!$B$2:$B$8270,Sheet3!$A$3)) -> 0 | DA9: =+IF(SUMIFS(Sheet4!$DN$2:$DN$8270,Sheet4!$C$2:$C$8270,Sheet3!$B9,Sheet4!$D$2:$D$8270,Sheet3!DA$3,Sheet4!$A$2:$A$8270,Sheet3!$B$1,Sheet4!$B$2:$B$8270,Sheet3!$A$3)<3,0,SUMIFS(Sheet4!$DN$2:$DN$8270,Sheet4!$C$2:$C$8270,Sheet3!$B9,Sheet4!$D$2:$D$8270,Sheet3!DA$3,Sheet4!$A$2:$A$8270,Sheet3!$B$1,Sheet4!$B$2:$B$8270,Sheet3!$A$3)) -> 1389.5 | DB9: =+IF(SUMIFS(Sheet4!$DN$2:$DN$8270,Sheet4!$C$2:$C$8270,Sheet3!$B9,Sheet4!$D$2:$D$8270,Sheet3!DB$3,Sheet4!$A$2:$A$8270,Sheet3!$B$1,Sheet4!$B$2:$B$8270,Sheet3!$A$3)<3,0,SUMIFS(Sheet4!$DN$2:$DN$8270,Sheet4!$C$2:$C$8270,Sheet3!$B9,Sheet4!$D$2:$D$8270,Sheet3!DB$3,Sheet4!$A$2:$A$8270,Sheet3!$B$1,Sheet4!$B$2:$B$8270,Sheet3!$A$3)) -> 3500 | DC9: =+IF(SUMIFS(Sheet4!$DN$2:$DN$8270,Sheet4!$C$2:$C$8270,Sheet3!$B9,Sheet4!$D$2:$D$8270,Sheet3!DC$3,Sheet4!$A$2:$A$8270,Sheet3!$B$1,Sheet4!$B$2:$B$8270,Sheet3!$A$3)<3,0,SUMIFS(Sheet4!$DN$2:$DN$8270,Sheet4!$C$2:$C$8270,Sheet3!$B9,Sheet4!$D$2:$D$8270,Sheet3!DC$3,Sheet4!$A$2:$A$8270,Sheet3!$B$1,Sheet4!$B$2:$B$8270,Sheet3!$A$3)) -> 7287 | DD9: =+IF(SUMIFS(Sheet4!$DN$2:$DN$8270,Sheet4!$C$2:$C$8270,Sheet3!$B9,Sheet4!$D$2:$D$8270,Sheet3!DD$3,Sheet4!$A$2:$A$8270,Sheet3!$B$1,Sheet4!$B$2:$B$8270,Sheet3!$A$3)<3,0,SUMIFS(Sheet4!$DN$2:$DN$8270,Sheet4!$C$2:$C$8270,Sheet3!$B9,Sheet4!$D$2:$D$8270,Sheet3!DD$3,Sheet4!$A$2:$A$8270,Sheet3!$B$1,Sheet4!$B$2:$B$8270,Sheet3!$A$3)) -> 350 | DE9: =+IF(SUMIFS(Sheet4!$DN$2:$DN$8270,Sheet4!$C$2:$C$8270,Sheet3!$B9,Sheet4!$D$2:$D$8270,Sheet3!DE$3,Sheet4!$A$2:$A$8270,Sheet3!$B$1,Sheet4!$B$2:$B$8270,Sheet3!$A$3)<3,0,SUMIFS(Sheet4!$DN$2:$DN$8270,Sheet4!$C$2:$C$8270,Sheet3!$B9,Sheet4!$D$2:$D$8270,Sheet3!DE$3,Sheet4!$A$2:$A$8270,Sheet3!$B$1,Sheet4!$B$2:$B$8270,Sheet3!$A$3)) -> 0 | DF9: =+IF(SUMIFS(Sheet4!$DN$2:$DN$8270,Sheet4!$C$2:$C$8270,Sheet3!$B9,Sheet4!$D$2:$D$8270,Sheet3!DF$3,Sheet4!$A$2:$A$8270,Sheet3!$B$1,Sheet4!$B$2:$B$8270,Sheet3!$A$3)<3,0,SUMIFS(Sheet4!$DN$2:$DN$8270,Sheet4!$C$2:$C$8270,Sheet3!$B9,Sheet4!$D$2:$D$8270,Sheet3!DF$3,Sheet4!$A$2:$A$8270,Sheet3!$B$1,Sheet4!$B$2:$B$8270,Sheet3!$A$3)) -> 0 | DG9: =+IF(SUMIFS(Sheet4!$DN$2:$DN$8270,Sheet4!$C$2:$C$8270,Sheet3!$B9,Sheet4!$D$2:$D$8270,Sheet3!DG$3,Sheet4!$A$2:$A$8270,Sheet3!$B$1,Sheet4!$B$2:$B$8270,Sheet3!$A$3)<3,0,SUMIFS(Sheet4!$DN$2:$DN$8270,Sheet4!$C$2:$C$8270,Sheet3!$B9,Sheet4!$D$2:$D$8270,Sheet3!DG$3,Sheet4!$A$2:$A$8270,Sheet3!$B$1,Sheet4!$B$2:$B$8270,Sheet3!$A$3)) -> 0 | DH9: =+IF(SUMIFS(Sheet4!$DN$2:$DN$8270,Sheet4!$C$2:$C$8270,Sheet3!$B9,Sheet4!$E$2:$E$8270,Sheet3!DH$4,Sheet4!$A$2:$A$8270,Sheet3!$B$1,Sheet4!$B$2:$B$8270,Sheet3!$A$3)<3,0,SUMIFS(Sheet4!$DN$2:$DN$8270,Sheet4!$C$2:$C$8270,Sheet3!$B9,Sheet4!$E$2:$E$8270,Sheet3!DH$4,Sheet4!$A$2:$A$8270,Sheet3!$B$1,Sheet4!$B$2:$B$8270,Sheet3!$A$3)) -> 0 | DI9: =+IF(SUMIFS(Sheet4!$DN$2:$DN$8270,Sheet4!$C$2:$C$8270,Sheet3!$B9,Sheet4!$E$2:$E$8270,Sheet3!DI$4,Sheet4!$A$2:$A$8270,Sheet3!$B$1,Sheet4!$B$2:$B$8270,Sheet3!$A$3)<3,0,SUMIFS(Sheet4!$DN$2:$DN$8270,Sheet4!$C$2:$C$8270,Sheet3!$B9,Sheet4!$E$2:$E$8270,Sheet3!DI$4,Sheet4!$A$2:$A$8270,Sheet3!$B$1,Sheet4!$B$2:$B$8270,Sheet3!$A$3)) -> 2100 | DJ9: =+IF(SUMIFS(Sheet4!$DN$2:$DN$8270,Sheet4!$C$2:$C$8270,Sheet3!$B9,Sheet4!$E$2:$E$8270,Sheet3!DJ$4,Sheet4!$A$2:$A$8270,Sheet3!$B$1,Sheet4!$B$2:$B$8270,Sheet3!$A$3)<3,0,SUMIFS(Sheet4!$DN$2:$DN$8270,Sheet4!$C$2:$C$8270,Sheet3!$B9,Sheet4!$E$2:$E$8270,Sheet3!DJ$4,Sheet4!$A$2:$A$8270,Sheet3!$B$1,Sheet4!$B$2:$B$8270,Sheet3!$A$3)) -> 10426.5 | DK9: =+IF(SUMIFS(Sheet4!$DN$2:$DN$8270,Sheet4!$C$2:$C$8270,Sheet3!$B9,Sheet4!$E$2:$E$8270,Sheet3!DK$4,Sheet4!$A$2:$A$8270,Sheet3!$B$1,Sheet4!$B$2:$B$8270,Sheet3!$A$3)<3,0,SUMIFS(Sheet4!$DN$2:$DN$8270,Sheet4!$C$2:$C$8270,Sheet3!$B9,Sheet4!$E$2:$E$8270,Sheet3!DK$4,Sheet4!$A$2:$A$8270,Sheet3!$B$1,Sheet4!$B$2:$B$8270,Sheet3!$A$3)) -> 0 | DL9: =+IF(SUMIFS(Sheet4!$DN$2:$DN$8270,Sheet4!$C$2:$C$8270,Sheet3!$B9,Sheet4!$E$2:$E$8270,Sheet3!DL$4,Sheet4!$A$2:$A$8270,Sheet3!$B$1,Sheet4!$B$2:$B$8270,Sheet3!$A$3)<3,0,SUMIFS(Sheet4!$DN$2:$DN$8270,Sheet4!$C$2:$C$8270,Sheet3!$B9,Sheet4!$E$2:$E$8270,Sheet3!DL$4,Sheet4!$A$2:$A$8270,Sheet3!$B$1,Sheet4!$B$2:$B$8270,Sheet3!$A$3)) -> 0
A10: 1 | B10: 119 | C10: Ave | D10: =+SUMIFS(Sheet4!$DM$2:$DM$8270,Sheet4!$C$2:$C$8270,Sheet3!$B10,Sheet4!$D$2:$D$8270,Sheet3!D$3,Sheet4!$E$2:$E$8270,Sheet3!D$4,Sheet4!$A$2:$A$8270,Sheet3!$B$1,Sheet4!$B$2:$B$8270,Sheet3!$A$3) -> 0 | E10: =+SUMIFS(Sheet4!$DM$2:$DM$8270,Sheet4!$C$2:$C$8270,Sheet3!$B10,Sheet4!$D$2:$D$8270,Sheet3!E$3,Sheet4!$E$2:$E$8270,Sheet3!E$4,Sheet4!$A$2:$A$8270,Sheet3!$B$1,Sheet4!$B$2:$B$8270,Sheet3!$A$3) -> 0 | F10: =+SUMIFS(Sheet4!$DM$2:$DM$8270,Sheet4!$C$2:$C$8270,Sheet3!$B10,Sheet4!$D$2:$D$8270,Sheet3!F$3,Sheet4!$E$2:$E$8270,Sheet3!F$4,Sheet4!$A$2:$A$8270,Sheet3!$B$1,Sheet4!$B$2:$B$8270,Sheet3!$A$3) -> 0 | G10: =+SUMIFS(Sheet4!$DM$2:$DM$8270,Sheet4!$C$2:$C$8270,Sheet3!$B10,Sheet4!$D$2:$D$8270,Sheet3!G$3,Sheet4!$E$2:$E$8270,Sheet3!G$4,Sheet4!$A$2:$A$8270,Sheet3!$B$1,Sheet4!$B$2:$B$8270,Sheet3!$A$3) -> 0 | H10: =+SUMIFS(Sheet4!$DM$2:$DM$8270,Sheet4!$C$2:$C$8270,Sheet3!$B10,Sheet4!$D$2:$D$8270,Sheet3!H$3,Sheet4!$E$2:$E$8270,Sheet3!H$4,Sheet4!$A$2:$A$8270,Sheet3!$B$1,Sheet4!$B$2:$B$8270,Sheet3!$A$3) -> 0 | I10: =+SUMIFS(Sheet4!$DM$2:$DM$8270,Sheet4!$C$2:$C$8270,Sheet3!$B10,Sheet4!$D$2:$D$8270,Sheet3!I$3,Sheet4!$E$2:$E$8270,Sheet3!I$4,Sheet4!$A$2:$A$8270,Sheet3!$B$1,Sheet4!$B$2:$B$8270,Sheet3!$A$3) -> 0 | J10: =+SUMIFS(Sheet4!$DM$2:$DM$8270,Sheet4!$C$2:$C$8270,Sheet3!$B10,Sheet4!$D$2:$D$8270,Sheet3!J$3,Sheet4!$E$2:$E$8270,Sheet3!J$4,Sheet4!$A$2:$A$8270,Sheet3!$B$1,Sheet4!$B$2:$B$8270,Sheet3!$A$3) -> 0 | K10: =+SUMIFS(Sheet4!$DM$2:$DM$8270,Sheet4!$C$2:$C$8270,Sheet3!$B10,Sheet4!$D$2:$D$8270,Sheet3!K$3,Sheet4!$E$2:$E$8270,Sheet3!K$4,Sheet4!$A$2:$A$8270,Sheet3!$B$1,Sheet4!$B$2:$B$8270,Sheet3!$A$3) -> 0 | L10: =+SUMIFS(Sheet4!$DM$2:$DM$8270,Sheet4!$C$2:$C$8270,Sheet3!$B10,Sheet4!$D$2:$D$8270,Sheet3!L$3,Sheet4!$E$2:$E$8270,Sheet3!L$4,Sheet4!$A$2:$A$8270,Sheet3!$B$1,Sheet4!$B$2:$B$8270,Sheet3!$A$3) -> 0 | M10: =+SUMIFS(Sheet4!$DM$2:$DM$8270,Sheet4!$C$2:$C$8270,Sheet3!$B10,Sheet4!$D$2:$D$8270,Sheet3!M$3,Sheet4!$E$2:$E$8270,Sheet3!M$4,Sheet4!$A$2:$A$8270,Sheet3!$B$1,Sheet4!$B$2:$B$8270,Sheet3!$A$3) -> 0 | N10: =+SUMIFS(Sheet4!$DM$2:$DM$8270,Sheet4!$C$2:$C$8270,Sheet3!$B10,Sheet4!$D$2:$D$8270,Sheet3!N$3,Sheet4!$E$2:$E$8270,Sheet3!N$4,Sheet4!$A$2:$A$8270,Sheet3!$B$1,Sheet4!$B$2:$B$8270,Sheet3!$A$3) -> 0 | O10: =+SUMIFS(Sheet4!$DM$2:$DM$8270,Sheet4!$C$2:$C$8270,Sheet3!$B10,Sheet4!$D$2:$D$8270,Sheet3!O$3,Sheet4!$E$2:$E$8270,Sheet3!O$4,Sheet4!$A$2:$A$8270,Sheet3!$B$1,Sheet4!$B$2:$B$8270,Sheet3!$A$3) -> 0 | P10: =+SUMIFS(Sheet4!$DM$2:$DM$8270,Sheet4!$C$2:$C$8270,Sheet3!$B10,Sheet4!$D$2:$D$8270,Sheet3!P$3,Sheet4!$E$2:$E$8270,Sheet3!P$4,Sheet4!$A$2:$A$8270,Sheet3!$B$1,Sheet4!$B$2:$B$8270,Sheet3!$A$3) -> 0 | Q10: =+SUMIFS(Sheet4!$DM$2:$DM$8270,Sheet4!$C$2:$C$8270,Sheet3!$B10,Sheet4!$D$2:$D$8270,Sheet3!Q$3,Sheet4!$E$2:$E$8270,Sheet3!Q$4,Sheet4!$A$2:$A$8270,Sheet3!$B$1,Sheet4!$B$2:$B$8270,Sheet3!$A$3) -> 0 | R10: =+SUMIFS(Sheet4!$DM$2:$DM$8270,Sheet4!$C$2:$C$8270,Sheet3!$B10,Sheet4!$D$2:$D$8270,Sheet3!R$3,Sheet4!$E$2:$E$8270,Sheet3!R$4,Sheet4!$A$2:$A$8270,Sheet3!$B$1,Sheet4!$B$2:$B$8270,Sheet3!$A$3) -> 0 | S10: =+SUMIFS(Sheet4!$DM$2:$DM$8270,Sheet4!$C$2:$C$8270,Sheet3!$B10,Sheet4!$D$2:$D$8270,Sheet3!S$3,Sheet4!$E$2:$E$8270,Sheet3!S$4,Sheet4!$A$2:$A$8270,Sheet3!$B$1,Sheet4!$B$2:$B$8270,Sheet3!$A$3) -> 0 | T10: =+SUMIFS(Sheet4!$DM$2:$DM$8270,Sheet4!$C$2:$C$8270,Sheet3!$B10,Sheet4!$D$2:$D$8270,Sheet3!T$3,Sheet4!$E$2:$E$8270,Sheet3!T$4,Sheet4!$A$2:$A$8270,Sheet3!$B$1,Sheet4!$B$2:$B$8270,Sheet3!$A$3) -> 0 | U10: =+SUMIFS(Sheet4!$DM$2:$DM$8270,Sheet4!$C$2:$C$8270,Sheet3!$B10,Sheet4!$D$2:$D$8270,Sheet3!U$3,Sheet4!$E$2:$E$8270,Sheet3!U$4,Sheet4!$A$2:$A$8270,Sheet3!$B$1,Sheet4!$B$2:$B$8270,Sheet3!$A$3) -> 0 | V10: =+SUMIFS(Sheet4!$DM$2:$DM$8270,Sheet4!$C$2:$C$8270,Sheet3!$B10,Sheet4!$D$2:$D$8270,Sheet3!V$3,Sheet4!$E$2:$E$8270,Sheet3!V$4,Sheet4!$A$2:$A$8270,Sheet3!$B$1,Sheet4!$B$2:$B$8270,Sheet3!$A$3) -> 0 | W10: =+SUMIFS(Sheet4!$DM$2:$DM$8270,Sheet4!$C$2:$C$8270,Sheet3!$B10,Sheet4!$D$2:$D$8270,Sheet3!W$3,Sheet4!$E$2:$E$8270,Sheet3!W$4,Sheet4!$A$2:$A$8270,Sheet3!$B$1,Sheet4!$B$2:$B$8270,Sheet3!$A$3) -> 0 | X10: =+SUMIFS(Sheet4!$DM$2:$DM$8270,Sheet4!$C$2:$C$8270,Sheet3!$B10,Sheet4!$D$2:$D$8270,Sheet3!X$3,Sheet4!$E$2:$E$8270,Sheet3!X$4,Sheet4!$A$2:$A$8270,Sheet3!$B$1,Sheet4!$B$2:$B$8270,Sheet3!$A$3) -> 0 | Y10: =+SUMIFS(Sheet4!$DM$2:$DM$8270,Sheet4!$C$2:$C$8270,Sheet3!$B10,Sheet4!$D$2:$D$8270,Sheet3!Y$3,Sheet4!$E$2:$E$8270,Sheet3!Y$4,Sheet4!$A$2:$A$8270,Sheet3!$B$1,Sheet4!$B$2:$B$8270,Sheet3!$A$3) -> 0 | Z10: =+SUMIFS(Sheet4!$DM$2:$DM$8270,Sheet4!$C$2:$C$8270,Sheet3!$B10,Sheet4!$D$2:$D$8270,Sheet3!Z$3,Sheet4!$E$2:$E$8270,Sheet3!Z$4,Sheet4!$A$2:$A$8270,Sheet3!$B$1,Sheet4!$B$2:$B$8270,Sheet3!$A$3) -> 0 | AA10: =+SUMIFS(Sheet4!$DM$2:$DM$8270,Sheet4!$C$2:$C$8270,Sheet3!$B10,Sheet4!$D$2:$D$8270,Sheet3!AA$3,Sheet4!$E$2:$E$8270,Sheet3!AA$4,Sheet4!$A$2:$A$8270,Sheet3!$B$1,Sheet4!$B$2:$B$8270,Sheet3!$A$3) -> 0 | AB10: =+SUMIFS(Sheet4!$DM$2:$DM$8270,Sheet4!$C$2:$C$8270,Sheet3!$B10,Sheet4!$D$2:$D$8270,Sheet3!AB$3,Sheet4!$E$2:$E$8270,Sheet3!AB$4,Sheet4!$A$2:$A$8270,Sheet3!$B$1,Sheet4!$B$2:$B$8270,Sheet3!$A$3) -> 0 | AC10: =+SUMIFS(Sheet4!$DM$2:$DM$8270,Sheet4!$C$2:$C$8270,Sheet3!$B10,Sheet4!$D$2:$D$8270,Sheet3!AC$3,Sheet4!$E$2:$E$8270,Sheet3!AC$4,Sheet4!$A$2:$A$8270,Sheet3!$B$1,Sheet4!$B$2:$B$8270,Sheet3!$A$3) -> 0 | AD10: =+SUMIFS(Sheet4!$DM$2:$DM$8270,Sheet4!$C$2:$C$8270,Sheet3!$B10,Sheet4!$D$2:$D$8270,Sheet3!AD$3,Sheet4!$E$2:$E$8270,Sheet3!AD$4,Sheet4!$A$2:$A$8270,Sheet3!$B$1,Sheet4!$B$2:$B$8270,Sheet3!$A$3) -> 0 | AE10: =+SUMIFS(Sheet4!$DM$2:$DM$8270,Sheet4!$C$2:$C$8270,Sheet3!$B10,Sheet4!$D$2:$D$8270,Sheet3!AE$3,Sheet4!$E$2:$E$8270,Sheet3!AE$4,Sheet4!$A$2:$A$8270,Sheet3!$B$1,Sheet4!$B$2:$B$8270,Sheet3!$A$3) -> 0 | AF10: =+SUMIFS(Sheet4!$DM$2:$DM$8270,Sheet4!$C$2:$C$8270,Sheet3!$B10,Sheet4!$D$2:$D$8270,Sheet3!AF$3,Sheet4!$E$2:$E$8270,Sheet3!AF$4,Sheet4!$A$2:$A$8270,Sheet3!$B$1,Sheet4!$B$2:$B$8270,Sheet3!$A$3) -> 0 | AG10: =+SUMIFS(Sheet4!$DM$2:$DM$8270,Sheet4!$C$2:$C$8270,Sheet3!$B10,Sheet4!$D$2:$D$8270,Sheet3!AG$3,Sheet4!$E$2:$E$8270,Sheet3!AG$4,Sheet4!$A$2:$A$8270,Sheet3!$B$1,Sheet4!$B$2:$B$8270,Sheet3!$A$3) -> 0 | AH10: =+SUMIFS(Sheet4!$DM$2:$DM$8270,Sheet4!$C$2:$C$8270,Sheet3!$B10,Sheet4!$D$2:$D$8270,Sheet3!AH$3,Sheet4!$E$2:$E$8270,Sheet3!AH$4,Sheet4!$A$2:$A$8270,Sheet3!$B$1,Sheet4!$B$2:$B$8270,Sheet3!$A$3) -> 0 | AI10: =+SUMIFS(Sheet4!$DM$2:$DM$8270,Sheet4!$C$2:$C$8270,Sheet3!$B10,Sheet4!$D$2:$D$8270,Sheet3!AI$3,Sheet4!$E$2:$E$8270,Sheet3!AI$4,Sheet4!$A$2:$A$8270,Sheet3!$B$1,Sheet4!$B$2:$B$8270,Sheet3!$A$3) -> 0 | AJ10: =+SUMIFS(Sheet4!$DM$2:$DM$8270,Sheet4!$C$2:$C$8270,Sheet3!$B10,Sheet4!$D$2:$D$8270,Sheet3!AJ$3,Sheet4!$E$2:$E$8270,Sheet3!AJ$4,Sheet4!$A$2:$A$8270,Sheet3!$B$1,Sheet4!$B$2:$B$8270,Sheet3!$A$3) -> 0 | AK10: =+SUMIFS(Sheet4!$DM$2:$DM$8270,Sheet4!$C$2:$C$8270,Sheet3!$B10,Sheet4!$D$2:$D$8270,Sheet3!AK$3,Sheet4!$E$2:$E$8270,Sheet3!AK$4,Sheet4!$A$2:$A$8270,Sheet3!$B$1,Sheet4!$B$2:$B$8270,Sheet3!$A$3) -> 0 | AL10: =+SUMIFS(Sheet4!$DM$2:$DM$8270,Sheet4!$C$2:$C$8270,Sheet3!$B10,Sheet4!$D$2:$D$8270,Sheet3!AL$3,Sheet4!$E$2:$E$8270,Sheet3!AL$4,Sheet4!$A$2:$A$8270,Sheet3!$B$1,Sheet4!$B$2:$B$8270,Sheet3!$A$3) -> 0 | AM10: =+SUMIFS(Sheet4!$DM$2:$DM$8270,Sheet4!$C$2:$C$8270,Sheet3!$B10,Sheet4!$D$2:$D$8270,Sheet3!AM$3,Sheet4!$E$2:$E$8270,Sheet3!AM$4,Sheet4!$A$2:$A$8270,Sheet3!$B$1,Sheet4!$B$2:$B$8270,Sheet3!$A$3) -> 0 | AN10: =+SUMIFS(Sheet4!$DM$2:$DM$8270,Sheet4!$C$2:$C$8270,Sheet3!$B10,Sheet4!$D$2:$D$8270,Sheet3!AN$3,Sheet4!$E$2:$E$8270,Sheet3!AN$4,Sheet4!$A$2:$A$8270,Sheet3!$B$1,Sheet4!$B$2:$B$8270,Sheet3!$A$3) -> 473.2 | AO10: =+SUMIFS(Sheet4!$DM$2:$DM$8270,Sheet4!$C$2:$C$8270,Sheet3!$B10,Sheet4!$D$2:$D$8270,Sheet3!AO$3,Sheet4!$E$2:$E$8270,Sheet3!AO$4,Sheet4!$A$2:$A$8270,Sheet3!$B$1,Sheet4!$B$2:$B$8270,Sheet3!$A$3) -> 0 | AP10: =+SUMIFS(Sheet4!$DM$2:$DM$8270,Sheet4!$C$2:$C$8270,Sheet3!$B10,Sheet4!$D$2:$D$8270,Sheet3!AP$3,Sheet4!$E$2:$E$8270,Sheet3!AP$4,Sheet4!$A$2:$A$8270,Sheet3!$B$1,Sheet4!$B$2:$B$8270,Sheet3!$A$3) -> 0 | AQ10: =+SUMIFS(Sheet4!$DM$2:$DM$8270,Sheet4!$C$2:$C$8270,Sheet3!$B10,Sheet4!$D$2:$D$8270,Sheet3!AQ$3,Sheet4!$E$2:$E$8270,Sheet3!AQ$4,Sheet4!$A$2:$A$8270,Sheet3!$B$1,Sheet4!$B$2:$B$8270,Sheet3!$A$3) -> 0 | AR10: =+SUMIFS(Sheet4!$DM$2:$DM$8270,Sheet4!$C$2:$C$8270,Sheet3!$B10,Sheet4!$D$2:$D$8270,Sheet3!AR$3,Sheet4!$E$2:$E$8270,Sheet3!AR$4,Sheet4!$A$2:$A$8270,Sheet3!$B$1,Sheet4!$B$2:$B$8270,Sheet3!$A$3) -> 0 | AS10: =+SUMIFS(Sheet4!$DM$2:$DM$8270,Sheet4!$C$2:$C$8270,Sheet3!$B10,Sheet4!$D$2:$D$8270,Sheet3!AS$3,Sheet4!$E$2:$E$8270,Sheet3!AS$4,Sheet4!$A$2:$A$8270,Sheet3!$B$1,Sheet4!$B$2:$B$8270,Sheet3!$A$3) -> 0 | AT10: =+SUMIFS(Sheet4!$DM$2:$DM$8270,Sheet4!$C$2:$C$8270,Sheet3!$B10,Sheet4!$D$2:$D$8270,Sheet3!AT$3,Sheet4!$E$2:$E$8270,Sheet3!AT$4,Sheet4!$A$2:$A$8270,Sheet3!$B$1,Sheet4!$B$2:$B$8270,Sheet3!$A$3) -> 0 | AU10: =+SUMIFS(Sheet4!$DM$2:$DM$8270,Sheet4!$C$2:$C$8270,Sheet3!$B10,Sheet4!$D$2:$D$8270,Sheet3!AU$3,Sheet4!$E$2:$E$8270,Sheet3!AU$4,Sheet4!$A$2:$A$8270,Sheet3!$B$1,Sheet4!$B$2:$B$8270,Sheet3!$A$3) -> 0 | AV10: =+SUMIFS(Sheet4!$DM$2:$DM$8270,Sheet4!$C$2:$C$8270,Sheet3!$B10,Sheet4!$D$2:$D$8270,Sheet3!AV$3,Sheet4!$E$2:$E$8270,Sheet3!AV$4,Sheet4!$A$2:$A$8270,Sheet3!$B$1,Sheet4!$B$2:$B$8270,Sheet3!$A$3) -> 0 | AW10: =+SUMIFS(Sheet4!$DM$2:$DM$8270,Sheet4!$C$2:$C$8270,Sheet3!$B10,Sheet4!$D$2:$D$8270,Sheet3!AW$3,Sheet4!$E$2:$E$8270,Sheet3!AW$4,Sheet4!$A$2:$A$8270,Sheet3!$B$1,Sheet4!$B$2:$B$8270,Sheet3!$A$3) -> 0 | AX10: =+SUMIFS(Sheet4!$DM$2:$DM$8270,Sheet4!$C$2:$C$8270,Sheet3!$B10,Sheet4!$D$2:$D$8270,Sheet3!AX$3,Sheet4!$E$2:$E$8270,Sheet3!AX$4,Sheet4!$A$2:$A$8270,Sheet3!$B$1,Sheet4!$B$2:$B$8270,Sheet3!$A$3) -> 0 | AY10: =+SUMIFS(Sheet4!$DM$2:$DM$8270,Sheet4!$C$2:$C$8270,Sheet3!$B10,Sheet4!$D$2:$D$8270,Sheet3!AY$3,Sheet4!$E$2:$E$8270,Sheet3!AY$4,Sheet4!$A$2:$A$8270,Sheet3!$B$1,Sheet4!$B$2:$B$8270,Sheet3!$A$3) -> 0 | AZ10: =+SUMIFS(Sheet4!$DM$2:$DM$8270,Sheet4!$C$2:$C$8270,Sheet3!$B10,Sheet4!$D$2:$D$8270,Sheet3!AZ$3,Sheet4!$E$2:$E$8270,Sheet3!AZ$4,Sheet4!$A$2:$A$8270,Sheet3!$B$1,Sheet4!$B$2:$B$8270,Sheet3!$A$3) -> 0 | BA10: =+SUMIFS(Sheet4!$DM$2:$DM$8270,Sheet4!$C$2:$C$8270,Sheet3!$B10,Sheet4!$D$2:$D$8270,Sheet3!BA$3,Sheet4!$E$2:$E$8270,Sheet3!BA$4,Sheet4!$A$2:$A$8270,Sheet3!$B$1,Sheet4!$B$2:$B$8270,Sheet3!$A$3) -> 0 | BB10: =+SUMIFS(Sheet4!$DM$2:$DM$8270,Sheet4!$C$2:$C$8270,Sheet3!$B10,Sheet4!$D$2:$D$8270,Sheet3!BB$3,Sheet4!$E$2:$E$8270,Sheet3!BB$4,Sheet4!$A$2:$A$8270,Sheet3!$B$1,Sheet4!$B$2:$B$8270,Sheet3!$A$3) -> 0 | BC10: =+SUMIFS(Sheet4!$DM$2:$DM$8270,Sheet4!$C$2:$C$8270,Sheet3!$B10,Sheet4!$D$2:$D$8270,Sheet3!BC$3,Sheet4!$E$2:$E$8270,Sheet3!BC$4,Sheet4!$A$2:$A$8270,Sheet3!$B$1,Sheet4!$B$2:$B$8270,Sheet3!$A$3) -> 0 | BD10: =+SUMIFS(Sheet4!$DM$2:$DM$8270,Sheet4!$C$2:$C$8270,Sheet3!$B10,Sheet4!$D$2:$D$8270,Sheet3!BD$3,Sheet4!$E$2:$E$8270,Sheet3!BD$4,Sheet4!$A$2:$A$8270,Sheet3!$B$1,Sheet4!$B$2:$B$8270,Sheet3!$A$3) -> 0 | BE10: =+SUMIFS(Sheet4!$DM$2:$DM$8270,Sheet4!$C$2:$C$8270,Sheet3!$B10,Sheet4!$D$2:$D$8270,Sheet3!BE$3,Sheet4!$E$2:$E$8270,Sheet3!BE$4,Sheet4!$A$2:$A$8270,Sheet3!$B$1,Sheet4!$B$2:$B$8270,Sheet3!$A$3) -> 0 | BF10: =+SUMIFS(Sheet4!$DM$2:$DM$8270,Sheet4!$C$2:$C$8270,Sheet3!$B10,Sheet4!$D$2:$D$8270,Sheet3!BF$3,Sheet4!$E$2:$E$8270,Sheet3!BF$4,Sheet4!$A$2:$A$8270,Sheet3!$B$1,Sheet4!$B$2:$B$8270,Sheet3!$A$3) -> 0 | BG10: =+SUMIFS(Sheet4!$DM$2:$DM$8270,Sheet4!$C$2:$C$8270,Sheet3!$B10,Sheet4!$D$2:$D$8270,Sheet3!BG$3,Sheet4!$E$2:$E$8270,Sheet3!BG$4,Sheet4!$A$2:$A$8270,Sheet3!$B$1,Sheet4!$B$2:$B$8270,Sheet3!$A$3) -> 0 | BH10: =+SUMIFS(Sheet4!$DM$2:$DM$8270,Sheet4!$C$2:$C$8270,Sheet3!$B10,Sheet4!$D$2:$D$8270,Sheet3!BH$3,Sheet4!$E$2:$E$8270,Sheet3!BH$4,Sheet4!$A$2:$A$8270,Sheet3!$B$1,Sheet4!$B$2:$B$8270,Sheet3!$A$3) -> 12332.25 | BI10: =+SUMIFS(Sheet4!$DM$2:$DM$8270,Sheet4!$C$2:$C$8270,Sheet3!$B10,Sheet4!$D$2:$D$8270,Sheet3!BI$3,Sheet4!$E$2:$E$8270,Sheet3!BI$4,Sheet4!$A$2:$A$8270,Sheet3!$B$1,Sheet4!$B$2:$B$8270,Sheet3!$A$3) -> 1407 | BJ10: =+SUMIFS(Sheet4!$DM$2:$DM$8270,Sheet4!$C$2:$C$8270,Sheet3!$B10,Sheet4!$D$2:$D$8270,Sheet3!BJ$3,Sheet4!$E$2:$E$8270,Sheet3!BJ$4,Sheet4!$A$2:$A$8270,Sheet3!$B$1,Sheet4!$B$2:$B$8270,Sheet3!$A$3) -> 0 | BK10: =+SUMIFS(Sheet4!$DM$2:$DM$8270,Sheet4!$C$2:$C$8270,Sheet3!$B10,Sheet4!$D$2:$D$8270,Sheet3!BK$3,Sheet4!$E$2:$E$8270,Sheet3!BK$4,Sheet4!$A$2:$A$8270,Sheet3!$B$1,Sheet4!$B$2:$B$8270,Sheet3!$A$3) -> 0 | BL10: =+SUMIFS(Sheet4!$DM$2:$DM$8270,Sheet4!$C$2:$C$8270,Sheet3!$B10,Sheet4!$D$2:$D$8270,Sheet3!BL$3,Sheet4!$E$2:$E$8270,Sheet3!BL$4,Sheet4!$A$2:$A$8270,Sheet3!$B$1,Sheet4!$B$2:$B$8270,Sheet3!$A$3) -> 0 | BM10: =+SUMIFS(Sheet4!$DM$2:$DM$8270,Sheet4!$C$2:$C$8270,Sheet3!$B10,Sheet4!$D$2:$D$8270,Sheet3!BM$3,Sheet4!$E$2:$E$8270,Sheet3!BM$4,Sheet4!$A$2:$A$8270,Sheet3!$B$1,Sheet4!$B$2:$B$8270,Sheet3!$A$3) -> 11664.8 | BN10: =+SUMIFS(Sheet4!$DM$2:$DM$8270,Sheet4!$C$2:$C$8270,Sheet3!$B10,Sheet4!$D$2:$D$8270,Sheet3!BN$3,Sheet4!$E$2:$E$8270,Sheet3!BN$4,Sheet4!$A$2:$A$8270,Sheet3!$B$1,Sheet4!$B$2:$B$8270,Sheet3!$A$3) -> 14802.55 | BO10: =+SUMIFS(Sheet4!$DM$2:$DM$8270,Sheet4!$C$2:$C$8270,Sheet3!$B10,Sheet4!$D$2:$D$8270,Sheet3!BO$3,Sheet4!$E$2:$E$8270,Sheet3!BO$4,Sheet4!$A$2:$A$8270,Sheet3!$B$1,Sheet4!$B$2:$B$8270,Sheet3!$A$3) -> 0 | BP10: =+SUMIFS(Sheet4!$DM$2:$DM$8270,Sheet4!$C$2:$C$8270,Sheet3!$B10,Sheet4!$D$2:$D$8270,Sheet3!BP$3,Sheet4!$E$2:$E$8270,Sheet3!BP$4,Sheet4!$A$2:$A$8270,Sheet3!$B$1,Sheet4!$B$2:$B$8270,Sheet3!$A$3) -> 0 | BQ10: =+SUMIFS(Sheet4!$DM$2:$DM$8270,Sheet4!$C$2:$C$8270,Sheet3!$B10,Sheet4!$D$2:$D$8270,Sheet3!BQ$3,Sheet4!$E$2:$E$8270,Sheet3!BQ$4,Sheet4!$A$2:$A$8270,Sheet3!$B$1,Sheet4!$B$2:$B$8270,Sheet3!$A$3) -> 0 | BR10: =+SUMIFS(Sheet4!$DM$2:$DM$8270,Sheet4!$C$2:$C$8270,Sheet3!$B10,Sheet4!$D$2:$D$8270,Sheet3!BR$3,Sheet4!$E$2:$E$8270,Sheet3!BR$4,Sheet4!$A$2:$A$8270,Sheet3!$B$1,Sheet4!$B$2:$B$8270,Sheet3!$A$3) -> 6599.28 | BS10: =+SUMIFS(Sheet4!$DM$2:$DM$8270,Sheet4!$C$2:$C$8270,Sheet3!$B10,Sheet4!$D$2:$D$8270,Sheet3!BS$3,Sheet4!$E$2:$E$8270,Sheet3!BS$4,Sheet4!$A$2:$A$8270,Sheet3!$B$1,Sheet4!$B$2:$B$8270,Sheet3!$A$3) -> 19775.35 | BT10: =+SUMIFS(Sheet4!$DM$2:$DM$8270,Sheet4!$C$2:$C$8270,Sheet3!$B10,Sheet4!$D$2:$D$8270,Sheet3!BT$3,Sheet4!$E$2:$E$8270,Sheet3!BT$4,Sheet4!$A$2:$A$8270,Sheet3!$B$1,Sheet4!$B$2:$B$8270,Sheet3!$A$3) -> 0 | BU10: =+SUMIFS(Sheet4!$DM$2:$DM$8270,Sheet4!$C$2:$C$8270,Sheet3!$B10,Sheet4!$D$2:$D$8270,Sheet3!BU$3,Sheet4!$E$2:$E$8270,Sheet3!BU$4,Sheet4!$A$2:$A$8270,Sheet3!$B$1,Sheet4!$B$2:$B$8270,Sheet3!$A$3) -> 0 | BV10: =+SUMIFS(Sheet4!$DM$2:$DM$8270,Sheet4!$C$2:$C$8270,Sheet3!$B10,Sheet4!$D$2:$D$8270,Sheet3!BV$3,Sheet4!$E$2:$E$8270,Sheet3!BV$4,Sheet4!$A$2:$A$8270,Sheet3!$B$1,Sheet4!$B$2:$B$8270,Sheet3!$A$3) -> 0 | BW10: =+SUMIFS(Sheet4!$DM$2:$DM$8270,Sheet4!$C$2:$C$8270,Sheet3!$B10,Sheet4!$D$2:$D$8270,Sheet3!BW$3,Sheet4!$E$2:$E$8270,Sheet3!BW$4,Sheet4!$A$2:$A$8270,Sheet3!$B$1,Sheet4!$B$2:$B$8270,Sheet3!$A$3) -> 0 | BX10: =+SUMIFS(Sheet4!$DM$2:$DM$8270,Sheet4!$C$2:$C$8270,Sheet3!$B10,Sheet4!$D$2:$D$8270,Sheet3!BX$3,Sheet4!$E$2:$E$8270,Sheet3!BX$4,Sheet4!$A$2:$A$8270,Sheet3!$B$1,Sheet4!$B$2:$B$8270,Sheet3!$A$3) -> 0 | BY10: =+SUMIFS(Sheet4!$DM$2:$DM$8270,Sheet4!$C$2:$C$8270,Sheet3!$B10,Sheet4!$D$2:$D$8270,Sheet3!BY$3,Sheet4!$E$2:$E$8270,Sheet3!BY$4,Sheet4!$A$2:$A$8270,Sheet3!$B$1,Sheet4!$B$2:$B$8270,Sheet3!$A$3) -> 0 | BZ10: =+SUMIFS(Sheet4!$DM$2:$DM$8270,Sheet4!$C$2:$C$8270,Sheet3!$B10,Sheet4!$D$2:$D$8270,Sheet3!BZ$3,Sheet4!$E$2:$E$8270,Sheet3!BZ$4,Sheet4!$A$2:$A$8270,Sheet3!$B$1,Sheet4!$B$2:$B$8270,Sheet3!$A$3) -> 0 | CA10: =+SUMIFS(Sheet4!$DM$2:$DM$8270,Sheet4!$C$2:$C$8270,Sheet3!$B10,Sheet4!$D$2:$D$8270,Sheet3!CA$3,Sheet4!$E$2:$E$8270,Sheet3!CA$4,Sheet4!$A$2:$A$8270,Sheet3!$B$1,Sheet4!$B$2:$B$8270,Sheet3!$A$3) -> 0 | CB10: =+SUMIFS(Sheet4!$DM$2:$DM$8270,Sheet4!$C$2:$C$8270,Sheet3!$B10,Sheet4!$D$2:$D$8270,Sheet3!CB$3,Sheet4!$E$2:$E$8270,Sheet3!CB$4,Sheet4!$A$2:$A$8270,Sheet3!$B$1,Sheet4!$B$2:$B$8270,Sheet3!$A$3) -> 470.4 | CC10: =+SUMIFS(Sheet4!$DM$2:$DM$8270,Sheet4!$C$2:$C$8270,Sheet3!$B10,Sheet4!$D$2:$D$8270,Sheet3!CC$3,Sheet4!$E$2:$E$8270,Sheet3!CC$4,Sheet4!$A$2:$A$8270,Sheet3!$B$1,Sheet4!$B$2:$B$8270,Sheet3!$A$3) -> 0 | CD10: =+SUMIFS(Sheet4!$DM$2:$DM$8270,Sheet4!$C$2:$C$8270,Sheet3!$B10,Sheet4!$D$2:$D$8270,Sheet3!CD$3,Sheet4!$E$2:$E$8270,Sheet3!CD$4,Sheet4!$A$2:$A$8270,Sheet3!$B$1,Sheet4!$B$2:$B$8270,Sheet3!$A$3) -> 0 | CE10: =+SUMIFS(Sheet4!$DM$2:$DM$8270,Sheet4!$C$2:$C$8270,Sheet3!$B10,Sheet4!$D$2:$D$8270,Sheet3!CE$3,Sheet4!$E$2:$E$8270,Sheet3!CE$4,Sheet4!$A$2:$A$8270,Sheet3!$B$1,Sheet4!$B$2:$B$8270,Sheet3!$A$3) -> 0 | CF10: =+SUMIFS(Sheet4!$DM$2:$DM$8270,Sheet4!$C$2:$C$8270,Sheet3!$B10,Sheet4!$D$2:$D$8270,Sheet3!CF$3,Sheet4!$E$2:$E$8270,Sheet3!CF$4,Sheet4!$A$2:$A$8270,Sheet3!$B$1,Sheet4!$B$2:$B$8270,Sheet3!$A$3) -> 0 | CG10: =+SUMIFS(Sheet4!$DM$2:$DM$8270,Sheet4!$C$2:$C$8270,Sheet3!$B10,Sheet4!$D$2:$D$8270,Sheet3!CG$3,Sheet4!$E$2:$E$8270,Sheet3!CG$4,Sheet4!$A$2:$A$8270,Sheet3!$B$1,Sheet4!$B$2:$B$8270,Sheet3!$A$3) -> 0 | CH10: =+SUMIFS(Sheet4!$DM$2:$DM$8270,Sheet4!$C$2:$C$8270,Sheet3!$B10,Sheet4!$D$2:$D$8270,Sheet3!CH$3,Sheet4!$E$2:$E$8270,Sheet3!CH$4,Sheet4!$A$2:$A$8270,Sheet3!$B$1,Sheet4!$B$2:$B$8270,Sheet3!$A$3) -> 0 | CI10: =+SUMIFS(Sheet4!$DM$2:$DM$8270,Sheet4!$C$2:$C$8270,Sheet3!$B10,Sheet4!$D$2:$D$8270,Sheet3!CI$3,Sheet4!$E$2:$E$8270,Sheet3!CI$4,Sheet4!$A$2:$A$8270,Sheet3!$B$1,Sheet4!$B$2:$B$8270,Sheet3!$A$3) -> 0 | CJ10: =+SUMIFS(Sheet4!$DM$2:$DM$8270,Sheet4!$C$2:$C$8270,Sheet3!$B10,Sheet4!$D$2:$D$8270,Sheet3!CJ$3,Sheet4!$E$2:$E$8270,Sheet3!CJ$4,Sheet4!$A$2:$A$8270,Sheet3!$B$1,Sheet4!$B$2:$B$8270,Sheet3!$A$3) -> 0 | CK10: =+SUMIFS(Sheet4!$DM$2:$DM$8270,Sheet4!$C$2:$C$8270,Sheet3!$B10,Sheet4!$D$2:$D$8270,Sheet3!CK$3,Sheet4!$E$2:$E$8270,Sheet3!CK$4,Sheet4!$A$2:$A$8270,Sheet3!$B$1,Sheet4!$B$2:$B$8270,Sheet3!$A$3) -> 0 | CL10: =+SUMIFS(Sheet4!$DM$2:$DM$8270,Sheet4!$C$2:$C$8270,Sheet3!$B10,Sheet4!$D$2:$D$8270,Sheet3!CL$3,Sheet4!$E$2:$E$8270,Sheet3!CL$4,Sheet4!$A$2:$A$8270,Sheet3!$B$1,Sheet4!$B$2:$B$8270,Sheet3!$A$3) -> 0 | CM10: =+SUMIFS(Sheet4!$DM$2:$DM$8270,Sheet4!$C$2:$C$8270,Sheet3!$B10,Sheet4!$D$2:$D$8270,Sheet3!CM$3,Sheet4!$E$2:$E$8270,Sheet3!CM$4,Sheet4!$A$2:$A$8270,Sheet3!$B$1,Sheet4!$B$2:$B$8270,Sheet3!$A$3) -> 0 | CN10: =+SUMIFS(Sheet4!$DM$2:$DM$8270,Sheet4!$C$2:$C$8270,Sheet3!$B10,Sheet4!$D$2:$D$8270,Sheet3!CN$3,Sheet4!$E$2:$E$8270,Sheet3!CN$4,Sheet4!$A$2:$A$8270,Sheet3!$B$1,Sheet4!$B$2:$B$8270,Sheet3!$A$3) -> 0 | CO10: =+SUMIFS(Sheet4!$DM$2:$DM$8270,Sheet4!$C$2:$C$8270,Sheet3!$B10,Sheet4!$D$2:$D$8270,Sheet3!CO$3,Sheet4!$E$2:$E$8270,Sheet3!CO$4,Sheet4!$A$2:$A$8270,Sheet3!$B$1,Sheet4!$B$2:$B$8270,Sheet3!$A$3) -> 0 | CP10: =+IF(SUMIFS(Sheet4!$DN$2:$DN$8270,Sheet4!$C$2:$C$8270,Sheet3!$B10,Sheet4!$D$2:$D$8270,Sheet3!CP$3,Sheet4!$A$2:$A$8270,Sheet3!$B$1,Sheet4!$B$2:$B$8270,Sheet3!$A$3)<3,0,SUMIFS(Sheet4!$DN$2:$DN$8270,Sheet4!$C$2:$C$8270,Sheet3!$B10,Sheet4!$D$2:$D$8270,Sheet3!CP$3,Sheet4!$A$2:$A$8270,Sheet3!$B$1,Sheet4!$B$2:$B$8270,Sheet3!$A$3)) -> 0 | CQ10: =+IF(SUMIFS(Sheet4!$DN$2:$DN$8270,Sheet4!$C$2:$C$8270,Sheet3!$B10,Sheet4!$D$2:$D$8270,Sheet3!CQ$3,Sheet4!$A$2:$A$8270,Sheet3!$B$1,Sheet4!$B$2:$B$8270,Sheet3!$A$3)<3,0,SUMIFS(Sheet4!$DN$2:$DN$8270,Sheet4!$C$2:$C$8270,Sheet3!$B10,Sheet4!$D$2:$D$8270,Sheet3!CQ$3,Sheet4!$A$2:$A$8270,Sheet3!$B$1,Sheet4!$B$2:$B$8270,Sheet3!$A$3)) -> 0 | CR10: =+IF(SUMIFS(Sheet4!$DN$2:$DN$8270,Sheet4!$C$2:$C$8270,Sheet3!$B10,Sheet4!$D$2:$D$8270,Sheet3!CR$3,Sheet4!$A$2:$A$8270,Sheet3!$B$1,Sheet4!$B$2:$B$8270,Sheet3!$A$3)<3,0,SUMIFS(Sheet4!$DN$2:$DN$8270,Sheet4!$C$2:$C$8270,Sheet3!$B10,Sheet4!$D$2:$D$8270,Sheet3!CR$3,Sheet4!$A$2:$A$8270,Sheet3!$B$1,Sheet4!$B$2:$B$8270,Sheet3!$A$3)) -> 0 | CS10: =+IF(SUMIFS(Sheet4!$DN$2:$DN$8270,Sheet4!$C$2:$C$8270,Sheet3!$B10,Sheet4!$D$2:$D$8270,Sheet3!CS$3,Sheet4!$A$2:$A$8270,Sheet3!$B$1,Sheet4!$B$2:$B$8270,Sheet3!$A$3)<3,0,SUMIFS(Sheet4!$DN$2:$DN$8270,Sheet4!$C$2:$C$8270,Sheet3!$B10,Sheet4!$D$2:$D$8270,Sheet3!CS$3,Sheet4!$A$2:$A$8270,Sheet3!$B$1,Sheet4!$B$2:$B$8270,Sheet3!$A$3)) -> 0 | CT10: =+IF(SUMIFS(Sheet4!$DN$2:$DN$8270,Sheet4!$C$2:$C$8270,Sheet3!$B10,Sheet4!$D$2:$D$8270,Sheet3!CT$3,Sheet4!$A$2:$A$8270,Sheet3!$B$1,Sheet4!$B$2:$B$8270,Sheet3!$A$3)<3,0,SUMIFS(Sheet4!$DN$2:$DN$8270,Sheet4!$C$2:$C$8270,Sheet3!$B10,Sheet4!$D$2:$D$8270,Sheet3!CT$3,Sheet4!$A$2:$A$8270,Sheet3!$B$1,Sheet4!$B$2:$B$8270,Sheet3!$A$3)) -> 0 | CU10: =+IF(SUMIFS(Sheet4!$DN$2:$DN$8270,Sheet4!$C$2:$C$8270,Sheet3!$B10,Sheet4!$D$2:$D$8270,Sheet3!CU$3,Sheet4!$A$2:$A$8270,Sheet3!$B$1,Sheet4!$B$2:$B$8270,Sheet3!$A$3)<3,0,SUMIFS(Sheet4!$DN$2:$DN$8270,Sheet4!$C$2:$C$8270,Sheet3!$B10,Sheet4!$D$2:$D$8270,Sheet3!CU$3,Sheet4!$A$2:$A$8270,Sheet3!$B$1,Sheet4!$B$2:$B$8270,Sheet3!$A$3)) -> 0 | CV10: =+IF(SUMIFS(Sheet4!$DN$2:$DN$8270,Sheet4!$C$2:$C$8270,Sheet3!$B10,Sheet4!$D$2:$D$8270,Sheet3!CV$3,Sheet4!$A$2:$A$8270,Sheet3!$B$1,Sheet4!$B$2:$B$8270,Sheet3!$A$3)<3,0,SUMIFS(Sheet4!$DN$2:$DN$8270,Sheet4!$C$2:$C$8270,Sheet3!$B10,Sheet4!$D$2:$D$8270,Sheet3!CV$3,Sheet4!$A$2:$A$8270,Sheet3!$B$1,Sheet4!$B$2:$B$8270,Sheet3!$A$3)) -> 0 | CW10: =+IF(SUMIFS(Sheet4!$DN$2:$DN$8270,Sheet4!$C$2:$C$8270,Sheet3!$B10,Sheet4!$D$2:$D$8270,Sheet3!CW$3,Sheet4!$A$2:$A$8270,Sheet3!$B$1,Sheet4!$B$2:$B$8270,Sheet3!$A$3)<3,0,SUMIFS(Sheet4!$DN$2:$DN$8270,Sheet4!$C$2:$C$8270,Sheet3!$B10,Sheet4!$D$2:$D$8270,Sheet3!CW$3,Sheet4!$A$2:$A$8270,Sheet3!$B$1,Sheet4!$B$2:$B$8270,Sheet3!$A$3)) -> 473.2 | CX10: =+IF(SUMIFS(Sheet4!$DN$2:$DN$8270,Sheet4!$C$2:$C$8270,Sheet3!$B10,Sheet4!$D$2:$D$8270,Sheet3!CX$3,Sheet4!$A$2:$A$8270,Sheet3!$B$1,Sheet4!$B$2:$B$8270,Sheet3!$A$3)<3,0,SUMIFS(Sheet4!$DN$2:$DN$8270,Sheet4!$C$2:$C$8270,Sheet3!$B10,Sheet4!$D$2:$D$8270,Sheet3!CX$3,Sheet4!$A$2:$A$8270,Sheet3!$B$1,Sheet4!$B$2:$B$8270,Sheet3!$A$3)) -> 0 | CY10: =+IF(SUMIFS(Sheet4!$DN$2:$DN$8270,Sheet4!$C$2:$C$8270,Sheet3!$B10,Sheet4!$D$2:$D$8270,Sheet3!CY$3,Sheet4!$A$2:$A$8270,Sheet3!$B$1,Sheet4!$B$2:$B$8270,Sheet3!$A$3)<3,0,SUMIFS(Sheet4!$DN$2:$DN$8270,Sheet4!$C$2:$C$8270,Sheet3!$B10,Sheet4!$D$2:$D$8270,Sheet3!CY$3,Sheet4!$A$2:$A$8270,Sheet3!$B$1,Sheet4!$B$2:$B$8270,Sheet3!$A$3)) -> 0 | CZ10: =+IF(SUMIFS(Sheet4!$DN$2:$DN$8270,Sheet4!$C$2:$C$8270,Sheet3!$B10,Sheet4!$D$2:$D$8270,Sheet3!CZ$3,Sheet4!$A$2:$A$8270,Sheet3!$B$1,Sheet4!$B$2:$B$8270,Sheet3!$A$3)<3,0,SUMIFS(Sheet4!$DN$2:$DN$8270,Sheet4!$C$2:$C$8270,Sheet3!$B10,Sheet4!$D$2:$D$8270,Sheet3!CZ$3,Sheet4!$A$2:$A$8270,Sheet3!$B$1,Sheet4!$B$2:$B$8270,Sheet3!$A$3)) -> 0 | DA10: =+IF(SUMIFS(Sheet4!$DN$2:$DN$8270,Sheet4!$C$2:$C$8270,Sheet3!$B10,Sheet4!$D$2:$D$8270,Sheet3!DA$3,Sheet4!$A$2:$A$8270,Sheet3!$B$1,Sheet4!$B$2:$B$8270,Sheet3!$A$3)<3,0,SUMIFS(Sheet4!$DN$2:$DN$8270,Sheet4!$C$2:$C$8270,Sheet3!$B10,Sheet4!$D$2:$D$8270,Sheet3!DA$3,Sheet4!$A$2:$A$8270,Sheet3!$B$1,Sheet4!$B$2:$B$8270,Sheet3!$A$3)) -> 13739.25 | DB10: =+IF(SUMIFS(Sheet4!$DN$2:$DN$8270,Sheet4!$C$2:$C$8270,Sheet3!$B10,Sheet4!$D$2:$D$8270,Sheet3!DB$3,Sheet4!$A$2:$A$8270,Sheet3!$B$1,Sheet4!$B$2:$B$8270,Sheet3!$A$3)<3,0,SUMIFS(Sheet4!$DN$2:$DN$8270,Sheet4!$C$2:$C$8270,Sheet3!$B10,Sheet4!$D$2:$D$8270,Sheet3!DB$3,Sheet4!$A$2:$A$8270,Sheet3!$B$1,Sheet4!$B$2:$B$8270,Sheet3!$A$3)) -> 26467.35 | DC10: =+IF(SUMIFS(Sheet4!$DN$2:$DN$8270,Sheet4!$C$2:$C$8270,Sheet3!$B10,Sheet4!$D$2:$D$8270,Sheet3!DC$3,Sheet4!$A$2:$A$8270,Sheet3!$B$1,Sheet4!$B$2:$B$8270,Sheet3!$A$3)<3,0,SUMIFS(Sheet4!$DN$2:$DN$8270,Sheet4!$C$2:$C$8270,Sheet3!$B10,Sheet4!$D$2:$D$8270,Sheet3!DC$3,Sheet4!$A$2:$A$8270,Sheet3!$B$1,Sheet4!$B$2:$B$8270,Sheet3!$A$3)) -> 26374.63 | DD10: =+IF(SUMIFS(Sheet4!$DN$2:$DN$8270,Sheet4!$C$2:$C$8270,Sheet3!$B10,Sheet4!$D$2:$D$8270,Sheet3!DD$3,Sheet4!$A$2:$A$8270,Sheet3!$B$1,Sheet4!$B$2:$B$8270,Sheet3!$A$3)<3,0,SUMIFS(Sheet4!$DN$2:$DN$8270,Sheet4!$C$2:$C$8270,Sheet3!$B10,Sheet4!$D$2:$D$8270,Sheet3!DD$3,Sheet4!$A$2:$A$8270,Sheet3!$B$1,Sheet4!$B$2:$B$8270,Sheet3!$A$3)) -> 0 | DE10: =+IF(SUMIFS(Sheet4!$DN$2:$DN$8270,Sheet4!$C$2:$C$8270,Sheet3!$B10,Sheet4!$D$2:$D$8270,Sheet3!DE$3,Sheet4!$A$2:$A$8270,Sheet3!$B$1,Sheet4!$B$2:$B$8270,Sheet3!$A$3)<3,0,SUMIFS(Sheet4!$DN$2:$DN$8270,Sheet4!$C$2:$C$8270,Sheet3!$B10,Sheet4!$D$2:$D$8270,Sheet3!DE$3,Sheet4!$A$2:$A$8270,Sheet3!$B$1,Sheet4!$B$2:$B$8270,Sheet3!$A$3)) -> 470.4 | DF10: =+IF(SUMIFS(Sheet4!$DN$2:$DN$8270,Sheet4!$C$2:$C$8270,Sheet3!$B10,Sheet4!$D$2:$D$8270,Sheet3!DF$3,Sheet4!$A$2:$A$8270,Sheet3!$B$1,Sheet4!$B$2:$B$8270,Sheet3!$A$3)<3,0,SUMIFS(Sheet4!$DN$2:$DN$8270,Sheet4!$C$2:$C$8270,Sheet3!$B10,Sheet4!$D$2:$D$8270,Sheet3!DF$3,Sheet4!$A$2:$A$8270,Sheet3!$B$1,Sheet4!$B$2:$B$8270,Sheet3!$A$3)) -> 0 | DG10: =+IF(SUMIFS(Sheet4!$DN$2:$DN$8270,Sheet4!$C$2:$C$8270,Sheet3!$B10,Sheet4!$D$2:$D$8270,Sheet3!DG$3,Sheet4!$A$2:$A$8270,Sheet3!$B$1,Sheet4!$B$2:$B$8270,Sheet3!$A$3)<3,0,SUMIFS(Sheet4!$DN$2:$DN$8270,Sheet4!$C$2:$C$8270,Sheet3!$B10,Sheet4!$D$2:$D$8270,Sheet3!DG$3,Sheet4!$A$2:$A$8270,Sheet3!$B$1,Sheet4!$B$2:$B$8270,Sheet3!$A$3)) -> 0 | DH10: =+IF(SUMIFS(Sheet4!$DN$2:$DN$8270,Sheet4!$C$2:$C$8270,Sheet3!$B10,Sheet4!$E$2:$E$8270,Sheet3!DH$4,Sheet4!$A$2:$A$8270,Sheet3!$B$1,Sheet4!$B$2:$B$8270,Sheet3!$A$3)<3,0,SUMIFS(Sheet4!$DN$2:$DN$8270,Sheet4!$C$2:$C$8270,Sheet3!$B10,Sheet4!$E$2:$E$8270,Sheet3!DH$4,Sheet4!$A$2:$A$8270,Sheet3!$B$1,Sheet4!$B$2:$B$8270,Sheet3!$A$3)) -> 0 | DI10: =+IF(SUMIFS(Sheet4!$DN$2:$DN$8270,Sheet4!$C$2:$C$8270,Sheet3!$B10,Sheet4!$E$2:$E$8270,Sheet3!DI$4,Sheet4!$A$2:$A$8270,Sheet3!$B$1,Sheet4!$B$2:$B$8270,Sheet3!$A$3)<3,0,SUMIFS(Sheet4!$DN$2:$DN$8270,Sheet4!$C$2:$C$8270,Sheet3!$B10,Sheet4!$E$2:$E$8270,Sheet3!DI$4,Sheet4!$A$2:$A$8270,Sheet3!$B$1,Sheet4!$B$2:$B$8270,Sheet3!$A$3)) -> 31539.93 | DJ10: =+IF(SUMIFS(Sheet4!$DN$2:$DN$8270,Sheet4!$C$2:$C$8270,Sheet3!$B10,Sheet4!$E$2:$E$8270,Sheet3!DJ$4,Sheet4!$A$2:$A$8270,Sheet3!$B$1,Sheet4!$B$2:$B$8270,Sheet3!$A$3)<3,0,SUMIFS(Sheet4!$DN$2:$DN$8270,Sheet4!$C$2:$C$8270,Sheet3!$B10,Sheet4!$E$2:$E$8270,Sheet3!DJ$4,Sheet4!$A$2:$A$8270,Sheet3!$B$1,Sheet4!$B$2:$B$8270,Sheet3!$A$3)) -> 35984.9 | DK10: =+IF(SUMIFS(Sheet4!$DN$2:$DN$8270,Sheet4!$C$2:$C$8270,Sheet3!$B10,Sheet4!$E$2:$E$8270,Sheet3!DK$4,Sheet4!$A$2:$A$8270,Sheet3!$B$1,Sheet4!$B$2:$B$8270,Sheet3!$A$3)<3,0,SUMIFS(Sheet4!$DN$2:$DN$8270,Sheet4!$C$2:$C$8270,Sheet3!$B10,Sheet4!$E$2:$E$8270,Sheet3!DK$4,Sheet4!$A$2:$A$8270,Sheet3!$B$1,Sheet4!$B$2:$B$8270,Sheet3!$A$3)) -> 0 | DL10: =+IF(SUMIFS(Sheet4!$DN$2:$DN$8270,Sheet4!$C$2:$C$8270,Sheet3!$B10,Sheet4!$E$2:$E$8270,Sheet3!DL$4,Sheet4!$A$2:$A$8270,Sheet3!$B$1,Sheet4!$B$2:$B$8270,Sheet3!$A$3)<3,0,SUMIFS(Sheet4!$DN$2:$DN$8270,Sheet4!$C$2:$C$8270,Sheet3!$B10,Sheet4!$E$2:$E$8270,Sheet3!DL$4,Sheet4!$A$2:$A$8270,Sheet3!$B$1,Sheet4!$B$2:$B$8270,Sheet3!$A$3)) -> 0
A11: 1 | B11: 11A | C11: Área Metropolitana do Porto | D11: =+SUMIFS(Sheet4!$DM$2:$DM$8270,Sheet4!$C$2:$C$8270,Sheet3!$B11,Sheet4!$D$2:$D$8270,Sheet3!D$3,Sheet4!$E$2:$E$8270,Sheet3!D$4,Sheet4!$A$2:$A$8270,Sheet3!$B$1,Sheet4!$B$2:$B$8270,Sheet3!$A$3) -> 0 | E11: =+SUMIFS(Sheet4!$DM$2:$DM$8270,Sheet4!$C$2:$C$8270,Sheet3!$B11,Sheet4!$D$2:$D$8270,Sheet3!E$3,Sheet4!$E$2:$E$8270,Sheet3!E$4,Sheet4!$A$2:$A$8270,Sheet3!$B$1,Sheet4!$B$2:$B$8270,Sheet3!$A$3) -> 0 | F11: =+SUMIFS(Sheet4!$DM$2:$DM$8270,Sheet4!$C$2:$C$8270,Sheet3!$B11,Sheet4!$D$2:$D$8270,Sheet3!F$3,Sheet4!$E$2:$E$8270,Sheet3!F$4,Sheet4!$A$2:$A$8270,Sheet3!$B$1,Sheet4!$B$2:$B$8270,Sheet3!$A$3) -> 0 | G11: =+SUMIFS(Sheet4!$DM$2:$DM$8270,Sheet4!$C$2:$C$8270,Sheet3!$B11,Sheet4!$D$2:$D$8270,Sheet3!G$3,Sheet4!$E$2:$E$8270,Sheet3!G$4,Sheet4!$A$2:$A$8270,Sheet3!$B$1,Sheet4!$B$2:$B$8270,Sheet3!$A$3) -> 0 | H11: =+SUMIFS(Sheet4!$DM$2:$DM$8270,Sheet4!$C$2:$C$8270,Sheet3!$B11,Sheet4!$D$2:$D$8270,Sheet3!H$3,Sheet4!$E$2:$E$8270,Sheet3!H$4,Sheet4!$A$2:$A$8270,Sheet3!$B$1,Sheet4!$B$2:$B$8270,Sheet3!$A$3) -> 0 | I11: =+SUMIFS(Sheet4!$DM$2:$DM$8270,Sheet4!$C$2:$C$8270,Sheet3!$B11,Sheet4!$D$2:$D$8270,Sheet3!I$3,Sheet4!$E$2:$E$8270,Sheet3!I$4,Sheet4!$A$2:$A$8270,Sheet3!$B$1,Sheet4!$B$2:$B$8270,Sheet3!$A$3) -> 0 | J11: =+SUMIFS(Sheet4!$DM$2:$DM$8270,Sheet4!$C$2:$C$8270,Sheet3!$B11,Sheet4!$D$2:$D$8270,Sheet3!J$3,Sheet4!$E$2:$E$8270,Sheet3!J$4,Sheet4!$A$2:$A$8270,Sheet3!$B$1,Sheet4!$B$2:$B$8270,Sheet3!$A$3) -> 0 | K11: =+SUMIFS(Sheet4!$DM$2:$DM$8270,Sheet4!$C$2:$C$8270,Sheet3!$B11,Sheet4!$D$2:$D$8270,Sheet3!K$3,Sheet4!$E$2:$E$8270,Sheet3!K$4,Sheet4!$A$2:$A$8270,Sheet3!$B$1,Sheet4!$B$2:$B$8270,Sheet3!$A$3) -> 0 | L11: =+SUMIFS(Sheet4!$DM$2:$DM$8270,Sheet4!$C$2:$C$8270,Sheet3!$B11,Sheet4!$D$2:$D$8270,Sheet3!L$3,Sheet4!$E$2:$E$8270,Sheet3!L$4,Sheet4!$A$2:$A$8270,Sheet3!$B$1,Sheet4!$B$2:$B$8270,Sheet3!$A$3) -> 0 | M11: =+SUMIFS(Sheet4!$DM$2:$DM$8270,Sheet4!$C$2:$C$8270,Sheet3!$B11,Sheet4!$D$2:$D$8270,Sheet3!M$3,Sheet4!$E$2:$E$8270,Sheet3!M$4,Sheet4!$A$2:$A$8270,Sheet3!$B$1,Sheet4!$B$2:$B$8270,Sheet3!$A$3) -> 0 | N11: =+SUMIFS(Sheet4!$DM$2:$DM$8270,Sheet4!$C$2:$C$8270,Sheet3!$B11,Sheet4!$D$2:$D$8270,Sheet3!N$3,Sheet4!$E$2:$E$8270,Sheet3!N$4,Sheet4!$A$2:$A$8270,Sheet3!$B$1,Sheet4!$B$2:$B$8270,Sheet3!$A$3) -> 0 | O11: =+SUMIFS(Sheet4!$DM$2:$DM$8270,Sheet4!$C$2:$C$8270,Sheet3!$B11,Sheet4!$D$2:$D$8270,Sheet3!O$3,Sheet4!$E$2:$E$8270,Sheet3!O$4,Sheet4!$A$2:$A$8270,Sheet3!$B$1,Sheet4!$B$2:$B$8270,Sheet3!$A$3) -> 0 | P11: =+SUMIFS(Sheet4!$DM$2:$DM$8270,Sheet4!$C$2:$C$8270,Sheet3!$B11,Sheet4!$D$2:$D$8270,Sheet3!P$3,Sheet4!$E$2:$E$8270,Sheet3!P$4,Sheet4!$A$2:$A$8270,Sheet3!$B$1,Sheet4!$B$2:$B$8270,Sheet3!$A$3) -> 0 | Q11: =+SUMIFS(Sheet4!$DM$2:$DM$8270,Sheet4!$C$2:$C$8270,Sheet3!$B11,Sheet4!$D$2:$D$8270,Sheet3!Q$3,Sheet4!$E$2:$E$8270,Sheet3!Q$4,Sheet4!$A$2:$A$8270,Sheet3!$B$1,Sheet4!$B$2:$B$8270,Sheet3!$A$3) -> 0 | R11: =+SUMIFS(Sheet4!$DM$2:$DM$8270,Sheet4!$C$2:$C$8270,Sheet3!$B11,Sheet4!$D$2:$D$8270,Sheet3!R$3,Sheet4!$E$2:$E$8270,Sheet3!R$4,Sheet4!$A$2:$A$8270,Sheet3!$B$1,Sheet4!$B$2:$B$8270,Sheet3!$A$3) -> 0 | S11: =+SUMIFS(Sheet4!$DM$2:$DM$8270,Sheet4!$C$2:$C$8270,Sheet3!$B11,Sheet4!$D$2:$D$8270,Sheet3!S$3,Sheet4!$E$2:$E$8270,Sheet3!S$4,Sheet4!$A$2:$A$8270,Sheet3!$B$1,Sheet4!$B$2:$B$8270,Sheet3!$A$3) -> 0 | T11: =+SUMIFS(Sheet4!$DM$2:$DM$8270,Sheet4!$C$2:$C$8270,Sheet3!$B11,Sheet4!$D$2:$D$8270,Sheet3!T$3,Sheet4!$E$2:$E$8270,Sheet3!T$4,Sheet4!$A$2:$A$8270,Sheet3!$B$1,Sheet4!$B$2:$B$8270,Sheet3!$A$3) -> 0 | U11: =+SUMIFS(Sheet4!$DM$2:$DM$8270,Sheet4!$C$2:$C$8270,Sheet3!$B11,Sheet4!$D$2:$D$8270,Sheet3!U$3,Sheet4!$E$2:$E$8270,Sheet3!U$4,Sheet4!$A$2:$A$8270,Sheet3!$B$1,Sheet4!$B$2:$B$8270,Sheet3!$A$3) -> 0 | V11: =+SUMIFS(Sheet4!$DM$2:$DM$8270,Sheet4!$C$2:$C$8270,Sheet3!$B11,Sheet4!$D$2:$D$8270,Sheet3!V$3,Sheet4!$E$2:$E$8270,Sheet3!V$4,Sheet4!$A$2:$A$8270,Sheet3!$B$1,Sheet4!$B$2:$B$8270,Sheet3!$A$3) -> 0 | W11: =+SUMIFS(Sheet4!$DM$2:$DM$8270,Sheet4!$C$2:$C$8270,Sheet3!$B11,Sheet4!$D$2:$D$8270,Sheet3!W$3,Sheet4!$E$2:$E$8270,Sheet3!W$4,Sheet4!$A$2:$A$8270,Sheet3!$B$1,Sheet4!$B$2:$B$8270,Sheet3!$A$3) -> 0 | X11: =+SUMIFS(Sheet4!$DM$2:$DM$8270,Sheet4!$C$2:$C$8270,Sheet3!$B11,Sheet4!$D$2:$D$8270,Sheet3!X$3,Sheet4!$E$2:$E$8270,Sheet3!X$4,Sheet4!$A$2:$A$8270,Sheet3!$B$1,Sheet4!$B$2:$B$8270,Sheet3!$A$3) -> 0 | Y11: =+SUMIFS(Sheet4!$DM$2:$DM$8270,Sheet4!$C$2:$C$8270,Sheet3!$B11,Sheet4!$D$2:$D$8270,Sheet3!Y$3,Sheet4!$E$2:$E$8270,Sheet3!Y$4,Sheet4!$A$2:$A$8270,Sheet3!$B$1,Sheet4!$B$2:$B$8270,Sheet3!$A$3) -> 0 | Z11: =+SUMIFS(Sheet4!$DM$2:$DM$8270,Sheet4!$C$2:$C$8270,Sheet3!$B11,Sheet4!$D$2:$D$8270,Sheet3!Z$3,Sheet4!$E$2:$E$8270,Sheet3!Z$4,Sheet4!$A$2:$A$8270,Sheet3!$B$1,Sheet4!$B$2:$B$8270,Sheet3!$A$3) -> 0 | AA11: =+SUMIFS(Sheet4!$DM$2:$DM$8270,Sheet4!$C$2:$C$8270,Sheet3!$B11,Sheet4!$D$2:$D$8270,Sheet3!AA$3,Sheet4!$E$2:$E$8270,Sheet3!AA$4,Sheet4!$A$2:$A$8270,Sheet3!$B$1,Sheet4!$B$2:$B$8270,Sheet3!$A$3) -> 0 | AB11: =+SUMIFS(Sheet4!$DM$2:$DM$8270,Sheet4!$C$2:$C$8270,Sheet3!$B11,Sheet4!$D$2:$D$8270,Sheet3!AB$3,Sheet4!$E$2:$E$8270,Sheet3!AB$4,Sheet4!$A$2:$A$8270,Sheet3!$B$1,Sheet4!$B$2:$B$8270,Sheet3!$A$3) -> 0 | AC11: =+SUMIFS(Sheet4!$DM$2:$DM$8270,Sheet4!$C$2:$C$8270,Sheet3!$B11,Sheet4!$D$2:$D$8270,Sheet3!AC$3,Sheet4!$E$2:$E$8270,Sheet3!AC$4,Sheet4!$A$2:$A$8270,Sheet3!$B$1,Sheet4!$B$2:$B$8270,Sheet3!$A$3) -> 0 | AD11: =+SUMIFS(Sheet4!$DM$2:$DM$8270,Sheet4!$C$2:$C$8270,Sheet3!$B11,Sheet4!$D$2:$D$8270,Sheet3!AD$3,Sheet4!$E$2:$E$8270,Sheet3!AD$4,Sheet4!$A$2:$A$8270,Sheet3!$B$1,Sheet4!$B$2:$B$8270,Sheet3!$A$3) -> 0 | AE11: =+SUMIFS(Sheet4!$DM$2:$DM$8270,Sheet4!$C$2:$C$8270,Sheet3!$B11,Sheet4!$D$2:$D$8270,Sheet3!AE$3,Sheet4!$E$2:$E$8270,Sheet3!AE$4,Sheet4!$A$2:$A$8270,Sheet3!$B$1,Sheet4!$B$2:$B$8270,Sheet3!$A$3) -> 0 | AF11: =+SUMIFS(Sheet4!$DM$2:$DM$8270,Sheet4!$C$2:$C$8270,Sheet3!$B11,Sheet4!$D$2:$D$8270,Sheet3!AF$3,Sheet4!$E$2:$E$8270,Sheet3!AF$4,Sheet4!$A$2:$A$8270,Sheet3!$B$1,Sheet4!$B$2:$B$8270,Sheet3!$A$3) -> 0 | AG11: =+SUMIFS(Sheet4!$DM$2:$DM$8270,Sheet4!$C$2:$C$8270,Sheet3!$B11,Sheet4!$D$2:$D$8270,Sheet3!AG$3,Sheet4!$E$2:$E$8270,Sheet3!AG$4,Sheet4!$A$2:$A$8270,Sheet3!$B$1,Sheet4!$B$2:$B$8270,Sheet3!$A$3) -> 0 | AH11: =+SUMIFS(Sheet4!$DM$2:$DM$8270,Sheet4!$C$2:$C$8270,Sheet3!$B11,Sheet4!$D$2:$D$8270,Sheet3!AH$3,Sheet4!$E$2:$E$8270,Sheet3!AH$4,Sheet4!$A$2:$A$8270,Sheet3!$B$1,Sheet4!$B$2:$B$8270,Sheet3!$A$3) -> 0 | AI11: =+SUMIFS(Sheet4!$DM$2:$DM$8270,Sheet4!$C$2:$C$8270,Sheet3!$B11,Sheet4!$D$2:$D$8270,Sheet3!AI$3,Sheet4!$E$2:$E$8270,Sheet3!AI$4,Sheet4!$A$2:$A$8270,Sheet3!$B$1,Sheet4!$B$2:$B$8270,Sheet3!$A$3) -> 0 | AJ11: =+SUMIFS(Sheet4!$DM$2:$DM$8270,Sheet4!$C$2:$C$8270,Sheet3!$B11,Sheet4!$D$2:$D$8270,Sheet3!AJ$3,Sheet4!$E$2:$E$8270,Sheet3!AJ$4,Sheet4!$A$2:$A$8270,Sheet3!$B$1,Sheet4!$B$2:$B$8270,Sheet3!$A$3) -> 0 | AK11: =+SUMIFS(Sheet4!$DM$2:$DM$8270,Sheet4!$C$2:$C$8270,Sheet3!$B11,Sheet4!$D$2:$D$8270,Sheet3!AK$3,Sheet4!$E$2:$E$8270,Sheet3!AK$4,Sheet4!$A$2:$A$8270,Sheet3!$B$1,Sheet4!$B$2:$B$8270,Sheet3!$A$3) -> 0 | AL11: =+SUMIFS(Sheet4!$DM$2:$DM$8270,Sheet4!$C$2:$C$8270,Sheet3!$B11,Sheet4!$D$2:$D$8270,Sheet3!AL$3,Sheet4!$E$2:$E$8270,Sheet3!AL$4,Sheet4!$A$2:$A$8270,Sheet3!$B$1,Sheet4!$B$2:$B$8270,Sheet3!$A$3) -> 0 | AM11: =+SUMIFS(Sheet4!$DM$2:$DM$8270,Sheet4!$C$2:$C$8270,Sheet3!$B11,Sheet4!$D$2:$D$8270,Sheet3!AM$3,Sheet4!$E$2:$E$8270,Sheet3!AM$4,Sheet4!$A$2:$A$8270,Sheet3!$B$1,Sheet4!$B$2:$B$8270,Sheet3!$A$3) -> 0 | AN11: =+SUMIFS(Sheet4!$DM$2:$DM$8270,Sheet4!$C$2:$C$8270,Sheet3!$B11,Sheet4!$D$2:$D$8270,Sheet3!AN$3,Sheet4!$E$2:$E$8270,Sheet3!AN$4,Sheet4!$A$2:$A$8270,Sheet3!$B$1,Sheet4!$B$2:$B$8270,Sheet3!$A$3) -> 0 | AO11: =+SUMIFS(Sheet4!$DM$2:$DM$8270,Sheet4!$C$2:$C$8270,Sheet3!$B11,Sheet4!$D$2:$D$8270,Sheet3!AO$3,Sheet4!$E$2:$E$8270,Sheet3!AO$4,Sheet4!$A$2:$A$8270,Sheet3!$B$1,Sheet4!$B$2:$B$8270,Sheet3!$A$3) -> 0 | AP11: =+SUMIFS(Sheet4!$DM$2:$DM$8270,Sheet4!$C$2:$C$8270,Sheet3!$B11,Sheet4!$D$2:$D$8270,Sheet3!AP$3,Sheet4!$E$2:$E$8270,Sheet3!AP$4,Sheet4!$A$2:$A$8270,Sheet3!$B$1,Sheet4!$B$2:$B$8270,Sheet3!$A$3) -> 0 | AQ11: =+SUMIFS(Sheet4!$DM$2:$DM$8270,Sheet4!$C$2:$C$8270,Sheet3!$B11,Sheet4!$D$2:$D$8270,Sheet3!AQ$3,Sheet4!$E$2:$E$8270,Sheet3!AQ$4,Sheet4!$A$2:$A$8270,Sheet3!$B$1,Sheet4!$B$2:$B$8270,Sheet3!$A$3) -> 0 | AR11: =+SUMIFS(Sheet4!$DM$2:$DM$8270,Sheet4!$C$2:$C$8270,Sheet3!$B11,Sheet4!$D$2:$D$8270,Sheet3!AR$3,Sheet4!$E$2:$E$8270,Sheet3!AR$4,Sheet4!$A$2:$A$8270,Sheet3!$B$1,Sheet4!$B$2:$B$8270,Sheet3!$A$3) -> 0 | AS11: =+SUMIFS(Sheet4!$DM$2:$DM$8270,Sheet4!$C$2:$C$8270,Sheet3!$B11,Sheet4!$D$2:$D$8270,Sheet3!AS$3,Sheet4!$E$2:$E$8270,Sheet3!AS$4,Sheet4!$A$2:$A$8270,Sheet3!$B$1,Sheet4!$B$2:$B$8270,Sheet3!$A$3) -> 0 | AT11: =+SUMIFS(Sheet4!$DM$2:$DM$8270,Sheet4!$C$2:$C$8270,Sheet3!$B11,Sheet4!$D$2:$D$8270,Sheet3!AT$3,Sheet4!$E$2:$E$8270,Sheet3!AT$4,Sheet4!$A$2:$A$8270,Sheet3!$B$1,Sheet4!$B$2:$B$8270,Sheet3!$A$3) -> 0 | AU11: =+SUMIFS(Sheet4!$DM$2:$DM$8270,Sheet4!$C$2:$C$8270,Sheet3!$B11,Sheet4!$D$2:$D$8270,Sheet3!AU$3,Sheet4!$E$2:$E$8270,Sheet3!AU$4,Sheet4!$A$2:$A$8270,Sheet3!$B$1,Sheet4!$B$2:$B$8270,Sheet3!$A$3) -> 0 | AV11: =+SUMIFS(Sheet4!$DM$2:$DM$8270,Sheet4!$C$2:$C$8270,Sheet3!$B11,Sheet4!$D$2:$D$8270,Sheet3!AV$3,Sheet4!$E$2:$E$8270,Sheet3!AV$4,Sheet4!$A$2:$A$8270,Sheet3!$B$1,Sheet4!$B$2:$B$8270,Sheet3!$A$3) -> 0 | AW11: =+SUMIFS(Sheet4!$DM$2:$DM$8270,Sheet4!$C$2:$C$8270,Sheet3!$B11,Sheet4!$D$2:$D$8270,Sheet3!AW$3,Sheet4!$E$2:$E$8270,Sheet3!AW$4,Sheet4!$A$2:$A$8270,Sheet3!$B$1,Sheet4!$B$2:$B$8270,Sheet3!$A$3) -> 0 | AX11: =+SUMIFS(Sheet4!$DM$2:$DM$8270,Sheet4!$C$2:$C$8270,Sheet3!$B11,Sheet4!$D$2:$D$8270,Sheet3!AX$3,Sheet4!$E$2:$E$8270,Sheet3!AX$4,Sheet4!$A$2:$A$8270,Sheet3!$B$1,Sheet4!$B$2:$B$8270,Sheet3!$A$3) -> 0 | AY11: =+SUMIFS(Sheet4!$DM$2:$DM$8270,Sheet4!$C$2:$C$8270,Sheet3!$B11,Sheet4!$D$2:$D$8270,Sheet3!AY$3,Sheet4!$E$2:$E$8270,Sheet3!AY$4,Sheet4!$A$2:$A$8270,Sheet3!$B$1,Sheet4!$B$2:$B$8270,Sheet3!$A$3) -> 0 | AZ11: =+SUMIFS(Sheet4!$DM$2:$DM$8270,Sheet4!$C$2:$C$8270,Sheet3!$B11,Sheet4!$D$2:$D$8270,Sheet3!AZ$3,Sheet4!$E$2:$E$8270,Sheet3!AZ$4,Sheet4!$A$2:$A$8270,Sheet3!$B$1,Sheet4!$B$2:$B$8270,Sheet3!$A$3) -> 0 | BA11: =+SUMIFS(Sheet4!$DM$2:$DM$8270,Sheet4!$C$2:$C$8270,Sheet3!$B11,Sheet4!$D$2:$D$8270,Sheet3!BA$3,Sheet4!$E$2:$E$8270,Sheet3!BA$4,Sheet4!$A$2:$A$8270,Sheet3!$B$1,Sheet4!$B$2:$B$8270,Sheet3!$A$3) -> 0 | BB11: =+SUMIFS(Sheet4!$DM$2:$DM$8270,Sheet4!$C$2:$C$8270,Sheet3!$B11,Sheet4!$D$2:$D$8270,Sheet3!BB$3,Sheet4!$E$2:$E$8270,Sheet3!BB$4,Sheet4!$A$2:$A$8270,Sheet3!$B$1,Sheet4!$B$2:$B$8270,Sheet3!$A$3) -> 0 | BC11: =+SUMIFS(Sheet4!$DM$2:$DM$8270,Sheet4!$C$2:$C$8270,Sheet3!$B11,Sheet4!$D$2:$D$8270,Sheet3!BC$3,Sheet4!$E$2:$E$8270,Sheet3!BC$4,Sheet4!$A$2:$A$8270,Sheet3!$B$1,Sheet4!$B$2:$B$8270,Sheet3!$A$3) -> 0 | BD11: =+SUMIFS(Sheet4!$DM$2:$DM$8270,Sheet4!$C$2:$C$8270,Sheet3!$B11,Sheet4!$D$2:$D$8270,Sheet3!BD$3,Sheet4!$E$2:$E$8270,Sheet3!BD$4,Sheet4!$A$2:$A$8270,Sheet3!$B$1,Sheet4!$B$2:$B$8270,Sheet3!$A$3) -> 0 | BE11: =+SUMIFS(Sheet4!$DM$2:$DM$8270,Sheet4!$C$2:$C$8270,Sheet3!$B11,Sheet4!$D$2:$D$8270,Sheet3!BE$3,Sheet4!$E$2:$E$8270,Sheet3!BE$4,Sheet4!$A$2:$A$8270,Sheet3!$B$1,Sheet4!$B$2:$B$8270,Sheet3!$A$3) -> 0 | BF11: =+SUMIFS(Sheet4!$DM$2:$DM$8270,Sheet4!$C$2:$C$8270,Sheet3!$B11,Sheet4!$D$2:$D$8270,Sheet3!BF$3,Sheet4!$E$2:$E$8270,Sheet3!BF$4,Sheet4!$A$2:$A$8270,Sheet3!$B$1,Sheet4!$B$2:$B$8270,Sheet3!$A$3) -> 0 | BG11: =+SUMIFS(Sheet4!$DM$2:$DM$8270,Sheet4!$C$2:$C$8270,Sheet3!$B11,Sheet4!$D$2:$D$8270,Sheet3!BG$3,Sheet4!$E$2:$E$8270,Sheet3!BG$4,Sheet4!$A$2:$A$8270,Sheet3!$B$1,Sheet4!$B$2:$B$8270,Sheet3!$A$3) -> 350 | BH11: =+SUMIFS(Sheet4!$DM$2:$DM$8270,Sheet4!$C$2:$C$8270,Sheet3!$B11,Sheet4!$D$2:$D$8270,Sheet3!BH$3,Sheet4!$E$2:$E$8270,Sheet3!BH$4,Sheet4!$A$2:$A$8270,Sheet3!$B$1,Sheet4!$B$2:$B$8270,Sheet3!$A$3) -> 0 | BI11: =+SUMIFS(Sheet4!$DM$2:$DM$8270,Sheet4!$C$2:$C$8270,Sheet3!$B11,Sheet4!$D$2:$D$8270,Sheet3!BI$3,Sheet4!$E$2:$E$8270,Sheet3!BI$4,Sheet4!$A$2:$A$8270,Sheet3!$B$1,Sheet4!$B$2:$B$8270,Sheet3!$A$3) -> 0 | BJ11: =+SUMIFS(Sheet4!$DM$2:$DM$8270,Sheet4!$C$2:$C$8270,Sheet3!$B11,Sheet4!$D$2:$D$8270,Sheet3!BJ$3,Sheet4!$E$2:$E$8270,Sheet3!BJ$4,Sheet4!$A$2:$A$8270,Sheet3!$B$1,Sheet4!$B$2:$B$8270,Sheet3!$A$3) -> 0 | BK11: =+SUMIFS(Sheet4!$DM$2:$DM$8270,Sheet4!$C$2:$C$8270,Sheet3!$B11,Sheet4!$D$2:$D$8270,Sheet3!BK$3,Sheet4!$E$2:$E$8270,Sheet3!BK$4,Sheet4!$A$2:$A$8270,Sheet3!$B$1,Sheet4!$B$2:$B$8270,Sheet3!$A$3) -> 0 | BL11: =+SUMIFS(Sheet4!$DM$2:$DM$8270,Sheet4!$C$2:$C$8270,Sheet3!$B11,Sheet4!$D$2:$D$8270,Sheet3!BL$3,Sheet4!$E$2:$E$8270,Sheet3!BL$4,Sheet4!$A$2:$A$8270,Sheet3!$B$1,Sheet4!$B$2:$B$8270,Sheet3!$A$3) -> 0 | BM11: =+SUMIFS(Sheet4!$DM$2:$DM$8270,Sheet4!$C$2:$C$8270,Sheet3!$B11,Sheet4!$D$2:$D$8270,Sheet3!BM$3,Sheet4!$E$2:$E$8270,Sheet3!BM$4,Sheet4!$A$2:$A$8270,Sheet3!$B$1,Sheet4!$B$2:$B$8270,Sheet3!$A$3) -> 0 | BN11: =+SUMIFS(Sheet4!$DM$2:$DM$8270,Sheet4!$C$2:$C$8270,Sheet3!$B11,Sheet4!$D$2:$D$8270,Sheet3!BN$3,Sheet4!$E$2:$E$8270,Sheet3!BN$4,Sheet4!$A$2:$A$8270,Sheet3!$B$1,Sheet4!$B$2:$B$8270,Sheet3!$A$3) -> 700 | BO11: =+SUMIFS(Sheet4!$DM$2:$DM$8270,Sheet4!$C$2:$C$8270,Sheet3!$B11,Sheet4!$D$2:$D$8270,Sheet3!BO$3,Sheet4!$E$2:$E$8270,Sheet3!BO$4,Sheet4!$A$2:$A$8270,Sheet3!$B$1,Sheet4!$B$2:$B$8270,Sheet3!$A$3) -> 0 | BP11: =+SUMIFS(Sheet4!$DM$2:$DM$8270,Sheet4!$C$2:$C$8270,Sheet3!$B11,Sheet4!$D$2:$D$8270,Sheet3!BP$3,Sheet4!$E$2:$E$8270,Sheet3!BP$4,Sheet4!$A$2:$A$8270,Sheet3!$B$1,Sheet4!$B$2:$B$8270,Sheet3!$A$3) -> 0 | BQ11: =+SUMIFS(Sheet4!$DM$2:$DM$8270,Sheet4!$C$2:$C$8270,Sheet3!$B11,Sheet4!$D$2:$D$8270,Sheet3!BQ$3,Sheet4!$E$2:$E$8270,Sheet3!BQ$4,Sheet4!$A$2:$A$8270,Sheet3!$B$1,Sheet4!$B$2:$B$8270,Sheet3!$A$3) -> 0 | BR11: =+SUMIFS(Sheet4!$DM$2:$DM$8270,Sheet4!$C$2:$C$8270,Sheet3!$B11,Sheet4!$D$2:$D$8270,Sheet3!BR$3,Sheet4!$E$2:$E$8270,Sheet3!BR$4,Sheet4!$A$2:$A$8270,Sheet3!$B$1,Sheet4!$B$2:$B$8270,Sheet3!$A$3) -> 0 | BS11: =+SUMIFS(Sheet4!$DM$2:$DM$8270,Sheet4!$C$2:$C$8270,Sheet3!$B11,Sheet4!$D$2:$D$8270,Sheet3!BS$3,Sheet4!$E$2:$E$8270,Sheet3!BS$4,Sheet4!$A$2:$A$8270,Sheet3!$B$1,Sheet4!$B$2:$B$8270,Sheet3!$A$3) -> 0 | BT11: =+SUMIFS(Sheet4!$DM$2:$DM$8270,Sheet4!$C$2:$C$8270,Sheet3!$B11,Sheet4!$D$2:$D$8270,Sheet3!BT$3,Sheet4!$E$2:$E$8270,Sheet3!BT$4,Sheet4!$A$2:$A$8270,Sheet3!$B$1,Sheet4!$B$2:$B$8270,Sheet3!$A$3) -> 0 | BU11: =+SUMIFS(Sheet4!$DM$2:$DM$8270,Sheet4!$C$2:$C$8270,Sheet3!$B11,Sheet4!$D$2:$D$8270,Sheet3!BU$3,Sheet4!$E$2:$E$8270,Sheet3!BU$4,Sheet4!$A$2:$A$8270,Sheet3!$B$1,Sheet4!$B$2:$B$8270,Sheet3!$A$3) -> 0 | BV11: =+SUMIFS(Sheet4!$DM$2:$DM$8270,Sheet4!$C$2:$C$8270,Sheet3!$B11,Sheet4!$D$2:$D$8270,Sheet3!BV$3,Sheet4!$E$2:$E$8270,Sheet3!BV$4,Sheet4!$A$2:$A$8270,Sheet3!$B$1,Sheet4!$B$2:$B$8270,Sheet3!$A$3) -> 0 | BW11: =+SUMIFS(Sheet4!$DM$2:$DM$8270,Sheet4!$C$2:$C$8270,Sheet3!$B11,Sheet4!$D$2:$D$8270,Sheet3!BW$3,Sheet4!$E$2:$E$8270,Sheet3!BW$4,Sheet4!$A$2:$A$8270,Sheet3!$B$1,Sheet4!$B$2:$B$8270,Sheet3!$A$3) -> 0 | BX11: =+SUMIFS(Sheet4!$DM$2:$DM$8270,Sheet4!$C$2:$C$8270,Sheet3!$B11,Sheet4!$D$2:$D$8270,Sheet3!BX$3,Sheet4!$E$2:$E$8270,Sheet3!BX$4,Sheet4!$A$2:$A$8270,Sheet3!$B$1,Sheet4!$B$2:$B$8270,Sheet3!$A$3) -> 0 | BY11: =+SUMIFS(Sheet4!$DM$2:$DM$8270,Sheet4!$C$2:$C$8270,Sheet3!$B11,Sheet4!$D$2:$D$8270,Sheet3!BY$3,Sheet4!$E$2:$E$8270,Sheet3!BY$4,Sheet4!$A$2:$A$8270,Sheet3!$B$1,Sheet4!$B$2:$B$8270,Sheet3!$A$3) -> 0 | BZ11: =+SUMIFS(Sheet4!$DM$2:$DM$8270,Sheet4!$C$2:$C$8270,Sheet3!$B11,Sheet4!$D$2:$D$8270,Sheet3!BZ$3,Sheet4!$E$2:$E$8270,Sheet3!BZ$4,Sheet4!$A$2:$A$8270,Sheet3!$B$1,Sheet4!$B$2:$B$8270,Sheet3!$A$3) -> 0 | CA11: =+SUMIFS(Sheet4!$DM$2:$DM$8270,Sheet4!$C$2:$C$8270,Sheet3!$B11,Sheet4!$D$2:$D$8270,Sheet3!CA$3,Sheet4!$E$2:$E$8270,Sheet3!CA$4,Sheet4!$A$2:$A$8270,Sheet3!$B$1,Sheet4!$B$2:$B$8270,Sheet3!$A$3) -> 0 | CB11: =+SUMIFS(Sheet4!$DM$2:$DM$8270,Sheet4!$C$2:$C$8270,Sheet3!$B11,Sheet4!$D$2:$D$8270,Sheet3!CB$3,Sheet4!$E$2:$E$8270,Sheet3!CB$4,Sheet4!$A$2:$A$8270,Sheet3!$B$1,Sheet4!$B$2:$B$8270,Sheet3!$A$3) -> 0 | CC11: =+SUMIFS(Sheet4!$DM$2:$DM$8270,Sheet4!$C$2:$C$8270,Sheet3!$B11,Sheet4!$D$2:$D$8270,Sheet3!CC$3,Sheet4!$E$2:$E$8270,Sheet3!CC$4,Sheet4!$A$2:$A$8270,Sheet3!$B$1,Sheet4!$B$2:$B$8270,Sheet3!$A$3) -> 0 | CD11: =+SUMIFS(Sheet4!$DM$2:$DM$8270,Sheet4!$C$2:$C$8270,Sheet3!$B11,Sheet4!$D$2:$D$8270,Sheet3!CD$3,Sheet4!$E$2:$E$8270,Sheet3!CD$4,Sheet4!$A$2:$A$8270,Sheet3!$B$1,Sheet4!$B$2:$B$8270,Sheet3!$A$3) -> 0 | CE11: =+SUMIFS(Sheet4!$DM$2:$DM$8270,Sheet4!$C$2:$C$8270,Sheet3!$B11,Sheet4!$D$2:$D$8270,Sheet3!CE$3,Sheet4!$E$2:$E$8270,Sheet3!CE$4,Sheet4!$A$2:$A$8270,Sheet3!$B$1,Sheet4!$B$2:$B$8270,Sheet3!$A$3) -> 0 | CF11: =+SUMIFS(Sheet4!$DM$2:$DM$8270,Sheet4!$C$2:$C$8270,Sheet3!$B11,Sheet4!$D$2:$D$8270,Sheet3!CF$3,Sheet4!$E$2:$E$8270,Sheet3!CF$4,Sheet4!$A$2:$A$8270,Sheet3!$B$1,Sheet4!$B$2:$B$8270,Sheet3!$A$3) -> 0 | CG11: =+SUMIFS(Sheet4!$DM$2:$DM$8270,Sheet4!$C$2:$C$8270,Sheet3!$B11,Sheet4!$D$2:$D$8270,Sheet3!CG$3,Sheet4!$E$2:$E$8270,Sheet3!CG$4,Sheet4!$A$2:$A$8270,Sheet3!$B$1,Sheet4!$B$2:$B$8270,Sheet3!$A$3) -> 0 | CH11: =+SUMIFS(Sheet4!$DM$2:$DM$8270,Sheet4!$C$2:$C$8270,Sheet3!$B11,Sheet4!$D$2:$D$8270,Sheet3!CH$3,Sheet4!$E$2:$E$8270,Sheet3!CH$4,Sheet4!$A$2:$A$8270,Sheet3!$B$1,Sheet4!$B$2:$B$8270,Sheet3!$A$3) -> 0 | CI11: =+SUMIFS(Sheet4!$DM$2:$DM$8270,Sheet4!$C$2:$C$8270,Sheet3!$B11,Sheet4!$D$2:$D$8270,Sheet3!CI$3,Sheet4!$E$2:$E$8270,Sheet3!CI$4,Sheet4!$A$2:$A$8270,Sheet3!$B$1,Sheet4!$B$2:$B$8270,Sheet3!$A$3) -> 0 | CJ11: =+SUMIFS(Sheet4!$DM$2:$DM$8270,Sheet4!$C$2:$C$8270,Sheet3!$B11,Sheet4!$D$2:$D$8270,Sheet3!CJ$3,Sheet4!$E$2:$E$8270,Sheet3!CJ$4,Sheet4!$A$2:$A$8270,Sheet3!$B$1,Sheet4!$B$2:$B$8270,Sheet3!$A$3) -> 0 | CK11: =+SUMIFS(Sheet4!$DM$2:$DM$8270,Sheet4!$C$2:$C$8270,Sheet3!$B11,Sheet4!$D$2:$D$8270,Sheet3!CK$3,Sheet4!$E$2:$E$8270,Sheet3!CK$4,Sheet4!$A$2:$A$8270,Sheet3!$B$1,Sheet4!$B$2:$B$8270,Sheet3!$A$3) -> 0 | CL11: =+SUMIFS(Sheet4!$DM$2:$DM$8270,Sheet4!$C$2:$C$8270,Sheet3!$B11,Sheet4!$D$2:$D$8270,Sheet3!CL$3,Sheet4!$E$2:$E$8270,Sheet3!CL$4,Sheet4!$A$2:$A$8270,Sheet3!$B$1,Sheet4!$B$2:$B$8270,Sheet3!$A$3) -> 0 | CM11: =+SUMIFS(Sheet4!$DM$2:$DM$8270,Sheet4!$C$2:$C$8270,Sheet3!$B11,Sheet4!$D$2:$D$8270,Sheet3!CM$3,Sheet4!$E$2:$E$8270,Sheet3!CM$4,Sheet4!$A$2:$A$8270,Sheet3!$B$1,Sheet4!$B$2:$B$8270,Sheet3!$A$3) -> 0 | CN11: =+SUMIFS(Sheet4!$DM$2:$DM$8270,Sheet4!$C$2:$C$8270,Sheet3!$B11,Sheet4!$D$2:$D$8270,Sheet3!CN$3,Sheet4!$E$2:$E$8270,Sheet3!CN$4,Sheet4!$A$2:$A$8270,Sheet3!$B$1,Sheet4!$B$2:$B$8270,Sheet3!$A$3) -> 0 | CO11: =+SUMIFS(Sheet4!$DM$2:$DM$8270,Sheet4!$C$2:$C$8270,Sheet3!$B11,Sheet4!$D$2:$D$8270,Sheet3!CO$3,Sheet4!$E$2:$E$8270,Sheet3!CO$4,Sheet4!$A$2:$A$8270,Sheet3!$B$1,Sheet4!$B$2:$B$8270,Sheet3!$A$3) -> 0 | CP11: =+IF(SUMIFS(Sheet4!$DN$2:$DN$8270,Sheet4!$C$2:$C$8270,Sheet3!$B11,Sheet4!$D$2:$D$8270,Sheet3!CP$3,Sheet4!$A$2:$A$8270,Sheet3!$B$1,Sheet4!$B$2:$B$8270,Sheet3!$A$3)<3,0,SUMIFS(Sheet4!$DN$2:$DN$8270,Sheet4!$C$2:$C$8270,Sheet3!$B11,Sheet4!$D$2:$D$8270,Sheet3!CP$3,Sheet4!$A$2:$A$8270,Sheet3!$B$1,Sheet4!$B$2:$B$8270,Sheet3!$A$3)) -> 0 | CQ11: =+IF(SUMIFS(Sheet4!$DN$2:$DN$8270,Sheet4!$C$2:$C$8270,Sheet3!$B11,Sheet4!$D$2:$D$8270,Sheet3!CQ$3,Sheet4!$A$2:$A$8270,Sheet3!$B$1,Sheet4!$B$2:$B$8270,Sheet3!$A$3)<3,0,SUMIFS(Sheet4!$DN$2:$DN$8270,Sheet4!$C$2:$C$8270,Sheet3!$B11,Sheet4!$D$2:$D$8270,Sheet3!CQ$3,Sheet4!$A$2:$A$8270,Sheet3!$B$1,Sheet4!$B$2:$B$8270,Sheet3!$A$3)) -> 0 | CR11: =+IF(SUMIFS(Sheet4!$DN$2:$DN$8270,Sheet4!$C$2:$C$8270,Sheet3!$B11,Sheet4!$D$2:$D$8270,Sheet3!CR$3,Sheet4!$A$2:$A$8270,Sheet3!$B$1,Sheet4!$B$2:$B$8270,Sheet3!$A$3)<3,0,SUMIFS(Sheet4!$DN$2:$DN$8270,Sheet4!$C$2:$C$8270,Sheet3!$B11,Sheet4!$D$2:$D$8270,Sheet3!CR$3,Sheet4!$A$2:$A$8270,Sheet3!$B$1,Sheet4!$B$2:$B$8270,Sheet3!$A$3)) -> 0 | CS11: =+IF(SUMIFS(Sheet4!$DN$2:$DN$8270,Sheet4!$C$2:$C$8270,Sheet3!$B11,Sheet4!$D$2:$D$8270,Sheet3!CS$3,Sheet4!$A$2:$A$8270,Sheet3!$B$1,Sheet4!$B$2:$B$8270,Sheet3!$A$3)<3,0,SUMIFS(Sheet4!$DN$2:$DN$8270,Sheet4!$C$2:$C$8270,Sheet3!$B11,Sheet4!$D$2:$D$8270,Sheet3!CS$3,Sheet4!$A$2:$A$8270,Sheet3!$B$1,Sheet4!$B$2:$B$8270,Sheet3!$A$3)) -> 0 | CT11: =+IF(SUMIFS(Sheet4!$DN$2:$DN$8270,Sheet4!$C$2:$C$8270,Sheet3!$B11,Sheet4!$D$2:$D$8270,Sheet3!CT$3,Sheet4!$A$2:$A$8270,Sheet3!$B$1,Sheet4!$B$2:$B$8270,Sheet3!$A$3)<3,0,SUMIFS(Sheet4!$DN$2:$DN$8270,Sheet4!$C$2:$C$8270,Sheet3!$B11,Sheet4!$D$2:$D$8270,Sheet3!CT$3,Sheet4!$A$2:$A$8270,Sheet3!$B$1,Sheet4!$B$2:$B$8270,Sheet3!$A$3)) -> 0 | CU11: =+IF(SUMIFS(Sheet4!$DN$2:$DN$8270,Sheet4!$C$2:$C$8270,Sheet3!$B11,Sheet4!$D$2:$D$8270,Sheet3!CU$3,Sheet4!$A$2:$A$8270,Sheet3!$B$1,Sheet4!$B$2:$B$8270,Sheet3!$A$3)<3,0,SUMIFS(Sheet4!$DN$2:$DN$8270,Sheet4!$C$2:$C$8270,Sheet3!$B11,Sheet4!$D$2:$D$8270,Sheet3!CU$3,Sheet4!$A$2:$A$8270,Sheet3!$B$1,Sheet4!$B$2:$B$8270,Sheet3!$A$3)) -> 0 | CV11: =+IF(SUMIFS(Sheet4!$DN$2:$DN$8270,Sheet4!$C$2:$C$8270,Sheet3!$B11,Sheet4!$D$2:$D$8270,Sheet3!CV$3,Sheet4!$A$2:$A$8270,Sheet3!$B$1,Sheet4!$B$2:$B$8270,Sheet3!$A$3)<3,0,SUMIFS(Sheet4!$DN$2:$DN$8270,Sheet4!$C$2:$C$8270,Sheet3!$B11,Sheet4!$D$2:$D$8270,Sheet3!CV$3,Sheet4!$A$2:$A$8270,Sheet3!$B$1,Sheet4!$B$2:$B$8270,Sheet3!$A$3)) -> 0 | CW11: =+IF(SUMIFS(Sheet4!$DN$2:$DN$8270,Sheet4!$C$2:$C$8270,Sheet3!$B11,Sheet4!$D$2:$D$8270,Sheet3!CW$3,Sheet4!$A$2:$A$8270,Sheet3!$B$1,Sheet4!$B$2:$B$8270,Sheet3!$A$3)<3,0,SUMIFS(Sheet4!$DN$2:$DN$8270,Sheet4!$C$2:$C$8270,Sheet3!$B11,Sheet4!$D$2:$D$8270,Sheet3!CW$3,Sheet4!$A$2:$A$8270,Sheet3!$B$1,Sheet4!$B$2:$B$8270,Sheet3!$A$3)) -> 0 | CX11: =+IF(SUMIFS(Sheet4!$DN$2:$DN$8270,Sheet4!$C$2:$C$8270,Sheet3!$B11,Sheet4!$D$2:$D$8270,Sheet3!CX$3,Sheet4!$A$2:$A$8270,Sheet3!$B$1,Sheet4!$B$2:$B$8270,Sheet3!$A$3)<3,0,SUMIFS(Sheet4!$DN$2:$DN$8270,Sheet4!$C$2:$C$8270,Sheet3!$B11,Sheet4!$D$2:$D$8270,Sheet3!CX$3,Sheet4!$A$2:$A$8270,Sheet3!$B$1,Sheet4!$B$2:$B$8270,Sheet3!$A$3)) -> 0 | CY11: =+IF(SUMIFS(Sheet4!$DN$2:$DN$8270,Sheet4!$C$2:$C$8270,Sheet3!$B11,Sheet4!$D$2:$D$8270,Sheet3!CY$3,Sheet4!$A$2:$A$8270,Sheet3!$B$1,Sheet4!$B$2:$B$8270,Sheet3!$A$3)<3,0,SUMIFS(Sheet4!$DN$2:$DN$8270,Sheet4!$C$2:$C$8270,Sheet3!$B11,Sheet4!$D$2:$D$8270,Sheet3!CY$3,Sheet4!$A$2:$A$8270,Sheet3!$B$1,Sheet4!$B$2:$B$8270,Sheet3!$A$3)) -> 0 | CZ11: =+IF(SUMIFS(Sheet4!$DN$2:$DN$8270,Sheet4!$C$2:$C$8270,Sheet3!$B11,Sheet4!$D$2:$D$8270,Sheet3!CZ$3,Sheet4!$A$2:$A$8270,Sheet3!$B$1,Sheet4!$B$2:$B$8270,Sheet3!$A$3)<3,0,SUMIFS(Sheet4!$DN$2:$DN$8270,Sheet4!$C$2:$C$8270,Sheet3!$B11,Sheet4!$D$2:$D$8270,Sheet3!CZ$3,Sheet4!$A$2:$A$8270,Sheet3!$B$1,Sheet4!$B$2:$B$8270,Sheet3!$A$3)) -> 0 | DA11: =+IF(SUMIFS(Sheet4!$DN$2:$DN$8270,Sheet4!$C$2:$C$8270,Sheet3!$B11,Sheet4!$D$2:$D$8270,Sheet3!DA$3,Sheet4!$A$2:$A$8270,Sheet3!$B$1,Sheet4!$B$2:$B$8270,Sheet3!$A$3)<3,0,SUMIFS(Sheet4!$DN$2:$DN$8270,Sheet4!$C$2:$C$8270,Sheet3!$B11,Sheet4!$D$2:$D$8270,Sheet3!DA$3,Sheet4!$A$2:$A$8270,Sheet3!$B$1,Sheet4!$B$2:$B$8270,Sheet3!$A$3)) -> 350 | DB11: =+IF(SUMIFS(Sheet4!$DN$2:$DN$8270,Sheet4!$C$2:$C$8270,Sheet3!$B11,Sheet4!$D$2:$D$8270,Sheet3!DB$3,Sheet4!$A$2:$A$8270,Sheet3!$B$1,Sheet4!$B$2:$B$8270,Sheet3!$A$3)<3,0,SUMIFS(Sheet4!$DN$2:$DN$8270,Sheet4!$C$2:$C$8270,Sheet3!$B11,Sheet4!$D$2:$D$8270,Sheet3!DB$3,Sheet4!$A$2:$A$8270,Sheet3!$B$1,Sheet4!$B$2:$B$8270,Sheet3!$A$3)) -> 700 | DC11: =+IF(SUMIFS(Sheet4!$DN$2:$DN$8270,Sheet4!$C$2:$C$8270,Sheet3!$B11,Sheet4!$D$2:$D$8270,Sheet3!DC$3,Sheet4!$A$2:$A$8270,Sheet3!$B$1,Sheet4!$B$2:$B$8270,Sheet3!$A$3)<3,0,SUMIFS(Sheet4!$DN$2:$DN$8270,Sheet4!$C$2:$C$8270,Sheet3!$B11,Sheet4!$D$2:$D$8270,Sheet3!DC$3,Sheet4!$A$2:$A$8270,Sheet3!$B$1,Sheet4!$B$2:$B$8270,Sheet3!$A$3)) -> 0 | DD11: =+IF(SUMIFS(Sheet4!$DN$2:$DN$8270,Sheet4!$C$2:$C$8270,Sheet3!$B11,Sheet4!$D$2:$D$8270,Sheet3!DD$3,Sheet4!$A$2:$A$8270,Sheet3!$B$1,Sheet4!$B$2:$B$8270,Sheet3!$A$3)<3,0,SUMIFS(Sheet4!$DN$2:$DN$8270,Sheet4!$C$2:$C$8270,Sheet3!$B11,Sheet4!$D$2:$D$8270,Sheet3!DD$3,Sheet4!$A$2:$A$8270,Sheet3!$B$1,Sheet4!$B$2:$B$8270,Sheet3!$A$3)) -> 0 | DE11: =+IF(SUMIFS(Sheet4!$DN$2:$DN$8270,Sheet4!$C$2:$C$8270,Sheet3!$B11,Sheet4!$D$2:$D$8270,Sheet3!DE$3,Sheet4!$A$2:$A$8270,Sheet3!$B$1,Sheet4!$B$2:$B$8270,Sheet3!$A$3)<3,0,SUMIFS(Sheet4!$DN$2:$DN$8270,Sheet4!$C$2:$C$8270,Sheet3!$B11,Sheet4!$D$2:$D$8270,Sheet3!DE$3,Sheet4!$A$2:$A$8270,Sheet3!$B$1,Sheet4!$B$2:$B$8270,Sheet3!$A$3)) -> 0 | DF11: =+IF(SUMIFS(Sheet4!$DN$2:$DN$8270,Sheet4!$C$2:$C$8270,Sheet3!$B11,Sheet4!$D$2:$D$8270,Sheet3!DF$3,Sheet4!$A$2:$A$8270,Sheet3!$B$1,Sheet4!$B$2:$B$8270,Sheet3!$A$3)<3,0,SUMIFS(Sheet4!$DN$2:$DN$8270,Sheet4!$C$2:$C$8270,Sheet3!$B11,Sheet4!$D$2:$D$8270,Sheet3!DF$3,Sheet4!$A$2:$A$8270,Sheet3!$B$1,Sheet4!$B$2:$B$8270,Sheet3!$A$3)) -> 0 | DG11: =+IF(SUMIFS(Sheet4!$DN$2:$DN$8270,Sheet4!$C$2:$C$8270,Sheet3!$B11,Sheet4!$D$2:$D$8270,Sheet3!DG$3,Sheet4!$A$2:$A$8270,Sheet3!$B$1,Sheet4!$B$2:$B$8270,Sheet3!$A$3)<3,0,SUMIFS(Sheet4!$DN$2:$DN$8270,Sheet4!$C$2:$C$8270,Sheet3!$B11,Sheet4!$D$2:$D$8270,Sheet3!DG$3,Sheet4!$A$2:$A$8270,Sheet3!$B$1,Sheet4!$B$2:$B$8270,Sheet3!$A$3)) -> 0 | DH11: =+IF(SUMIFS(Sheet4!$DN$2:$DN$8270,Sheet4!$C$2:$C$8270,Sheet3!$B11,Sheet4!$E$2:$E$8270,Sheet3!DH$4,Sheet4!$A$2:$A$8270,Sheet3!$B$1,Sheet4!$B$2:$B$8270,Sheet3!$A$3)<3,0,SUMIFS(Sheet4!$DN$2:$DN$8270,Sheet4!$C$2:$C$8270,Sheet3!$B11,Sheet4!$E$2:$E$8270,Sheet3!DH$4,Sheet4!$A$2:$A$8270,Sheet3!$B$1,Sheet4!$B$2:$B$8270,Sheet3!$A$3)) -> 350 | DI11: =+IF(SUMIFS(Sheet4!$DN$2:$DN$8270,Sheet4!$C$2:$C$8270,Sheet3!$B11,Sheet4!$E$2:$E$8270,Sheet3!DI$4,Sheet4!$A$2:$A$8270,Sheet3!$B$1,Sheet4!$B$2:$B$8270,Sheet3!$A$3)<3,0,SUMIFS(Sheet4!$DN$2:$DN$8270,Sheet4!$C$2:$C$8270,Sheet3!$B11,Sheet4!$E$2:$E$8270,Sheet3!DI$4,Sheet4!$A$2:$A$8270,Sheet3!$B$1,Sheet4!$B$2:$B$8270,Sheet3!$A$3)) -> 0 | DJ11: =+IF(SUMIFS(Sheet4!$DN$2:$DN$8270,Sheet4!$C$2:$C$8270,Sheet3!$B11,Sheet4!$E$2:$E$8270,Sheet3!DJ$4,Sheet4!$A$2:$A$8270,Sheet3!$B$1,Sheet4!$B$2:$B$8270,Sheet3!$A$3)<3,0,SUMIFS(Sheet4!$DN$2:$DN$8270,Sheet4!$C$2:$C$8270,Sheet3!$B11,Sheet4!$E$2:$E$8270,Sheet3!DJ$4,Sheet4!$A$2:$A$8270,Sheet3!$B$1,Sheet4!$B$2:$B$8270,Sheet3!$A$3)) -> 700 | DK11: =+IF(SUMIFS(Sheet4!$DN$2:$DN$8270,Sheet4!$C$2:$C$8270,Sheet3!$B11,Sheet4!$E$2:$E$8270,Sheet3!DK$4,Sheet4!$A$2:$A$8270,Sheet3!$B$1,Sheet4!$B$2:$B$8270,Sheet3!$A$3)<3,0,SUMIFS(Sheet4!$DN$2:$DN$8270,Sheet4!$C$2:$C$8270,Sheet3!$B11,Sheet4!$E$2:$E$8270,Sheet3!DK$4,Sheet4!$A$2:$A$8270,Sheet3!$B$1,Sheet4!$B$2:$B$8270,Sheet3!$A$3)) -> 0 | DL11: =+IF(SUMIFS(Sheet4!$DN$2:$DN$8270,Sheet4!$C$2:$C$8270,Sheet3!$B11,Sheet4!$E$2:$E$8270,Sheet3!DL$4,Sheet4!$A$2:$A$8270,Sheet3!$B$1,Sheet4!$B$2:$B$8270,Sheet3!$A$3)<3,0,SUMIFS(Sheet4!$DN$2:$DN$8270,Sheet4!$C$2:$C$8270,Sheet3!$B11,Sheet4!$E$2:$E$8270,Sheet3!DL$4,Sheet4!$A$2:$A$8270,Sheet3!$B$1,Sheet4!$B$2:$B$8270,Sheet3!$A$3)) -> 0
